Workbook

Sheet Menu
G2: Site | H2: =+Offsets!H3 -> Brockhollands Road
G3: Location | H3: =+Offsets!I3 -> 51.744498, -2.558571
G4: Site No | H4: =Offsets!J3 -> 1
G5: Directions | H5: =+Offsets!K3&" "&+Offsets!L3 -> NB SB
G6: Start | H6: =+Offsets!M3 -> 2023-09-28

Sheet Data
A2: 1 | C2: =OFFSET(Offsets!Dir_1,A2,0) -> NB | AM2: Speed | AQ2: =OFFSET(Offsets!Dir_2,A2,0) -> SB | CA2: Speed | CC2: Combined | DO2: Speed | DQ2: =+C2 -> NB | ED2: =+AQ2 -> SB | EQ2: Combined | FD2: =C2 -> NB | FK2: =AQ2 -> SB | FR2: Combined | FY2: Weekday Average
C3: Vehicle Classification | O3: Vehicle Speed Bins | AQ3: Vehicle Classification | BC3: Vehicle Speed Bins | CE3: Vehicle Classification | CQ3: Vehicle Speed Bins | DQ3: C1 | DY3: C9 | DZ3: C10 | EA3: C11 | EC3: Total | ED3: C1 | EE3: C2 | EF3: C3 | EG3: C4 | EH3: C5 | EI3: C6 | EJ3: C7 | EK3: C8 | EL3: C9 | EM3: C10 | EN3: C11 | EO3: C12 | EP3: Total | EQ3: C1 | ER3: C2 | ES3: C3 | ET3: C4 | EU3: C5 | EV3: C6 | EW3: C7 | EX3: C8 | EY3: C9 | EZ3: C10 | FA3: C11 | FB3: C12 | FC3: Total | FY3: =FD2 -> NB | FZ3: =FK2 -> SB | GA3: =FR2 -> Combined
C4: 1 | D4: 2 | E4: 3 | F4: 4 | G4: 5 | H4: 6 | I4: 7 | J4: 8 | K4: 9 | L4: 10 | M4: 11 | N4: 12 | O4: 0005 | P4: 0510 | Q4: 1015 | R4: 1520 | S4: 2025 | T4: 2530 | U4: 3035 | V4: 3540 | W4: 4045 | X4: 4550 | Y4: 5055 | Z4: 5560 | AA4: 6065 | AB4: 6570 | AC4: 7075 | AD4: 7580 | AE4: 8085 | AF4: 8590 | AG4: 9095 | AH4: 95100 | AI4: 100105 | AJ4: 105110 | AK4: 110115 | AL4: 115+ | AM4: Ave | AN4: 85%ile | AQ4: 1 | AR4: 2 | AS4: 3 | AT4: 4 | AU4: 5 | AV4: 6 | AW4: 7 | AX4: 8 | AY4: 9 | AZ4: 10 | BA4: 11 | BB4: 12 | BC4: 0005 | BD4: 0510 | BE4: 1015 | BF4: 1520 | BG4: 2025 | BH4: 2530 | BI4: 3035 | BJ4: 3540 | BK4: 4045 | BL4: 4550 | BM4: 5055 | BN4: 5560 | BO4: 6065 | BP4: 6570 | BQ4: 7075 | BR4: 7580 | BS4: 8085 | BT4: 8590 | BU4: 9095 | BV4: 95100 | BW4: 100105 | BX4: 105110 | BY4: 110115 | BZ4: 115+ | CA4: Ave | CB4: 85%ile | CE4: 1 | CF4: 2 | CG4: 3 | CH4: 4 | CI4: 5 | CJ4: 6 | CK4: 7 | CL4: 8 | CM4: 9 | CN4: 10 | CO4: 11 | CP4: 12 | CQ4: 0005 | CR4: 0510 | CS4: 1015 | CT4: 1520 | CU4: 2025 | CV4: 2530 | CW4: 3035 | CX4: 3540 | CY4: 4045 | CZ4: 4550 | DA4: 5055 | DB4: 5560 | DC4: 6065 | DD4: 6570 | DE4: 7075 | DF4: 7580 | DG4: 8085 | DH4: 8590 | DI4: 9095 | DJ4: 95100 | DK4: 100105 | DL4: 105110 | DM4: 110115 | DN4: 115+ | DO4: Ave | DP4: 85%ile | DR4: C2 | DS4: C3 | DT4: C4 | DU4: C5 | DV4: C6 | DW4: C7 | DX4: C8 | EB4: C12 | FD4: Mon | FE4: Tue | FF4: Wed | FG4: Thu | FH4: Fri | FI4: Sat | FJ4: Sun | FK4: Mon | FL4: Tue | FM4: Wed | FN4: Thu | FO4: Fri | FP4: Sat | FQ4: Sun | FR4: Mon | FS4: Tue | FT4: Wed | FU4: Thu | FV4: Fri | FW4: Sat | FX4: Sun
A5: Mon | B5: 0 | C5: 0 | D5: 0 | E5: 0 | F5: 2 | G5: 0 | H5: 0 | I5: 0 | J5: 0 | K5: 0 | L5: 0 | M5: 0 | N5: 0 | O5: 0 | P5: 0 | Q5: 0 | R5: 0 | S5: 1 | T5: 0 | U5: 0 | V5: 1 | W5: 0 | X5: 0 | Y5: 0 | Z5: 0 | AA5: 0 | AB5: 0 | AC5: 0 | AD5: 0 | AE5: 0 | AF5: 0 | AG5: 0 | AH5: 0 | AI5: 0 | AJ5: 0 | AK5: 0 | AL5: 0 | AM5: 29.08 | AN5: - | AO5: Mon | AP5: 0 | AQ5: 0 | AR5: 0 | AS5: 0 | AT5: 0 | AU5: 0 | AV5: 0 | AW5: 0 | AX5: 0 | AY5: 0 | AZ5: 0 | BA5: 0 | BB5: 0 | BC5: 0 | BD5: 0 | BE5: 0 | BF5: 0 | BG5: 0 | BH5: 0 | BI5: 0 | BJ5: 0 | BK5: 0 | BL5: 0 | BM5: 0 | BN5: 0 | BO5: 0 | BP5: 0 | BQ5: 0 | BR5: 0 | BS5: 0 | BT5: 0 | BU5: 0 | BV5: 0 | BW5: 0 | BX5: 0 | BY5: 0 | BZ5: 0 | CA5: - | CB5: - | CC5: Mon | CD5: 0 | CE5: 0 | CF5: 0 | CG5: 0 | CH5: 2 | CI5: 0 | CJ5: 0 | CK5: 0 | CL5: 0 | CM5: 0 | CN5: 0 | CO5: 0 | CP5: 0 | CQ5: 0 | CR5: 0 | CS5: 0 | CT5: 0 | CU5: 1 | CV5: 0 | CW5: 0 | CX5: 1 | CY5: 0 | CZ5: 0 | DA5: 0 | DB5: 0 | DC5: 0 | DD5: 0 | DE5: 0 | DF5: 0 | DG5: 0 | DH5: 0 | DI5: 0 | DJ5: 0 | DK5: 0 | DL5: 0 | DM5: 0 | DN5: 0 | DO5: 29.08 | DP5: - | DQ5: =SUM(C5) -> 0 | DR5: =SUM(D5) -> 0 | DS5: =SUM(E5) -> 0 | DT5: =SUM(F5) -> 2 | DU5: =SUM(G5) -> 0 | DV5: =SUM(H5) -> 0 | DW5: =SUM(I5) -> 0 | DX5: =SUM(J5) -> 0 | DY5: =SUM(K5) -> 0 | DZ5: =SUM(L5) -> 0 | EA5: =SUM(M5) -> 0 | EB5: =SUM(N5) -> 0 | EC5: =SUM(C5:N5) -> 2 | ED5: =SUM(AQ5) -> 0 | EE5: =SUM(AR5) -> 0 | EF5: =SUM(AS5) -> 0 | EG5: =SUM(AT5) -> 0 | EH5: =SUM(AU5) -> 0 | EI5: =SUM(AV5) -> 0 | EJ5: =SUM(AW5) -> 0 | EK5: =SUM(AX5) -> 0 | EL5: =SUM(AY5) -> 0 | EM5: =SUM(AZ5) -> 0 | EN5: =SUM(BA5) -> 0 | EO5: =SUM(BB5) -> 0 | EP5: =SUM(AQ5:BB5) -> 0 | EQ5: =SUM(DQ5+ED5) -> 0 | ER5: =SUM(DR5+EE5) -> 0 | ES5: =SUM(DS5+EF5) -> 0 | ET5: =SUM(DT5+EG5) -> 2 | EU5: =SUM(DU5+EH5) -> 0 | EV5: =SUM(DV5+EI5) -> 0 | EW5: =SUM(DW5+EJ5) -> 0 | EX5: =SUM(DX5+EK5) -> 0 | EY5: =SUM(DY5+EL5) -> 0 | EZ5: =SUM(DZ5+EM5) -> 0 | FA5: =SUM(EA5+EN5) -> 0 | FB5: =SUM(EB5+EO5) -> 0 | FC5: =SUM(EC5+EP5) -> 2 | FD5: =+EC5 -> 2 | FE5: =+EC29 -> 0 | FF5: =+EC53 -> 2 | FG5: =+EC77 -> 0 | FH5: =+EC101 -> 1 | FI5: =+EC125 -> 5 | FJ5: =+EC149 -> 2 | FK5: =+EP5 -> 0 | FL5: =+EP29 -> 0 | FM5: =+EP53 -> 1 | FN5: =+EP77 -> 1 | FO5: =+EP101 -> 1 | FP5: =+EP125 -> 1 | FQ5: =+EP149 -> 2 | FR5: =SUM(FD5+FK5) -> 2 | FS5: =SUM(FE5+FL5) -> 0 | FT5: 3 | FU5: 1 | FV5: 2 | FW5: 6 | FX5: 4 | FY5: =ROUND(AVERAGE(FD5:FH5),0) -> 1 | FZ5: =ROUND(AVERAGE(FK5:FO5),0) -> 1 | GA5: =ROUND(AVERAGE(FR5:FV5),0) -> 2
A6: =+A5 -> Mon | B6: 100 | C6: 0 | D6: 0 | E6: 0 | F6: 1 | G6: 0 | H6: 0 | I6: 0 | J6: 0 | K6: 0 | L6: 0 | M6: 0 | N6: 0 | O6: 0 | P6: 0 | Q6: 0 | R6: 0 | S6: 0 | T6: 0 | U6: 1 | V6: 0 | W6: 0 | X6: 0 | Y6: 0 | Z6: 0 | AA6: 0 | AB6: 0 | AC6: 0 | AD6: 0 | AE6: 0 | AF6: 0 | AG6: 0 | AH6: 0 | AI6: 0 | AJ6: 0 | AK6: 0 | AL6: 0 | AM6: 30.22 | AN6: - | AO6: Mon | AP6: 100 | AQ6: 0 | AR6: 0 | AS6: 0 | AT6: 1 | AU6: 0 | AV6: 0 | AW6: 0 | AX6: 0 | AY6: 0 | AZ6: 0 | BA6: 0 | BB6: 0 | BC6: 0 | BD6: 0 | BE6: 0 | BF6: 0 | BG6: 0 | BH6: 0 | BI6: 1 | BJ6: 0 | BK6: 0 | BL6: 0 | BM6: 0 | BN6: 0 | BO6: 0 | BP6: 0 | BQ6: 0 | BR6: 0 | BS6: 0 | BT6: 0 | BU6: 0 | BV6: 0 | BW6: 0 | BX6: 0 | BY6: 0 | BZ6: 0 | CA6: 34.32 | CB6: - | CC6: Mon | CD6: 100 | CE6: 0 | CF6: 0 | CG6: 0 | CH6: 2 | CI6: 0 | CJ6: 0 | CK6: 0 | CL6: 0 | CM6: 0 | CN6: 0 | CO6: 0 | CP6: 0 | CQ6: 0 | CR6: 0 | CS6: 0 | CT6: 0 | CU6: 0 | CV6: 0 | CW6: 2 | CX6: 0 | CY6: 0 | CZ6: 0 | DA6: 0 | DB6: 0 | DC6: 0 | DD6: 0 | DE6: 0 | DF6: 0 | DG6: 0 | DH6: 0 | DI6: 0 | DJ6: 0 | DK6: 0 | DL6: 0 | DM6: 0 | DN6: 0 | DO6: 32.27 | DP6: - | DQ6: 0 | DR6: 0 | DS6: 0 | DT6: 1 | DU6: 0 | DV6: 0 | DW6: 0 | DX6: 0 | DY6: 0 | DZ6: 0 | EA6: 0 | EB6: 0 | EC6: 1 | ED6: 0 | EE6: 0 | EF6: 0 | EG6: 1 | EH6: 0 | EI6: 0 | EJ6: 0 | EK6: 0 | EL6: 0 | EM6: 0 | EN6: 0 | EO6: 0 | EP6: 1 | EQ6: 0 | ER6: 0 | ES6: 0 | ET6: 2 | EU6: 0 | EV6: 0 | EW6: 0 | EX6: 0 | EY6: 0 | EZ6: 0 | FA6: 0 | FB6: 0 | FC6: 2 | FD6: 1 | FE6: 0 | FF6: 0 | FG6: 0 | FH6: 0 | FI6: 0 | FJ6: 2 | FK6: 1 | FL6: 0 | FM6: 0 | FN6: 0 | FO6: 1 | FP6: 0 | FQ6: 3 | FR6: =SUM(FD6+FK6) -> 2 | FS6: 0 | FT6: 0 | FU6: 0 | FV6: 1 | FW6: 0 | FX6: 5 | FY6: =ROUND(AVERAGE(FD6:FH6),0) -> 0 | FZ6: =ROUND(AVERAGE(FK6:FO6),0) -> 0 | GA6: =ROUND(AVERAGE(FR6:FV6),0) -> 1
A7: =+A6 -> Mon | B7: 200 | C7: 0 | D7: 0 | E7: 0 | F7: 0 | G7: 0 | H7: 0 | I7: 0 | J7: 0 | K7: 0 | L7: 0 | M7: 0 | N7: 0 | O7: 0 | P7: 0 | Q7: 0 | R7: 0 | S7: 0 | T7: 0 | U7: 0 | V7: 0 | W7: 0 | X7: 0 | Y7: 0 | Z7: 0 | AA7: 0 | AB7: 0 | AC7: 0 | AD7: 0 | AE7: 0 | AF7: 0 | AG7: 0 | AH7: 0 | AI7: 0 | AJ7: 0 | AK7: 0 | AL7: 0 | AM7: - | AN7: - | AO7: Mon | AP7: 200 | AQ7: 0 | AR7: 0 | AS7: 0 | AT7: 0 | AU7: 0 | AV7: 0 | AW7: 0 | AX7: 0 | AY7: 0 | AZ7: 0 | BA7: 0 | BB7: 0 | BC7: 0 | BD7: 0 | BE7: 0 | BF7: 0 | BG7: 0 | BH7: 0 | BI7: 0 | BJ7: 0 | BK7: 0 | BL7: 0 | BM7: 0 | BN7: 0 | BO7: 0 | BP7: 0 | BQ7: 0 | BR7: 0 | BS7: 0 | BT7: 0 | BU7: 0 | BV7: 0 | BW7: 0 | BX7: 0 | BY7: 0 | BZ7: 0 | CA7: - | CB7: - | CC7: Mon | CD7: 200 | CE7: 0 | CF7: 0 | CG7: 0 | CH7: 0 | CI7: 0 | CJ7: 0 | CK7: 0 | CL7: 0 | CM7: 0 | CN7: 0 | CO7: 0 | CP7: 0 | CQ7: 0 | CR7: 0 | CS7: 0 | CT7: 0 | CU7: 0 | CV7: 0 | CW7: 0 | CX7: 0 | CY7: 0 | CZ7: 0 | DA7: 0 | DB7: 0 | DC7: 0 | DD7: 0 | DE7: 0 | DF7: 0 | DG7: 0 | DH7: 0 | DI7: 0 | DJ7: 0 | DK7: 0 | DL7: 0 | DM7: 0 | DN7: 0 | DO7: - | DP7: - | DQ7: 0 | DR7: 0 | DS7: 0 | DT7: 0 | DU7: 0 | DV7: 0 | DW7: 0 | DX7: 0 | DY7: 0 | DZ7: 0 | EA7: 0 | EB7: 0 | EC7: 0 | ED7: 0 | EE7: 0 | EF7: 0 | EG7: 0 | EH7: 0 | EI7: 0 | EJ7: 0 | EK7: 0 | EL7: 0 | EM7: 0 | EN7: 0 | EO7: 0 | EP7: 0 | EQ7: 0 | ER7: 0 | ES7: 0 | ET7: 0 | EU7: 0 | EV7: 0 | EW7: 0 | EX7: 0 | EY7: 0 | EZ7: 0 | FA7: 0 | FB7: 0 | FC7: 0 | FD7: 0 | FE7: 0 | FF7: 1 | FG7: 0 | FH7: 0 | FI7: 0 | FJ7: 1 | FK7: 0 | FL7: 0 | FM7: 1 | FN7: 0 | FO7: 0 | FP7: 1 | FQ7: 0 | FR7: 0 | FS7: 0 | FT7: 2 | FU7: 0 | FV7: 0 | FW7: 1 | FX7: 1 | FY7: 0 | FZ7: 0 | GA7: 0
A8: Mon | B8: 300 | C8: 0 | D8: 0 | E8: 0 | F8: 0 | G8: 0 | H8: 0 | I8: 0 | J8: 0 | K8: 0 | L8: 0 | M8: 0 | N8: 0 | O8: 0 | P8: 0 | Q8: 0 | R8: 0 | S8: 0 | T8: 0 | U8: 0 | V8: 0 | W8: 0 | X8: 0 | Y8: 0 | Z8: 0 | AA8: 0 | AB8: 0 | AC8: 0 | AD8: 0 | AE8: 0 | AF8: 0 | AG8: 0 | AH8: 0 | AI8: 0 | AJ8: 0 | AK8: 0 | AL8: 0 | AM8: - | AN8: - | AO8: Mon | AP8: 300 | AQ8: 0 | AR8: 0 | AS8: 0 | AT8: 1 | AU8: 0 | AV8: 0 | AW8: 0 | AX8: 0 | AY8: 0 | AZ8: 0 | BA8: 0 | BB8: 0 | BC8: 0 | BD8: 0 | BE8: 0 | BF8: 0 | BG8: 0 | BH8: 1 | BI8: 0 | BJ8: 0 | BK8: 0 | BL8: 0 | BM8: 0 | BN8: 0 | BO8: 0 | BP8: 0 | BQ8: 0 | BR8: 0 | BS8: 0 | BT8: 0 | BU8: 0 | BV8: 0 | BW8: 0 | BX8: 0 | BY8: 0 | BZ8: 0 | CA8: 29.35 | CB8: - | CC8: Mon | CD8: 300 | CE8: 0 | CF8: 0 | CG8: 0 | CH8: 1 | CI8: 0 | CJ8: 0 | CK8: 0 | CL8: 0 | CM8: 0 | CN8: 0 | CO8: 0 | CP8: 0 | CQ8: 0 | CR8: 0 | CS8: 0 | CT8: 0 | CU8: 0 | CV8: 1 | CW8: 0 | CX8: 0 | CY8: 0 | CZ8: 0 | DA8: 0 | DB8: 0 | DC8: 0 | DD8: 0 | DE8: 0 | DF8: 0 | DG8: 0 | DH8: 0 | DI8: 0 | DJ8: 0 | DK8: 0 | DL8: 0 | DM8: 0 | DN8: 0 | DO8: 29.35 | DP8: - | DQ8: 0 | DR8: 0 | DS8: 0 | DT8: 0 | DU8: 0 | DV8: 0 | DW8: 0 | DX8: 0 | DY8: 0 | DZ8: 0 | EA8: 0 | EB8: 0 | EC8: 0 | ED8: 0 | EE8: 0 | EF8: 0 | EG8: 1 | EH8: 0 | EI8: 0 | EJ8: 0 | EK8: 0 | EL8: 0 | EM8: 0 | EN8: 0 | EO8: 0 | EP8: 1 | EQ8: 0 | ER8: 0 | ES8: 0 | ET8: 1 | EU8: 0 | EV8: 0 | EW8: 0 | EX8: 0 | EY8: 0 | EZ8: 0 | FA8: 0 | FB8: 0 | FC8: 1 | FD8: 0 | FE8: 0 | FF8: 0 | FG8: 0 | FH8: 0 | FI8: 0 | FJ8: 0 | FK8: 1 | FL8: 1 | FM8: 2 | FN8: 0 | FO8: 0 | FP8: 0 | FQ8: 2 | FR8: 1 | FS8: 1 | FT8: 2 | FU8: 0 | FV8: 0 | FW8: 0 | FX8: 2 | FY8: 0 | FZ8: 1 | GA8: 1
A9: Mon | B9: 400 | C9: 0 | D9: 0 | E9: 0 | F9: 0 | G9: 0 | H9: 0 | I9: 0 | J9: 0 | K9: 0 | L9: 0 | M9: 0 | N9: 0 | O9: 0 | P9: 0 | Q9: 0 | R9: 0 | S9: 0 | T9: 0 | U9: 0 | V9: 0 | W9: 0 | X9: 0 | Y9: 0 | Z9: 0 | AA9: 0 | AB9: 0 | AC9: 0 | AD9: 0 | AE9: 0 | AF9: 0 | AG9: 0 | AH9: 0 | AI9: 0 | AJ9: 0 | AK9: 0 | AL9: 0 | AM9: - | AN9: - | AO9: Mon | AP9: 400 | AQ9: 0 | AR9: 0 | AS9: 0 | AT9: 1 | AU9: 0 | AV9: 0 | AW9: 0 | AX9: 0 | AY9: 0 | AZ9: 0 | BA9: 0 | BB9: 0 | BC9: 0 | BD9: 0 | BE9: 0 | BF9: 0 | BG9: 0 | BH9: 0 | BI9: 0 | BJ9: 1 | BK9: 0 | BL9: 0 | BM9: 0 | BN9: 0 | BO9: 0 | BP9: 0 | BQ9: 0 | BR9: 0 | BS9: 0 | BT9: 0 | BU9: 0 | BV9: 0 | BW9: 0 | BX9: 0 | BY9: 0 | BZ9: 0 | CA9: 37.71 | CB9: - | CC9: Mon | CD9: 400 | CE9: 0 | CF9: 0 | CG9: 0 | CH9: 1 | CI9: 0 | CJ9: 0 | CK9: 0 | CL9: 0 | CM9: 0 | CN9: 0 | CO9: 0 | CP9: 0 | CQ9: 0 | CR9: 0 | CS9: 0 | CT9: 0 | CU9: 0 | CV9: 0 | CW9: 0 | CX9: 1 | CY9: 0 | CZ9: 0 | DA9: 0 | DB9: 0 | DC9: 0 | DD9: 0 | DE9: 0 | DF9: 0 | DG9: 0 | DH9: 0 | DI9: 0 | DJ9: 0 | DK9: 0 | DL9: 0 | DM9: 0 | DN9: 0 | DO9: 37.71 | DP9: - | DQ9: 0 | DR9: 0 | DS9: 0 | DT9: 0 | DU9: 0 | DV9: 0 | DW9: 0 | DX9: 0 | DY9: 0 | DZ9: 0 | EA9: 0 | EB9: 0 | EC9: 0 | ED9: 0 | EE9: 0 | EF9: 0 | EG9: 1 | EH9: 0 | EI9: 0 | EJ9: 0 | EK9: 0 | EL9: 0 | EM9: 0 | EN9: 0 | EO9: 0 | EP9: 1 | EQ9: 0 | ER9: 0 | ES9: 0 | ET9: 1 | EU9: 0 | EV9: 0 | EW9: 0 | EX9: 0 | EY9: 0 | EZ9: 0 | FA9: 0 | FB9: 0 | FC9: 1 | FD9: 0 | FE9: 0 | FF9: 0 | FG9: 0 | FH9: 0 | FI9: 1 | FJ9: 0 | FK9: 1 | FL9: 5 | FM9: 3 | FN9: 2 | FO9: 2 | FP9: 0 | FQ9: 2 | FR9: 1 | FS9: 5 | FT9: 3 | FU9: 2 | FV9: 2 | FW9: 1 | FX9: 2 | FY9: 0 | FZ9: 3 | GA9: 3
A10: Mon | B10: 500 | C10: 0 | D10: 0 | E10: 1 | F10: 0 | G10: 0 | H10: 0 | I10: 0 | J10: 0 | K10: 0 | L10: 0 | M10: 0 | N10: 0 | O10: 0 | P10: 0 | Q10: 0 | R10: 0 | S10: 1 | T10: 0 | U10: 0 | V10: 0 | W10: 0 | X10: 0 | Y10: 0 | Z10: 0 | AA10: 0 | AB10: 0 | AC10: 0 | AD10: 0 | AE10: 0 | AF10: 0 | AG10: 0 | AH10: 0 | AI10: 0 | AJ10: 0 | AK10: 0 | AL10: 0 | AM10: 23.98 | AN10: - | AO10: Mon | AP10: 500 | AQ10: 0 | AR10: 0 | AS10: 2 | AT10: 6 | AU10: 0 | AV10: 0 | AW10: 0 | AX10: 0 | AY10: 0 | AZ10: 0 | BA10: 0 | BB10: 0 | BC10: 0 | BD10: 0 | BE10: 1 | BF10: 1 | BG10: 1 | BH10: 4 | BI10: 1 | BJ10: 0 | BK10: 0 | BL10: 0 | BM10: 0 | BN10: 0 | BO10: 0 | BP10: 0 | BQ10: 0 | BR10: 0 | BS10: 0 | BT10: 0 | BU10: 0 | BV10: 0 | BW10: 0 | BX10: 0 | BY10: 0 | BZ10: 0 | CA10: 24.97 | CB10: - | CC10: Mon | CD10: 500 | CE10: 0 | CF10: 0 | CG10: 3 | CH10: 6 | CI10: 0 | CJ10: 0 | CK10: 0 | CL10: 0 | CM10: 0 | CN10: 0 | CO10: 0 | CP10: 0 | CQ10: 0 | CR10: 0 | CS10: 0 | CT10: 1 | CU10: 2 | CV10: 4 | CW10: 1 | CX10: 0 | CY10: 0 | CZ10: 0 | DA10: 0 | DB10: 0 | DC10: 0 | DD10: 0 | DE10: 0 | DF10: 0 | DG10: 0 | DH10: 0 | DI10: 0 | DJ10: 0 | DK10: 0 | DL10: 0 | DM10: 0 | DN10: 0 | DO10: 24.86 | DP10: - | DQ10: 0 | DR10: 0 | DS10: 1 | DT10: 0 | DU10: 0 | DV10: 0 | DW10: 0 | DX10: 0 | DY10: 0 | DZ10: 0 | EA10: 0 | EB10: 0 | EC10: 1 | ED10: 0 | EE10: 0 | EF10: 2 | EG10: 6 | EH10: 0 | EI10: 0 | EJ10: 0 | EK10: 0 | EL10: 0 | EM10: 0 | EN10: 0 | EO10: 0 | EP10: 8 | EQ10: 0 | ER10: 0 | ES10: 3 | ET10: 6 | EU10: 0 | EV10: 0 | EW10: 0 | EX10: 0 | EY10: 0 | EZ10: 0 | FA10: 0 | FB10: 0 | FC10: 9 | FD10: 1 | FE10: 1 | FF10: 2 | FG10: 1 | FH10: 1 | FI10: 2 | FJ10: 0 | FK10: 8 | FL10: 6 | FM10: 9 | FN10: 4 | FO10: 6 | FP10: 4 | FQ10: 1 | FR10: 9 | FS10: 7 | FT10: 11 | FU10: 5 | FV10: 7 | FW10: 6 | FX10: 1 | FY10: 1 | FZ10: 7 | GA10: 8
A11: Mon | B11: 600 | C11: 0 | D11: 0 | E11: 3 | F11: 1 | G11: 0 | H11: 0 | I11: 0 | J11: 0 | K11: 0 | L11: 0 | M11: 0 | N11: 0 | O11: 0 | P11: 0 | Q11: 2 | R11: 0 | S11: 1 | T11: 1 | U11: 0 | V11: 0 | W11: 0 | X11: 0 | Y11: 0 | Z11: 0 | AA11: 0 | AB11: 0 | AC11: 0 | AD11: 0 | AE11: 0 | AF11: 0 | AG11: 0 | AH11: 0 | AI11: 0 | AJ11: 0 | AK11: 0 | AL11: 0 | AM11: 19.8 | AN11: - | AO11: Mon | AP11: 600 | AQ11: 0 | AR11: 0 | AS11: 11 | AT11: 8 | AU11: 0 | AV11: 0 | AW11: 0 | AX11: 0 | AY11: 0 | AZ11: 0 | BA11: 0 | BB11: 0 | BC11: 0 | BD11: 0 | BE11: 2 | BF11: 0 | BG11: 4 | BH11: 6 | BI11: 4 | BJ11: 3 | BK11: 0 | BL11: 0 | BM11: 0 | BN11: 0 | BO11: 0 | BP11: 0 | BQ11: 0 | BR11: 0 | BS11: 0 | BT11: 0 | BU11: 0 | BV11: 0 | BW11: 0 | BX11: 0 | BY11: 0 | BZ11: 0 | CA11: 27.64 | CB11: 33.28 | CC11: Mon | CD11: 600 | CE11: 0 | CF11: 0 | CG11: 14 | CH11: 9 | CI11: 0 | CJ11: 0 | CK11: 0 | CL11: 0 | CM11: 0 | CN11: 0 | CO11: 0 | CP11: 0 | CQ11: 0 | CR11: 0 | CS11: 2 | CT11: 0 | CU11: 5 | CV11: 7 | CW11: 4 | CX11: 3 | CY11: 0 | CZ11: 0 | DA11: 0 | DB11: 0 | DC11: 0 | DD11: 0 | DE11: 0 | DF11: 0 | DG11: 0 | DH11: 0 | DI11: 0 | DJ11: 0 | DK11: 0 | DL11: 0 | DM11: 0 | DN11: 0 | DO11: 26.28 | DP11: 32.25 | DQ11: 0 | DR11: 0 | DS11: 3 | DT11: 1 | DU11: 0 | DV11: 0 | DW11: 0 | DX11: 0 | DY11: 0 | DZ11: 0 | EA11: 0 | EB11: 0 | EC11: 4 | ED11: 0 | EE11: 0 | EF11: 11 | EG11: 8 | EH11: 0 | EI11: 0 | EJ11: 0 | EK11: 0 | EL11: 0 | EM11: 0 | EN11: 0 | EO11: 0 | EP11: 19 | EQ11: 0 | ER11: 0 | ES11: 14 | ET11: 9 | EU11: 0 | EV11: 0 | EW11: 0 | EX11: 0 | EY11: 0 | EZ11: 0 | FA11: 0 | FB11: 0 | FC11: 23 | FD11: 4 | FE11: 2 | FF11: 3 | FG11: 5 | FH11: 5 | FI11: 2 | FJ11: 5 | FK11: 19 | FL11: 14 | FM11: 16 | FN11: 27 | FO11: 19 | FP11: 5 | FQ11: 1 | FR11: 23 | FS11: 16 | FT11: 19 | FU11: 32 | FV11: 24 | FW11: 7 | FX11: 6 | FY11: 4 | FZ11: 19 | GA11: 23
A12: Mon | B12: 700 | C12: 0 | D12: 0 | E12: 2 | F12: 5 | G12: 0 | H12: 0 | I12: 0 | J12: 0 | K12: 0 | L12: 0 | M12: 0 | N12: 0 | O12: 0 | P12: 0 | Q12: 0 | R12: 0 | S12: 3 | T12: 3 | U12: 1 | V12: 0 | W12: 0 | X12: 0 | Y12: 0 | Z12: 0 | AA12: 0 | AB12: 0 | AC12: 0 | AD12: 0 | AE12: 0 | AF12: 0 | AG12: 0 | AH12: 0 | AI12: 0 | AJ12: 0 | AK12: 0 | AL12: 0 | AM12: 25.39 | AN12: - | AO12: Mon | AP12: 700 | AQ12: 0 | AR12: 1 | AS12: 18 | AT12: 11 | AU12: 1 | AV12: 0 | AW12: 0 | AX12: 0 | AY12: 0 | AZ12: 0 | BA12: 0 | BB12: 0 | BC12: 0 | BD12: 3 | BE12: 0 | BF12: 5 | BG12: 9 | BH12: 9 | BI12: 5 | BJ12: 0 | BK12: 0 | BL12: 0 | BM12: 0 | BN12: 0 | BO12: 0 | BP12: 0 | BQ12: 0 | BR12: 0 | BS12: 0 | BT12: 0 | BU12: 0 | BV12: 0 | BW12: 0 | BX12: 0 | BY12: 0 | BZ12: 0 | CA12: 23.34 | CB12: 29.95 | CC12: Mon | CD12: 700 | CE12: 0 | CF12: 1 | CG12: 20 | CH12: 16 | CI12: 1 | CJ12: 0 | CK12: 0 | CL12: 0 | CM12: 0 | CN12: 0 | CO12: 0 | CP12: 0 | CQ12: 0 | CR12: 0 | CS12: 0 | CT12: 5 | CU12: 12 | CV12: 12 | CW12: 6 | CX12: 0 | CY12: 0 | CZ12: 0 | DA12: 0 | DB12: 0 | DC12: 0 | DD12: 0 | DE12: 0 | DF12: 0 | DG12: 0 | DH12: 0 | DI12: 0 | DJ12: 0 | DK12: 0 | DL12: 0 | DM12: 0 | DN12: 0 | DO12: 23.71 | DP12: 29.93 | DQ12: 0 | DR12: 0 | DS12: 2 | DT12: 5 | DU12: 0 | DV12: 0 | DW12: 0 | DX12: 0 | DY12: 0 | DZ12: 0 | EA12: 0 | EB12: 0 | EC12: 7 | ED12: 0 | EE12: 1 | EF12: 18 | EG12: 11 | EH12: 1 | EI12: 0 | EJ12: 0 | EK12: 0 | EL12: 0 | EM12: 0 | EN12: 0 | EO12: 0 | EP12: 31 | EQ12: 0 | ER12: 1 | ES12: 20 | ET12: 16 | EU12: 1 | EV12: 0 | EW12: 0 | EX12: 0 | EY12: 0 | EZ12: 0 | FA12: 0 | FB12: 0 | FC12: 38 | FD12: 7 | FE12: 14 | FF12: 4 | FG12: 14 | FH12: 12 | FI12: 4 | FJ12: 2 | FK12: 31 | FL12: 34 | FM12: 30 | FN12: 35 | FO12: 27 | FP12: 12 | FQ12: 5 | FR12: 38 | FS12: 48 | FT12: 34 | FU12: 49 | FV12: 39 | FW12: 16 | FX12: 7 | FY12: 10 | FZ12: 31 | GA12: 42
A13: Mon | B13: 800 | C13: 0 | D13: 0 | E13: 6 | F13: 8 | G13: 0 | H13: 0 | I13: 0 | J13: 0 | K13: 0 | L13: 0 | M13: 0 | N13: 0 | O13: 0 | P13: 1 | Q13: 2 | R13: 1 | S13: 4 | T13: 5 | U13: 1 | V13: 0 | W13: 0 | X13: 0 | Y13: 0 | Z13: 0 | AA13: 0 | AB13: 0 | AC13: 0 | AD13: 0 | AE13: 0 | AF13: 0 | AG13: 0 | AH13: 0 | AI13: 0 | AJ13: 0 | AK13: 0 | AL13: 0 | AM13: 21.86 | AN13: 26.86 | AO13: Mon | AP13: 800 | AQ13: 0 | AR13: 0 | AS13: 20 | AT13: 9 | AU13: 1 | AV13: 0 | AW13: 0 | AX13: 0 | AY13: 0 | AZ13: 0 | BA13: 0 | BB13: 0 | BC13: 0 | BD13: 2 | BE13: 0 | BF13: 1 | BG13: 9 | BH13: 10 | BI13: 6 | BJ13: 1 | BK13: 1 | BL13: 0 | BM13: 0 | BN13: 0 | BO13: 0 | BP13: 0 | BQ13: 0 | BR13: 0 | BS13: 0 | BT13: 0 | BU13: 0 | BV13: 0 | BW13: 0 | BX13: 0 | BY13: 0 | BZ13: 0 | CA13: 26.28 | CB13: 32.01 | CC13: Mon | CD13: 800 | CE13: 0 | CF13: 0 | CG13: 26 | CH13: 17 | CI13: 1 | CJ13: 0 | CK13: 0 | CL13: 0 | CM13: 0 | CN13: 0 | CO13: 0 | CP13: 0 | CQ13: 0 | CR13: 1 | CS13: 2 | CT13: 2 | CU13: 13 | CV13: 15 | CW13: 7 | CX13: 1 | CY13: 1 | CZ13: 0 | DA13: 0 | DB13: 0 | DC13: 0 | DD13: 0 | DE13: 0 | DF13: 0 | DG13: 0 | DH13: 0 | DI13: 0 | DJ13: 0 | DK13: 0 | DL13: 0 | DM13: 0 | DN13: 0 | DO13: 24.87 | DP13: 31.47 | DQ13: 0 | DR13: 0 | DS13: 6 | DT13: 8 | DU13: 0 | DV13: 0 | DW13: 0 | DX13: 0 | DY13: 0 | DZ13: 0 | EA13: 0 | EB13: 0 | EC13: 14 | ED13: 0 | EE13: 0 | EF13: 20 | EG13: 9 | EH13: 1 | EI13: 0 | EJ13: 0 | EK13: 0 | EL13: 0 | EM13: 0 | EN13: 0 | EO13: 0 | EP13: 30 | EQ13: 0 | ER13: 0 | ES13: 26 | ET13: 17 | EU13: 1 | EV13: 0 | EW13: 0 | EX13: 0 | EY13: 0 | EZ13: 0 | FA13: 0 | FB13: 0 | FC13: 44 | FD13: 14 | FE13: 21 | FF13: 19 | FG13: 15 | FH13: 17 | FI13: 9 | FJ13: 3 | FK13: 30 | FL13: 36 | FM13: 26 | FN13: 31 | FO13: 35 | FP13: 21 | FQ13: 12 | FR13: 44 | FS13: 57 | FT13: 45 | FU13: 46 | FV13: 52 | FW13: 30 | FX13: 15 | FY13: 17 | FZ13: 32 | GA13: 49
A14: Mon | B14: 900 | C14: 0 | D14: 0 | E14: 9 | F14: 5 | G14: 0 | H14: 0 | I14: 0 | J14: 0 | K14: 0 | L14: 0 | M14: 0 | N14: 0 | O14: 0 | P14: 1 | Q14: 1 | R14: 1 | S14: 6 | T14: 3 | U14: 2 | V14: 0 | W14: 0 | X14: 0 | Y14: 0 | Z14: 0 | AA14: 0 | AB14: 0 | AC14: 0 | AD14: 0 | AE14: 0 | AF14: 0 | AG14: 0 | AH14: 0 | AI14: 0 | AJ14: 0 | AK14: 0 | AL14: 0 | AM14: 23.06 | AN14: 28.77 | AO14: Mon | AP14: 900 | AQ14: 0 | AR14: 0 | AS14: 10 | AT14: 10 | AU14: 0 | AV14: 0 | AW14: 0 | AX14: 0 | AY14: 0 | AZ14: 0 | BA14: 0 | BB14: 0 | BC14: 0 | BD14: 0 | BE14: 2 | BF14: 3 | BG14: 6 | BH14: 7 | BI14: 2 | BJ14: 0 | BK14: 0 | BL14: 0 | BM14: 0 | BN14: 0 | BO14: 0 | BP14: 0 | BQ14: 0 | BR14: 0 | BS14: 0 | BT14: 0 | BU14: 0 | BV14: 0 | BW14: 0 | BX14: 0 | BY14: 0 | BZ14: 0 | CA14: 23.68 | CB14: 29.56 | CC14: Mon | CD14: 900 | CE14: 0 | CF14: 0 | CG14: 19 | CH14: 15 | CI14: 0 | CJ14: 0 | CK14: 0 | CL14: 0 | CM14: 0 | CN14: 0 | CO14: 0 | CP14: 0 | CQ14: 0 | CR14: 1 | CS14: 1 | CT14: 4 | CU14: 12 | CV14: 10 | CW14: 4 | CX14: 0 | CY14: 0 | CZ14: 0 | DA14: 0 | DB14: 0 | DC14: 0 | DD14: 0 | DE14: 0 | DF14: 0 | DG14: 0 | DH14: 0 | DI14: 0 | DJ14: 0 | DK14: 0 | DL14: 0 | DM14: 0 | DN14: 0 | DO14: 23.43 | DP14: 29.51 | DQ14: 0 | DR14: 0 | DS14: 9 | DT14: 5 | DU14: 0 | DV14: 0 | DW14: 0 | DX14: 0 | DY14: 0 | DZ14: 0 | EA14: 0 | EB14: 0 | EC14: 14 | ED14: 0 | EE14: 0 | EF14: 10 | EG14: 10 | EH14: 0 | EI14: 0 | EJ14: 0 | EK14: 0 | EL14: 0 | EM14: 0 | EN14: 0 | EO14: 0 | EP14: 20 | EQ14: 0 | ER14: 0 | ES14: 19 | ET14: 15 | EU14: 0 | EV14: 0 | EW14: 0 | EX14: 0 | EY14: 0 | EZ14: 0 | FA14: 0 | FB14: 0 | FC14: 34 | FD14: 14 | FE14: 14 | FF14: 14 | FG14: 19 | FH14: 20 | FI14: 15 | FJ14: 9 | FK14: 20 | FL14: 19 | FM14: 26 | FN14: 25 | FO14: 33 | FP14: 31 | FQ14: 20 | FR14: 34 | FS14: 33 | FT14: 40 | FU14: 44 | FV14: 53 | FW14: 46 | FX14: 29 | FY14: 16 | FZ14: 25 | GA14: 41
A15: Mon | B15: 1000 | C15: 0 | D15: 0 | E15: 12 | F15: 4 | G15: 2 | H15: 0 | I15: 0 | J15: 0 | K15: 0 | L15: 0 | M15: 0 | N15: 0 | O15: 0 | P15: 2 | Q15: 2 | R15: 2 | S15: 7 | T15: 5 | U15: 0 | V15: 0 | W15: 0 | X15: 0 | Y15: 0 | Z15: 0 | AA15: 0 | AB15: 0 | AC15: 0 | AD15: 0 | AE15: 0 | AF15: 0 | AG15: 0 | AH15: 0 | AI15: 0 | AJ15: 0 | AK15: 0 | AL15: 0 | AM15: 20.19 | AN15: 26.34 | AO15: Mon | AP15: 1000 | AQ15: 0 | AR15: 0 | AS15: 10 | AT15: 10 | AU15: 1 | AV15: 0 | AW15: 0 | AX15: 0 | AY15: 0 | AZ15: 0 | BA15: 0 | BB15: 0 | BC15: 0 | BD15: 2 | BE15: 0 | BF15: 5 | BG15: 7 | BH15: 6 | BI15: 1 | BJ15: 0 | BK15: 0 | BL15: 0 | BM15: 0 | BN15: 0 | BO15: 0 | BP15: 0 | BQ15: 0 | BR15: 0 | BS15: 0 | BT15: 0 | BU15: 0 | BV15: 0 | BW15: 0 | BX15: 0 | BY15: 0 | BZ15: 0 | CA15: 21.97 | CB15: 26.92 | CC15: Mon | CD15: 1000 | CE15: 0 | CF15: 0 | CG15: 22 | CH15: 14 | CI15: 3 | CJ15: 0 | CK15: 0 | CL15: 0 | CM15: 0 | CN15: 0 | CO15: 0 | CP15: 0 | CQ15: 0 | CR15: 2 | CS15: 2 | CT15: 7 | CU15: 14 | CV15: 11 | CW15: 1 | CX15: 0 | CY15: 0 | CZ15: 0 | DA15: 0 | DB15: 0 | DC15: 0 | DD15: 0 | DE15: 0 | DF15: 0 | DG15: 0 | DH15: 0 | DI15: 0 | DJ15: 0 | DK15: 0 | DL15: 0 | DM15: 0 | DN15: 0 | DO15: 21.15 | DP15: 26.86 | DQ15: 0 | DR15: 0 | DS15: 12 | DT15: 4 | DU15: 2 | DV15: 0 | DW15: 0 | DX15: 0 | DY15: 0 | DZ15: 0 | EA15: 0 | EB15: 0 | EC15: 18 | ED15: 0 | EE15: 0 | EF15: 10 | EG15: 10 | EH15: 1 | EI15: 0 | EJ15: 0 | EK15: 0 | EL15: 0 | EM15: 0 | EN15: 0 | EO15: 0 | EP15: 21 | EQ15: 0 | ER15: 0 | ES15: 22 | ET15: 14 | EU15: 3 | EV15: 0 | EW15: 0 | EX15: 0 | EY15: 0 | EZ15: 0 | FA15: 0 | FB15: 0 | FC15: 39 | FD15: 18 | FE15: 15 | FF15: 9 | FG15: 14 | FH15: 24 | FI15: 24 | FJ15: 15 | FK15: 21 | FL15: 20 | FM15: 18 | FN15: 29 | FO15: 21 | FP15: 23 | FQ15: 17 | FR15: 39 | FS15: 35 | FT15: 27 | FU15: 43 | FV15: 45 | FW15: 47 | FX15: 32 | FY15: 16 | FZ15: 22 | GA15: 38
A16: Mon | B16: 1100 | C16: 0 | D16: 0 | E16: 10 | F16: 8 | G16: 0 | H16: 0 | I16: 0 | J16: 0 | K16: 0 | L16: 0 | M16: 0 | N16: 0 | O16: 0 | P16: 1 | Q16: 4 | R16: 4 | S16: 6 | T16: 3 | U16: 0 | V16: 0 | W16: 0 | X16: 0 | Y16: 0 | Z16: 0 | AA16: 0 | AB16: 0 | AC16: 0 | AD16: 0 | AE16: 0 | AF16: 0 | AG16: 0 | AH16: 0 | AI16: 0 | AJ16: 0 | AK16: 0 | AL16: 0 | AM16: 19.45 | AN16: 25.21 | AO16: Mon | AP16: 1100 | AQ16: 0 | AR16: 0 | AS16: 9 | AT16: 13 | AU16: 3 | AV16: 0 | AW16: 0 | AX16: 0 | AY16: 0 | AZ16: 0 | BA16: 0 | BB16: 0 | BC16: 0 | BD16: 2 | BE16: 1 | BF16: 4 | BG16: 8 | BH16: 7 | BI16: 3 | BJ16: 0 | BK16: 0 | BL16: 0 | BM16: 0 | BN16: 0 | BO16: 0 | BP16: 0 | BQ16: 0 | BR16: 0 | BS16: 0 | BT16: 0 | BU16: 0 | BV16: 0 | BW16: 0 | BX16: 0 | BY16: 0 | BZ16: 0 | CA16: 22.9 | CB16: 29.22 | CC16: Mon | CD16: 1100 | CE16: 0 | CF16: 0 | CG16: 19 | CH16: 21 | CI16: 3 | CJ16: 0 | CK16: 0 | CL16: 0 | CM16: 0 | CN16: 0 | CO16: 0 | CP16: 0 | CQ16: 0 | CR16: 1 | CS16: 4 | CT16: 8 | CU16: 14 | CV16: 10 | CW16: 3 | CX16: 0 | CY16: 0 | CZ16: 0 | DA16: 0 | DB16: 0 | DC16: 0 | DD16: 0 | DE16: 0 | DF16: 0 | DG16: 0 | DH16: 0 | DI16: 0 | DJ16: 0 | DK16: 0 | DL16: 0 | DM16: 0 | DN16: 0 | DO16: 21.46 | DP16: 28.39 | DQ16: 0 | DR16: 0 | DS16: 10 | DT16: 8 | DU16: 0 | DV16: 0 | DW16: 0 | DX16: 0 | DY16: 0 | DZ16: 0 | EA16: 0 | EB16: 0 | EC16: 18 | ED16: 0 | EE16: 0 | EF16: 9 | EG16: 13 | EH16: 3 | EI16: 0 | EJ16: 0 | EK16: 0 | EL16: 0 | EM16: 0 | EN16: 0 | EO16: 0 | EP16: 25 | EQ16: 0 | ER16: 0 | ES16: 19 | ET16: 21 | EU16: 3 | EV16: 0 | EW16: 0 | EX16: 0 | EY16: 0 | EZ16: 0 | FA16: 0 | FB16: 0 | FC16: 43 | FD16: 18 | FE16: 20 | FF16: 22 | FG16: 23 | FH16: 21 | FI16: 20 | FJ16: 10 | FK16: 25 | FL16: 21 | FM16: 24 | FN16: 25 | FO16: 26 | FP16: 35 | FQ16: 20 | FR16: 43 | FS16: 41 | FT16: 46 | FU16: 48 | FV16: 47 | FW16: 55 | FX16: 30 | FY16: 21 | FZ16: 24 | GA16: 45
A17: Mon | B17: 1200 | C17: 0 | D17: 0 | E17: 7 | F17: 5 | G17: 0 | H17: 0 | I17: 0 | J17: 0 | K17: 0 | L17: 0 | M17: 0 | N17: 0 | O17: 0 | P17: 0 | Q17: 0 | R17: 2 | S17: 4 | T17: 6 | U17: 0 | V17: 0 | W17: 0 | X17: 0 | Y17: 0 | Z17: 0 | AA17: 0 | AB17: 0 | AC17: 0 | AD17: 0 | AE17: 0 | AF17: 0 | AG17: 0 | AH17: 0 | AI17: 0 | AJ17: 0 | AK17: 0 | AL17: 0 | AM17: 24.19 | AN17: 28.31 | AO17: Mon | AP17: 1200 | AQ17: 0 | AR17: 0 | AS17: 13 | AT17: 8 | AU17: 0 | AV17: 0 | AW17: 0 | AX17: 0 | AY17: 0 | AZ17: 0 | BA17: 0 | BB17: 0 | BC17: 0 | BD17: 0 | BE17: 3 | BF17: 2 | BG17: 6 | BH17: 5 | BI17: 4 | BJ17: 1 | BK17: 0 | BL17: 0 | BM17: 0 | BN17: 0 | BO17: 0 | BP17: 0 | BQ17: 0 | BR17: 0 | BS17: 0 | BT17: 0 | BU17: 0 | BV17: 0 | BW17: 0 | BX17: 0 | BY17: 0 | BZ17: 0 | CA17: 24.5 | CB17: 30.39 | CC17: Mon | CD17: 1200 | CE17: 0 | CF17: 0 | CG17: 20 | CH17: 13 | CI17: 0 | CJ17: 0 | CK17: 0 | CL17: 0 | CM17: 0 | CN17: 0 | CO17: 0 | CP17: 0 | CQ17: 0 | CR17: 0 | CS17: 0 | CT17: 4 | CU17: 10 | CV17: 11 | CW17: 4 | CX17: 1 | CY17: 0 | CZ17: 0 | DA17: 0 | DB17: 0 | DC17: 0 | DD17: 0 | DE17: 0 | DF17: 0 | DG17: 0 | DH17: 0 | DI17: 0 | DJ17: 0 | DK17: 0 | DL17: 0 | DM17: 0 | DN17: 0 | DO17: 24.39 | DP17: 29.61 | DQ17: 0 | DR17: 0 | DS17: 7 | DT17: 5 | DU17: 0 | DV17: 0 | DW17: 0 | DX17: 0 | DY17: 0 | DZ17: 0 | EA17: 0 | EB17: 0 | EC17: 12 | ED17: 0 | EE17: 0 | EF17: 13 | EG17: 8 | EH17: 0 | EI17: 0 | EJ17: 0 | EK17: 0 | EL17: 0 | EM17: 0 | EN17: 0 | EO17: 0 | EP17: 21 | EQ17: 0 | ER17: 0 | ES17: 20 | ET17: 13 | EU17: 0 | EV17: 0 | EW17: 0 | EX17: 0 | EY17: 0 | EZ17: 0 | FA17: 0 | FB17: 0 | FC17: 33 | FD17: 12 | FE17: 17 | FF17: 19 | FG17: 24 | FH17: 22 | FI17: 25 | FJ17: 26 | FK17: 21 | FL17: 20 | FM17: 16 | FN17: 15 | FO17: 24 | FP17: 22 | FQ17: 21 | FR17: 33 | FS17: 37 | FT17: 35 | FU17: 39 | FV17: 46 | FW17: 47 | FX17: 47 | FY17: 19 | FZ17: 19 | GA17: 38
A18: Mon | B18: 1300 | C18: 0 | D18: 0 | E18: 19 | F18: 15 | G18: 0 | H18: 0 | I18: 0 | J18: 0 | K18: 0 | L18: 0 | M18: 0 | N18: 0 | O18: 0 | P18: 1 | Q18: 4 | R18: 3 | S18: 13 | T18: 11 | U18: 2 | V18: 0 | W18: 0 | X18: 0 | Y18: 0 | Z18: 0 | AA18: 0 | AB18: 0 | AC18: 0 | AD18: 0 | AE18: 0 | AF18: 0 | AG18: 0 | AH18: 0 | AI18: 0 | AJ18: 0 | AK18: 0 | AL18: 0 | AM18: 22.78 | AN18: 28.14 | AO18: Mon | AP18: 1300 | AQ18: 0 | AR18: 0 | AS18: 11 | AT18: 9 | AU18: 0 | AV18: 0 | AW18: 0 | AX18: 1 | AY18: 0 | AZ18: 0 | BA18: 0 | BB18: 0 | BC18: 0 | BD18: 0 | BE18: 1 | BF18: 3 | BG18: 6 | BH18: 5 | BI18: 5 | BJ18: 1 | BK18: 0 | BL18: 0 | BM18: 0 | BN18: 0 | BO18: 0 | BP18: 0 | BQ18: 0 | BR18: 0 | BS18: 0 | BT18: 0 | BU18: 0 | BV18: 0 | BW18: 0 | BX18: 0 | BY18: 0 | BZ18: 0 | CA18: 25.67 | CB18: 30.79 | CC18: Mon | CD18: 1300 | CE18: 0 | CF18: 0 | CG18: 30 | CH18: 24 | CI18: 0 | CJ18: 0 | CK18: 0 | CL18: 1 | CM18: 0 | CN18: 0 | CO18: 0 | CP18: 0 | CQ18: 0 | CR18: 1 | CS18: 4 | CT18: 6 | CU18: 19 | CV18: 16 | CW18: 7 | CX18: 1 | CY18: 0 | CZ18: 0 | DA18: 0 | DB18: 0 | DC18: 0 | DD18: 0 | DE18: 0 | DF18: 0 | DG18: 0 | DH18: 0 | DI18: 0 | DJ18: 0 | DK18: 0 | DL18: 0 | DM18: 0 | DN18: 0 | DO18: 23.88 | DP18: 29.73 | DQ18: 0 | DR18: 0 | DS18: 19 | DT18: 15 | DU18: 0 | DV18: 0 | DW18: 0 | DX18: 0 | DY18: 0 | DZ18: 0 | EA18: 0 | EB18: 0 | EC18: 34 | ED18: 0 | EE18: 0 | EF18: 11 | EG18: 9 | EH18: 0 | EI18: 0 | EJ18: 0 | EK18: 1 | EL18: 0 | EM18: 0 | EN18: 0 | EO18: 0 | EP18: 21 | EQ18: 0 | ER18: 0 | ES18: 30 | ET18: 24 | EU18: 0 | EV18: 0 | EW18: 0 | EX18: 1 | EY18: 0 | EZ18: 0 | FA18: 0 | FB18: 0 | FC18: 55 | FD18: 34 | FE18: 22 | FF18: 20 | FG18: 18 | FH18: 24 | FI18: 24 | FJ18: 15 | FK18: 21 | FL18: 23 | FM18: 20 | FN18: 24 | FO18: 29 | FP18: 22 | FQ18: 23 | FR18: 55 | FS18: 45 | FT18: 40 | FU18: 42 | FV18: 53 | FW18: 46 | FX18: 38 | FY18: 24 | FZ18: 23 | GA18: 47
A19: Mon | B19: 1400 | C19: 0 | D19: 0 | E19: 12 | F19: 6 | G19: 0 | H19: 0 | I19: 0 | J19: 0 | K19: 0 | L19: 0 | M19: 0 | N19: 0 | O19: 0 | P19: 0 | Q19: 1 | R19: 3 | S19: 6 | T19: 4 | U19: 3 | V19: 1 | W19: 0 | X19: 0 | Y19: 0 | Z19: 0 | AA19: 0 | AB19: 0 | AC19: 0 | AD19: 0 | AE19: 0 | AF19: 0 | AG19: 0 | AH19: 0 | AI19: 0 | AJ19: 0 | AK19: 0 | AL19: 0 | AM19: 24.62 | AN19: 30.45 | AO19: Mon | AP19: 1400 | AQ19: 0 | AR19: 1 | AS19: 16 | AT19: 6 | AU19: 0 | AV19: 0 | AW19: 0 | AX19: 0 | AY19: 0 | AZ19: 0 | BA19: 0 | BB19: 0 | BC19: 0 | BD19: 0 | BE19: 3 | BF19: 2 | BG19: 9 | BH19: 7 | BI19: 1 | BJ19: 1 | BK19: 0 | BL19: 0 | BM19: 0 | BN19: 0 | BO19: 0 | BP19: 0 | BQ19: 0 | BR19: 0 | BS19: 0 | BT19: 0 | BU19: 0 | BV19: 0 | BW19: 0 | BX19: 0 | BY19: 0 | BZ19: 0 | CA19: 23.44 | CB19: 28.06 | CC19: Mon | CD19: 1400 | CE19: 0 | CF19: 1 | CG19: 28 | CH19: 12 | CI19: 0 | CJ19: 0 | CK19: 0 | CL19: 0 | CM19: 0 | CN19: 0 | CO19: 0 | CP19: 0 | CQ19: 0 | CR19: 0 | CS19: 1 | CT19: 5 | CU19: 15 | CV19: 11 | CW19: 4 | CX19: 2 | CY19: 0 | CZ19: 0 | DA19: 0 | DB19: 0 | DC19: 0 | DD19: 0 | DE19: 0 | DF19: 0 | DG19: 0 | DH19: 0 | DI19: 0 | DJ19: 0 | DK19: 0 | DL19: 0 | DM19: 0 | DN19: 0 | DO19: 23.96 | DP19: 29.1 | DQ19: 0 | DR19: 0 | DS19: 12 | DT19: 6 | DU19: 0 | DV19: 0 | DW19: 0 | DX19: 0 | DY19: 0 | DZ19: 0 | EA19: 0 | EB19: 0 | EC19: 18 | ED19: 0 | EE19: 1 | EF19: 16 | EG19: 6 | EH19: 0 | EI19: 0 | EJ19: 0 | EK19: 0 | EL19: 0 | EM19: 0 | EN19: 0 | EO19: 0 | EP19: 23 | EQ19: 0 | ER19: 1 | ES19: 28 | ET19: 12 | EU19: 0 | EV19: 0 | EW19: 0 | EX19: 0 | EY19: 0 | EZ19: 0 | FA19: 0 | FB19: 0 | FC19: 41 | FD19: 18 | FE19: 23 | FF19: 19 | FG19: 15 | FH19: 18 | FI19: 15 | FJ19: 16 | FK19: 23 | FL19: 21 | FM19: 25 | FN19: 27 | FO19: 29 | FP19: 24 | FQ19: 18 | FR19: 41 | FS19: 44 | FT19: 44 | FU19: 42 | FV19: 47 | FW19: 39 | FX19: 34 | FY19: 19 | FZ19: 25 | GA19: 44
A20: Mon | B20: 1500 | C20: 0 | D20: 0 | E20: 7 | F20: 10 | G20: 0 | H20: 0 | I20: 0 | J20: 0 | K20: 0 | L20: 0 | M20: 0 | N20: 0 | O20: 0 | P20: 0 | Q20: 2 | R20: 1 | S20: 9 | T20: 3 | U20: 2 | V20: 0 | W20: 0 | X20: 0 | Y20: 0 | Z20: 0 | AA20: 0 | AB20: 0 | AC20: 0 | AD20: 0 | AE20: 0 | AF20: 0 | AG20: 0 | AH20: 0 | AI20: 0 | AJ20: 0 | AK20: 0 | AL20: 0 | AM20: 23.85 | AN20: 27.23 | AO20: Mon | AP20: 1500 | AQ20: 0 | AR20: 0 | AS20: 12 | AT20: 11 | AU20: 1 | AV20: 0 | AW20: 0 | AX20: 0 | AY20: 0 | AZ20: 0 | BA20: 0 | BB20: 0 | BC20: 0 | BD20: 1 | BE20: 1 | BF20: 2 | BG20: 7 | BH20: 8 | BI20: 1 | BJ20: 3 | BK20: 1 | BL20: 0 | BM20: 0 | BN20: 0 | BO20: 0 | BP20: 0 | BQ20: 0 | BR20: 0 | BS20: 0 | BT20: 0 | BU20: 0 | BV20: 0 | BW20: 0 | BX20: 0 | BY20: 0 | BZ20: 0 | CA20: 26.3 | CB20: 33.15 | CC20: Mon | CD20: 1500 | CE20: 0 | CF20: 0 | CG20: 19 | CH20: 21 | CI20: 1 | CJ20: 0 | CK20: 0 | CL20: 0 | CM20: 0 | CN20: 0 | CO20: 0 | CP20: 0 | CQ20: 0 | CR20: 0 | CS20: 2 | CT20: 3 | CU20: 16 | CV20: 11 | CW20: 3 | CX20: 3 | CY20: 1 | CZ20: 0 | DA20: 0 | DB20: 0 | DC20: 0 | DD20: 0 | DE20: 0 | DF20: 0 | DG20: 0 | DH20: 0 | DI20: 0 | DJ20: 0 | DK20: 0 | DL20: 0 | DM20: 0 | DN20: 0 | DO20: 25.29 | DP20: 30.3 | DQ20: 0 | DR20: 0 | DS20: 7 | DT20: 10 | DU20: 0 | DV20: 0 | DW20: 0 | DX20: 0 | DY20: 0 | DZ20: 0 | EA20: 0 | EB20: 0 | EC20: 17 | ED20: 0 | EE20: 0 | EF20: 12 | EG20: 11 | EH20: 1 | EI20: 0 | EJ20: 0 | EK20: 0 | EL20: 0 | EM20: 0 | EN20: 0 | EO20: 0 | EP20: 24 | EQ20: 0 | ER20: 0 | ES20: 19 | ET20: 21 | EU20: 1 | EV20: 0 | EW20: 0 | EX20: 0 | EY20: 0 | EZ20: 0 | FA20: 0 | FB20: 0 | FC20: 41 | FD20: 17 | FE20: 23 | FF20: 16 | FG20: 17 | FH20: 24 | FI20: 26 | FJ20: 12 | FK20: 24 | FL20: 33 | FM20: 27 | FN20: 24 | FO20: 25 | FP20: 19 | FQ20: 17 | FR20: 41 | FS20: 56 | FT20: 43 | FU20: 41 | FV20: 49 | FW20: 45 | FX20: 29 | FY20: 19 | FZ20: 27 | GA20: 46
A21: Mon | B21: 1600 | C21: 0 | D21: 1 | E21: 17 | F21: 11 | G21: 0 | H21: 0 | I21: 0 | J21: 0 | K21: 0 | L21: 0 | M21: 0 | N21: 0 | O21: 0 | P21: 0 | Q21: 2 | R21: 5 | S21: 11 | T21: 9 | U21: 2 | V21: 0 | W21: 0 | X21: 0 | Y21: 0 | Z21: 0 | AA21: 0 | AB21: 0 | AC21: 0 | AD21: 0 | AE21: 0 | AF21: 0 | AG21: 0 | AH21: 0 | AI21: 0 | AJ21: 0 | AK21: 0 | AL21: 0 | AM21: 23.41 | AN21: 28.9 | AO21: Mon | AP21: 1600 | AQ21: 0 | AR21: 0 | AS21: 12 | AT21: 13 | AU21: 0 | AV21: 0 | AW21: 0 | AX21: 0 | AY21: 0 | AZ21: 0 | BA21: 0 | BB21: 0 | BC21: 0 | BD21: 0 | BE21: 0 | BF21: 2 | BG21: 9 | BH21: 9 | BI21: 4 | BJ21: 1 | BK21: 0 | BL21: 0 | BM21: 0 | BN21: 0 | BO21: 0 | BP21: 0 | BQ21: 0 | BR21: 0 | BS21: 0 | BT21: 0 | BU21: 0 | BV21: 0 | BW21: 0 | BX21: 0 | BY21: 0 | BZ21: 0 | CA21: 25.86 | CB21: 30.92 | CC21: Mon | CD21: 1600 | CE21: 0 | CF21: 1 | CG21: 29 | CH21: 24 | CI21: 0 | CJ21: 0 | CK21: 0 | CL21: 0 | CM21: 0 | CN21: 0 | CO21: 0 | CP21: 0 | CQ21: 0 | CR21: 0 | CS21: 2 | CT21: 7 | CU21: 20 | CV21: 18 | CW21: 6 | CX21: 1 | CY21: 0 | CZ21: 0 | DA21: 0 | DB21: 0 | DC21: 0 | DD21: 0 | DE21: 0 | DF21: 0 | DG21: 0 | DH21: 0 | DI21: 0 | DJ21: 0 | DK21: 0 | DL21: 0 | DM21: 0 | DN21: 0 | DO21: 24.54 | DP21: 29.76 | DQ21: 0 | DR21: 1 | DS21: 17 | DT21: 11 | DU21: 0 | DV21: 0 | DW21: 0 | DX21: 0 | DY21: 0 | DZ21: 0 | EA21: 0 | EB21: 0 | EC21: 29 | ED21: 0 | EE21: 0 | EF21: 12 | EG21: 13 | EH21: 0 | EI21: 0 | EJ21: 0 | EK21: 0 | EL21: 0 | EM21: 0 | EN21: 0 | EO21: 0 | EP21: 25 | EQ21: 0 | ER21: 1 | ES21: 29 | ET21: 24 | EU21: 0 | EV21: 0 | EW21: 0 | EX21: 0 | EY21: 0 | EZ21: 0 | FA21: 0 | FB21: 0 | FC21: 54 | FD21: 29 | FE21: 37 | FF21: 36 | FG21: 41 | FH21: 26 | FI21: 22 | FJ21: 20 | FK21: 25 | FL21: 22 | FM21: 29 | FN21: 30 | FO21: 24 | FP21: 19 | FQ21: 15 | FR21: 54 | FS21: 59 | FT21: 65 | FU21: 71 | FV21: 50 | FW21: 41 | FX21: 35 | FY21: 34 | FZ21: 26 | GA21: 60
A22: Mon | B22: 1700 | C22: 0 | D22: 1 | E22: 20 | F22: 20 | G22: 0 | H22: 0 | I22: 0 | J22: 0 | K22: 0 | L22: 0 | M22: 0 | N22: 0 | O22: 0 | P22: 0 | Q22: 1 | R22: 6 | S22: 17 | T22: 14 | U22: 2 | V22: 1 | W22: 0 | X22: 0 | Y22: 0 | Z22: 0 | AA22: 0 | AB22: 0 | AC22: 0 | AD22: 0 | AE22: 0 | AF22: 0 | AG22: 0 | AH22: 0 | AI22: 0 | AJ22: 0 | AK22: 0 | AL22: 0 | AM22: 23.62 | AN22: 28.64 | AO22: Mon | AP22: 1700 | AQ22: 0 | AR22: 0 | AS22: 7 | AT22: 13 | AU22: 0 | AV22: 0 | AW22: 0 | AX22: 0 | AY22: 0 | AZ22: 0 | BA22: 0 | BB22: 0 | BC22: 0 | BD22: 1 | BE22: 0 | BF22: 1 | BG22: 8 | BH22: 9 | BI22: 0 | BJ22: 1 | BK22: 0 | BL22: 0 | BM22: 0 | BN22: 0 | BO22: 0 | BP22: 0 | BQ22: 0 | BR22: 0 | BS22: 0 | BT22: 0 | BU22: 0 | BV22: 0 | BW22: 0 | BX22: 0 | BY22: 0 | BZ22: 0 | CA22: 24.57 | CB22: 28.64 | CC22: Mon | CD22: 1700 | CE22: 0 | CF22: 1 | CG22: 27 | CH22: 33 | CI22: 0 | CJ22: 0 | CK22: 0 | CL22: 0 | CM22: 0 | CN22: 0 | CO22: 0 | CP22: 0 | CQ22: 0 | CR22: 0 | CS22: 1 | CT22: 7 | CU22: 25 | CV22: 23 | CW22: 2 | CX22: 2 | CY22: 0 | CZ22: 0 | DA22: 0 | DB22: 0 | DC22: 0 | DD22: 0 | DE22: 0 | DF22: 0 | DG22: 0 | DH22: 0 | DI22: 0 | DJ22: 0 | DK22: 0 | DL22: 0 | DM22: 0 | DN22: 0 | DO22: 23.93 | DP22: 28.64 | DQ22: 0 | DR22: 1 | DS22: 20 | DT22: 20 | DU22: 0 | DV22: 0 | DW22: 0 | DX22: 0 | DY22: 0 | DZ22: 0 | EA22: 0 | EB22: 0 | EC22: 41 | ED22: 0 | EE22: 0 | EF22: 7 | EG22: 13 | EH22: 0 | EI22: 0 | EJ22: 0 | EK22: 0 | EL22: 0 | EM22: 0 | EN22: 0 | EO22: 0 | EP22: 20 | EQ22: 0 | ER22: 1 | ES22: 27 | ET22: 33 | EU22: 0 | EV22: 0 | EW22: 0 | EX22: 0 | EY22: 0 | EZ22: 0 | FA22: 0 | FB22: 0 | FC22: 61 | FD22: 41 | FE22: 36 | FF22: 38 | FG22: 38 | FH22: 35 | FI22: 25 | FJ22: 17 | FK22: 20 | FL22: 30 | FM22: 24 | FN22: 27 | FO22: 24 | FP22: 17 | FQ22: 17 | FR22: 61 | FS22: 66 | FT22: 62 | FU22: 65 | FV22: 59 | FW22: 42 | FX22: 34 | FY22: 38 | FZ22: 25 | GA22: 63
A23: Mon | B23: 1800 | C23: 0 | D23: 0 | E23: 15 | F23: 8 | G23: 0 | H23: 0 | I23: 0 | J23: 1 | K23: 0 | L23: 0 | M23: 0 | N23: 0 | O23: 0 | P23: 1 | Q23: 4 | R23: 4 | S23: 7 | T23: 8 | U23: 0 | V23: 0 | W23: 0 | X23: 0 | Y23: 0 | Z23: 0 | AA23: 0 | AB23: 0 | AC23: 0 | AD23: 0 | AE23: 0 | AF23: 0 | AG23: 0 | AH23: 0 | AI23: 0 | AJ23: 0 | AK23: 0 | AL23: 0 | AM23: 20.8 | AN23: 27.09 | AO23: Mon | AP23: 1800 | AQ23: 0 | AR23: 0 | AS23: 16 | AT23: 13 | AU23: 0 | AV23: 0 | AW23: 0 | AX23: 0 | AY23: 0 | AZ23: 0 | BA23: 0 | BB23: 0 | BC23: 0 | BD23: 2 | BE23: 1 | BF23: 3 | BG23: 14 | BH23: 6 | BI23: 1 | BJ23: 2 | BK23: 0 | BL23: 0 | BM23: 0 | BN23: 0 | BO23: 0 | BP23: 0 | BQ23: 0 | BR23: 0 | BS23: 0 | BT23: 0 | BU23: 0 | BV23: 0 | BW23: 0 | BX23: 0 | BY23: 0 | BZ23: 0 | CA23: 22.72 | CB23: 27.38 | CC23: Mon | CD23: 1800 | CE23: 0 | CF23: 0 | CG23: 31 | CH23: 21 | CI23: 0 | CJ23: 0 | CK23: 0 | CL23: 1 | CM23: 0 | CN23: 0 | CO23: 0 | CP23: 0 | CQ23: 0 | CR23: 1 | CS23: 4 | CT23: 7 | CU23: 21 | CV23: 14 | CW23: 1 | CX23: 2 | CY23: 0 | CZ23: 0 | DA23: 0 | DB23: 0 | DC23: 0 | DD23: 0 | DE23: 0 | DF23: 0 | DG23: 0 | DH23: 0 | DI23: 0 | DJ23: 0 | DK23: 0 | DL23: 0 | DM23: 0 | DN23: 0 | DO23: 21.85 | DP23: 27.17 | DQ23: 0 | DR23: 0 | DS23: 15 | DT23: 8 | DU23: 0 | DV23: 0 | DW23: 0 | DX23: 1 | DY23: 0 | DZ23: 0 | EA23: 0 | EB23: 0 | EC23: 24 | ED23: 0 | EE23: 0 | EF23: 16 | EG23: 13 | EH23: 0 | EI23: 0 | EJ23: 0 | EK23: 0 | EL23: 0 | EM23: 0 | EN23: 0 | EO23: 0 | EP23: 29 | EQ23: 0 | ER23: 0 | ES23: 31 | ET23: 21 | EU23: 0 | EV23: 0 | EW23: 0 | EX23: 1 | EY23: 0 | EZ23: 0 | FA23: 0 | FB23: 0 | FC23: 53 | FD23: 24 | FE23: 27 | FF23: 23 | FG23: 32 | FH23: 32 | FI23: 18 | FJ23: 16 | FK23: 29 | FL23: 24 | FM23: 13 | FN23: 24 | FO23: 22 | FP23: 19 | FQ23: 13 | FR23: 53 | FS23: 51 | FT23: 36 | FU23: 56 | FV23: 54 | FW23: 37 | FX23: 29 | FY23: 28 | FZ23: 22 | GA23: 50
A24: Mon | B24: 1900 | C24: 0 | D24: 0 | E24: 10 | F24: 9 | G24: 0 | H24: 0 | I24: 0 | J24: 0 | K24: 0 | L24: 0 | M24: 0 | N24: 0 | O24: 0 | P24: 0 | Q24: 3 | R24: 3 | S24: 7 | T24: 5 | U24: 1 | V24: 0 | W24: 0 | X24: 0 | Y24: 0 | Z24: 0 | AA24: 0 | AB24: 0 | AC24: 0 | AD24: 0 | AE24: 0 | AF24: 0 | AG24: 0 | AH24: 0 | AI24: 0 | AJ24: 0 | AK24: 0 | AL24: 0 | AM24: 22.43 | AN24: 28.49 | AO24: Mon | AP24: 1900 | AQ24: 0 | AR24: 0 | AS24: 9 | AT24: 3 | AU24: 0 | AV24: 0 | AW24: 0 | AX24: 0 | AY24: 0 | AZ24: 0 | BA24: 0 | BB24: 0 | BC24: 0 | BD24: 0 | BE24: 3 | BF24: 2 | BG24: 2 | BH24: 5 | BI24: 0 | BJ24: 0 | BK24: 0 | BL24: 0 | BM24: 0 | BN24: 0 | BO24: 0 | BP24: 0 | BQ24: 0 | BR24: 0 | BS24: 0 | BT24: 0 | BU24: 0 | BV24: 0 | BW24: 0 | BX24: 0 | BY24: 0 | BZ24: 0 | CA24: 21.49 | CB24: 26.89 | CC24: Mon | CD24: 1900 | CE24: 0 | CF24: 0 | CG24: 19 | CH24: 12 | CI24: 0 | CJ24: 0 | CK24: 0 | CL24: 0 | CM24: 0 | CN24: 0 | CO24: 0 | CP24: 0 | CQ24: 0 | CR24: 0 | CS24: 3 | CT24: 5 | CU24: 9 | CV24: 10 | CW24: 1 | CX24: 0 | CY24: 0 | CZ24: 0 | DA24: 0 | DB24: 0 | DC24: 0 | DD24: 0 | DE24: 0 | DF24: 0 | DG24: 0 | DH24: 0 | DI24: 0 | DJ24: 0 | DK24: 0 | DL24: 0 | DM24: 0 | DN24: 0 | DO24: 22.06 | DP24: 27.93 | DQ24: 0 | DR24: 0 | DS24: 10 | DT24: 9 | DU24: 0 | DV24: 0 | DW24: 0 | DX24: 0 | DY24: 0 | DZ24: 0 | EA24: 0 | EB24: 0 | EC24: 19 | ED24: 0 | EE24: 0 | EF24: 9 | EG24: 3 | EH24: 0 | EI24: 0 | EJ24: 0 | EK24: 0 | EL24: 0 | EM24: 0 | EN24: 0 | EO24: 0 | EP24: 12 | EQ24: 0 | ER24: 0 | ES24: 19 | ET24: 12 | EU24: 0 | EV24: 0 | EW24: 0 | EX24: 0 | EY24: 0 | EZ24: 0 | FA24: 0 | FB24: 0 | FC24: 31 | FD24: 19 | FE24: 14 | FF24: 19 | FG24: 17 | FH24: 17 | FI24: 21 | FJ24: 12 | FK24: 12 | FL24: 9 | FM24: 10 | FN24: 8 | FO24: 15 | FP24: 11 | FQ24: 5 | FR24: 31 | FS24: 23 | FT24: 29 | FU24: 25 | FV24: 32 | FW24: 32 | FX24: 17 | FY24: 17 | FZ24: 11 | GA24: 28
A25: Mon | B25: 2000 | C25: 0 | D25: 0 | E25: 5 | F25: 8 | G25: 0 | H25: 0 | I25: 0 | J25: 0 | K25: 0 | L25: 0 | M25: 0 | N25: 0 | O25: 0 | P25: 1 | Q25: 0 | R25: 3 | S25: 3 | T25: 6 | U25: 0 | V25: 0 | W25: 0 | X25: 0 | Y25: 0 | Z25: 0 | AA25: 0 | AB25: 0 | AC25: 0 | AD25: 0 | AE25: 0 | AF25: 0 | AG25: 0 | AH25: 0 | AI25: 0 | AJ25: 0 | AK25: 0 | AL25: 0 | AM25: 22.59 | AN25: 28.84 | AO25: Mon | AP25: 2000 | AQ25: 0 | AR25: 0 | AS25: 3 | AT25: 1 | AU25: 0 | AV25: 0 | AW25: 0 | AX25: 0 | AY25: 0 | AZ25: 0 | BA25: 0 | BB25: 0 | BC25: 0 | BD25: 1 | BE25: 0 | BF25: 0 | BG25: 2 | BH25: 1 | BI25: 0 | BJ25: 0 | BK25: 0 | BL25: 0 | BM25: 0 | BN25: 0 | BO25: 0 | BP25: 0 | BQ25: 0 | BR25: 0 | BS25: 0 | BT25: 0 | BU25: 0 | BV25: 0 | BW25: 0 | BX25: 0 | BY25: 0 | BZ25: 0 | CA25: 21.14 | CB25: - | CC25: Mon | CD25: 2000 | CE25: 0 | CF25: 0 | CG25: 8 | CH25: 9 | CI25: 0 | CJ25: 0 | CK25: 0 | CL25: 0 | CM25: 0 | CN25: 0 | CO25: 0 | CP25: 0 | CQ25: 0 | CR25: 1 | CS25: 0 | CT25: 3 | CU25: 5 | CV25: 7 | CW25: 0 | CX25: 0 | CY25: 0 | CZ25: 0 | DA25: 0 | DB25: 0 | DC25: 0 | DD25: 0 | DE25: 0 | DF25: 0 | DG25: 0 | DH25: 0 | DI25: 0 | DJ25: 0 | DK25: 0 | DL25: 0 | DM25: 0 | DN25: 0 | DO25: 22.25 | DP25: 28.33 | DQ25: 0 | DR25: 0 | DS25: 5 | DT25: 8 | DU25: 0 | DV25: 0 | DW25: 0 | DX25: 0 | DY25: 0 | DZ25: 0 | EA25: 0 | EB25: 0 | EC25: 13 | ED25: 0 | EE25: 0 | EF25: 3 | EG25: 1 | EH25: 0 | EI25: 0 | EJ25: 0 | EK25: 0 | EL25: 0 | EM25: 0 | EN25: 0 | EO25: 0 | EP25: 4 | EQ25: 0 | ER25: 0 | ES25: 8 | ET25: 9 | EU25: 0 | EV25: 0 | EW25: 0 | EX25: 0 | EY25: 0 | EZ25: 0 | FA25: 0 | FB25: 0 | FC25: 17 | FD25: 13 | FE25: 6 | FF25: 14 | FG25: 14 | FH25: 18 | FI25: 2 | FJ25: 5 | FK25: 4 | FL25: 7 | FM25: 9 | FN25: 7 | FO25: 5 | FP25: 5 | FQ25: 6 | FR25: 17 | FS25: 13 | FT25: 23 | FU25: 21 | FV25: 23 | FW25: 7 | FX25: 11 | FY25: 13 | FZ25: 6 | GA25: 19
A26: Mon | B26: 2100 | C26: 0 | D26: 0 | E26: 4 | F26: 0 | G26: 0 | H26: 0 | I26: 0 | J26: 0 | K26: 0 | L26: 0 | M26: 0 | N26: 0 | O26: 0 | P26: 0 | Q26: 0 | R26: 0 | S26: 3 | T26: 1 | U26: 0 | V26: 0 | W26: 0 | X26: 0 | Y26: 0 | Z26: 0 | AA26: 0 | AB26: 0 | AC26: 0 | AD26: 0 | AE26: 0 | AF26: 0 | AG26: 0 | AH26: 0 | AI26: 0 | AJ26: 0 | AK26: 0 | AL26: 0 | AM26: 23.48 | AN26: - | AO26: Mon | AP26: 2100 | AQ26: 0 | AR26: 0 | AS26: 3 | AT26: 1 | AU26: 0 | AV26: 0 | AW26: 0 | AX26: 1 | AY26: 0 | AZ26: 0 | BA26: 0 | BB26: 0 | BC26: 0 | BD26: 0 | BE26: 2 | BF26: 0 | BG26: 0 | BH26: 3 | BI26: 0 | BJ26: 0 | BK26: 0 | BL26: 0 | BM26: 0 | BN26: 0 | BO26: 0 | BP26: 0 | BQ26: 0 | BR26: 0 | BS26: 0 | BT26: 0 | BU26: 0 | BV26: 0 | BW26: 0 | BX26: 0 | BY26: 0 | BZ26: 0 | CA26: 20.71 | CB26: - | CC26: Mon | CD26: 2100 | CE26: 0 | CF26: 0 | CG26: 7 | CH26: 1 | CI26: 0 | CJ26: 0 | CK26: 0 | CL26: 1 | CM26: 0 | CN26: 0 | CO26: 0 | CP26: 0 | CQ26: 0 | CR26: 0 | CS26: 0 | CT26: 0 | CU26: 3 | CV26: 4 | CW26: 0 | CX26: 0 | CY26: 0 | CZ26: 0 | DA26: 0 | DB26: 0 | DC26: 0 | DD26: 0 | DE26: 0 | DF26: 0 | DG26: 0 | DH26: 0 | DI26: 0 | DJ26: 0 | DK26: 0 | DL26: 0 | DM26: 0 | DN26: 0 | DO26: 21.94 | DP26: - | DQ26: 0 | DR26: 0 | DS26: 4 | DT26: 0 | DU26: 0 | DV26: 0 | DW26: 0 | DX26: 0 | DY26: 0 | DZ26: 0 | EA26: 0 | EB26: 0 | EC26: 4 | ED26: 0 | EE26: 0 | EF26: 3 | EG26: 1 | EH26: 0 | EI26: 0 | EJ26: 0 | EK26: 1 | EL26: 0 | EM26: 0 | EN26: 0 | EO26: 0 | EP26: 5 | EQ26: 0 | ER26: 0 | ES26: 7 | ET26: 1 | EU26: 0 | EV26: 0 | EW26: 0 | EX26: 1 | EY26: 0 | EZ26: 0 | FA26: 0 | FB26: 0 | FC26: 9 | FD26: 4 | FE26: 5 | FF26: 6 | FG26: 9 | FH26: 7 | FI26: 5 | FJ26: 4 | FK26: 5 | FL26: 1 | FM26: 5 | FN26: 4 | FO26: 8 | FP26: 7 | FQ26: 4 | FR26: 9 | FS26: 6 | FT26: 11 | FU26: 13 | FV26: 15 | FW26: 12 | FX26: 8 | FY26: 6 | FZ26: 5 | GA26: 11
A27: Mon | B27: 2200 | C27: 0 | D27: 0 | E27: 1 | F27: 3 | G27: 0 | H27: 0 | I27: 0 | J27: 0 | K27: 0 | L27: 0 | M27: 0 | N27: 0 | O27: 0 | P27: 0 | Q27: 0 | R27: 1 | S27: 2 | T27: 0 | U27: 1 | V27: 0 | W27: 0 | X27: 0 | Y27: 0 | Z27: 0 | AA27: 0 | AB27: 0 | AC27: 0 | AD27: 0 | AE27: 0 | AF27: 0 | AG27: 0 | AH27: 0 | AI27: 0 | AJ27: 0 | AK27: 0 | AL27: 0 | AM27: 23.95 | AN27: - | AO27: Mon | AP27: 2200 | AQ27: 0 | AR27: 0 | AS27: 1 | AT27: 0 | AU27: 0 | AV27: 0 | AW27: 0 | AX27: 0 | AY27: 0 | AZ27: 0 | BA27: 0 | BB27: 0 | BC27: 0 | BD27: 0 | BE27: 0 | BF27: 1 | BG27: 0 | BH27: 0 | BI27: 0 | BJ27: 0 | BK27: 0 | BL27: 0 | BM27: 0 | BN27: 0 | BO27: 0 | BP27: 0 | BQ27: 0 | BR27: 0 | BS27: 0 | BT27: 0 | BU27: 0 | BV27: 0 | BW27: 0 | BX27: 0 | BY27: 0 | BZ27: 0 | CA27: 16.73 | CB27: - | CC27: Mon | CD27: 2200 | CE27: 0 | CF27: 0 | CG27: 2 | CH27: 3 | CI27: 0 | CJ27: 0 | CK27: 0 | CL27: 0 | CM27: 0 | CN27: 0 | CO27: 0 | CP27: 0 | CQ27: 0 | CR27: 0 | CS27: 0 | CT27: 2 | CU27: 2 | CV27: 0 | CW27: 1 | CX27: 0 | CY27: 0 | CZ27: 0 | DA27: 0 | DB27: 0 | DC27: 0 | DD27: 0 | DE27: 0 | DF27: 0 | DG27: 0 | DH27: 0 | DI27: 0 | DJ27: 0 | DK27: 0 | DL27: 0 | DM27: 0 | DN27: 0 | DO27: 22.5 | DP27: - | DQ27: 0 | DR27: 0 | DS27: 1 | DT27: 3 | DU27: 0 | DV27: 0 | DW27: 0 | DX27: 0 | DY27: 0 | DZ27: 0 | EA27: 0 | EB27: 0 | EC27: 4 | ED27: 0 | EE27: 0 | EF27: 1 | EG27: 0 | EH27: 0 | EI27: 0 | EJ27: 0 | EK27: 0 | EL27: 0 | EM27: 0 | EN27: 0 | EO27: 0 | EP27: 1 | EQ27: 0 | ER27: 0 | ES27: 2 | ET27: 3 | EU27: 0 | EV27: 0 | EW27: 0 | EX27: 0 | EY27: 0 | EZ27: 0 | FA27: 0 | FB27: 0 | FC27: 5 | FD27: 4 | FE27: 6 | FF27: 3 | FG27: 5 | FH27: 7 | FI27: 7 | FJ27: 7 | FK27: 1 | FL27: 2 | FM27: 4 | FN27: 6 | FO27: 5 | FP27: 3 | FQ27: 2 | FR27: 5 | FS27: 8 | FT27: 7 | FU27: 11 | FV27: 12 | FW27: 10 | FX27: 9 | FY27: 5 | FZ27: 4 | GA27: 9
A28: Mon | B28: 2300 | C28: 0 | D28: 0 | E28: 1 | F28: 0 | G28: 0 | H28: 0 | I28: 0 | J28: 0 | K28: 0 | L28: 0 | M28: 0 | N28: 0 | O28: 0 | P28: 0 | Q28: 0 | R28: 0 | S28: 0 | T28: 1 | U28: 0 | V28: 0 | W28: 0 | X28: 0 | Y28: 0 | Z28: 0 | AA28: 0 | AB28: 0 | AC28: 0 | AD28: 0 | AE28: 0 | AF28: 0 | AG28: 0 | AH28: 0 | AI28: 0 | AJ28: 0 | AK28: 0 | AL28: 0 | AM28: 28.47 | AN28: - | AO28: Mon | AP28: 2300 | AQ28: 0 | AR28: 0 | AS28: 0 | AT28: 0 | AU28: 0 | AV28: 0 | AW28: 0 | AX28: 0 | AY28: 0 | AZ28: 0 | BA28: 0 | BB28: 0 | BC28: 0 | BD28: 0 | BE28: 0 | BF28: 0 | BG28: 0 | BH28: 0 | BI28: 0 | BJ28: 0 | BK28: 0 | BL28: 0 | BM28: 0 | BN28: 0 | BO28: 0 | BP28: 0 | BQ28: 0 | BR28: 0 | BS28: 0 | BT28: 0 | BU28: 0 | BV28: 0 | BW28: 0 | BX28: 0 | BY28: 0 | BZ28: 0 | CA28: - | CB28: - | CC28: Mon | CD28: 2300 | CE28: 0 | CF28: 0 | CG28: 1 | CH28: 0 | CI28: 0 | CJ28: 0 | CK28: 0 | CL28: 0 | CM28: 0 | CN28: 0 | CO28: 0 | CP28: 0 | CQ28: 0 | CR28: 0 | CS28: 0 | CT28: 0 | CU28: 0 | CV28: 1 | CW28: 0 | CX28: 0 | CY28: 0 | CZ28: 0 | DA28: 0 | DB28: 0 | DC28: 0 | DD28: 0 | DE28: 0 | DF28: 0 | DG28: 0 | DH28: 0 | DI28: 0 | DJ28: 0 | DK28: 0 | DL28: 0 | DM28: 0 | DN28: 0 | DO28: 28.47 | DP28: - | DQ28: 0 | DR28: 0 | DS28: 1 | DT28: 0 | DU28: 0 | DV28: 0 | DW28: 0 | DX28: 0 | DY28: 0 | DZ28: 0 | EA28: 0 | EB28: 0 | EC28: 1 | ED28: 0 | EE28: 0 | EF28: 0 | EG28: 0 | EH28: 0 | EI28: 0 | EJ28: 0 | EK28: 0 | EL28: 0 | EM28: 0 | EN28: 0 | EO28: 0 | EP28: 0 | EQ28: 0 | ER28: 0 | ES28: 1 | ET28: 0 | EU28: 0 | EV28: 0 | EW28: 0 | EX28: 0 | EY28: 0 | EZ28: 0 | FA28: 0 | FB28: 0 | FC28: 1 | FD28: 1 | FE28: 1 | FF28: 5 | FG28: 1 | FH28: 4 | FI28: 3 | FJ28: 2 | FK28: 0 | FL28: 0 | FM28: 0 | FN28: 0 | FO28: 4 | FP28: 2 | FQ28: 0 | FR28: 1 | FS28: 1 | FT28: 5 | FU28: 1 | FV28: 8 | FW28: 5 | FX28: 2 | FY28: 2 | FZ28: 1 | GA28: 3
A29: Tue | B29: 0 | C29: 0 | D29: 0 | E29: 0 | F29: 0 | G29: 0 | H29: 0 | I29: 0 | J29: 0 | K29: 0 | L29: 0 | M29: 0 | N29: 0 | O29: 0 | P29: 0 | Q29: 0 | R29: 0 | S29: 0 | T29: 0 | U29: 0 | V29: 0 | W29: 0 | X29: 0 | Y29: 0 | Z29: 0 | AA29: 0 | AB29: 0 | AC29: 0 | AD29: 0 | AE29: 0 | AF29: 0 | AG29: 0 | AH29: 0 | AI29: 0 | AJ29: 0 | AK29: 0 | AL29: 0 | AM29: - | AN29: - | AO29: Tue | AP29: 0 | AQ29: 0 | AR29: 0 | AS29: 0 | AT29: 0 | AU29: 0 | AV29: 0 | AW29: 0 | AX29: 0 | AY29: 0 | AZ29: 0 | BA29: 0 | BB29: 0 | BC29: 0 | BD29: 0 | BE29: 0 | BF29: 0 | BG29: 0 | BH29: 0 | BI29: 0 | BJ29: 0 | BK29: 0 | BL29: 0 | BM29: 0 | BN29: 0 | BO29: 0 | BP29: 0 | BQ29: 0 | BR29: 0 | BS29: 0 | BT29: 0 | BU29: 0 | BV29: 0 | BW29: 0 | BX29: 0 | BY29: 0 | BZ29: 0 | CA29: - | CB29: - | CC29: Tue | CD29: 0 | CE29: 0 | CF29: 0 | CG29: 0 | CH29: 0 | CI29: 0 | CJ29: 0 | CK29: 0 | CL29: 0 | CM29: 0 | CN29: 0 | CO29: 0 | CP29: 0 | CQ29: 0 | CR29: 0 | CS29: 0 | CT29: 0 | CU29: 0 | CV29: 0 | CW29: 0 | CX29: 0 | CY29: 0 | CZ29: 0 | DA29: 0 | DB29: 0 | DC29: 0 | DD29: 0 | DE29: 0 | DF29: 0 | DG29: 0 | DH29: 0 | DI29: 0 | DJ29: 0 | DK29: 0 | DL29: 0 | DM29: 0 | DN29: 0 | DO29: - | DP29: - | DQ29: 0 | DR29: 0 | DS29: 0 | DT29: 0 | DU29: 0 | DV29: 0 | DW29: 0 | DX29: 0 | DY29: 0 | DZ29: 0 | EA29: 0 | EB29: 0 | EC29: 0 | ED29: 0 | EE29: 0 | EF29: 0 | EG29: 0 | EH29: 0 | EI29: 0 | EJ29: 0 | EK29: 0 | EL29: 0 | EM29: 0 | EN29: 0 | EO29: 0 | EP29: 0 | EQ29: 0 | ER29: 0 | ES29: 0 | ET29: 0 | EU29: 0 | EV29: 0 | EW29: 0 | EX29: 0 | EY29: 0 | EZ29: 0 | FA29: 0 | FB29: 0 | FC29: 0 | FD29: =SUM(FD5:FD28) -> 295 | FE29: =SUM(FE5:FE28) -> 304 | FF29: 294 | FG29: 322 | FH29: 335 | FI29: 275 | FJ29: 201 | FK29: 342 | FL29: 348 | FM29: 338 | FN29: 375 | FO29: 385 | FP29: 303 | FQ29: 226 | FR29: 637 | FS29: 652 | FT29: 632 | FU29: 697 | FV29: 720 | FW29: 578 | FX29: 427
A30: Tue | B30: 100 | C30: 0 | D30: 0 | E30: 0 | F30: 0 | G30: 0 | H30: 0 | I30: 0 | J30: 0 | K30: 0 | L30: 0 | M30: 0 | N30: 0 | O30: 0 | P30: 0 | Q30: 0 | R30: 0 | S30: 0 | T30: 0 | U30: 0 | V30: 0 | W30: 0 | X30: 0 | Y30: 0 | Z30: 0 | AA30: 0 | AB30: 0 | AC30: 0 | AD30: 0 | AE30: 0 | AF30: 0 | AG30: 0 | AH30: 0 | AI30: 0 | AJ30: 0 | AK30: 0 | AL30: 0 | AM30: - | AN30: - | AO30: Tue | AP30: 100 | AQ30: 0 | AR30: 0 | AS30: 0 | AT30: 0 | AU30: 0 | AV30: 0 | AW30: 0 | AX30: 0 | AY30: 0 | AZ30: 0 | BA30: 0 | BB30: 0 | BC30: 0 | BD30: 0 | BE30: 0 | BF30: 0 | BG30: 0 | BH30: 0 | BI30: 0 | BJ30: 0 | BK30: 0 | BL30: 0 | BM30: 0 | BN30: 0 | BO30: 0 | BP30: 0 | BQ30: 0 | BR30: 0 | BS30: 0 | BT30: 0 | BU30: 0 | BV30: 0 | BW30: 0 | BX30: 0 | BY30: 0 | BZ30: 0 | CA30: - | CB30: - | CC30: Tue | CD30: 100 | CE30: 0 | CF30: 0 | CG30: 0 | CH30: 0 | CI30: 0 | CJ30: 0 | CK30: 0 | CL30: 0 | CM30: 0 | CN30: 0 | CO30: 0 | CP30: 0 | CQ30: 0 | CR30: 0 | CS30: 0 | CT30: 0 | CU30: 0 | CV30: 0 | CW30: 0 | CX30: 0 | CY30: 0 | CZ30: 0 | DA30: 0 | DB30: 0 | DC30: 0 | DD30: 0 | DE30: 0 | DF30: 0 | DG30: 0 | DH30: 0 | DI30: 0 | DJ30: 0 | DK30: 0 | DL30: 0 | DM30: 0 | DN30: 0 | DO30: - | DP30: - | DQ30: 0 | DR30: 0 | DS30: 0 | DT30: 0 | DU30: 0 | DV30: 0 | DW30: 0 | DX30: 0 | DY30: 0 | DZ30: 0 | EA30: 0 | EB30: 0 | EC30: 0 | ED30: 0 | EE30: 0 | EF30: 0 | EG30: 0 | EH30: 0 | EI30: 0 | EJ30: 0 | EK30: 0 | EL30: 0 | EM30: 0 | EN30: 0 | EO30: 0 | EP30: 0 | EQ30: 0 | ER30: 0 | ES30: 0 | ET30: 0 | EU30: 0 | EV30: 0 | EW30: 0 | EX30: 0 | EY30: 0 | EZ30: 0 | FA30: 0 | FB30: 0 | FC30: 0
A31: Tue | B31: 200 | C31: 0 | D31: 0 | E31: 0 | F31: 0 | G31: 0 | H31: 0 | I31: 0 | J31: 0 | K31: 0 | L31: 0 | M31: 0 | N31: 0 | O31: 0 | P31: 0 | Q31: 0 | R31: 0 | S31: 0 | T31: 0 | U31: 0 | V31: 0 | W31: 0 | X31: 0 | Y31: 0 | Z31: 0 | AA31: 0 | AB31: 0 | AC31: 0 | AD31: 0 | AE31: 0 | AF31: 0 | AG31: 0 | AH31: 0 | AI31: 0 | AJ31: 0 | AK31: 0 | AL31: 0 | AM31: - | AN31: - | AO31: Tue | AP31: 200 | AQ31: 0 | AR31: 0 | AS31: 0 | AT31: 0 | AU31: 0 | AV31: 0 | AW31: 0 | AX31: 0 | AY31: 0 | AZ31: 0 | BA31: 0 | BB31: 0 | BC31: 0 | BD31: 0 | BE31: 0 | BF31: 0 | BG31: 0 | BH31: 0 | BI31: 0 | BJ31: 0 | BK31: 0 | BL31: 0 | BM31: 0 | BN31: 0 | BO31: 0 | BP31: 0 | BQ31: 0 | BR31: 0 | BS31: 0 | BT31: 0 | BU31: 0 | BV31: 0 | BW31: 0 | BX31: 0 | BY31: 0 | BZ31: 0 | CA31: - | CB31: - | CC31: Tue | CD31: 200 | CE31: 0 | CF31: 0 | CG31: 0 | CH31: 0 | CI31: 0 | CJ31: 0 | CK31: 0 | CL31: 0 | CM31: 0 | CN31: 0 | CO31: 0 | CP31: 0 | CQ31: 0 | CR31: 0 | CS31: 0 | CT31: 0 | CU31: 0 | CV31: 0 | CW31: 0 | CX31: 0 | CY31: 0 | CZ31: 0 | DA31: 0 | DB31: 0 | DC31: 0 | DD31: 0 | DE31: 0 | DF31: 0 | DG31: 0 | DH31: 0 | DI31: 0 | DJ31: 0 | DK31: 0 | DL31: 0 | DM31: 0 | DN31: 0 | DO31: - | DP31: - | DQ31: 0 | DR31: 0 | DS31: 0 | DT31: 0 | DU31: 0 | DV31: 0 | DW31: 0 | DX31: 0 | DY31: 0 | DZ31: 0 | EA31: 0 | EB31: 0 | EC31: 0 | ED31: 0 | EE31: 0 | EF31: 0 | EG31: 0 | EH31: 0 | EI31: 0 | EJ31: 0 | EK31: 0 | EL31: 0 | EM31: 0 | EN31: 0 | EO31: 0 | EP31: 0 | EQ31: 0 | ER31: 0 | ES31: 0 | ET31: 0 | EU31: 0 | EV31: 0 | EW31: 0 | EX31: 0 | EY31: 0 | EZ31: 0 | FA31: 0 | FB31: 0 | FC31: 0 | FG31: =FD2 -> NB | FQ31: =FK2 -> SB | GA31: Combined
A32: Tue | B32: 300 | C32: 0 | D32: 0 | E32: 0 | F32: 0 | G32: 0 | H32: 0 | I32: 0 | J32: 0 | K32: 0 | L32: 0 | M32: 0 | N32: 0 | O32: 0 | P32: 0 | Q32: 0 | R32: 0 | S32: 0 | T32: 0 | U32: 0 | V32: 0 | W32: 0 | X32: 0 | Y32: 0 | Z32: 0 | AA32: 0 | AB32: 0 | AC32: 0 | AD32: 0 | AE32: 0 | AF32: 0 | AG32: 0 | AH32: 0 | AI32: 0 | AJ32: 0 | AK32: 0 | AL32: 0 | AM32: - | AN32: - | AO32: Tue | AP32: 300 | AQ32: 0 | AR32: 0 | AS32: 0 | AT32: 1 | AU32: 0 | AV32: 0 | AW32: 0 | AX32: 0 | AY32: 0 | AZ32: 0 | BA32: 0 | BB32: 0 | BC32: 0 | BD32: 0 | BE32: 0 | BF32: 0 | BG32: 0 | BH32: 1 | BI32: 0 | BJ32: 0 | BK32: 0 | BL32: 0 | BM32: 0 | BN32: 0 | BO32: 0 | BP32: 0 | BQ32: 0 | BR32: 0 | BS32: 0 | BT32: 0 | BU32: 0 | BV32: 0 | BW32: 0 | BX32: 0 | BY32: 0 | BZ32: 0 | CA32: 29.66 | CB32: - | CC32: Tue | CD32: 300 | CE32: 0 | CF32: 0 | CG32: 0 | CH32: 1 | CI32: 0 | CJ32: 0 | CK32: 0 | CL32: 0 | CM32: 0 | CN32: 0 | CO32: 0 | CP32: 0 | CQ32: 0 | CR32: 0 | CS32: 0 | CT32: 0 | CU32: 0 | CV32: 1 | CW32: 0 | CX32: 0 | CY32: 0 | CZ32: 0 | DA32: 0 | DB32: 0 | DC32: 0 | DD32: 0 | DE32: 0 | DF32: 0 | DG32: 0 | DH32: 0 | DI32: 0 | DJ32: 0 | DK32: 0 | DL32: 0 | DM32: 0 | DN32: 0 | DO32: 29.66 | DP32: - | DQ32: 0 | DR32: 0 | DS32: 0 | DT32: 0 | DU32: 0 | DV32: 0 | DW32: 0 | DX32: 0 | DY32: 0 | DZ32: 0 | EA32: 0 | EB32: 0 | EC32: 0 | ED32: 0 | EE32: 0 | EF32: 0 | EG32: 1 | EH32: 0 | EI32: 0 | EJ32: 0 | EK32: 0 | EL32: 0 | EM32: 0 | EN32: 0 | EO32: 0 | EP32: 1 | EQ32: 0 | ER32: 0 | ES32: 0 | ET32: 1 | EU32: 0 | EV32: 0 | EW32: 0 | EX32: 0 | EY32: 0 | EZ32: 0 | FA32: 0 | FB32: 0 | FC32: 1 | FF32: Headway >=0 | FG32: Min | FH32: Median | FI32: Average | FJ32: 0.85 | FK32: 0.95 | FL32: Max | FM32: StDev | FN32: 15Kph Pace Lower Bound | FO32: Pace Count | FP32: Count > PSL | FQ32: Min | FR32: Median | FS32: Average | FT32: 0.85 | FU32: 0.95 | FV32: Max | FW32: StDev | FX32: 15Kph Pace Lower Bound | FY32: Pace Count | FZ32: Count > PSL | GA32: Min | GB32: Median | GC32: Average | GD32: 0.85 | GE32: 0.95 | GF32: Max | GG32: StDev | GH32: 15Kph Pace Lower Bound | GI32: Pace Count | GJ32: Count > PSL
A33: Tue | B33: 400 | C33: 0 | D33: 0 | E33: 0 | F33: 0 | G33: 0 | H33: 0 | I33: 0 | J33: 0 | K33: 0 | L33: 0 | M33: 0 | N33: 0 | O33: 0 | P33: 0 | Q33: 0 | R33: 0 | S33: 0 | T33: 0 | U33: 0 | V33: 0 | W33: 0 | X33: 0 | Y33: 0 | Z33: 0 | AA33: 0 | AB33: 0 | AC33: 0 | AD33: 0 | AE33: 0 | AF33: 0 | AG33: 0 | AH33: 0 | AI33: 0 | AJ33: 0 | AK33: 0 | AL33: 0 | AM33: - | AN33: - | AO33: Tue | AP33: 400 | AQ33: 0 | AR33: 0 | AS33: 1 | AT33: 3 | AU33: 0 | AV33: 0 | AW33: 0 | AX33: 1 | AY33: 0 | AZ33: 0 | BA33: 0 | BB33: 0 | BC33: 0 | BD33: 0 | BE33: 0 | BF33: 1 | BG33: 1 | BH33: 1 | BI33: 1 | BJ33: 0 | BK33: 1 | BL33: 0 | BM33: 0 | BN33: 0 | BO33: 0 | BP33: 0 | BQ33: 0 | BR33: 0 | BS33: 0 | BT33: 0 | BU33: 0 | BV33: 0 | BW33: 0 | BX33: 0 | BY33: 0 | BZ33: 0 | CA33: 28.67 | CB33: - | CC33: Tue | CD33: 400 | CE33: 0 | CF33: 0 | CG33: 1 | CH33: 3 | CI33: 0 | CJ33: 0 | CK33: 0 | CL33: 1 | CM33: 0 | CN33: 0 | CO33: 0 | CP33: 0 | CQ33: 0 | CR33: 0 | CS33: 0 | CT33: 1 | CU33: 1 | CV33: 1 | CW33: 1 | CX33: 0 | CY33: 1 | CZ33: 0 | DA33: 0 | DB33: 0 | DC33: 0 | DD33: 0 | DE33: 0 | DF33: 0 | DG33: 0 | DH33: 0 | DI33: 0 | DJ33: 0 | DK33: 0 | DL33: 0 | DM33: 0 | DN33: 0 | DO33: 28.67 | DP33: - | DQ33: 0 | DR33: 0 | DS33: 0 | DT33: 0 | DU33: 0 | DV33: 0 | DW33: 0 | DX33: 0 | DY33: 0 | DZ33: 0 | EA33: 0 | EB33: 0 | EC33: 0 | ED33: 0 | EE33: 0 | EF33: 1 | EG33: 3 | EH33: 0 | EI33: 0 | EJ33: 0 | EK33: 1 | EL33: 0 | EM33: 0 | EN33: 0 | EO33: 0 | EP33: 5 | EQ33: 0 | ER33: 0 | ES33: 1 | ET33: 3 | EU33: 0 | EV33: 0 | EW33: 0 | EX33: 1 | EY33: 0 | EZ33: 0 | FA33: 0 | FB33: 0 | FC33: 5 | FE33: 0 | FF33: Mon | FH33: 23.48 | FI33: 22.75 | FJ33: 28.36 | FR33: 24.78 | FS33: 24.35 | FT33: 30.29 | GB33: 24.13 | GC33: 23.61 | GD33: 29.5
A34: Tue | B34: 500 | C34: 0 | D34: 0 | E34: 0 | F34: 1 | G34: 0 | H34: 0 | I34: 0 | J34: 0 | K34: 0 | L34: 0 | M34: 0 | N34: 0 | O34: 0 | P34: 0 | Q34: 0 | R34: 1 | S34: 0 | T34: 0 | U34: 0 | V34: 0 | W34: 0 | X34: 0 | Y34: 0 | Z34: 0 | AA34: 0 | AB34: 0 | AC34: 0 | AD34: 0 | AE34: 0 | AF34: 0 | AG34: 0 | AH34: 0 | AI34: 0 | AJ34: 0 | AK34: 0 | AL34: 0 | AM34: 19.07 | AN34: - | AO34: Tue | AP34: 500 | AQ34: 0 | AR34: 0 | AS34: 4 | AT34: 2 | AU34: 0 | AV34: 0 | AW34: 0 | AX34: 0 | AY34: 0 | AZ34: 0 | BA34: 0 | BB34: 0 | BC34: 0 | BD34: 0 | BE34: 1 | BF34: 0 | BG34: 0 | BH34: 3 | BI34: 2 | BJ34: 0 | BK34: 0 | BL34: 0 | BM34: 0 | BN34: 0 | BO34: 0 | BP34: 0 | BQ34: 0 | BR34: 0 | BS34: 0 | BT34: 0 | BU34: 0 | BV34: 0 | BW34: 0 | BX34: 0 | BY34: 0 | BZ34: 0 | CA34: 26.14 | CB34: - | CC34: Tue | CD34: 500 | CE34: 0 | CF34: 0 | CG34: 4 | CH34: 3 | CI34: 0 | CJ34: 0 | CK34: 0 | CL34: 0 | CM34: 0 | CN34: 0 | CO34: 0 | CP34: 0 | CQ34: 0 | CR34: 0 | CS34: 0 | CT34: 1 | CU34: 0 | CV34: 3 | CW34: 2 | CX34: 0 | CY34: 0 | CZ34: 0 | DA34: 0 | DB34: 0 | DC34: 0 | DD34: 0 | DE34: 0 | DF34: 0 | DG34: 0 | DH34: 0 | DI34: 0 | DJ34: 0 | DK34: 0 | DL34: 0 | DM34: 0 | DN34: 0 | DO34: 25.13 | DP34: - | DQ34: 0 | DR34: 0 | DS34: 0 | DT34: 1 | DU34: 0 | DV34: 0 | DW34: 0 | DX34: 0 | DY34: 0 | DZ34: 0 | EA34: 0 | EB34: 0 | EC34: 1 | ED34: 0 | EE34: 0 | EF34: 4 | EG34: 2 | EH34: 0 | EI34: 0 | EJ34: 0 | EK34: 0 | EL34: 0 | EM34: 0 | EN34: 0 | EO34: 0 | EP34: 6 | EQ34: 0 | ER34: 0 | ES34: 4 | ET34: 3 | EU34: 0 | EV34: 0 | EW34: 0 | EX34: 0 | EY34: 0 | EZ34: 0 | FA34: 0 | FB34: 0 | FC34: 7 | FE34: 1 | FF34: Tue | FH34: 24.61 | FI34: 23.49 | FJ34: 29.61 | FR34: 25.96 | FS34: 24.79 | FT34: 30.81 | GB34: 25.16 | GC34: 24.19 | GD34: 30.28
A35: Tue | B35: 600 | C35: 0 | D35: 0 | E35: 0 | F35: 2 | G35: 0 | H35: 0 | I35: 0 | J35: 0 | K35: 0 | L35: 0 | M35: 0 | N35: 0 | O35: 0 | P35: 0 | Q35: 1 | R35: 0 | S35: 0 | T35: 1 | U35: 0 | V35: 0 | W35: 0 | X35: 0 | Y35: 0 | Z35: 0 | AA35: 0 | AB35: 0 | AC35: 0 | AD35: 0 | AE35: 0 | AF35: 0 | AG35: 0 | AH35: 0 | AI35: 0 | AJ35: 0 | AK35: 0 | AL35: 0 | AM35: 20.24 | AN35: - | AO35: Tue | AP35: 600 | AQ35: 0 | AR35: 0 | AS35: 7 | AT35: 6 | AU35: 1 | AV35: 0 | AW35: 0 | AX35: 0 | AY35: 0 | AZ35: 0 | BA35: 0 | BB35: 0 | BC35: 0 | BD35: 0 | BE35: 1 | BF35: 2 | BG35: 1 | BH35: 4 | BI35: 4 | BJ35: 2 | BK35: 0 | BL35: 0 | BM35: 0 | BN35: 0 | BO35: 0 | BP35: 0 | BQ35: 0 | BR35: 0 | BS35: 0 | BT35: 0 | BU35: 0 | BV35: 0 | BW35: 0 | BX35: 0 | BY35: 0 | BZ35: 0 | CA35: 28.14 | CB35: 34.61 | CC35: Tue | CD35: 600 | CE35: 0 | CF35: 0 | CG35: 7 | CH35: 8 | CI35: 1 | CJ35: 0 | CK35: 0 | CL35: 0 | CM35: 0 | CN35: 0 | CO35: 0 | CP35: 0 | CQ35: 0 | CR35: 0 | CS35: 1 | CT35: 2 | CU35: 1 | CV35: 5 | CW35: 4 | CX35: 2 | CY35: 0 | CZ35: 0 | DA35: 0 | DB35: 0 | DC35: 0 | DD35: 0 | DE35: 0 | DF35: 0 | DG35: 0 | DH35: 0 | DI35: 0 | DJ35: 0 | DK35: 0 | DL35: 0 | DM35: 0 | DN35: 0 | DO35: 27.15 | DP35: 34.45 | DQ35: 0 | DR35: 0 | DS35: 0 | DT35: 2 | DU35: 0 | DV35: 0 | DW35: 0 | DX35: 0 | DY35: 0 | DZ35: 0 | EA35: 0 | EB35: 0 | EC35: 2 | ED35: 0 | EE35: 0 | EF35: 7 | EG35: 6 | EH35: 1 | EI35: 0 | EJ35: 0 | EK35: 0 | EL35: 0 | EM35: 0 | EN35: 0 | EO35: 0 | EP35: 14 | EQ35: 0 | ER35: 0 | ES35: 7 | ET35: 8 | EU35: 1 | EV35: 0 | EW35: 0 | EX35: 0 | EY35: 0 | EZ35: 0 | FA35: 0 | FB35: 0 | FC35: 16 | FE35: 2 | FF35: Wed | FH35: 23.54 | FI35: 23.55 | FJ35: 28.65 | FR35: 26.21 | FS35: 25.5 | FT35: 31.59 | GB35: 25.02 | GC35: 24.59 | GD35: 30.8
A36: Tue | B36: 700 | C36: 0 | D36: 0 | E36: 7 | F36: 7 | G36: 0 | H36: 0 | I36: 0 | J36: 0 | K36: 0 | L36: 0 | M36: 0 | N36: 0 | O36: 0 | P36: 0 | Q36: 1 | R36: 1 | S36: 4 | T36: 4 | U36: 4 | V36: 0 | W36: 0 | X36: 0 | Y36: 0 | Z36: 0 | AA36: 0 | AB36: 0 | AC36: 0 | AD36: 0 | AE36: 0 | AF36: 0 | AG36: 0 | AH36: 0 | AI36: 0 | AJ36: 0 | AK36: 0 | AL36: 0 | AM36: 24.83 | AN36: 30.62 | AO36: Tue | AP36: 700 | AQ36: 0 | AR36: 1 | AS36: 20 | AT36: 13 | AU36: 0 | AV36: 0 | AW36: 0 | AX36: 0 | AY36: 0 | AZ36: 0 | BA36: 0 | BB36: 0 | BC36: 0 | BD36: 1 | BE36: 6 | BF36: 3 | BG36: 10 | BH36: 8 | BI36: 5 | BJ36: 1 | BK36: 0 | BL36: 0 | BM36: 0 | BN36: 0 | BO36: 0 | BP36: 0 | BQ36: 0 | BR36: 0 | BS36: 0 | BT36: 0 | BU36: 0 | BV36: 0 | BW36: 0 | BX36: 0 | BY36: 0 | BZ36: 0 | CA36: 22.66 | CB36: 30.84 | CC36: Tue | CD36: 700 | CE36: 0 | CF36: 1 | CG36: 27 | CH36: 20 | CI36: 0 | CJ36: 0 | CK36: 0 | CL36: 0 | CM36: 0 | CN36: 0 | CO36: 0 | CP36: 0 | CQ36: 0 | CR36: 0 | CS36: 1 | CT36: 4 | CU36: 14 | CV36: 12 | CW36: 9 | CX36: 1 | CY36: 0 | CZ36: 0 | DA36: 0 | DB36: 0 | DC36: 0 | DD36: 0 | DE36: 0 | DF36: 0 | DG36: 0 | DH36: 0 | DI36: 0 | DJ36: 0 | DK36: 0 | DL36: 0 | DM36: 0 | DN36: 0 | DO36: 23.29 | DP36: 30.8 | DQ36: 0 | DR36: 0 | DS36: 7 | DT36: 7 | DU36: 0 | DV36: 0 | DW36: 0 | DX36: 0 | DY36: 0 | DZ36: 0 | EA36: 0 | EB36: 0 | EC36: 14 | ED36: 0 | EE36: 1 | EF36: 20 | EG36: 13 | EH36: 0 | EI36: 0 | EJ36: 0 | EK36: 0 | EL36: 0 | EM36: 0 | EN36: 0 | EO36: 0 | EP36: 34 | EQ36: 0 | ER36: 1 | ES36: 27 | ET36: 20 | EU36: 0 | EV36: 0 | EW36: 0 | EX36: 0 | EY36: 0 | EZ36: 0 | FA36: 0 | FB36: 0 | FC36: 48 | FE36: 3 | FF36: Thu | FH36: 23.31 | FI36: 22.87 | FJ36: 28.77 | FR36: 24.11 | FS36: 23.18 | FT36: 29.68 | GB36: 23.69 | GC36: 23.04 | GD36: 29.29
A37: Tue | B37: 800 | C37: 0 | D37: 0 | E37: 11 | F37: 10 | G37: 0 | H37: 0 | I37: 0 | J37: 0 | K37: 0 | L37: 0 | M37: 0 | N37: 0 | O37: 0 | P37: 1 | Q37: 1 | R37: 1 | S37: 7 | T37: 8 | U37: 1 | V37: 2 | W37: 0 | X37: 0 | Y37: 0 | Z37: 0 | AA37: 0 | AB37: 0 | AC37: 0 | AD37: 0 | AE37: 0 | AF37: 0 | AG37: 0 | AH37: 0 | AI37: 0 | AJ37: 0 | AK37: 0 | AL37: 0 | AM37: 25.35 | AN37: 29.05 | AO37: Tue | AP37: 800 | AQ37: 0 | AR37: 0 | AS37: 18 | AT37: 17 | AU37: 1 | AV37: 0 | AW37: 0 | AX37: 0 | AY37: 0 | AZ37: 0 | BA37: 0 | BB37: 0 | BC37: 0 | BD37: 0 | BE37: 1 | BF37: 2 | BG37: 8 | BH37: 18 | BI37: 7 | BJ37: 0 | BK37: 0 | BL37: 0 | BM37: 0 | BN37: 0 | BO37: 0 | BP37: 0 | BQ37: 0 | BR37: 0 | BS37: 0 | BT37: 0 | BU37: 0 | BV37: 0 | BW37: 0 | BX37: 0 | BY37: 0 | BZ37: 0 | CA37: 26.65 | CB37: 30.65 | CC37: Tue | CD37: 800 | CE37: 0 | CF37: 0 | CG37: 29 | CH37: 27 | CI37: 1 | CJ37: 0 | CK37: 0 | CL37: 0 | CM37: 0 | CN37: 0 | CO37: 0 | CP37: 0 | CQ37: 0 | CR37: 1 | CS37: 1 | CT37: 3 | CU37: 15 | CV37: 26 | CW37: 8 | CX37: 2 | CY37: 0 | CZ37: 0 | DA37: 0 | DB37: 0 | DC37: 0 | DD37: 0 | DE37: 0 | DF37: 0 | DG37: 0 | DH37: 0 | DI37: 0 | DJ37: 0 | DK37: 0 | DL37: 0 | DM37: 0 | DN37: 0 | DO37: 26.17 | DP37: 30.53 | DQ37: 0 | DR37: 0 | DS37: 11 | DT37: 10 | DU37: 0 | DV37: 0 | DW37: 0 | DX37: 0 | DY37: 0 | DZ37: 0 | EA37: 0 | EB37: 0 | EC37: 21 | ED37: 0 | EE37: 0 | EF37: 18 | EG37: 17 | EH37: 1 | EI37: 0 | EJ37: 0 | EK37: 0 | EL37: 0 | EM37: 0 | EN37: 0 | EO37: 0 | EP37: 36 | EQ37: 0 | ER37: 0 | ES37: 29 | ET37: 27 | EU37: 1 | EV37: 0 | EW37: 0 | EX37: 0 | EY37: 0 | EZ37: 0 | FA37: 0 | FB37: 0 | FC37: 57 | FE37: 4 | FF37: Fri | FH37: 24.49 | FI37: 23.87 | FJ37: 29.74 | FR37: 25.81 | FS37: 25.24 | FT37: 31.74 | GB37: 25.18 | GC37: 24.6 | GD37: 30.78
A38: Tue | B38: 900 | C38: 0 | D38: 0 | E38: 8 | F38: 6 | G38: 0 | H38: 0 | I38: 0 | J38: 0 | K38: 0 | L38: 0 | M38: 0 | N38: 0 | O38: 0 | P38: 0 | Q38: 0 | R38: 3 | S38: 6 | T38: 3 | U38: 2 | V38: 0 | W38: 0 | X38: 0 | Y38: 0 | Z38: 0 | AA38: 0 | AB38: 0 | AC38: 0 | AD38: 0 | AE38: 0 | AF38: 0 | AG38: 0 | AH38: 0 | AI38: 0 | AJ38: 0 | AK38: 0 | AL38: 0 | AM38: 23.78 | AN38: 29.54 | AO38: Tue | AP38: 900 | AQ38: 0 | AR38: 0 | AS38: 11 | AT38: 7 | AU38: 1 | AV38: 0 | AW38: 0 | AX38: 0 | AY38: 0 | AZ38: 0 | BA38: 0 | BB38: 0 | BC38: 0 | BD38: 0 | BE38: 1 | BF38: 0 | BG38: 2 | BH38: 11 | BI38: 4 | BJ38: 1 | BK38: 0 | BL38: 0 | BM38: 0 | BN38: 0 | BO38: 0 | BP38: 0 | BQ38: 0 | BR38: 0 | BS38: 0 | BT38: 0 | BU38: 0 | BV38: 0 | BW38: 0 | BX38: 0 | BY38: 0 | BZ38: 0 | CA38: 27.73 | CB38: 32.13 | CC38: Tue | CD38: 900 | CE38: 0 | CF38: 0 | CG38: 19 | CH38: 13 | CI38: 1 | CJ38: 0 | CK38: 0 | CL38: 0 | CM38: 0 | CN38: 0 | CO38: 0 | CP38: 0 | CQ38: 0 | CR38: 0 | CS38: 0 | CT38: 3 | CU38: 8 | CV38: 14 | CW38: 6 | CX38: 1 | CY38: 0 | CZ38: 0 | DA38: 0 | DB38: 0 | DC38: 0 | DD38: 0 | DE38: 0 | DF38: 0 | DG38: 0 | DH38: 0 | DI38: 0 | DJ38: 0 | DK38: 0 | DL38: 0 | DM38: 0 | DN38: 0 | DO38: 26.05 | DP38: 30.94 | DQ38: 0 | DR38: 0 | DS38: 8 | DT38: 6 | DU38: 0 | DV38: 0 | DW38: 0 | DX38: 0 | DY38: 0 | DZ38: 0 | EA38: 0 | EB38: 0 | EC38: 14 | ED38: 0 | EE38: 0 | EF38: 11 | EG38: 7 | EH38: 1 | EI38: 0 | EJ38: 0 | EK38: 0 | EL38: 0 | EM38: 0 | EN38: 0 | EO38: 0 | EP38: 19 | EQ38: 0 | ER38: 0 | ES38: 19 | ET38: 13 | EU38: 1 | EV38: 0 | EW38: 0 | EX38: 0 | EY38: 0 | EZ38: 0 | FA38: 0 | FB38: 0 | FC38: 33 | FE38: 5 | FF38: Sat | FH38: 24.25 | FI38: 23.85 | FJ38: 29.44 | FR38: 24.94 | FS38: 24.4 | FT38: 30.82 | GB38: 24.48 | GC38: 24.14 | GD38: 30.17
A39: Tue | B39: 1000 | C39: 0 | D39: 0 | E39: 5 | F39: 7 | G39: 3 | H39: 0 | I39: 0 | J39: 0 | K39: 0 | L39: 0 | M39: 0 | N39: 0 | O39: 0 | P39: 3 | Q39: 1 | R39: 3 | S39: 2 | T39: 5 | U39: 1 | V39: 0 | W39: 0 | X39: 0 | Y39: 0 | Z39: 0 | AA39: 0 | AB39: 0 | AC39: 0 | AD39: 0 | AE39: 0 | AF39: 0 | AG39: 0 | AH39: 0 | AI39: 0 | AJ39: 0 | AK39: 0 | AL39: 0 | AM39: 20.27 | AN39: 26.86 | AO39: Tue | AP39: 1000 | AQ39: 0 | AR39: 0 | AS39: 9 | AT39: 10 | AU39: 1 | AV39: 0 | AW39: 0 | AX39: 0 | AY39: 0 | AZ39: 0 | BA39: 0 | BB39: 0 | BC39: 0 | BD39: 0 | BE39: 1 | BF39: 0 | BG39: 5 | BH39: 11 | BI39: 3 | BJ39: 0 | BK39: 0 | BL39: 0 | BM39: 0 | BN39: 0 | BO39: 0 | BP39: 0 | BQ39: 0 | BR39: 0 | BS39: 0 | BT39: 0 | BU39: 0 | BV39: 0 | BW39: 0 | BX39: 0 | BY39: 0 | BZ39: 0 | CA39: 26.11 | CB39: 29.88 | CC39: Tue | CD39: 1000 | CE39: 0 | CF39: 0 | CG39: 14 | CH39: 17 | CI39: 4 | CJ39: 0 | CK39: 0 | CL39: 0 | CM39: 0 | CN39: 0 | CO39: 0 | CP39: 0 | CQ39: 0 | CR39: 3 | CS39: 1 | CT39: 3 | CU39: 7 | CV39: 16 | CW39: 4 | CX39: 0 | CY39: 0 | CZ39: 0 | DA39: 0 | DB39: 0 | DC39: 0 | DD39: 0 | DE39: 0 | DF39: 0 | DG39: 0 | DH39: 0 | DI39: 0 | DJ39: 0 | DK39: 0 | DL39: 0 | DM39: 0 | DN39: 0 | DO39: 23.61 | DP39: 29.42 | DQ39: 0 | DR39: 0 | DS39: 5 | DT39: 7 | DU39: 3 | DV39: 0 | DW39: 0 | DX39: 0 | DY39: 0 | DZ39: 0 | EA39: 0 | EB39: 0 | EC39: 15 | ED39: 0 | EE39: 0 | EF39: 9 | EG39: 10 | EH39: 1 | EI39: 0 | EJ39: 0 | EK39: 0 | EL39: 0 | EM39: 0 | EN39: 0 | EO39: 0 | EP39: 20 | EQ39: 0 | ER39: 0 | ES39: 14 | ET39: 17 | EU39: 4 | EV39: 0 | EW39: 0 | EX39: 0 | EY39: 0 | EZ39: 0 | FA39: 0 | FB39: 0 | FC39: 35 | FE39: 6 | FF39: Sun | FH39: 23.31 | FI39: 22.53 | FJ39: 27.61 | FR39: 24.44 | FS39: 24.43 | FT39: 30.59 | GB39: 23.94 | GC39: 23.53 | GD39: 29.58
A40: Tue | B40: 1100 | C40: 0 | D40: 0 | E40: 8 | F40: 10 | G40: 2 | H40: 0 | I40: 0 | J40: 0 | K40: 0 | L40: 0 | M40: 0 | N40: 0 | O40: 0 | P40: 0 | Q40: 2 | R40: 1 | S40: 7 | T40: 9 | U40: 1 | V40: 0 | W40: 0 | X40: 0 | Y40: 0 | Z40: 0 | AA40: 0 | AB40: 0 | AC40: 0 | AD40: 0 | AE40: 0 | AF40: 0 | AG40: 0 | AH40: 0 | AI40: 0 | AJ40: 0 | AK40: 0 | AL40: 0 | AM40: 23.47 | AN40: 27.59 | AO40: Tue | AP40: 1100 | AQ40: 0 | AR40: 0 | AS40: 9 | AT40: 11 | AU40: 1 | AV40: 0 | AW40: 0 | AX40: 0 | AY40: 0 | AZ40: 0 | BA40: 0 | BB40: 0 | BC40: 0 | BD40: 0 | BE40: 0 | BF40: 5 | BG40: 6 | BH40: 8 | BI40: 2 | BJ40: 0 | BK40: 0 | BL40: 0 | BM40: 0 | BN40: 0 | BO40: 0 | BP40: 0 | BQ40: 0 | BR40: 0 | BS40: 0 | BT40: 0 | BU40: 0 | BV40: 0 | BW40: 0 | BX40: 0 | BY40: 0 | BZ40: 0 | CA40: 23.96 | CB40: 28.87 | CC40: Tue | CD40: 1100 | CE40: 0 | CF40: 0 | CG40: 17 | CH40: 21 | CI40: 3 | CJ40: 0 | CK40: 0 | CL40: 0 | CM40: 0 | CN40: 0 | CO40: 0 | CP40: 0 | CQ40: 0 | CR40: 0 | CS40: 2 | CT40: 6 | CU40: 13 | CV40: 17 | CW40: 3 | CX40: 0 | CY40: 0 | CZ40: 0 | DA40: 0 | DB40: 0 | DC40: 0 | DD40: 0 | DE40: 0 | DF40: 0 | DG40: 0 | DH40: 0 | DI40: 0 | DJ40: 0 | DK40: 0 | DL40: 0 | DM40: 0 | DN40: 0 | DO40: 23.72 | DP40: 28.87 | DQ40: 0 | DR40: 0 | DS40: 8 | DT40: 10 | DU40: 2 | DV40: 0 | DW40: 0 | DX40: 0 | DY40: 0 | DZ40: 0 | EA40: 0 | EB40: 0 | EC40: 20 | ED40: 0 | EE40: 0 | EF40: 9 | EG40: 11 | EH40: 1 | EI40: 0 | EJ40: 0 | EK40: 0 | EL40: 0 | EM40: 0 | EN40: 0 | EO40: 0 | EP40: 21 | EQ40: 0 | ER40: 0 | ES40: 17 | ET40: 21 | EU40: 3 | EV40: 0 | EW40: 0 | EX40: 0 | EY40: 0 | EZ40: 0 | FA40: 0 | FB40: 0 | FC40: 41 | FF40: Weekday | FH40: 23.77 | FI40: 23.31 | FJ40: 29.01 | FR40: 25.42 | FS40: 24.6 | FT40: 30.84 | GB40: 24.65 | GC40: 24 | GD40: 30.04
A41: Tue | B41: 1200 | C41: 0 | D41: 0 | E41: 8 | F41: 8 | G41: 1 | H41: 0 | I41: 0 | J41: 0 | K41: 0 | L41: 0 | M41: 0 | N41: 0 | O41: 0 | P41: 1 | Q41: 4 | R41: 1 | S41: 7 | T41: 2 | U41: 2 | V41: 0 | W41: 0 | X41: 0 | Y41: 0 | Z41: 0 | AA41: 0 | AB41: 0 | AC41: 0 | AD41: 0 | AE41: 0 | AF41: 0 | AG41: 0 | AH41: 0 | AI41: 0 | AJ41: 0 | AK41: 0 | AL41: 0 | AM41: 21.38 | AN41: 26.28 | AO41: Tue | AP41: 1200 | AQ41: 0 | AR41: 0 | AS41: 9 | AT41: 11 | AU41: 0 | AV41: 0 | AW41: 0 | AX41: 0 | AY41: 0 | AZ41: 0 | BA41: 0 | BB41: 0 | BC41: 0 | BD41: 0 | BE41: 1 | BF41: 4 | BG41: 5 | BH41: 9 | BI41: 1 | BJ41: 0 | BK41: 0 | BL41: 0 | BM41: 0 | BN41: 0 | BO41: 0 | BP41: 0 | BQ41: 0 | BR41: 0 | BS41: 0 | BT41: 0 | BU41: 0 | BV41: 0 | BW41: 0 | BX41: 0 | BY41: 0 | BZ41: 0 | CA41: 23.57 | CB41: 29.17 | CC41: Tue | CD41: 1200 | CE41: 0 | CF41: 0 | CG41: 17 | CH41: 19 | CI41: 1 | CJ41: 0 | CK41: 0 | CL41: 0 | CM41: 0 | CN41: 0 | CO41: 0 | CP41: 0 | CQ41: 0 | CR41: 1 | CS41: 4 | CT41: 5 | CU41: 12 | CV41: 11 | CW41: 3 | CX41: 0 | CY41: 0 | CZ41: 0 | DA41: 0 | DB41: 0 | DC41: 0 | DD41: 0 | DE41: 0 | DF41: 0 | DG41: 0 | DH41: 0 | DI41: 0 | DJ41: 0 | DK41: 0 | DL41: 0 | DM41: 0 | DN41: 0 | DO41: 22.56 | DP41: 29.04 | DQ41: 0 | DR41: 0 | DS41: 8 | DT41: 8 | DU41: 1 | DV41: 0 | DW41: 0 | DX41: 0 | DY41: 0 | DZ41: 0 | EA41: 0 | EB41: 0 | EC41: 17 | ED41: 0 | EE41: 0 | EF41: 9 | EG41: 11 | EH41: 0 | EI41: 0 | EJ41: 0 | EK41: 0 | EL41: 0 | EM41: 0 | EN41: 0 | EO41: 0 | EP41: 20 | EQ41: 0 | ER41: 0 | ES41: 17 | ET41: 19 | EU41: 1 | EV41: 0 | EW41: 0 | EX41: 0 | EY41: 0 | EZ41: 0 | FA41: 0 | FB41: 0 | FC41: 37 | FF41: 7 day | FH41: 23.8 | FI41: 23.31 | FJ41: 28.93 | FR41: 25.33 | FS41: 24.56 | FT41: 30.83 | GB41: 24.57 | GC41: 23.98 | GD41: 30.02
A42: Tue | B42: 1300 | C42: 0 | D42: 0 | E42: 14 | F42: 8 | G42: 0 | H42: 0 | I42: 0 | J42: 0 | K42: 0 | L42: 0 | M42: 0 | N42: 0 | O42: 0 | P42: 0 | Q42: 4 | R42: 2 | S42: 6 | T42: 5 | U42: 4 | V42: 1 | W42: 0 | X42: 0 | Y42: 0 | Z42: 0 | AA42: 0 | AB42: 0 | AC42: 0 | AD42: 0 | AE42: 0 | AF42: 0 | AG42: 0 | AH42: 0 | AI42: 0 | AJ42: 0 | AK42: 0 | AL42: 0 | AM42: 23.94 | AN42: 30.69 | AO42: Tue | AP42: 1300 | AQ42: 0 | AR42: 1 | AS42: 15 | AT42: 6 | AU42: 1 | AV42: 0 | AW42: 0 | AX42: 0 | AY42: 0 | AZ42: 0 | BA42: 0 | BB42: 0 | BC42: 0 | BD42: 1 | BE42: 1 | BF42: 1 | BG42: 7 | BH42: 11 | BI42: 1 | BJ42: 1 | BK42: 0 | BL42: 0 | BM42: 0 | BN42: 0 | BO42: 0 | BP42: 0 | BQ42: 0 | BR42: 0 | BS42: 0 | BT42: 0 | BU42: 0 | BV42: 0 | BW42: 0 | BX42: 0 | BY42: 0 | BZ42: 0 | CA42: 24.61 | CB42: 29.11 | CC42: Tue | CD42: 1300 | CE42: 0 | CF42: 1 | CG42: 29 | CH42: 14 | CI42: 1 | CJ42: 0 | CK42: 0 | CL42: 0 | CM42: 0 | CN42: 0 | CO42: 0 | CP42: 0 | CQ42: 0 | CR42: 0 | CS42: 4 | CT42: 3 | CU42: 13 | CV42: 16 | CW42: 5 | CX42: 2 | CY42: 0 | CZ42: 0 | DA42: 0 | DB42: 0 | DC42: 0 | DD42: 0 | DE42: 0 | DF42: 0 | DG42: 0 | DH42: 0 | DI42: 0 | DJ42: 0 | DK42: 0 | DL42: 0 | DM42: 0 | DN42: 0 | DO42: 24.28 | DP42: 29.91 | DQ42: 0 | DR42: 0 | DS42: 14 | DT42: 8 | DU42: 0 | DV42: 0 | DW42: 0 | DX42: 0 | DY42: 0 | DZ42: 0 | EA42: 0 | EB42: 0 | EC42: 22 | ED42: 0 | EE42: 1 | EF42: 15 | EG42: 6 | EH42: 1 | EI42: 0 | EJ42: 0 | EK42: 0 | EL42: 0 | EM42: 0 | EN42: 0 | EO42: 0 | EP42: 23 | EQ42: 0 | ER42: 1 | ES42: 29 | ET42: 14 | EU42: 1 | EV42: 0 | EW42: 0 | EX42: 0 | EY42: 0 | EZ42: 0 | FA42: 0 | FB42: 0 | FC42: 45
A43: Tue | B43: 1400 | C43: 0 | D43: 1 | E43: 14 | F43: 5 | G43: 2 | H43: 0 | I43: 0 | J43: 1 | K43: 0 | L43: 0 | M43: 0 | N43: 0 | O43: 0 | P43: 0 | Q43: 1 | R43: 7 | S43: 5 | T43: 6 | U43: 4 | V43: 0 | W43: 0 | X43: 0 | Y43: 0 | Z43: 0 | AA43: 0 | AB43: 0 | AC43: 0 | AD43: 0 | AE43: 0 | AF43: 0 | AG43: 0 | AH43: 0 | AI43: 0 | AJ43: 0 | AK43: 0 | AL43: 0 | AM43: 23.66 | AN43: 29.75 | AO43: Tue | AP43: 1400 | AQ43: 0 | AR43: 1 | AS43: 12 | AT43: 5 | AU43: 2 | AV43: 0 | AW43: 0 | AX43: 1 | AY43: 0 | AZ43: 0 | BA43: 0 | BB43: 0 | BC43: 0 | BD43: 1 | BE43: 4 | BF43: 3 | BG43: 2 | BH43: 9 | BI43: 2 | BJ43: 0 | BK43: 0 | BL43: 0 | BM43: 0 | BN43: 0 | BO43: 0 | BP43: 0 | BQ43: 0 | BR43: 0 | BS43: 0 | BT43: 0 | BU43: 0 | BV43: 0 | BW43: 0 | BX43: 0 | BY43: 0 | BZ43: 0 | CA43: 21.57 | CB43: 28.47 | CC43: Tue | CD43: 1400 | CE43: 0 | CF43: 2 | CG43: 26 | CH43: 10 | CI43: 4 | CJ43: 0 | CK43: 0 | CL43: 2 | CM43: 0 | CN43: 0 | CO43: 0 | CP43: 0 | CQ43: 0 | CR43: 0 | CS43: 1 | CT43: 10 | CU43: 7 | CV43: 15 | CW43: 6 | CX43: 0 | CY43: 0 | CZ43: 0 | DA43: 0 | DB43: 0 | DC43: 0 | DD43: 0 | DE43: 0 | DF43: 0 | DG43: 0 | DH43: 0 | DI43: 0 | DJ43: 0 | DK43: 0 | DL43: 0 | DM43: 0 | DN43: 0 | DO43: 22.66 | DP43: 29.17 | DQ43: 0 | DR43: 1 | DS43: 14 | DT43: 5 | DU43: 2 | DV43: 0 | DW43: 0 | DX43: 1 | DY43: 0 | DZ43: 0 | EA43: 0 | EB43: 0 | EC43: 23 | ED43: 0 | EE43: 1 | EF43: 12 | EG43: 5 | EH43: 2 | EI43: 0 | EJ43: 0 | EK43: 1 | EL43: 0 | EM43: 0 | EN43: 0 | EO43: 0 | EP43: 21 | EQ43: 0 | ER43: 2 | ES43: 26 | ET43: 10 | EU43: 4 | EV43: 0 | EW43: 0 | EX43: 2 | EY43: 0 | EZ43: 0 | FA43: 0 | FB43: 0 | FC43: 44
A44: Tue | B44: 1500 | C44: 0 | D44: 0 | E44: 14 | F44: 9 | G44: 0 | H44: 0 | I44: 0 | J44: 0 | K44: 0 | L44: 0 | M44: 0 | N44: 0 | O44: 0 | P44: 0 | Q44: 2 | R44: 4 | S44: 5 | T44: 10 | U44: 2 | V44: 0 | W44: 0 | X44: 0 | Y44: 0 | Z44: 0 | AA44: 0 | AB44: 0 | AC44: 0 | AD44: 0 | AE44: 0 | AF44: 0 | AG44: 0 | AH44: 0 | AI44: 0 | AJ44: 0 | AK44: 0 | AL44: 0 | AM44: 23.86 | AN44: 29.29 | AO44: Tue | AP44: 1500 | AQ44: 0 | AR44: 1 | AS44: 17 | AT44: 14 | AU44: 1 | AV44: 0 | AW44: 0 | AX44: 0 | AY44: 0 | AZ44: 0 | BA44: 0 | BB44: 0 | BC44: 0 | BD44: 1 | BE44: 3 | BF44: 2 | BG44: 12 | BH44: 11 | BI44: 4 | BJ44: 0 | BK44: 0 | BL44: 0 | BM44: 0 | BN44: 0 | BO44: 0 | BP44: 0 | BQ44: 0 | BR44: 0 | BS44: 0 | BT44: 0 | BU44: 0 | BV44: 0 | BW44: 0 | BX44: 0 | BY44: 0 | BZ44: 0 | CA44: 23.26 | CB44: 29.69 | CC44: Tue | CD44: 1500 | CE44: 0 | CF44: 1 | CG44: 31 | CH44: 23 | CI44: 1 | CJ44: 0 | CK44: 0 | CL44: 0 | CM44: 0 | CN44: 0 | CO44: 0 | CP44: 0 | CQ44: 0 | CR44: 0 | CS44: 2 | CT44: 6 | CU44: 17 | CV44: 21 | CW44: 6 | CX44: 0 | CY44: 0 | CZ44: 0 | DA44: 0 | DB44: 0 | DC44: 0 | DD44: 0 | DE44: 0 | DF44: 0 | DG44: 0 | DH44: 0 | DI44: 0 | DJ44: 0 | DK44: 0 | DL44: 0 | DM44: 0 | DN44: 0 | DO44: 23.51 | DP44: 29.64 | DQ44: 0 | DR44: 0 | DS44: 14 | DT44: 9 | DU44: 0 | DV44: 0 | DW44: 0 | DX44: 0 | DY44: 0 | DZ44: 0 | EA44: 0 | EB44: 0 | EC44: 23 | ED44: 0 | EE44: 1 | EF44: 17 | EG44: 14 | EH44: 1 | EI44: 0 | EJ44: 0 | EK44: 0 | EL44: 0 | EM44: 0 | EN44: 0 | EO44: 0 | EP44: 33 | EQ44: 0 | ER44: 1 | ES44: 31 | ET44: 23 | EU44: 1 | EV44: 0 | EW44: 0 | EX44: 0 | EY44: 0 | EZ44: 0 | FA44: 0 | FB44: 0 | FC44: 56 | FF44: Headway >=4 | FG44: Min | FH44: Median | FI44: Average | FJ44: 0.85 | FK44: 0.95 | FL44: Max | FM44: StDev | FN44: 15Kph Pace Lower Bound | FO44: Pace Count | FP44: Count > PSL | FQ44: Min | FR44: Median | FS44: Average | FT44: 0.85 | FU44: 0.95 | FV44: Max | FW44: StDev | FX44: 15Kph Pace Lower Bound | FY44: Pace Count | FZ44: Count > PSL | GA44: Min | GB44: Median | GC44: Average | GD44: 0.85 | GE44: 0.95 | GF44: Max | GG44: StDev | GH44: 15Kph Pace Lower Bound | GI44: Pace Count | GJ44: Count > PSL
A45: Tue | B45: 1600 | C45: 0 | D45: 2 | E45: 16 | F45: 16 | G45: 1 | H45: 0 | I45: 0 | J45: 1 | K45: 0 | L45: 0 | M45: 0 | N45: 1 | O45: 0 | P45: 1 | Q45: 5 | R45: 4 | S45: 12 | T45: 12 | U45: 2 | V45: 0 | W45: 0 | X45: 1 | Y45: 0 | Z45: 0 | AA45: 0 | AB45: 0 | AC45: 0 | AD45: 0 | AE45: 0 | AF45: 0 | AG45: 0 | AH45: 0 | AI45: 0 | AJ45: 0 | AK45: 0 | AL45: 0 | AM45: 22.97 | AN45: 28.3 | AO45: Tue | AP45: 1600 | AQ45: 0 | AR45: 0 | AS45: 10 | AT45: 12 | AU45: 0 | AV45: 0 | AW45: 0 | AX45: 0 | AY45: 0 | AZ45: 0 | BA45: 0 | BB45: 0 | BC45: 0 | BD45: 1 | BE45: 0 | BF45: 1 | BG45: 8 | BH45: 9 | BI45: 2 | BJ45: 1 | BK45: 0 | BL45: 0 | BM45: 0 | BN45: 0 | BO45: 0 | BP45: 0 | BQ45: 0 | BR45: 0 | BS45: 0 | BT45: 0 | BU45: 0 | BV45: 0 | BW45: 0 | BX45: 0 | BY45: 0 | BZ45: 0 | CA45: 25.27 | CB45: 28.97 | CC45: Tue | CD45: 1600 | CE45: 0 | CF45: 2 | CG45: 26 | CH45: 28 | CI45: 1 | CJ45: 0 | CK45: 0 | CL45: 1 | CM45: 0 | CN45: 0 | CO45: 0 | CP45: 1 | CQ45: 0 | CR45: 1 | CS45: 5 | CT45: 5 | CU45: 20 | CV45: 21 | CW45: 4 | CX45: 1 | CY45: 0 | CZ45: 1 | DA45: 0 | DB45: 0 | DC45: 0 | DD45: 0 | DE45: 0 | DF45: 0 | DG45: 0 | DH45: 0 | DI45: 0 | DJ45: 0 | DK45: 0 | DL45: 0 | DM45: 0 | DN45: 0 | DO45: 23.83 | DP45: 28.57 | DQ45: 0 | DR45: 2 | DS45: 16 | DT45: 16 | DU45: 1 | DV45: 0 | DW45: 0 | DX45: 1 | DY45: 0 | DZ45: 0 | EA45: 0 | EB45: 1 | EC45: 37 | ED45: 0 | EE45: 0 | EF45: 10 | EG45: 12 | EH45: 0 | EI45: 0 | EJ45: 0 | EK45: 0 | EL45: 0 | EM45: 0 | EN45: 0 | EO45: 0 | EP45: 22 | EQ45: 0 | ER45: 2 | ES45: 26 | ET45: 28 | EU45: 1 | EV45: 0 | EW45: 0 | EX45: 1 | EY45: 0 | EZ45: 0 | FA45: 0 | FB45: 1 | FC45: 59 | FE45: 0 | FF45: Mon | FH45: 23.56 | FI45: 22.76 | FJ45: 28.39 | FR45: 24.97 | FS45: 24.51 | FT45: 30.4 | GB45: 24.32 | GC45: 23.71 | GD45: 29.58
A46: Tue | B46: 1700 | C46: 0 | D46: 0 | E46: 23 | F46: 13 | G46: 0 | H46: 0 | I46: 0 | J46: 0 | K46: 0 | L46: 0 | M46: 0 | N46: 0 | O46: 0 | P46: 0 | Q46: 5 | R46: 5 | S46: 9 | T46: 13 | U46: 4 | V46: 0 | W46: 0 | X46: 0 | Y46: 0 | Z46: 0 | AA46: 0 | AB46: 0 | AC46: 0 | AD46: 0 | AE46: 0 | AF46: 0 | AG46: 0 | AH46: 0 | AI46: 0 | AJ46: 0 | AK46: 0 | AL46: 0 | AM46: 23.44 | AN46: 29.01 | AO46: Tue | AP46: 1700 | AQ46: 0 | AR46: 0 | AS46: 19 | AT46: 11 | AU46: 0 | AV46: 0 | AW46: 0 | AX46: 0 | AY46: 0 | AZ46: 0 | BA46: 0 | BB46: 0 | BC46: 0 | BD46: 0 | BE46: 3 | BF46: 4 | BG46: 5 | BH46: 8 | BI46: 9 | BJ46: 1 | BK46: 0 | BL46: 0 | BM46: 0 | BN46: 0 | BO46: 0 | BP46: 0 | BQ46: 0 | BR46: 0 | BS46: 0 | BT46: 0 | BU46: 0 | BV46: 0 | BW46: 0 | BX46: 0 | BY46: 0 | BZ46: 0 | CA46: 25.4 | CB46: 31.77 | CC46: Tue | CD46: 1700 | CE46: 0 | CF46: 0 | CG46: 42 | CH46: 24 | CI46: 0 | CJ46: 0 | CK46: 0 | CL46: 0 | CM46: 0 | CN46: 0 | CO46: 0 | CP46: 0 | CQ46: 0 | CR46: 0 | CS46: 5 | CT46: 9 | CU46: 14 | CV46: 21 | CW46: 13 | CX46: 1 | CY46: 0 | CZ46: 0 | DA46: 0 | DB46: 0 | DC46: 0 | DD46: 0 | DE46: 0 | DF46: 0 | DG46: 0 | DH46: 0 | DI46: 0 | DJ46: 0 | DK46: 0 | DL46: 0 | DM46: 0 | DN46: 0 | DO46: 24.33 | DP46: 31.11 | DQ46: 0 | DR46: 0 | DS46: 23 | DT46: 13 | DU46: 0 | DV46: 0 | DW46: 0 | DX46: 0 | DY46: 0 | DZ46: 0 | EA46: 0 | EB46: 0 | EC46: 36 | ED46: 0 | EE46: 0 | EF46: 19 | EG46: 11 | EH46: 0 | EI46: 0 | EJ46: 0 | EK46: 0 | EL46: 0 | EM46: 0 | EN46: 0 | EO46: 0 | EP46: 30 | EQ46: 0 | ER46: 0 | ES46: 42 | ET46: 24 | EU46: 0 | EV46: 0 | EW46: 0 | EX46: 0 | EY46: 0 | EZ46: 0 | FA46: 0 | FB46: 0 | FC46: 66 | FE46: 1 | FF46: Tue | FH46: 24.77 | FI46: 23.68 | FJ46: 29.67 | FR46: 26.08 | FS46: 24.84 | FT46: 30.84 | GB46: 25.33 | GC46: 24.3 | GD46: 30.44
A47: Tue | B47: 1800 | C47: 0 | D47: 0 | E47: 18 | F47: 9 | G47: 0 | H47: 0 | I47: 0 | J47: 0 | K47: 0 | L47: 0 | M47: 0 | N47: 0 | O47: 0 | P47: 1 | Q47: 4 | R47: 6 | S47: 4 | T47: 7 | U47: 4 | V47: 1 | W47: 0 | X47: 0 | Y47: 0 | Z47: 0 | AA47: 0 | AB47: 0 | AC47: 0 | AD47: 0 | AE47: 0 | AF47: 0 | AG47: 0 | AH47: 0 | AI47: 0 | AJ47: 0 | AK47: 0 | AL47: 0 | AM47: 22.6 | AN47: 30.26 | AO47: Tue | AP47: 1800 | AQ47: 0 | AR47: 3 | AS47: 12 | AT47: 9 | AU47: 0 | AV47: 0 | AW47: 0 | AX47: 0 | AY47: 0 | AZ47: 0 | BA47: 0 | BB47: 0 | BC47: 0 | BD47: 2 | BE47: 2 | BF47: 3 | BG47: 10 | BH47: 4 | BI47: 3 | BJ47: 0 | BK47: 0 | BL47: 0 | BM47: 0 | BN47: 0 | BO47: 0 | BP47: 0 | BQ47: 0 | BR47: 0 | BS47: 0 | BT47: 0 | BU47: 0 | BV47: 0 | BW47: 0 | BX47: 0 | BY47: 0 | BZ47: 0 | CA47: 22.3 | CB47: 28.45 | CC47: Tue | CD47: 1800 | CE47: 0 | CF47: 3 | CG47: 30 | CH47: 18 | CI47: 0 | CJ47: 0 | CK47: 0 | CL47: 0 | CM47: 0 | CN47: 0 | CO47: 0 | CP47: 0 | CQ47: 0 | CR47: 1 | CS47: 4 | CT47: 9 | CU47: 14 | CV47: 11 | CW47: 7 | CX47: 1 | CY47: 0 | CZ47: 0 | DA47: 0 | DB47: 0 | DC47: 0 | DD47: 0 | DE47: 0 | DF47: 0 | DG47: 0 | DH47: 0 | DI47: 0 | DJ47: 0 | DK47: 0 | DL47: 0 | DM47: 0 | DN47: 0 | DO47: 22.45 | DP47: 29.98 | DQ47: 0 | DR47: 0 | DS47: 18 | DT47: 9 | DU47: 0 | DV47: 0 | DW47: 0 | DX47: 0 | DY47: 0 | DZ47: 0 | EA47: 0 | EB47: 0 | EC47: 27 | ED47: 0 | EE47: 3 | EF47: 12 | EG47: 9 | EH47: 0 | EI47: 0 | EJ47: 0 | EK47: 0 | EL47: 0 | EM47: 0 | EN47: 0 | EO47: 0 | EP47: 24 | EQ47: 0 | ER47: 3 | ES47: 30 | ET47: 18 | EU47: 0 | EV47: 0 | EW47: 0 | EX47: 0 | EY47: 0 | EZ47: 0 | FA47: 0 | FB47: 0 | FC47: 51 | FE47: 2 | FF47: Wed | FH47: 23.57 | FI47: 23.6 | FJ47: 28.81 | FR47: 26.25 | FS47: 25.57 | FT47: 31.69 | GB47: 25.06 | GC47: 24.65 | GD47: 30.97
A48: Tue | B48: 1900 | C48: 0 | D48: 2 | E48: 4 | F48: 8 | G48: 0 | H48: 0 | I48: 0 | J48: 0 | K48: 0 | L48: 0 | M48: 0 | N48: 0 | O48: 0 | P48: 0 | Q48: 2 | R48: 1 | S48: 5 | T48: 3 | U48: 2 | V48: 1 | W48: 0 | X48: 0 | Y48: 0 | Z48: 0 | AA48: 0 | AB48: 0 | AC48: 0 | AD48: 0 | AE48: 0 | AF48: 0 | AG48: 0 | AH48: 0 | AI48: 0 | AJ48: 0 | AK48: 0 | AL48: 0 | AM48: 23.91 | AN48: 30.45 | AO48: Tue | AP48: 1900 | AQ48: 0 | AR48: 0 | AS48: 6 | AT48: 3 | AU48: 0 | AV48: 0 | AW48: 0 | AX48: 0 | AY48: 0 | AZ48: 0 | BA48: 0 | BB48: 0 | BC48: 0 | BD48: 1 | BE48: 1 | BF48: 0 | BG48: 3 | BH48: 2 | BI48: 1 | BJ48: 0 | BK48: 0 | BL48: 1 | BM48: 0 | BN48: 0 | BO48: 0 | BP48: 0 | BQ48: 0 | BR48: 0 | BS48: 0 | BT48: 0 | BU48: 0 | BV48: 0 | BW48: 0 | BX48: 0 | BY48: 0 | BZ48: 0 | CA48: 24.69 | CB48: - | CC48: Tue | CD48: 1900 | CE48: 0 | CF48: 2 | CG48: 10 | CH48: 11 | CI48: 0 | CJ48: 0 | CK48: 0 | CL48: 0 | CM48: 0 | CN48: 0 | CO48: 0 | CP48: 0 | CQ48: 0 | CR48: 0 | CS48: 2 | CT48: 1 | CU48: 8 | CV48: 5 | CW48: 3 | CX48: 1 | CY48: 0 | CZ48: 1 | DA48: 0 | DB48: 0 | DC48: 0 | DD48: 0 | DE48: 0 | DF48: 0 | DG48: 0 | DH48: 0 | DI48: 0 | DJ48: 0 | DK48: 0 | DL48: 0 | DM48: 0 | DN48: 0 | DO48: 24.21 | DP48: 30.5 | DQ48: 0 | DR48: 2 | DS48: 4 | DT48: 8 | DU48: 0 | DV48: 0 | DW48: 0 | DX48: 0 | DY48: 0 | DZ48: 0 | EA48: 0 | EB48: 0 | EC48: 14 | ED48: 0 | EE48: 0 | EF48: 6 | EG48: 3 | EH48: 0 | EI48: 0 | EJ48: 0 | EK48: 0 | EL48: 0 | EM48: 0 | EN48: 0 | EO48: 0 | EP48: 9 | EQ48: 0 | ER48: 2 | ES48: 10 | ET48: 11 | EU48: 0 | EV48: 0 | EW48: 0 | EX48: 0 | EY48: 0 | EZ48: 0 | FA48: 0 | FB48: 0 | FC48: 23 | FE48: 3 | FF48: Thu | FH48: 23.34 | FI48: 22.91 | FJ48: 28.81 | FR48: 24.35 | FS48: 23.29 | FT48: 29.84 | GB48: 23.99 | GC48: 23.11 | GD48: 29.46
A49: Tue | B49: 2000 | C49: 0 | D49: 0 | E49: 5 | F49: 1 | G49: 0 | H49: 0 | I49: 0 | J49: 0 | K49: 0 | L49: 0 | M49: 0 | N49: 0 | O49: 0 | P49: 0 | Q49: 0 | R49: 1 | S49: 2 | T49: 2 | U49: 1 | V49: 0 | W49: 0 | X49: 0 | Y49: 0 | Z49: 0 | AA49: 0 | AB49: 0 | AC49: 0 | AD49: 0 | AE49: 0 | AF49: 0 | AG49: 0 | AH49: 0 | AI49: 0 | AJ49: 0 | AK49: 0 | AL49: 0 | AM49: 25.13 | AN49: - | AO49: Tue | AP49: 2000 | AQ49: 0 | AR49: 0 | AS49: 3 | AT49: 3 | AU49: 1 | AV49: 0 | AW49: 0 | AX49: 0 | AY49: 0 | AZ49: 0 | BA49: 0 | BB49: 0 | BC49: 0 | BD49: 0 | BE49: 0 | BF49: 1 | BG49: 2 | BH49: 1 | BI49: 2 | BJ49: 1 | BK49: 0 | BL49: 0 | BM49: 0 | BN49: 0 | BO49: 0 | BP49: 0 | BQ49: 0 | BR49: 0 | BS49: 0 | BT49: 0 | BU49: 0 | BV49: 0 | BW49: 0 | BX49: 0 | BY49: 0 | BZ49: 0 | CA49: 27.09 | CB49: - | CC49: Tue | CD49: 2000 | CE49: 0 | CF49: 0 | CG49: 8 | CH49: 4 | CI49: 1 | CJ49: 0 | CK49: 0 | CL49: 0 | CM49: 0 | CN49: 0 | CO49: 0 | CP49: 0 | CQ49: 0 | CR49: 0 | CS49: 0 | CT49: 2 | CU49: 4 | CV49: 3 | CW49: 3 | CX49: 1 | CY49: 0 | CZ49: 0 | DA49: 0 | DB49: 0 | DC49: 0 | DD49: 0 | DE49: 0 | DF49: 0 | DG49: 0 | DH49: 0 | DI49: 0 | DJ49: 0 | DK49: 0 | DL49: 0 | DM49: 0 | DN49: 0 | DO49: 26.18 | DP49: 32.81 | DQ49: 0 | DR49: 0 | DS49: 5 | DT49: 1 | DU49: 0 | DV49: 0 | DW49: 0 | DX49: 0 | DY49: 0 | DZ49: 0 | EA49: 0 | EB49: 0 | EC49: 6 | ED49: 0 | EE49: 0 | EF49: 3 | EG49: 3 | EH49: 1 | EI49: 0 | EJ49: 0 | EK49: 0 | EL49: 0 | EM49: 0 | EN49: 0 | EO49: 0 | EP49: 7 | EQ49: 0 | ER49: 0 | ES49: 8 | ET49: 4 | EU49: 1 | EV49: 0 | EW49: 0 | EX49: 0 | EY49: 0 | EZ49: 0 | FA49: 0 | FB49: 0 | FC49: 13 | FE49: 4 | FF49: Fri | FH49: 24.53 | FI49: 24.04 | FJ49: 29.84 | FR49: 25.86 | FS49: 25.27 | FT49: 31.86 | GB49: 25.24 | GC49: 24.7 | GD49: 30.89
A50: Tue | B50: 2100 | C50: 0 | D50: 1 | E50: 1 | F50: 3 | G50: 0 | H50: 0 | I50: 0 | J50: 0 | K50: 0 | L50: 0 | M50: 0 | N50: 0 | O50: 0 | P50: 0 | Q50: 0 | R50: 0 | S50: 1 | T50: 2 | U50: 2 | V50: 0 | W50: 0 | X50: 0 | Y50: 0 | Z50: 0 | AA50: 0 | AB50: 0 | AC50: 0 | AD50: 0 | AE50: 0 | AF50: 0 | AG50: 0 | AH50: 0 | AI50: 0 | AJ50: 0 | AK50: 0 | AL50: 0 | AM50: 28.17 | AN50: - | AO50: Tue | AP50: 2100 | AQ50: 0 | AR50: 0 | AS50: 0 | AT50: 1 | AU50: 0 | AV50: 0 | AW50: 0 | AX50: 0 | AY50: 0 | AZ50: 0 | BA50: 0 | BB50: 0 | BC50: 0 | BD50: 0 | BE50: 0 | BF50: 0 | BG50: 0 | BH50: 0 | BI50: 0 | BJ50: 0 | BK50: 1 | BL50: 0 | BM50: 0 | BN50: 0 | BO50: 0 | BP50: 0 | BQ50: 0 | BR50: 0 | BS50: 0 | BT50: 0 | BU50: 0 | BV50: 0 | BW50: 0 | BX50: 0 | BY50: 0 | BZ50: 0 | CA50: 41.1 | CB50: - | CC50: Tue | CD50: 2100 | CE50: 0 | CF50: 1 | CG50: 1 | CH50: 4 | CI50: 0 | CJ50: 0 | CK50: 0 | CL50: 0 | CM50: 0 | CN50: 0 | CO50: 0 | CP50: 0 | CQ50: 0 | CR50: 0 | CS50: 0 | CT50: 0 | CU50: 1 | CV50: 2 | CW50: 2 | CX50: 0 | CY50: 1 | CZ50: 0 | DA50: 0 | DB50: 0 | DC50: 0 | DD50: 0 | DE50: 0 | DF50: 0 | DG50: 0 | DH50: 0 | DI50: 0 | DJ50: 0 | DK50: 0 | DL50: 0 | DM50: 0 | DN50: 0 | DO50: 30.32 | DP50: - | DQ50: 0 | DR50: 1 | DS50: 1 | DT50: 3 | DU50: 0 | DV50: 0 | DW50: 0 | DX50: 0 | DY50: 0 | DZ50: 0 | EA50: 0 | EB50: 0 | EC50: 5 | ED50: 0 | EE50: 0 | EF50: 0 | EG50: 1 | EH50: 0 | EI50: 0 | EJ50: 0 | EK50: 0 | EL50: 0 | EM50: 0 | EN50: 0 | EO50: 0 | EP50: 1 | EQ50: 0 | ER50: 1 | ES50: 1 | ET50: 4 | EU50: 0 | EV50: 0 | EW50: 0 | EX50: 0 | EY50: 0 | EZ50: 0 | FA50: 0 | FB50: 0 | FC50: 6 | FE50: 5 | FF50: Sat | FH50: 24.26 | FI50: 23.85 | FJ50: 29.43 | FR50: 25.21 | FS50: 24.53 | FT50: 30.96 | GB50: 24.64 | GC50: 24.2 | GD50: 30.19
A51: Tue | B51: 2200 | C51: 0 | D51: 0 | E51: 2 | F51: 4 | G51: 0 | H51: 0 | I51: 0 | J51: 0 | K51: 0 | L51: 0 | M51: 0 | N51: 0 | O51: 0 | P51: 0 | Q51: 0 | R51: 1 | S51: 1 | T51: 3 | U51: 1 | V51: 0 | W51: 0 | X51: 0 | Y51: 0 | Z51: 0 | AA51: 0 | AB51: 0 | AC51: 0 | AD51: 0 | AE51: 0 | AF51: 0 | AG51: 0 | AH51: 0 | AI51: 0 | AJ51: 0 | AK51: 0 | AL51: 0 | AM51: 26.38 | AN51: - | AO51: Tue | AP51: 2200 | AQ51: 0 | AR51: 0 | AS51: 2 | AT51: 0 | AU51: 0 | AV51: 0 | AW51: 0 | AX51: 0 | AY51: 0 | AZ51: 0 | BA51: 0 | BB51: 0 | BC51: 0 | BD51: 0 | BE51: 0 | BF51: 0 | BG51: 1 | BH51: 0 | BI51: 1 | BJ51: 0 | BK51: 0 | BL51: 0 | BM51: 0 | BN51: 0 | BO51: 0 | BP51: 0 | BQ51: 0 | BR51: 0 | BS51: 0 | BT51: 0 | BU51: 0 | BV51: 0 | BW51: 0 | BX51: 0 | BY51: 0 | BZ51: 0 | CA51: 28.9 | CB51: - | CC51: Tue | CD51: 2200 | CE51: 0 | CF51: 0 | CG51: 4 | CH51: 4 | CI51: 0 | CJ51: 0 | CK51: 0 | CL51: 0 | CM51: 0 | CN51: 0 | CO51: 0 | CP51: 0 | CQ51: 0 | CR51: 0 | CS51: 0 | CT51: 1 | CU51: 2 | CV51: 3 | CW51: 2 | CX51: 0 | CY51: 0 | CZ51: 0 | DA51: 0 | DB51: 0 | DC51: 0 | DD51: 0 | DE51: 0 | DF51: 0 | DG51: 0 | DH51: 0 | DI51: 0 | DJ51: 0 | DK51: 0 | DL51: 0 | DM51: 0 | DN51: 0 | DO51: 27.01 | DP51: - | DQ51: 0 | DR51: 0 | DS51: 2 | DT51: 4 | DU51: 0 | DV51: 0 | DW51: 0 | DX51: 0 | DY51: 0 | DZ51: 0 | EA51: 0 | EB51: 0 | EC51: 6 | ED51: 0 | EE51: 0 | EF51: 2 | EG51: 0 | EH51: 0 | EI51: 0 | EJ51: 0 | EK51: 0 | EL51: 0 | EM51: 0 | EN51: 0 | EO51: 0 | EP51: 2 | EQ51: 0 | ER51: 0 | ES51: 4 | ET51: 4 | EU51: 0 | EV51: 0 | EW51: 0 | EX51: 0 | EY51: 0 | EZ51: 0 | FA51: 0 | FB51: 0 | FC51: 8 | FE51: 6 | FF51: Sun | FH51: 23.31 | FI51: 22.55 | FJ51: 27.65 | FR51: 24.87 | FS51: 24.57 | FT51: 30.61 | GB51: 24.03 | GC51: 23.61 | GD51: 29.67
A52: Tue | B52: 2300 | C52: 0 | D52: 0 | E52: 1 | F52: 0 | G52: 0 | H52: 0 | I52: 0 | J52: 0 | K52: 0 | L52: 0 | M52: 0 | N52: 0 | O52: 0 | P52: 0 | Q52: 0 | R52: 0 | S52: 1 | T52: 0 | U52: 0 | V52: 0 | W52: 0 | X52: 0 | Y52: 0 | Z52: 0 | AA52: 0 | AB52: 0 | AC52: 0 | AD52: 0 | AE52: 0 | AF52: 0 | AG52: 0 | AH52: 0 | AI52: 0 | AJ52: 0 | AK52: 0 | AL52: 0 | AM52: 24.4 | AN52: - | AO52: Tue | AP52: 2300 | AQ52: 0 | AR52: 0 | AS52: 0 | AT52: 0 | AU52: 0 | AV52: 0 | AW52: 0 | AX52: 0 | AY52: 0 | AZ52: 0 | BA52: 0 | BB52: 0 | BC52: 0 | BD52: 0 | BE52: 0 | BF52: 0 | BG52: 0 | BH52: 0 | BI52: 0 | BJ52: 0 | BK52: 0 | BL52: 0 | BM52: 0 | BN52: 0 | BO52: 0 | BP52: 0 | BQ52: 0 | BR52: 0 | BS52: 0 | BT52: 0 | BU52: 0 | BV52: 0 | BW52: 0 | BX52: 0 | BY52: 0 | BZ52: 0 | CA52: - | CB52: - | CC52: Tue | CD52: 2300 | CE52: 0 | CF52: 0 | CG52: 1 | CH52: 0 | CI52: 0 | CJ52: 0 | CK52: 0 | CL52: 0 | CM52: 0 | CN52: 0 | CO52: 0 | CP52: 0 | CQ52: 0 | CR52: 0 | CS52: 0 | CT52: 0 | CU52: 1 | CV52: 0 | CW52: 0 | CX52: 0 | CY52: 0 | CZ52: 0 | DA52: 0 | DB52: 0 | DC52: 0 | DD52: 0 | DE52: 0 | DF52: 0 | DG52: 0 | DH52: 0 | DI52: 0 | DJ52: 0 | DK52: 0 | DL52: 0 | DM52: 0 | DN52: 0 | DO52: 24.4 | DP52: - | DQ52: 0 | DR52: 0 | DS52: 1 | DT52: 0 | DU52: 0 | DV52: 0 | DW52: 0 | DX52: 0 | DY52: 0 | DZ52: 0 | EA52: 0 | EB52: 0 | EC52: 1 | ED52: 0 | EE52: 0 | EF52: 0 | EG52: 0 | EH52: 0 | EI52: 0 | EJ52: 0 | EK52: 0 | EL52: 0 | EM52: 0 | EN52: 0 | EO52: 0 | EP52: 0 | EQ52: 0 | ER52: 0 | ES52: 1 | ET52: 0 | EU52: 0 | EV52: 0 | EW52: 0 | EX52: 0 | EY52: 0 | EZ52: 0 | FA52: 0 | FB52: 0 | FC52: 1 | FF52: Weekday | FH52: 23.9 | FI52: 23.41 | FJ52: 29.08 | FR52: 25.55 | FS52: 24.69 | FT52: 30.93 | GB52: 24.78 | GC52: 24.1 | GD52: 30.19
A53: Wed | B53: 0 | C53: 0 | D53: 0 | E53: 2 | F53: 0 | G53: 0 | H53: 0 | I53: 0 | J53: 0 | K53: 0 | L53: 0 | M53: 0 | N53: 0 | O53: 0 | P53: 0 | Q53: 0 | R53: 1 | S53: 0 | T53: 0 | U53: 1 | V53: 0 | W53: 0 | X53: 0 | Y53: 0 | Z53: 0 | AA53: 0 | AB53: 0 | AC53: 0 | AD53: 0 | AE53: 0 | AF53: 0 | AG53: 0 | AH53: 0 | AI53: 0 | AJ53: 0 | AK53: 0 | AL53: 0 | AM53: 23.93 | AN53: - | AO53: Wed | AP53: 0 | AQ53: 0 | AR53: 0 | AS53: 1 | AT53: 0 | AU53: 0 | AV53: 0 | AW53: 0 | AX53: 0 | AY53: 0 | AZ53: 0 | BA53: 0 | BB53: 0 | BC53: 0 | BD53: 0 | BE53: 1 | BF53: 0 | BG53: 0 | BH53: 0 | BI53: 0 | BJ53: 0 | BK53: 0 | BL53: 0 | BM53: 0 | BN53: 0 | BO53: 0 | BP53: 0 | BQ53: 0 | BR53: 0 | BS53: 0 | BT53: 0 | BU53: 0 | BV53: 0 | BW53: 0 | BX53: 0 | BY53: 0 | BZ53: 0 | CA53: 10.58 | CB53: - | CC53: Wed | CD53: 0 | CE53: 0 | CF53: 0 | CG53: 3 | CH53: 0 | CI53: 0 | CJ53: 0 | CK53: 0 | CL53: 0 | CM53: 0 | CN53: 0 | CO53: 0 | CP53: 0 | CQ53: 0 | CR53: 0 | CS53: 0 | CT53: 1 | CU53: 0 | CV53: 0 | CW53: 1 | CX53: 0 | CY53: 0 | CZ53: 0 | DA53: 0 | DB53: 0 | DC53: 0 | DD53: 0 | DE53: 0 | DF53: 0 | DG53: 0 | DH53: 0 | DI53: 0 | DJ53: 0 | DK53: 0 | DL53: 0 | DM53: 0 | DN53: 0 | DO53: 19.48 | DP53: - | DQ53: 0 | DR53: 0 | DS53: 2 | DT53: 0 | DU53: 0 | DV53: 0 | DW53: 0 | DX53: 0 | DY53: 0 | DZ53: 0 | EA53: 0 | EB53: 0 | EC53: 2 | ED53: 0 | EE53: 0 | EF53: 1 | EG53: 0 | EH53: 0 | EI53: 0 | EJ53: 0 | EK53: 0 | EL53: 0 | EM53: 0 | EN53: 0 | EO53: 0 | EP53: 1 | EQ53: 0 | ER53: 0 | ES53: 3 | ET53: 0 | EU53: 0 | EV53: 0 | EW53: 0 | EX53: 0 | EY53: 0 | EZ53: 0 | FA53: 0 | FB53: 0 | FC53: 3 | FF53: 7 day | FH53: 23.88 | FI53: 23.39 | FJ53: 29.03 | FR53: 25.46 | FS53: 24.66 | FT53: 30.92 | GB53: 24.7 | GC53: 24.06 | GD53: 30.13
A54: Wed | B54: 100 | C54: 0 | D54: 0 | E54: 0 | F54: 0 | G54: 0 | H54: 0 | I54: 0 | J54: 0 | K54: 0 | L54: 0 | M54: 0 | N54: 0 | O54: 0 | P54: 0 | Q54: 0 | R54: 0 | S54: 0 | T54: 0 | U54: 0 | V54: 0 | W54: 0 | X54: 0 | Y54: 0 | Z54: 0 | AA54: 0 | AB54: 0 | AC54: 0 | AD54: 0 | AE54: 0 | AF54: 0 | AG54: 0 | AH54: 0 | AI54: 0 | AJ54: 0 | AK54: 0 | AL54: 0 | AM54: - | AN54: - | AO54: Wed | AP54: 100 | AQ54: 0 | AR54: 0 | AS54: 0 | AT54: 0 | AU54: 0 | AV54: 0 | AW54: 0 | AX54: 0 | AY54: 0 | AZ54: 0 | BA54: 0 | BB54: 0 | BC54: 0 | BD54: 0 | BE54: 0 | BF54: 0 | BG54: 0 | BH54: 0 | BI54: 0 | BJ54: 0 | BK54: 0 | BL54: 0 | BM54: 0 | BN54: 0 | BO54: 0 | BP54: 0 | BQ54: 0 | BR54: 0 | BS54: 0 | BT54: 0 | BU54: 0 | BV54: 0 | BW54: 0 | BX54: 0 | BY54: 0 | BZ54: 0 | CA54: - | CB54: - | CC54: Wed | CD54: 100 | CE54: 0 | CF54: 0 | CG54: 0 | CH54: 0 | CI54: 0 | CJ54: 0 | CK54: 0 | CL54: 0 | CM54: 0 | CN54: 0 | CO54: 0 | CP54: 0 | CQ54: 0 | CR54: 0 | CS54: 0 | CT54: 0 | CU54: 0 | CV54: 0 | CW54: 0 | CX54: 0 | CY54: 0 | CZ54: 0 | DA54: 0 | DB54: 0 | DC54: 0 | DD54: 0 | DE54: 0 | DF54: 0 | DG54: 0 | DH54: 0 | DI54: 0 | DJ54: 0 | DK54: 0 | DL54: 0 | DM54: 0 | DN54: 0 | DO54: - | DP54: - | DQ54: 0 | DR54: 0 | DS54: 0 | DT54: 0 | DU54: 0 | DV54: 0 | DW54: 0 | DX54: 0 | DY54: 0 | DZ54: 0 | EA54: 0 | EB54: 0 | EC54: 0 | ED54: 0 | EE54: 0 | EF54: 0 | EG54: 0 | EH54: 0 | EI54: 0 | EJ54: 0 | EK54: 0 | EL54: 0 | EM54: 0 | EN54: 0 | EO54: 0 | EP54: 0 | EQ54: 0 | ER54: 0 | ES54: 0 | ET54: 0 | EU54: 0 | EV54: 0 | EW54: 0 | EX54: 0 | EY54: 0 | EZ54: 0 | FA54: 0 | FB54: 0 | FC54: 0
A55: Wed | B55: 200 | C55: 0 | D55: 0 | E55: 0 | F55: 1 | G55: 0 | H55: 0 | I55: 0 | J55: 0 | K55: 0 | L55: 0 | M55: 0 | N55: 0 | O55: 0 | P55: 0 | Q55: 0 | R55: 0 | S55: 1 | T55: 0 | U55: 0 | V55: 0 | W55: 0 | X55: 0 | Y55: 0 | Z55: 0 | AA55: 0 | AB55: 0 | AC55: 0 | AD55: 0 | AE55: 0 | AF55: 0 | AG55: 0 | AH55: 0 | AI55: 0 | AJ55: 0 | AK55: 0 | AL55: 0 | AM55: 23.85 | AN55: - | AO55: Wed | AP55: 200 | AQ55: 0 | AR55: 0 | AS55: 0 | AT55: 1 | AU55: 0 | AV55: 0 | AW55: 0 | AX55: 0 | AY55: 0 | AZ55: 0 | BA55: 0 | BB55: 0 | BC55: 0 | BD55: 0 | BE55: 0 | BF55: 0 | BG55: 1 | BH55: 0 | BI55: 0 | BJ55: 0 | BK55: 0 | BL55: 0 | BM55: 0 | BN55: 0 | BO55: 0 | BP55: 0 | BQ55: 0 | BR55: 0 | BS55: 0 | BT55: 0 | BU55: 0 | BV55: 0 | BW55: 0 | BX55: 0 | BY55: 0 | BZ55: 0 | CA55: 23.88 | CB55: - | CC55: Wed | CD55: 200 | CE55: 0 | CF55: 0 | CG55: 0 | CH55: 2 | CI55: 0 | CJ55: 0 | CK55: 0 | CL55: 0 | CM55: 0 | CN55: 0 | CO55: 0 | CP55: 0 | CQ55: 0 | CR55: 0 | CS55: 0 | CT55: 0 | CU55: 2 | CV55: 0 | CW55: 0 | CX55: 0 | CY55: 0 | CZ55: 0 | DA55: 0 | DB55: 0 | DC55: 0 | DD55: 0 | DE55: 0 | DF55: 0 | DG55: 0 | DH55: 0 | DI55: 0 | DJ55: 0 | DK55: 0 | DL55: 0 | DM55: 0 | DN55: 0 | DO55: 23.87 | DP55: - | DQ55: 0 | DR55: 0 | DS55: 0 | DT55: 1 | DU55: 0 | DV55: 0 | DW55: 0 | DX55: 0 | DY55: 0 | DZ55: 0 | EA55: 0 | EB55: 0 | EC55: 1 | ED55: 0 | EE55: 0 | EF55: 0 | EG55: 1 | EH55: 0 | EI55: 0 | EJ55: 0 | EK55: 0 | EL55: 0 | EM55: 0 | EN55: 0 | EO55: 0 | EP55: 1 | EQ55: 0 | ER55: 0 | ES55: 0 | ET55: 2 | EU55: 0 | EV55: 0 | EW55: 0 | EX55: 0 | EY55: 0 | EZ55: 0 | FA55: 0 | FB55: 0 | FC55: 2
A56: Wed | B56: 300 | C56: 0 | D56: 0 | E56: 0 | F56: 0 | G56: 0 | H56: 0 | I56: 0 | J56: 0 | K56: 0 | L56: 0 | M56: 0 | N56: 0 | O56: 0 | P56: 0 | Q56: 0 | R56: 0 | S56: 0 | T56: 0 | U56: 0 | V56: 0 | W56: 0 | X56: 0 | Y56: 0 | Z56: 0 | AA56: 0 | AB56: 0 | AC56: 0 | AD56: 0 | AE56: 0 | AF56: 0 | AG56: 0 | AH56: 0 | AI56: 0 | AJ56: 0 | AK56: 0 | AL56: 0 | AM56: - | AN56: - | AO56: Wed | AP56: 300 | AQ56: 0 | AR56: 0 | AS56: 0 | AT56: 2 | AU56: 0 | AV56: 0 | AW56: 0 | AX56: 0 | AY56: 0 | AZ56: 0 | BA56: 0 | BB56: 0 | BC56: 0 | BD56: 0 | BE56: 0 | BF56: 0 | BG56: 0 | BH56: 2 | BI56: 0 | BJ56: 0 | BK56: 0 | BL56: 0 | BM56: 0 | BN56: 0 | BO56: 0 | BP56: 0 | BQ56: 0 | BR56: 0 | BS56: 0 | BT56: 0 | BU56: 0 | BV56: 0 | BW56: 0 | BX56: 0 | BY56: 0 | BZ56: 0 | CA56: 27.1 | CB56: - | CC56: Wed | CD56: 300 | CE56: 0 | CF56: 0 | CG56: 0 | CH56: 2 | CI56: 0 | CJ56: 0 | CK56: 0 | CL56: 0 | CM56: 0 | CN56: 0 | CO56: 0 | CP56: 0 | CQ56: 0 | CR56: 0 | CS56: 0 | CT56: 0 | CU56: 0 | CV56: 2 | CW56: 0 | CX56: 0 | CY56: 0 | CZ56: 0 | DA56: 0 | DB56: 0 | DC56: 0 | DD56: 0 | DE56: 0 | DF56: 0 | DG56: 0 | DH56: 0 | DI56: 0 | DJ56: 0 | DK56: 0 | DL56: 0 | DM56: 0 | DN56: 0 | DO56: 27.1 | DP56: - | DQ56: 0 | DR56: 0 | DS56: 0 | DT56: 0 | DU56: 0 | DV56: 0 | DW56: 0 | DX56: 0 | DY56: 0 | DZ56: 0 | EA56: 0 | EB56: 0 | EC56: 0 | ED56: 0 | EE56: 0 | EF56: 0 | EG56: 2 | EH56: 0 | EI56: 0 | EJ56: 0 | EK56: 0 | EL56: 0 | EM56: 0 | EN56: 0 | EO56: 0 | EP56: 2 | EQ56: 0 | ER56: 0 | ES56: 0 | ET56: 2 | EU56: 0 | EV56: 0 | EW56: 0 | EX56: 0 | EY56: 0 | EZ56: 0 | FA56: 0 | FB56: 0 | FC56: 2
A57: Wed | B57: 400 | C57: 0 | D57: 0 | E57: 0 | F57: 0 | G57: 0 | H57: 0 | I57: 0 | J57: 0 | K57: 0 | L57: 0 | M57: 0 | N57: 0 | O57: 0 | P57: 0 | Q57: 0 | R57: 0 | S57: 0 | T57: 0 | U57: 0 | V57: 0 | W57: 0 | X57: 0 | Y57: 0 | Z57: 0 | AA57: 0 | AB57: 0 | AC57: 0 | AD57: 0 | AE57: 0 | AF57: 0 | AG57: 0 | AH57: 0 | AI57: 0 | AJ57: 0 | AK57: 0 | AL57: 0 | AM57: - | AN57: - | AO57: Wed | AP57: 400 | AQ57: 0 | AR57: 0 | AS57: 2 | AT57: 1 | AU57: 0 | AV57: 0 | AW57: 0 | AX57: 0 | AY57: 0 | AZ57: 0 | BA57: 0 | BB57: 0 | BC57: 0 | BD57: 0 | BE57: 0 | BF57: 1 | BG57: 1 | BH57: 1 | BI57: 0 | BJ57: 0 | BK57: 0 | BL57: 0 | BM57: 0 | BN57: 0 | BO57: 0 | BP57: 0 | BQ57: 0 | BR57: 0 | BS57: 0 | BT57: 0 | BU57: 0 | BV57: 0 | BW57: 0 | BX57: 0 | BY57: 0 | BZ57: 0 | CA57: 23.39 | CB57: - | CC57: Wed | CD57: 400 | CE57: 0 | CF57: 0 | CG57: 2 | CH57: 1 | CI57: 0 | CJ57: 0 | CK57: 0 | CL57: 0 | CM57: 0 | CN57: 0 | CO57: 0 | CP57: 0 | CQ57: 0 | CR57: 0 | CS57: 0 | CT57: 1 | CU57: 1 | CV57: 1 | CW57: 0 | CX57: 0 | CY57: 0 | CZ57: 0 | DA57: 0 | DB57: 0 | DC57: 0 | DD57: 0 | DE57: 0 | DF57: 0 | DG57: 0 | DH57: 0 | DI57: 0 | DJ57: 0 | DK57: 0 | DL57: 0 | DM57: 0 | DN57: 0 | DO57: 23.39 | DP57: - | DQ57: 0 | DR57: 0 | DS57: 0 | DT57: 0 | DU57: 0 | DV57: 0 | DW57: 0 | DX57: 0 | DY57: 0 | DZ57: 0 | EA57: 0 | EB57: 0 | EC57: 0 | ED57: 0 | EE57: 0 | EF57: 2 | EG57: 1 | EH57: 0 | EI57: 0 | EJ57: 0 | EK57: 0 | EL57: 0 | EM57: 0 | EN57: 0 | EO57: 0 | EP57: 3 | EQ57: 0 | ER57: 0 | ES57: 2 | ET57: 1 | EU57: 0 | EV57: 0 | EW57: 0 | EX57: 0 | EY57: 0 | EZ57: 0 | FA57: 0 | FB57: 0 | FC57: 3
A58: Wed | B58: 500 | C58: 0 | D58: 0 | E58: 1 | F58: 1 | G58: 0 | H58: 0 | I58: 0 | J58: 0 | K58: 0 | L58: 0 | M58: 0 | N58: 0 | O58: 0 | P58: 0 | Q58: 0 | R58: 1 | S58: 0 | T58: 0 | U58: 1 | V58: 0 | W58: 0 | X58: 0 | Y58: 0 | Z58: 0 | AA58: 0 | AB58: 0 | AC58: 0 | AD58: 0 | AE58: 0 | AF58: 0 | AG58: 0 | AH58: 0 | AI58: 0 | AJ58: 0 | AK58: 0 | AL58: 0 | AM58: 23.91 | AN58: - | AO58: Wed | AP58: 500 | AQ58: 0 | AR58: 0 | AS58: 3 | AT58: 6 | AU58: 0 | AV58: 0 | AW58: 0 | AX58: 0 | AY58: 0 | AZ58: 0 | BA58: 0 | BB58: 0 | BC58: 0 | BD58: 0 | BE58: 1 | BF58: 0 | BG58: 2 | BH58: 4 | BI58: 1 | BJ58: 1 | BK58: 0 | BL58: 0 | BM58: 0 | BN58: 0 | BO58: 0 | BP58: 0 | BQ58: 0 | BR58: 0 | BS58: 0 | BT58: 0 | BU58: 0 | BV58: 0 | BW58: 0 | BX58: 0 | BY58: 0 | BZ58: 0 | CA58: 26.29 | CB58: - | CC58: Wed | CD58: 500 | CE58: 0 | CF58: 0 | CG58: 4 | CH58: 7 | CI58: 0 | CJ58: 0 | CK58: 0 | CL58: 0 | CM58: 0 | CN58: 0 | CO58: 0 | CP58: 0 | CQ58: 0 | CR58: 0 | CS58: 0 | CT58: 1 | CU58: 2 | CV58: 4 | CW58: 2 | CX58: 1 | CY58: 0 | CZ58: 0 | DA58: 0 | DB58: 0 | DC58: 0 | DD58: 0 | DE58: 0 | DF58: 0 | DG58: 0 | DH58: 0 | DI58: 0 | DJ58: 0 | DK58: 0 | DL58: 0 | DM58: 0 | DN58: 0 | DO58: 25.86 | DP58: 32.1 | DQ58: 0 | DR58: 0 | DS58: 1 | DT58: 1 | DU58: 0 | DV58: 0 | DW58: 0 | DX58: 0 | DY58: 0 | DZ58: 0 | EA58: 0 | EB58: 0 | EC58: 2 | ED58: 0 | EE58: 0 | EF58: 3 | EG58: 6 | EH58: 0 | EI58: 0 | EJ58: 0 | EK58: 0 | EL58: 0 | EM58: 0 | EN58: 0 | EO58: 0 | EP58: 9 | EQ58: 0 | ER58: 0 | ES58: 4 | ET58: 7 | EU58: 0 | EV58: 0 | EW58: 0 | EX58: 0 | EY58: 0 | EZ58: 0 | FA58: 0 | FB58: 0 | FC58: 11
A59: Wed | B59: 600 | C59: 0 | D59: 0 | E59: 1 | F59: 2 | G59: 0 | H59: 0 | I59: 0 | J59: 0 | K59: 0 | L59: 0 | M59: 0 | N59: 0 | O59: 0 | P59: 0 | Q59: 0 | R59: 0 | S59: 2 | T59: 0 | U59: 1 | V59: 0 | W59: 0 | X59: 0 | Y59: 0 | Z59: 0 | AA59: 0 | AB59: 0 | AC59: 0 | AD59: 0 | AE59: 0 | AF59: 0 | AG59: 0 | AH59: 0 | AI59: 0 | AJ59: 0 | AK59: 0 | AL59: 0 | AM59: 26.35 | AN59: - | AO59: Wed | AP59: 600 | AQ59: 0 | AR59: 1 | AS59: 6 | AT59: 9 | AU59: 0 | AV59: 0 | AW59: 0 | AX59: 0 | AY59: 0 | AZ59: 0 | BA59: 0 | BB59: 0 | BC59: 0 | BD59: 0 | BE59: 1 | BF59: 0 | BG59: 2 | BH59: 5 | BI59: 6 | BJ59: 2 | BK59: 0 | BL59: 0 | BM59: 0 | BN59: 0 | BO59: 0 | BP59: 0 | BQ59: 0 | BR59: 0 | BS59: 0 | BT59: 0 | BU59: 0 | BV59: 0 | BW59: 0 | BX59: 0 | BY59: 0 | BZ59: 0 | CA59: 28.92 | CB59: 33.14 | CC59: Wed | CD59: 600 | CE59: 0 | CF59: 1 | CG59: 7 | CH59: 11 | CI59: 0 | CJ59: 0 | CK59: 0 | CL59: 0 | CM59: 0 | CN59: 0 | CO59: 0 | CP59: 0 | CQ59: 0 | CR59: 0 | CS59: 0 | CT59: 0 | CU59: 4 | CV59: 5 | CW59: 7 | CX59: 2 | CY59: 0 | CZ59: 0 | DA59: 0 | DB59: 0 | DC59: 0 | DD59: 0 | DE59: 0 | DF59: 0 | DG59: 0 | DH59: 0 | DI59: 0 | DJ59: 0 | DK59: 0 | DL59: 0 | DM59: 0 | DN59: 0 | DO59: 28.51 | DP59: 33 | DQ59: 0 | DR59: 0 | DS59: 1 | DT59: 2 | DU59: 0 | DV59: 0 | DW59: 0 | DX59: 0 | DY59: 0 | DZ59: 0 | EA59: 0 | EB59: 0 | EC59: 3 | ED59: 0 | EE59: 1 | EF59: 6 | EG59: 9 | EH59: 0 | EI59: 0 | EJ59: 0 | EK59: 0 | EL59: 0 | EM59: 0 | EN59: 0 | EO59: 0 | EP59: 16 | EQ59: 0 | ER59: 1 | ES59: 7 | ET59: 11 | EU59: 0 | EV59: 0 | EW59: 0 | EX59: 0 | EY59: 0 | EZ59: 0 | FA59: 0 | FB59: 0 | FC59: 19
A60: Wed | B60: 700 | C60: 0 | D60: 0 | E60: 1 | F60: 3 | G60: 0 | H60: 0 | I60: 0 | J60: 0 | K60: 0 | L60: 0 | M60: 0 | N60: 0 | O60: 0 | P60: 0 | Q60: 0 | R60: 1 | S60: 1 | T60: 1 | U60: 1 | V60: 0 | W60: 0 | X60: 0 | Y60: 0 | Z60: 0 | AA60: 0 | AB60: 0 | AC60: 0 | AD60: 0 | AE60: 0 | AF60: 0 | AG60: 0 | AH60: 0 | AI60: 0 | AJ60: 0 | AK60: 0 | AL60: 0 | AM60: 25.09 | AN60: - | AO60: Wed | AP60: 700 | AQ60: 1 | AR60: 3 | AS60: 14 | AT60: 11 | AU60: 1 | AV60: 0 | AW60: 0 | AX60: 0 | AY60: 0 | AZ60: 0 | BA60: 0 | BB60: 0 | BC60: 0 | BD60: 0 | BE60: 3 | BF60: 2 | BG60: 7 | BH60: 8 | BI60: 10 | BJ60: 0 | BK60: 0 | BL60: 0 | BM60: 0 | BN60: 0 | BO60: 0 | BP60: 0 | BQ60: 0 | BR60: 0 | BS60: 0 | BT60: 0 | BU60: 0 | BV60: 0 | BW60: 0 | BX60: 0 | BY60: 0 | BZ60: 0 | CA60: 25.55 | CB60: 32.24 | CC60: Wed | CD60: 700 | CE60: 1 | CF60: 3 | CG60: 15 | CH60: 14 | CI60: 1 | CJ60: 0 | CK60: 0 | CL60: 0 | CM60: 0 | CN60: 0 | CO60: 0 | CP60: 0 | CQ60: 0 | CR60: 0 | CS60: 0 | CT60: 3 | CU60: 8 | CV60: 9 | CW60: 11 | CX60: 0 | CY60: 0 | CZ60: 0 | DA60: 0 | DB60: 0 | DC60: 0 | DD60: 0 | DE60: 0 | DF60: 0 | DG60: 0 | DH60: 0 | DI60: 0 | DJ60: 0 | DK60: 0 | DL60: 0 | DM60: 0 | DN60: 0 | DO60: 25.5 | DP60: 32.32 | DQ60: 0 | DR60: 0 | DS60: 1 | DT60: 3 | DU60: 0 | DV60: 0 | DW60: 0 | DX60: 0 | DY60: 0 | DZ60: 0 | EA60: 0 | EB60: 0 | EC60: 4 | ED60: 1 | EE60: 3 | EF60: 14 | EG60: 11 | EH60: 1 | EI60: 0 | EJ60: 0 | EK60: 0 | EL60: 0 | EM60: 0 | EN60: 0 | EO60: 0 | EP60: 30 | EQ60: 1 | ER60: 3 | ES60: 15 | ET60: 14 | EU60: 1 | EV60: 0 | EW60: 0 | EX60: 0 | EY60: 0 | EZ60: 0 | FA60: 0 | FB60: 0 | FC60: 34
A61: Wed | B61: 800 | C61: 0 | D61: 0 | E61: 8 | F61: 11 | G61: 0 | H61: 0 | I61: 0 | J61: 0 | K61: 0 | L61: 0 | M61: 0 | N61: 0 | O61: 0 | P61: 0 | Q61: 0 | R61: 2 | S61: 9 | T61: 5 | U61: 3 | V61: 0 | W61: 0 | X61: 0 | Y61: 0 | Z61: 0 | AA61: 0 | AB61: 0 | AC61: 0 | AD61: 0 | AE61: 0 | AF61: 0 | AG61: 0 | AH61: 0 | AI61: 0 | AJ61: 0 | AK61: 0 | AL61: 0 | AM61: 24.72 | AN61: 29.11 | AO61: Wed | AP61: 800 | AQ61: 0 | AR61: 1 | AS61: 13 | AT61: 12 | AU61: 0 | AV61: 0 | AW61: 0 | AX61: 0 | AY61: 0 | AZ61: 0 | BA61: 0 | BB61: 0 | BC61: 0 | BD61: 0 | BE61: 2 | BF61: 2 | BG61: 3 | BH61: 11 | BI61: 4 | BJ61: 4 | BK61: 0 | BL61: 0 | BM61: 0 | BN61: 0 | BO61: 0 | BP61: 0 | BQ61: 0 | BR61: 0 | BS61: 0 | BT61: 0 | BU61: 0 | BV61: 0 | BW61: 0 | BX61: 0 | BY61: 0 | BZ61: 0 | CA61: 26.91 | CB61: 34.13 | CC61: Wed | CD61: 800 | CE61: 0 | CF61: 1 | CG61: 21 | CH61: 23 | CI61: 0 | CJ61: 0 | CK61: 0 | CL61: 0 | CM61: 0 | CN61: 0 | CO61: 0 | CP61: 0 | CQ61: 0 | CR61: 0 | CS61: 0 | CT61: 4 | CU61: 12 | CV61: 16 | CW61: 7 | CX61: 4 | CY61: 0 | CZ61: 0 | DA61: 0 | DB61: 0 | DC61: 0 | DD61: 0 | DE61: 0 | DF61: 0 | DG61: 0 | DH61: 0 | DI61: 0 | DJ61: 0 | DK61: 0 | DL61: 0 | DM61: 0 | DN61: 0 | DO61: 25.99 | DP61: 31.48 | DQ61: 0 | DR61: 0 | DS61: 8 | DT61: 11 | DU61: 0 | DV61: 0 | DW61: 0 | DX61: 0 | DY61: 0 | DZ61: 0 | EA61: 0 | EB61: 0 | EC61: 19 | ED61: 0 | EE61: 1 | EF61: 13 | EG61: 12 | EH61: 0 | EI61: 0 | EJ61: 0 | EK61: 0 | EL61: 0 | EM61: 0 | EN61: 0 | EO61: 0 | EP61: 26 | EQ61: 0 | ER61: 1 | ES61: 21 | ET61: 23 | EU61: 0 | EV61: 0 | EW61: 0 | EX61: 0 | EY61: 0 | EZ61: 0 | FA61: 0 | FB61: 0 | FC61: 45
A62: Wed | B62: 900 | C62: 0 | D62: 0 | E62: 7 | F62: 7 | G62: 0 | H62: 0 | I62: 0 | J62: 0 | K62: 0 | L62: 0 | M62: 0 | N62: 0 | O62: 0 | P62: 0 | Q62: 0 | R62: 1 | S62: 6 | T62: 6 | U62: 1 | V62: 0 | W62: 0 | X62: 0 | Y62: 0 | Z62: 0 | AA62: 0 | AB62: 0 | AC62: 0 | AD62: 0 | AE62: 0 | AF62: 0 | AG62: 0 | AH62: 0 | AI62: 0 | AJ62: 0 | AK62: 0 | AL62: 0 | AM62: 24.83 | AN62: 29.2 | AO62: Wed | AP62: 900 | AQ62: 0 | AR62: 1 | AS62: 15 | AT62: 9 | AU62: 1 | AV62: 0 | AW62: 0 | AX62: 0 | AY62: 0 | AZ62: 0 | BA62: 0 | BB62: 0 | BC62: 0 | BD62: 0 | BE62: 3 | BF62: 2 | BG62: 5 | BH62: 10 | BI62: 6 | BJ62: 0 | BK62: 0 | BL62: 0 | BM62: 0 | BN62: 0 | BO62: 0 | BP62: 0 | BQ62: 0 | BR62: 0 | BS62: 0 | BT62: 0 | BU62: 0 | BV62: 0 | BW62: 0 | BX62: 0 | BY62: 0 | BZ62: 0 | CA62: 25.16 | CB62: 31.12 | CC62: Wed | CD62: 900 | CE62: 0 | CF62: 1 | CG62: 22 | CH62: 16 | CI62: 1 | CJ62: 0 | CK62: 0 | CL62: 0 | CM62: 0 | CN62: 0 | CO62: 0 | CP62: 0 | CQ62: 0 | CR62: 0 | CS62: 0 | CT62: 3 | CU62: 11 | CV62: 16 | CW62: 7 | CX62: 0 | CY62: 0 | CZ62: 0 | DA62: 0 | DB62: 0 | DC62: 0 | DD62: 0 | DE62: 0 | DF62: 0 | DG62: 0 | DH62: 0 | DI62: 0 | DJ62: 0 | DK62: 0 | DL62: 0 | DM62: 0 | DN62: 0 | DO62: 25.04 | DP62: 30.68 | DQ62: 0 | DR62: 0 | DS62: 7 | DT62: 7 | DU62: 0 | DV62: 0 | DW62: 0 | DX62: 0 | DY62: 0 | DZ62: 0 | EA62: 0 | EB62: 0 | EC62: 14 | ED62: 0 | EE62: 1 | EF62: 15 | EG62: 9 | EH62: 1 | EI62: 0 | EJ62: 0 | EK62: 0 | EL62: 0 | EM62: 0 | EN62: 0 | EO62: 0 | EP62: 26 | EQ62: 0 | ER62: 1 | ES62: 22 | ET62: 16 | EU62: 1 | EV62: 0 | EW62: 0 | EX62: 0 | EY62: 0 | EZ62: 0 | FA62: 0 | FB62: 0 | FC62: 40
A63: Wed | B63: 1000 | C63: 0 | D63: 0 | E63: 8 | F63: 0 | G63: 1 | H63: 0 | I63: 0 | J63: 0 | K63: 0 | L63: 0 | M63: 0 | N63: 0 | O63: 0 | P63: 0 | Q63: 1 | R63: 1 | S63: 4 | T63: 2 | U63: 1 | V63: 0 | W63: 0 | X63: 0 | Y63: 0 | Z63: 0 | AA63: 0 | AB63: 0 | AC63: 0 | AD63: 0 | AE63: 0 | AF63: 0 | AG63: 0 | AH63: 0 | AI63: 0 | AJ63: 0 | AK63: 0 | AL63: 0 | AM63: 23.05 | AN63: - | AO63: Wed | AP63: 1000 | AQ63: 0 | AR63: 0 | AS63: 10 | AT63: 7 | AU63: 1 | AV63: 0 | AW63: 0 | AX63: 0 | AY63: 0 | AZ63: 0 | BA63: 0 | BB63: 0 | BC63: 0 | BD63: 0 | BE63: 1 | BF63: 3 | BG63: 5 | BH63: 6 | BI63: 2 | BJ63: 1 | BK63: 0 | BL63: 0 | BM63: 0 | BN63: 0 | BO63: 0 | BP63: 0 | BQ63: 0 | BR63: 0 | BS63: 0 | BT63: 0 | BU63: 0 | BV63: 0 | BW63: 0 | BX63: 0 | BY63: 0 | BZ63: 0 | CA63: 24.27 | CB63: 29.21 | CC63: Wed | CD63: 1000 | CE63: 0 | CF63: 0 | CG63: 18 | CH63: 7 | CI63: 2 | CJ63: 0 | CK63: 0 | CL63: 0 | CM63: 0 | CN63: 0 | CO63: 0 | CP63: 0 | CQ63: 0 | CR63: 0 | CS63: 1 | CT63: 4 | CU63: 9 | CV63: 8 | CW63: 3 | CX63: 1 | CY63: 0 | CZ63: 0 | DA63: 0 | DB63: 0 | DC63: 0 | DD63: 0 | DE63: 0 | DF63: 0 | DG63: 0 | DH63: 0 | DI63: 0 | DJ63: 0 | DK63: 0 | DL63: 0 | DM63: 0 | DN63: 0 | DO63: 23.87 | DP63: 28.69 | DQ63: 0 | DR63: 0 | DS63: 8 | DT63: 0 | DU63: 1 | DV63: 0 | DW63: 0 | DX63: 0 | DY63: 0 | DZ63: 0 | EA63: 0 | EB63: 0 | EC63: 9 | ED63: 0 | EE63: 0 | EF63: 10 | EG63: 7 | EH63: 1 | EI63: 0 | EJ63: 0 | EK63: 0 | EL63: 0 | EM63: 0 | EN63: 0 | EO63: 0 | EP63: 18 | EQ63: 0 | ER63: 0 | ES63: 18 | ET63: 7 | EU63: 2 | EV63: 0 | EW63: 0 | EX63: 0 | EY63: 0 | EZ63: 0 | FA63: 0 | FB63: 0 | FC63: 27
A64: Wed | B64: 1100 | C64: 0 | D64: 0 | E64: 14 | F64: 8 | G64: 0 | H64: 0 | I64: 0 | J64: 0 | K64: 0 | L64: 0 | M64: 0 | N64: 0 | O64: 0 | P64: 0 | Q64: 1 | R64: 5 | S64: 8 | T64: 5 | U64: 3 | V64: 0 | W64: 0 | X64: 0 | Y64: 0 | Z64: 0 | AA64: 0 | AB64: 0 | AC64: 0 | AD64: 0 | AE64: 0 | AF64: 0 | AG64: 0 | AH64: 0 | AI64: 0 | AJ64: 0 | AK64: 0 | AL64: 0 | AM64: 23.04 | AN64: 27.63 | AO64: Wed | AP64: 1100 | AQ64: 0 | AR64: 0 | AS64: 9 | AT64: 14 | AU64: 1 | AV64: 0 | AW64: 0 | AX64: 0 | AY64: 0 | AZ64: 0 | BA64: 0 | BB64: 0 | BC64: 0 | BD64: 1 | BE64: 1 | BF64: 5 | BG64: 4 | BH64: 8 | BI64: 4 | BJ64: 1 | BK64: 0 | BL64: 0 | BM64: 0 | BN64: 0 | BO64: 0 | BP64: 0 | BQ64: 0 | BR64: 0 | BS64: 0 | BT64: 0 | BU64: 0 | BV64: 0 | BW64: 0 | BX64: 0 | BY64: 0 | BZ64: 0 | CA64: 25.19 | CB64: 31.37 | CC64: Wed | CD64: 1100 | CE64: 0 | CF64: 0 | CG64: 23 | CH64: 22 | CI64: 1 | CJ64: 0 | CK64: 0 | CL64: 0 | CM64: 0 | CN64: 0 | CO64: 0 | CP64: 0 | CQ64: 0 | CR64: 0 | CS64: 1 | CT64: 10 | CU64: 12 | CV64: 13 | CW64: 7 | CX64: 1 | CY64: 0 | CZ64: 0 | DA64: 0 | DB64: 0 | DC64: 0 | DD64: 0 | DE64: 0 | DF64: 0 | DG64: 0 | DH64: 0 | DI64: 0 | DJ64: 0 | DK64: 0 | DL64: 0 | DM64: 0 | DN64: 0 | DO64: 24.16 | DP64: 31.03 | DQ64: 0 | DR64: 0 | DS64: 14 | DT64: 8 | DU64: 0 | DV64: 0 | DW64: 0 | DX64: 0 | DY64: 0 | DZ64: 0 | EA64: 0 | EB64: 0 | EC64: 22 | ED64: 0 | EE64: 0 | EF64: 9 | EG64: 14 | EH64: 1 | EI64: 0 | EJ64: 0 | EK64: 0 | EL64: 0 | EM64: 0 | EN64: 0 | EO64: 0 | EP64: 24 | EQ64: 0 | ER64: 0 | ES64: 23 | ET64: 22 | EU64: 1 | EV64: 0 | EW64: 0 | EX64: 0 | EY64: 0 | EZ64: 0 | FA64: 0 | FB64: 0 | FC64: 46
A65: Wed | B65: 1200 | C65: 0 | D65: 0 | E65: 7 | F65: 12 | G65: 0 | H65: 0 | I65: 0 | J65: 0 | K65: 0 | L65: 0 | M65: 0 | N65: 0 | O65: 0 | P65: 0 | Q65: 2 | R65: 1 | S65: 6 | T65: 7 | U65: 3 | V65: 0 | W65: 0 | X65: 0 | Y65: 0 | Z65: 0 | AA65: 0 | AB65: 0 | AC65: 0 | AD65: 0 | AE65: 0 | AF65: 0 | AG65: 0 | AH65: 0 | AI65: 0 | AJ65: 0 | AK65: 0 | AL65: 0 | AM65: 24.81 | AN65: 30.08 | AO65: Wed | AP65: 1200 | AQ65: 0 | AR65: 0 | AS65: 6 | AT65: 10 | AU65: 0 | AV65: 0 | AW65: 0 | AX65: 0 | AY65: 0 | AZ65: 0 | BA65: 0 | BB65: 0 | BC65: 0 | BD65: 0 | BE65: 1 | BF65: 0 | BG65: 7 | BH65: 7 | BI65: 1 | BJ65: 0 | BK65: 0 | BL65: 0 | BM65: 0 | BN65: 0 | BO65: 0 | BP65: 0 | BQ65: 0 | BR65: 0 | BS65: 0 | BT65: 0 | BU65: 0 | BV65: 0 | BW65: 0 | BX65: 0 | BY65: 0 | BZ65: 0 | CA65: 24.16 | CB65: 27.24 | CC65: Wed | CD65: 1200 | CE65: 0 | CF65: 0 | CG65: 13 | CH65: 22 | CI65: 0 | CJ65: 0 | CK65: 0 | CL65: 0 | CM65: 0 | CN65: 0 | CO65: 0 | CP65: 0 | CQ65: 0 | CR65: 0 | CS65: 2 | CT65: 1 | CU65: 13 | CV65: 14 | CW65: 4 | CX65: 0 | CY65: 0 | CZ65: 0 | DA65: 0 | DB65: 0 | DC65: 0 | DD65: 0 | DE65: 0 | DF65: 0 | DG65: 0 | DH65: 0 | DI65: 0 | DJ65: 0 | DK65: 0 | DL65: 0 | DM65: 0 | DN65: 0 | DO65: 24.51 | DP65: 29.82 | DQ65: 0 | DR65: 0 | DS65: 7 | DT65: 12 | DU65: 0 | DV65: 0 | DW65: 0 | DX65: 0 | DY65: 0 | DZ65: 0 | EA65: 0 | EB65: 0 | EC65: 19 | ED65: 0 | EE65: 0 | EF65: 6 | EG65: 10 | EH65: 0 | EI65: 0 | EJ65: 0 | EK65: 0 | EL65: 0 | EM65: 0 | EN65: 0 | EO65: 0 | EP65: 16 | EQ65: 0 | ER65: 0 | ES65: 13 | ET65: 22 | EU65: 0 | EV65: 0 | EW65: 0 | EX65: 0 | EY65: 0 | EZ65: 0 | FA65: 0 | FB65: 0 | FC65: 35
A66: Wed | B66: 1300 | C66: 0 | D66: 0 | E66: 7 | F66: 13 | G66: 0 | H66: 0 | I66: 0 | J66: 0 | K66: 0 | L66: 0 | M66: 0 | N66: 0 | O66: 0 | P66: 0 | Q66: 6 | R66: 1 | S66: 8 | T66: 4 | U66: 0 | V66: 1 | W66: 0 | X66: 0 | Y66: 0 | Z66: 0 | AA66: 0 | AB66: 0 | AC66: 0 | AD66: 0 | AE66: 0 | AF66: 0 | AG66: 0 | AH66: 0 | AI66: 0 | AJ66: 0 | AK66: 0 | AL66: 0 | AM66: 20.89 | AN66: 25.98 | AO66: Wed | AP66: 1300 | AQ66: 0 | AR66: 1 | AS66: 10 | AT66: 9 | AU66: 0 | AV66: 0 | AW66: 0 | AX66: 0 | AY66: 0 | AZ66: 0 | BA66: 0 | BB66: 0 | BC66: 0 | BD66: 0 | BE66: 3 | BF66: 0 | BG66: 4 | BH66: 10 | BI66: 2 | BJ66: 1 | BK66: 0 | BL66: 0 | BM66: 0 | BN66: 0 | BO66: 0 | BP66: 0 | BQ66: 0 | BR66: 0 | BS66: 0 | BT66: 0 | BU66: 0 | BV66: 0 | BW66: 0 | BX66: 0 | BY66: 0 | BZ66: 0 | CA66: 25.41 | CB66: 30.26 | CC66: Wed | CD66: 1300 | CE66: 0 | CF66: 1 | CG66: 17 | CH66: 22 | CI66: 0 | CJ66: 0 | CK66: 0 | CL66: 0 | CM66: 0 | CN66: 0 | CO66: 0 | CP66: 0 | CQ66: 0 | CR66: 0 | CS66: 6 | CT66: 1 | CU66: 12 | CV66: 14 | CW66: 2 | CX66: 2 | CY66: 0 | CZ66: 0 | DA66: 0 | DB66: 0 | DC66: 0 | DD66: 0 | DE66: 0 | DF66: 0 | DG66: 0 | DH66: 0 | DI66: 0 | DJ66: 0 | DK66: 0 | DL66: 0 | DM66: 0 | DN66: 0 | DO66: 23.15 | DP66: 29.16 | DQ66: 0 | DR66: 0 | DS66: 7 | DT66: 13 | DU66: 0 | DV66: 0 | DW66: 0 | DX66: 0 | DY66: 0 | DZ66: 0 | EA66: 0 | EB66: 0 | EC66: 20 | ED66: 0 | EE66: 1 | EF66: 10 | EG66: 9 | EH66: 0 | EI66: 0 | EJ66: 0 | EK66: 0 | EL66: 0 | EM66: 0 | EN66: 0 | EO66: 0 | EP66: 20 | EQ66: 0 | ER66: 1 | ES66: 17 | ET66: 22 | EU66: 0 | EV66: 0 | EW66: 0 | EX66: 0 | EY66: 0 | EZ66: 0 | FA66: 0 | FB66: 0 | FC66: 40
A67: Wed | B67: 1400 | C67: 0 | D67: 0 | E67: 11 | F67: 7 | G67: 1 | H67: 0 | I67: 0 | J67: 0 | K67: 0 | L67: 0 | M67: 0 | N67: 0 | O67: 0 | P67: 0 | Q67: 0 | R67: 2 | S67: 14 | T67: 2 | U67: 1 | V67: 0 | W67: 0 | X67: 0 | Y67: 0 | Z67: 0 | AA67: 0 | AB67: 0 | AC67: 0 | AD67: 0 | AE67: 0 | AF67: 0 | AG67: 0 | AH67: 0 | AI67: 0 | AJ67: 0 | AK67: 0 | AL67: 0 | AM67: 23.07 | AN67: 25.62 | AO67: Wed | AP67: 1400 | AQ67: 0 | AR67: 1 | AS67: 15 | AT67: 7 | AU67: 1 | AV67: 0 | AW67: 0 | AX67: 1 | AY67: 0 | AZ67: 0 | BA67: 0 | BB67: 0 | BC67: 0 | BD67: 2 | BE67: 2 | BF67: 6 | BG67: 7 | BH67: 5 | BI67: 2 | BJ67: 1 | BK67: 0 | BL67: 0 | BM67: 0 | BN67: 0 | BO67: 0 | BP67: 0 | BQ67: 0 | BR67: 0 | BS67: 0 | BT67: 0 | BU67: 0 | BV67: 0 | BW67: 0 | BX67: 0 | BY67: 0 | BZ67: 0 | CA67: 21.76 | CB67: 28.69 | CC67: Wed | CD67: 1400 | CE67: 0 | CF67: 1 | CG67: 26 | CH67: 14 | CI67: 2 | CJ67: 0 | CK67: 0 | CL67: 1 | CM67: 0 | CN67: 0 | CO67: 0 | CP67: 0 | CQ67: 0 | CR67: 0 | CS67: 0 | CT67: 8 | CU67: 21 | CV67: 7 | CW67: 3 | CX67: 1 | CY67: 0 | CZ67: 0 | DA67: 0 | DB67: 0 | DC67: 0 | DD67: 0 | DE67: 0 | DF67: 0 | DG67: 0 | DH67: 0 | DI67: 0 | DJ67: 0 | DK67: 0 | DL67: 0 | DM67: 0 | DN67: 0 | DO67: 22.32 | DP67: 27.95 | DQ67: 0 | DR67: 0 | DS67: 11 | DT67: 7 | DU67: 1 | DV67: 0 | DW67: 0 | DX67: 0 | DY67: 0 | DZ67: 0 | EA67: 0 | EB67: 0 | EC67: 19 | ED67: 0 | EE67: 1 | EF67: 15 | EG67: 7 | EH67: 1 | EI67: 0 | EJ67: 0 | EK67: 1 | EL67: 0 | EM67: 0 | EN67: 0 | EO67: 0 | EP67: 25 | EQ67: 0 | ER67: 1 | ES67: 26 | ET67: 14 | EU67: 2 | EV67: 0 | EW67: 0 | EX67: 1 | EY67: 0 | EZ67: 0 | FA67: 0 | FB67: 0 | FC67: 44
A68: Wed | B68: 1500 | C68: 0 | D68: 0 | E68: 7 | F68: 8 | G68: 1 | H68: 0 | I68: 0 | J68: 0 | K68: 0 | L68: 0 | M68: 0 | N68: 0 | O68: 0 | P68: 0 | Q68: 3 | R68: 5 | S68: 7 | T68: 1 | U68: 0 | V68: 0 | W68: 0 | X68: 0 | Y68: 0 | Z68: 0 | AA68: 0 | AB68: 0 | AC68: 0 | AD68: 0 | AE68: 0 | AF68: 0 | AG68: 0 | AH68: 0 | AI68: 0 | AJ68: 0 | AK68: 0 | AL68: 0 | AM68: 19.93 | AN68: 23.57 | AO68: Wed | AP68: 1500 | AQ68: 0 | AR68: 1 | AS68: 11 | AT68: 14 | AU68: 0 | AV68: 0 | AW68: 0 | AX68: 1 | AY68: 0 | AZ68: 0 | BA68: 0 | BB68: 0 | BC68: 0 | BD68: 1 | BE68: 0 | BF68: 3 | BG68: 9 | BH68: 8 | BI68: 5 | BJ68: 1 | BK68: 0 | BL68: 0 | BM68: 0 | BN68: 0 | BO68: 0 | BP68: 0 | BQ68: 0 | BR68: 0 | BS68: 0 | BT68: 0 | BU68: 0 | BV68: 0 | BW68: 0 | BX68: 0 | BY68: 0 | BZ68: 0 | CA68: 25.33 | CB68: 31.94 | CC68: Wed | CD68: 1500 | CE68: 0 | CF68: 1 | CG68: 18 | CH68: 22 | CI68: 1 | CJ68: 0 | CK68: 0 | CL68: 1 | CM68: 0 | CN68: 0 | CO68: 0 | CP68: 0 | CQ68: 0 | CR68: 0 | CS68: 3 | CT68: 8 | CU68: 16 | CV68: 9 | CW68: 5 | CX68: 1 | CY68: 0 | CZ68: 0 | DA68: 0 | DB68: 0 | DC68: 0 | DD68: 0 | DE68: 0 | DF68: 0 | DG68: 0 | DH68: 0 | DI68: 0 | DJ68: 0 | DK68: 0 | DL68: 0 | DM68: 0 | DN68: 0 | DO68: 23.32 | DP68: 28.02 | DQ68: 0 | DR68: 0 | DS68: 7 | DT68: 8 | DU68: 1 | DV68: 0 | DW68: 0 | DX68: 0 | DY68: 0 | DZ68: 0 | EA68: 0 | EB68: 0 | EC68: 16 | ED68: 0 | EE68: 1 | EF68: 11 | EG68: 14 | EH68: 0 | EI68: 0 | EJ68: 0 | EK68: 1 | EL68: 0 | EM68: 0 | EN68: 0 | EO68: 0 | EP68: 27 | EQ68: 0 | ER68: 1 | ES68: 18 | ET68: 22 | EU68: 1 | EV68: 0 | EW68: 0 | EX68: 1 | EY68: 0 | EZ68: 0 | FA68: 0 | FB68: 0 | FC68: 43
A69: Wed | B69: 1600 | C69: 0 | D69: 1 | E69: 18 | F69: 15 | G69: 2 | H69: 0 | I69: 0 | J69: 0 | K69: 0 | L69: 0 | M69: 0 | N69: 0 | O69: 0 | P69: 0 | Q69: 3 | R69: 6 | S69: 8 | T69: 13 | U69: 5 | V69: 1 | W69: 0 | X69: 0 | Y69: 0 | Z69: 0 | AA69: 0 | AB69: 0 | AC69: 0 | AD69: 0 | AE69: 0 | AF69: 0 | AG69: 0 | AH69: 0 | AI69: 0 | AJ69: 0 | AK69: 0 | AL69: 0 | AM69: 24.63 | AN69: 29.96 | AO69: Wed | AP69: 1600 | AQ69: 0 | AR69: 1 | AS69: 13 | AT69: 14 | AU69: 1 | AV69: 0 | AW69: 0 | AX69: 0 | AY69: 0 | AZ69: 0 | BA69: 0 | BB69: 0 | BC69: 0 | BD69: 1 | BE69: 2 | BF69: 3 | BG69: 5 | BH69: 13 | BI69: 5 | BJ69: 0 | BK69: 0 | BL69: 0 | BM69: 0 | BN69: 0 | BO69: 0 | BP69: 0 | BQ69: 0 | BR69: 0 | BS69: 0 | BT69: 0 | BU69: 0 | BV69: 0 | BW69: 0 | BX69: 0 | BY69: 0 | BZ69: 0 | CA69: 24.94 | CB69: 29.86 | CC69: Wed | CD69: 1600 | CE69: 0 | CF69: 2 | CG69: 31 | CH69: 29 | CI69: 3 | CJ69: 0 | CK69: 0 | CL69: 0 | CM69: 0 | CN69: 0 | CO69: 0 | CP69: 0 | CQ69: 0 | CR69: 0 | CS69: 3 | CT69: 9 | CU69: 13 | CV69: 26 | CW69: 10 | CX69: 1 | CY69: 0 | CZ69: 0 | DA69: 0 | DB69: 0 | DC69: 0 | DD69: 0 | DE69: 0 | DF69: 0 | DG69: 0 | DH69: 0 | DI69: 0 | DJ69: 0 | DK69: 0 | DL69: 0 | DM69: 0 | DN69: 0 | DO69: 24.77 | DP69: 30.09 | DQ69: =SUM(C69) -> 0 | DR69: =SUM(D69) -> 1 | DS69: =SUM(E69) -> 18 | DT69: =SUM(F69) -> 15 | DU69: =SUM(G69) -> 2 | DV69: =SUM(H69) -> 0 | DW69: =SUM(I69) -> 0 | DX69: =SUM(J69) -> 0 | DY69: =SUM(K69) -> 0 | DZ69: =SUM(L69) -> 0 | EA69: =SUM(M69) -> 0 | EB69: =SUM(N69) -> 0 | EC69: =SUM(C69:N69) -> 36 | ED69: =SUM(AQ69) -> 0 | EE69: =SUM(AR69) -> 1 | EF69: =SUM(AS69) -> 13 | EG69: =SUM(AT69) -> 14 | EH69: =SUM(AU69) -> 1 | EI69: =SUM(AV69) -> 0 | EJ69: =SUM(AW69) -> 0 | EK69: =SUM(AX69) -> 0 | EL69: =SUM(AY69) -> 0 | EM69: =SUM(AZ69) -> 0 | EN69: =SUM(BA69) -> 0 | EO69: =SUM(BB69) -> 0 | EP69: =SUM(AQ69:BB69) -> 29 | EQ69: =SUM(DQ69+ED69) -> 0 | ER69: =SUM(DR69+EE69) -> 2 | ES69: =SUM(DS69+EF69) -> 31 | ET69: =SUM(DT69+EG69) -> 29 | EU69: =SUM(DU69+EH69) -> 3 | EV69: =SUM(DV69+EI69) -> 0 | EW69: =SUM(DW69+EJ69) -> 0 | EX69: =SUM(DX69+EK69) -> 0 | EY69: =SUM(DY69+EL69) -> 0 | EZ69: =SUM(DZ69+EM69) -> 0 | FA69: =SUM(EA69+EN69) -> 0 | FB69: =SUM(EB69+EO69) -> 0 | FC69: =SUM(EC69+EP69) -> 65
A70: Wed | B70: 1700 | C70: 0 | D70: 0 | E70: 21 | F70: 16 | G70: 1 | H70: 0 | I70: 0 | J70: 0 | K70: 0 | L70: 0 | M70: 0 | N70: 0 | O70: 0 | P70: 0 | Q70: 2 | R70: 5 | S70: 16 | T70: 13 | U70: 2 | V70: 0 | W70: 0 | X70: 0 | Y70: 0 | Z70: 0 | AA70: 0 | AB70: 0 | AC70: 0 | AD70: 0 | AE70: 0 | AF70: 0 | AG70: 0 | AH70: 0 | AI70: 0 | AJ70: 0 | AK70: 0 | AL70: 0 | AM70: 23.33 | AN70: 27.19 | AO70: Wed | AP70: 1700 | AQ70: 0 | AR70: 0 | AS70: 6 | AT70: 18 | AU70: 0 | AV70: 0 | AW70: 0 | AX70: 0 | AY70: 0 | AZ70: 0 | BA70: 0 | BB70: 0 | BC70: 0 | BD70: 0 | BE70: 0 | BF70: 2 | BG70: 6 | BH70: 11 | BI70: 5 | BJ70: 0 | BK70: 0 | BL70: 0 | BM70: 0 | BN70: 0 | BO70: 0 | BP70: 0 | BQ70: 0 | BR70: 0 | BS70: 0 | BT70: 0 | BU70: 0 | BV70: 0 | BW70: 0 | BX70: 0 | BY70: 0 | BZ70: 0 | CA70: 26.2 | CB70: 31.36 | CC70: Wed | CD70: 1700 | CE70: 0 | CF70: 0 | CG70: 27 | CH70: 34 | CI70: 1 | CJ70: 0 | CK70: 0 | CL70: 0 | CM70: 0 | CN70: 0 | CO70: 0 | CP70: 0 | CQ70: 0 | CR70: 0 | CS70: 2 | CT70: 7 | CU70: 22 | CV70: 24 | CW70: 7 | CX70: 0 | CY70: 0 | CZ70: 0 | DA70: 0 | DB70: 0 | DC70: 0 | DD70: 0 | DE70: 0 | DF70: 0 | DG70: 0 | DH70: 0 | DI70: 0 | DJ70: 0 | DK70: 0 | DL70: 0 | DM70: 0 | DN70: 0 | DO70: 24.44 | DP70: 28.26 | DQ70: 0 | DR70: 0 | DS70: 21 | DT70: 16 | DU70: 1 | DV70: 0 | DW70: 0 | DX70: 0 | DY70: 0 | DZ70: 0 | EA70: 0 | EB70: 0 | EC70: 38 | ED70: 0 | EE70: 0 | EF70: 6 | EG70: 18 | EH70: 0 | EI70: 0 | EJ70: 0 | EK70: 0 | EL70: 0 | EM70: 0 | EN70: 0 | EO70: 0 | EP70: 24 | EQ70: 0 | ER70: 0 | ES70: 27 | ET70: 34 | EU70: 1 | EV70: 0 | EW70: 0 | EX70: 0 | EY70: 0 | EZ70: 0 | FA70: 0 | FB70: 0 | FC70: 62
A71: Wed | B71: 1800 | C71: 0 | D71: 2 | E71: 13 | F71: 8 | G71: 0 | H71: 0 | I71: 0 | J71: 0 | K71: 0 | L71: 0 | M71: 0 | N71: 0 | O71: 0 | P71: 0 | Q71: 1 | R71: 4 | S71: 9 | T71: 7 | U71: 2 | V71: 0 | W71: 0 | X71: 0 | Y71: 0 | Z71: 0 | AA71: 0 | AB71: 0 | AC71: 0 | AD71: 0 | AE71: 0 | AF71: 0 | AG71: 0 | AH71: 0 | AI71: 0 | AJ71: 0 | AK71: 0 | AL71: 0 | AM71: 24.09 | AN71: 28.27 | AO71: Wed | AP71: 1800 | AQ71: 0 | AR71: 0 | AS71: 7 | AT71: 6 | AU71: 0 | AV71: 0 | AW71: 0 | AX71: 0 | AY71: 0 | AZ71: 0 | BA71: 0 | BB71: 0 | BC71: 0 | BD71: 0 | BE71: 0 | BF71: 1 | BG71: 1 | BH71: 6 | BI71: 5 | BJ71: 0 | BK71: 0 | BL71: 0 | BM71: 0 | BN71: 0 | BO71: 0 | BP71: 0 | BQ71: 0 | BR71: 0 | BS71: 0 | BT71: 0 | BU71: 0 | BV71: 0 | BW71: 0 | BX71: 0 | BY71: 0 | BZ71: 0 | CA71: 27.84 | CB71: 31.3 | CC71: Wed | CD71: 1800 | CE71: 0 | CF71: 2 | CG71: 20 | CH71: 14 | CI71: 0 | CJ71: 0 | CK71: 0 | CL71: 0 | CM71: 0 | CN71: 0 | CO71: 0 | CP71: 0 | CQ71: 0 | CR71: 0 | CS71: 1 | CT71: 5 | CU71: 10 | CV71: 13 | CW71: 7 | CX71: 0 | CY71: 0 | CZ71: 0 | DA71: 0 | DB71: 0 | DC71: 0 | DD71: 0 | DE71: 0 | DF71: 0 | DG71: 0 | DH71: 0 | DI71: 0 | DJ71: 0 | DK71: 0 | DL71: 0 | DM71: 0 | DN71: 0 | DO71: 25.45 | DP71: 30.17 | DQ71: 0 | DR71: 2 | DS71: 13 | DT71: 8 | DU71: 0 | DV71: 0 | DW71: 0 | DX71: 0 | DY71: 0 | DZ71: 0 | EA71: 0 | EB71: 0 | EC71: 23 | ED71: 0 | EE71: 0 | EF71: 7 | EG71: 6 | EH71: 0 | EI71: 0 | EJ71: 0 | EK71: 0 | EL71: 0 | EM71: 0 | EN71: 0 | EO71: 0 | EP71: 13 | EQ71: 0 | ER71: 2 | ES71: 20 | ET71: 14 | EU71: 0 | EV71: 0 | EW71: 0 | EX71: 0 | EY71: 0 | EZ71: 0 | FA71: 0 | FB71: 0 | FC71: 36
A72: Wed | B72: 1900 | C72: 0 | D72: 0 | E72: 7 | F72: 12 | G72: 0 | H72: 0 | I72: 0 | J72: 0 | K72: 0 | L72: 0 | M72: 0 | N72: 0 | O72: 0 | P72: 0 | Q72: 0 | R72: 3 | S72: 9 | T72: 6 | U72: 1 | V72: 0 | W72: 0 | X72: 0 | Y72: 0 | Z72: 0 | AA72: 0 | AB72: 0 | AC72: 0 | AD72: 0 | AE72: 0 | AF72: 0 | AG72: 0 | AH72: 0 | AI72: 0 | AJ72: 0 | AK72: 0 | AL72: 0 | AM72: 23.23 | AN72: 25.92 | AO72: Wed | AP72: 1900 | AQ72: 0 | AR72: 0 | AS72: 6 | AT72: 4 | AU72: 0 | AV72: 0 | AW72: 0 | AX72: 0 | AY72: 0 | AZ72: 0 | BA72: 0 | BB72: 0 | BC72: 0 | BD72: 0 | BE72: 1 | BF72: 0 | BG72: 1 | BH72: 5 | BI72: 3 | BJ72: 0 | BK72: 0 | BL72: 0 | BM72: 0 | BN72: 0 | BO72: 0 | BP72: 0 | BQ72: 0 | BR72: 0 | BS72: 0 | BT72: 0 | BU72: 0 | BV72: 0 | BW72: 0 | BX72: 0 | BY72: 0 | BZ72: 0 | CA72: 26.22 | CB72: 30.65 | CC72: Wed | CD72: 1900 | CE72: 0 | CF72: 0 | CG72: 13 | CH72: 16 | CI72: 0 | CJ72: 0 | CK72: 0 | CL72: 0 | CM72: 0 | CN72: 0 | CO72: 0 | CP72: 0 | CQ72: 0 | CR72: 0 | CS72: 0 | CT72: 3 | CU72: 10 | CV72: 11 | CW72: 4 | CX72: 0 | CY72: 0 | CZ72: 0 | DA72: 0 | DB72: 0 | DC72: 0 | DD72: 0 | DE72: 0 | DF72: 0 | DG72: 0 | DH72: 0 | DI72: 0 | DJ72: 0 | DK72: 0 | DL72: 0 | DM72: 0 | DN72: 0 | DO72: 24.26 | DP72: 29.04 | DQ72: 0 | DR72: 0 | DS72: 7 | DT72: 12 | DU72: 0 | DV72: 0 | DW72: 0 | DX72: 0 | DY72: 0 | DZ72: 0 | EA72: 0 | EB72: 0 | EC72: 19 | ED72: 0 | EE72: 0 | EF72: 6 | EG72: 4 | EH72: 0 | EI72: 0 | EJ72: 0 | EK72: 0 | EL72: 0 | EM72: 0 | EN72: 0 | EO72: 0 | EP72: 10 | EQ72: 0 | ER72: 0 | ES72: 13 | ET72: 16 | EU72: 0 | EV72: 0 | EW72: 0 | EX72: 0 | EY72: 0 | EZ72: 0 | FA72: 0 | FB72: 0 | FC72: 29
A73: Wed | B73: 2000 | C73: 0 | D73: 0 | E73: 11 | F73: 3 | G73: 0 | H73: 0 | I73: 0 | J73: 0 | K73: 0 | L73: 0 | M73: 0 | N73: 0 | O73: 0 | P73: 0 | Q73: 0 | R73: 2 | S73: 6 | T73: 5 | U73: 1 | V73: 0 | W73: 0 | X73: 0 | Y73: 0 | Z73: 0 | AA73: 0 | AB73: 0 | AC73: 0 | AD73: 0 | AE73: 0 | AF73: 0 | AG73: 0 | AH73: 0 | AI73: 0 | AJ73: 0 | AK73: 0 | AL73: 0 | AM73: 24.74 | AN73: 29.07 | AO73: Wed | AP73: 2000 | AQ73: 0 | AR73: 0 | AS73: 6 | AT73: 3 | AU73: 0 | AV73: 0 | AW73: 0 | AX73: 0 | AY73: 0 | AZ73: 0 | BA73: 0 | BB73: 0 | BC73: 0 | BD73: 0 | BE73: 1 | BF73: 0 | BG73: 1 | BH73: 6 | BI73: 1 | BJ73: 0 | BK73: 0 | BL73: 0 | BM73: 0 | BN73: 0 | BO73: 0 | BP73: 0 | BQ73: 0 | BR73: 0 | BS73: 0 | BT73: 0 | BU73: 0 | BV73: 0 | BW73: 0 | BX73: 0 | BY73: 0 | BZ73: 0 | CA73: 26.49 | CB73: - | CC73: Wed | CD73: 2000 | CE73: 0 | CF73: 0 | CG73: 17 | CH73: 6 | CI73: 0 | CJ73: 0 | CK73: 0 | CL73: 0 | CM73: 0 | CN73: 0 | CO73: 0 | CP73: 0 | CQ73: 0 | CR73: 0 | CS73: 0 | CT73: 2 | CU73: 7 | CV73: 11 | CW73: 2 | CX73: 0 | CY73: 0 | CZ73: 0 | DA73: 0 | DB73: 0 | DC73: 0 | DD73: 0 | DE73: 0 | DF73: 0 | DG73: 0 | DH73: 0 | DI73: 0 | DJ73: 0 | DK73: 0 | DL73: 0 | DM73: 0 | DN73: 0 | DO73: 25.42 | DP73: 28.97 | DQ73: 0 | DR73: 0 | DS73: 11 | DT73: 3 | DU73: 0 | DV73: 0 | DW73: 0 | DX73: 0 | DY73: 0 | DZ73: 0 | EA73: 0 | EB73: 0 | EC73: 14 | ED73: 0 | EE73: 0 | EF73: 6 | EG73: 3 | EH73: 0 | EI73: 0 | EJ73: 0 | EK73: 0 | EL73: 0 | EM73: 0 | EN73: 0 | EO73: 0 | EP73: 9 | EQ73: 0 | ER73: 0 | ES73: 17 | ET73: 6 | EU73: 0 | EV73: 0 | EW73: 0 | EX73: 0 | EY73: 0 | EZ73: 0 | FA73: 0 | FB73: 0 | FC73: 23
A74: Wed | B74: 2100 | C74: 0 | D74: 0 | E74: 2 | F74: 4 | G74: 0 | H74: 0 | I74: 0 | J74: 0 | K74: 0 | L74: 0 | M74: 0 | N74: 0 | O74: 0 | P74: 0 | Q74: 0 | R74: 0 | S74: 4 | T74: 2 | U74: 0 | V74: 0 | W74: 0 | X74: 0 | Y74: 0 | Z74: 0 | AA74: 0 | AB74: 0 | AC74: 0 | AD74: 0 | AE74: 0 | AF74: 0 | AG74: 0 | AH74: 0 | AI74: 0 | AJ74: 0 | AK74: 0 | AL74: 0 | AM74: 24.44 | AN74: - | AO74: Wed | AP74: 2100 | AQ74: 0 | AR74: 0 | AS74: 1 | AT74: 4 | AU74: 0 | AV74: 0 | AW74: 0 | AX74: 0 | AY74: 0 | AZ74: 0 | BA74: 0 | BB74: 0 | BC74: 0 | BD74: 1 | BE74: 0 | BF74: 0 | BG74: 1 | BH74: 1 | BI74: 2 | BJ74: 0 | BK74: 0 | BL74: 0 | BM74: 0 | BN74: 0 | BO74: 0 | BP74: 0 | BQ74: 0 | BR74: 0 | BS74: 0 | BT74: 0 | BU74: 0 | BV74: 0 | BW74: 0 | BX74: 0 | BY74: 0 | BZ74: 0 | CA74: 24.05 | CB74: - | CC74: Wed | CD74: 2100 | CE74: 0 | CF74: 0 | CG74: 3 | CH74: 8 | CI74: 0 | CJ74: 0 | CK74: 0 | CL74: 0 | CM74: 0 | CN74: 0 | CO74: 0 | CP74: 0 | CQ74: 0 | CR74: 0 | CS74: 0 | CT74: 0 | CU74: 5 | CV74: 3 | CW74: 2 | CX74: 0 | CY74: 0 | CZ74: 0 | DA74: 0 | DB74: 0 | DC74: 0 | DD74: 0 | DE74: 0 | DF74: 0 | DG74: 0 | DH74: 0 | DI74: 0 | DJ74: 0 | DK74: 0 | DL74: 0 | DM74: 0 | DN74: 0 | DO74: 24.26 | DP74: 29.4 | DQ74: 0 | DR74: 0 | DS74: 2 | DT74: 4 | DU74: 0 | DV74: 0 | DW74: 0 | DX74: 0 | DY74: 0 | DZ74: 0 | EA74: 0 | EB74: 0 | EC74: 6 | ED74: 0 | EE74: 0 | EF74: 1 | EG74: 4 | EH74: 0 | EI74: 0 | EJ74: 0 | EK74: 0 | EL74: 0 | EM74: 0 | EN74: 0 | EO74: 0 | EP74: 5 | EQ74: 0 | ER74: 0 | ES74: 3 | ET74: 8 | EU74: 0 | EV74: 0 | EW74: 0 | EX74: 0 | EY74: 0 | EZ74: 0 | FA74: 0 | FB74: 0 | FC74: 11
A75: Wed | B75: 2200 | C75: 0 | D75: 0 | E75: 1 | F75: 2 | G75: 0 | H75: 0 | I75: 0 | J75: 0 | K75: 0 | L75: 0 | M75: 0 | N75: 0 | O75: 0 | P75: 0 | Q75: 0 | R75: 1 | S75: 1 | T75: 1 | U75: 0 | V75: 0 | W75: 0 | X75: 0 | Y75: 0 | Z75: 0 | AA75: 0 | AB75: 0 | AC75: 0 | AD75: 0 | AE75: 0 | AF75: 0 | AG75: 0 | AH75: 0 | AI75: 0 | AJ75: 0 | AK75: 0 | AL75: 0 | AM75: 22.23 | AN75: - | AO75: Wed | AP75: 2200 | AQ75: 0 | AR75: 0 | AS75: 4 | AT75: 0 | AU75: 0 | AV75: 0 | AW75: 0 | AX75: 0 | AY75: 0 | AZ75: 0 | BA75: 0 | BB75: 0 | BC75: 0 | BD75: 0 | BE75: 0 | BF75: 0 | BG75: 1 | BH75: 1 | BI75: 0 | BJ75: 1 | BK75: 0 | BL75: 0 | BM75: 1 | BN75: 0 | BO75: 0 | BP75: 0 | BQ75: 0 | BR75: 0 | BS75: 0 | BT75: 0 | BU75: 0 | BV75: 0 | BW75: 0 | BX75: 0 | BY75: 0 | BZ75: 0 | CA75: 35.21 | CB75: - | CC75: Wed | CD75: 2200 | CE75: 0 | CF75: 0 | CG75: 5 | CH75: 2 | CI75: 0 | CJ75: 0 | CK75: 0 | CL75: 0 | CM75: 0 | CN75: 0 | CO75: 0 | CP75: 0 | CQ75: 0 | CR75: 0 | CS75: 0 | CT75: 1 | CU75: 2 | CV75: 2 | CW75: 0 | CX75: 1 | CY75: 0 | CZ75: 0 | DA75: 1 | DB75: 0 | DC75: 0 | DD75: 0 | DE75: 0 | DF75: 0 | DG75: 0 | DH75: 0 | DI75: 0 | DJ75: 0 | DK75: 0 | DL75: 0 | DM75: 0 | DN75: 0 | DO75: 29.65 | DP75: - | DQ75: 0 | DR75: 0 | DS75: 1 | DT75: 2 | DU75: 0 | DV75: 0 | DW75: 0 | DX75: 0 | DY75: 0 | DZ75: 0 | EA75: 0 | EB75: 0 | EC75: 3 | ED75: 0 | EE75: 0 | EF75: 4 | EG75: 0 | EH75: 0 | EI75: 0 | EJ75: 0 | EK75: 0 | EL75: 0 | EM75: 0 | EN75: 0 | EO75: 0 | EP75: 4 | EQ75: 0 | ER75: 0 | ES75: 5 | ET75: 2 | EU75: 0 | EV75: 0 | EW75: 0 | EX75: 0 | EY75: 0 | EZ75: 0 | FA75: 0 | FB75: 0 | FC75: 7
A76: Wed | B76: 2300 | C76: 0 | D76: 0 | E76: 4 | F76: 1 | G76: 0 | H76: 0 | I76: 0 | J76: 0 | K76: 0 | L76: 0 | M76: 0 | N76: 0 | O76: 0 | P76: 0 | Q76: 0 | R76: 1 | S76: 2 | T76: 1 | U76: 1 | V76: 0 | W76: 0 | X76: 0 | Y76: 0 | Z76: 0 | AA76: 0 | AB76: 0 | AC76: 0 | AD76: 0 | AE76: 0 | AF76: 0 | AG76: 0 | AH76: 0 | AI76: 0 | AJ76: 0 | AK76: 0 | AL76: 0 | AM76: 23.9 | AN76: - | AO76: Wed | AP76: 2300 | AQ76: 0 | AR76: 0 | AS76: 0 | AT76: 0 | AU76: 0 | AV76: 0 | AW76: 0 | AX76: 0 | AY76: 0 | AZ76: 0 | BA76: 0 | BB76: 0 | BC76: 0 | BD76: 0 | BE76: 0 | BF76: 0 | BG76: 0 | BH76: 0 | BI76: 0 | BJ76: 0 | BK76: 0 | BL76: 0 | BM76: 0 | BN76: 0 | BO76: 0 | BP76: 0 | BQ76: 0 | BR76: 0 | BS76: 0 | BT76: 0 | BU76: 0 | BV76: 0 | BW76: 0 | BX76: 0 | BY76: 0 | BZ76: 0 | CA76: - | CB76: - | CC76: Wed | CD76: 2300 | CE76: 0 | CF76: 0 | CG76: 4 | CH76: 1 | CI76: 0 | CJ76: 0 | CK76: 0 | CL76: 0 | CM76: 0 | CN76: 0 | CO76: 0 | CP76: 0 | CQ76: 0 | CR76: 0 | CS76: 0 | CT76: 1 | CU76: 2 | CV76: 1 | CW76: 1 | CX76: 0 | CY76: 0 | CZ76: 0 | DA76: 0 | DB76: 0 | DC76: 0 | DD76: 0 | DE76: 0 | DF76: 0 | DG76: 0 | DH76: 0 | DI76: 0 | DJ76: 0 | DK76: 0 | DL76: 0 | DM76: 0 | DN76: 0 | DO76: 23.9 | DP76: - | DQ76: 0 | DR76: 0 | DS76: 4 | DT76: 1 | DU76: 0 | DV76: 0 | DW76: 0 | DX76: 0 | DY76: 0 | DZ76: 0 | EA76: 0 | EB76: 0 | EC76: 5 | ED76: 0 | EE76: 0 | EF76: 0 | EG76: 0 | EH76: 0 | EI76: 0 | EJ76: 0 | EK76: 0 | EL76: 0 | EM76: 0 | EN76: 0 | EO76: 0 | EP76: 0 | EQ76: 0 | ER76: 0 | ES76: 4 | ET76: 1 | EU76: 0 | EV76: 0 | EW76: 0 | EX76: 0 | EY76: 0 | EZ76: 0 | FA76: 0 | FB76: 0 | FC76: 5
A77: Thu | B77: 0 | C77: 0 | D77: 0 | E77: 0 | F77: 0 | G77: 0 | H77: 0 | I77: 0 | J77: 0 | K77: 0 | L77: 0 | M77: 0 | N77: 0 | O77: 0 | P77: 0 | Q77: 0 | R77: 0 | S77: 0 | T77: 0 | U77: 0 | V77: 0 | W77: 0 | X77: 0 | Y77: 0 | Z77: 0 | AA77: 0 | AB77: 0 | AC77: 0 | AD77: 0 | AE77: 0 | AF77: 0 | AG77: 0 | AH77: 0 | AI77: 0 | AJ77: 0 | AK77: 0 | AL77: 0 | AM77: - | AN77: - | AO77: Thu | AP77: 0 | AQ77: 0 | AR77: 0 | AS77: 1 | AT77: 0 | AU77: 0 | AV77: 0 | AW77: 0 | AX77: 0 | AY77: 0 | AZ77: 0 | BA77: 0 | BB77: 0 | BC77: 0 | BD77: 0 | BE77: 0 | BF77: 0 | BG77: 1 | BH77: 0 | BI77: 0 | BJ77: 0 | BK77: 0 | BL77: 0 | BM77: 0 | BN77: 0 | BO77: 0 | BP77: 0 | BQ77: 0 | BR77: 0 | BS77: 0 | BT77: 0 | BU77: 0 | BV77: 0 | BW77: 0 | BX77: 0 | BY77: 0 | BZ77: 0 | CA77: 21.74 | CB77: - | CC77: Thu | CD77: 0 | CE77: 0 | CF77: 0 | CG77: 1 | CH77: 0 | CI77: 0 | CJ77: 0 | CK77: 0 | CL77: 0 | CM77: 0 | CN77: 0 | CO77: 0 | CP77: 0 | CQ77: 0 | CR77: 0 | CS77: 0 | CT77: 0 | CU77: 1 | CV77: 0 | CW77: 0 | CX77: 0 | CY77: 0 | CZ77: 0 | DA77: 0 | DB77: 0 | DC77: 0 | DD77: 0 | DE77: 0 | DF77: 0 | DG77: 0 | DH77: 0 | DI77: 0 | DJ77: 0 | DK77: 0 | DL77: 0 | DM77: 0 | DN77: 0 | DO77: 21.74 | DP77: - | DQ77: 0 | DR77: 0 | DS77: 0 | DT77: 0 | DU77: 0 | DV77: 0 | DW77: 0 | DX77: 0 | DY77: 0 | DZ77: 0 | EA77: 0 | EB77: 0 | EC77: 0 | ED77: 0 | EE77: 0 | EF77: 1 | EG77: 0 | EH77: 0 | EI77: 0 | EJ77: 0 | EK77: 0 | EL77: 0 | EM77: 0 | EN77: 0 | EO77: 0 | EP77: 1 | EQ77: 0 | ER77: 0 | ES77: 1 | ET77: 0 | EU77: 0 | EV77: 0 | EW77: 0 | EX77: 0 | EY77: 0 | EZ77: 0 | FA77: 0 | FB77: 0 | FC77: 1
A78: Thu | B78: 100 | C78: 0 | D78: 0 | E78: 0 | F78: 0 | G78: 0 | H78: 0 | I78: 0 | J78: 0 | K78: 0 | L78: 0 | M78: 0 | N78: 0 | O78: 0 | P78: 0 | Q78: 0 | R78: 0 | S78: 0 | T78: 0 | U78: 0 | V78: 0 | W78: 0 | X78: 0 | Y78: 0 | Z78: 0 | AA78: 0 | AB78: 0 | AC78: 0 | AD78: 0 | AE78: 0 | AF78: 0 | AG78: 0 | AH78: 0 | AI78: 0 | AJ78: 0 | AK78: 0 | AL78: 0 | AM78: - | AN78: - | AO78: Thu | AP78: 100 | AQ78: 0 | AR78: 0 | AS78: 0 | AT78: 0 | AU78: 0 | AV78: 0 | AW78: 0 | AX78: 0 | AY78: 0 | AZ78: 0 | BA78: 0 | BB78: 0 | BC78: 0 | BD78: 0 | BE78: 0 | BF78: 0 | BG78: 0 | BH78: 0 | BI78: 0 | BJ78: 0 | BK78: 0 | BL78: 0 | BM78: 0 | BN78: 0 | BO78: 0 | BP78: 0 | BQ78: 0 | BR78: 0 | BS78: 0 | BT78: 0 | BU78: 0 | BV78: 0 | BW78: 0 | BX78: 0 | BY78: 0 | BZ78: 0 | CA78: - | CB78: - | CC78: Thu | CD78: 100 | CE78: 0 | CF78: 0 | CG78: 0 | CH78: 0 | CI78: 0 | CJ78: 0 | CK78: 0 | CL78: 0 | CM78: 0 | CN78: 0 | CO78: 0 | CP78: 0 | CQ78: 0 | CR78: 0 | CS78: 0 | CT78: 0 | CU78: 0 | CV78: 0 | CW78: 0 | CX78: 0 | CY78: 0 | CZ78: 0 | DA78: 0 | DB78: 0 | DC78: 0 | DD78: 0 | DE78: 0 | DF78: 0 | DG78: 0 | DH78: 0 | DI78: 0 | DJ78: 0 | DK78: 0 | DL78: 0 | DM78: 0 | DN78: 0 | DO78: - | DP78: - | DQ78: 0 | DR78: 0 | DS78: 0 | DT78: 0 | DU78: 0 | DV78: 0 | DW78: 0 | DX78: 0 | DY78: 0 | DZ78: 0 | EA78: 0 | EB78: 0 | EC78: 0 | ED78: 0 | EE78: 0 | EF78: 0 | EG78: 0 | EH78: 0 | EI78: 0 | EJ78: 0 | EK78: 0 | EL78: 0 | EM78: 0 | EN78: 0 | EO78: 0 | EP78: 0 | EQ78: 0 | ER78: 0 | ES78: 0 | ET78: 0 | EU78: 0 | EV78: 0 | EW78: 0 | EX78: 0 | EY78: 0 | EZ78: 0 | FA78: 0 | FB78: 0 | FC78: 0
A79: Thu | B79: 200 | C79: 0 | D79: 0 | E79: 0 | F79: 0 | G79: 0 | H79: 0 | I79: 0 | J79: 0 | K79: 0 | L79: 0 | M79: 0 | N79: 0 | O79: 0 | P79: 0 | Q79: 0 | R79: 0 | S79: 0 | T79: 0 | U79: 0 | V79: 0 | W79: 0 | X79: 0 | Y79: 0 | Z79: 0 | AA79: 0 | AB79: 0 | AC79: 0 | AD79: 0 | AE79: 0 | AF79: 0 | AG79: 0 | AH79: 0 | AI79: 0 | AJ79: 0 | AK79: 0 | AL79: 0 | AM79: - | AN79: - | AO79: Thu | AP79: 200 | AQ79: 0 | AR79: 0 | AS79: 0 | AT79: 0 | AU79: 0 | AV79: 0 | AW79: 0 | AX79: 0 | AY79: 0 | AZ79: 0 | BA79: 0 | BB79: 0 | BC79: 0 | BD79: 0 | BE79: 0 | BF79: 0 | BG79: 0 | BH79: 0 | BI79: 0 | BJ79: 0 | BK79: 0 | BL79: 0 | BM79: 0 | BN79: 0 | BO79: 0 | BP79: 0 | BQ79: 0 | BR79: 0 | BS79: 0 | BT79: 0 | BU79: 0 | BV79: 0 | BW79: 0 | BX79: 0 | BY79: 0 | BZ79: 0 | CA79: - | CB79: - | CC79: Thu | CD79: 200 | CE79: 0 | CF79: 0 | CG79: 0 | CH79: 0 | CI79: 0 | CJ79: 0 | CK79: 0 | CL79: 0 | CM79: 0 | CN79: 0 | CO79: 0 | CP79: 0 | CQ79: 0 | CR79: 0 | CS79: 0 | CT79: 0 | CU79: 0 | CV79: 0 | CW79: 0 | CX79: 0 | CY79: 0 | CZ79: 0 | DA79: 0 | DB79: 0 | DC79: 0 | DD79: 0 | DE79: 0 | DF79: 0 | DG79: 0 | DH79: 0 | DI79: 0 | DJ79: 0 | DK79: 0 | DL79: 0 | DM79: 0 | DN79: 0 | DO79: - | DP79: - | DQ79: 0 | DR79: 0 | DS79: 0 | DT79: 0 | DU79: 0 | DV79: 0 | DW79: 0 | DX79: 0 | DY79: 0 | DZ79: 0 | EA79: 0 | EB79: 0 | EC79: 0 | ED79: 0 | EE79: 0 | EF79: 0 | EG79: 0 | EH79: 0 | EI79: 0 | EJ79: 0 | EK79: 0 | EL79: 0 | EM79: 0 | EN79: 0 | EO79: 0 | EP79: 0 | EQ79: 0 | ER79: 0 | ES79: 0 | ET79: 0 | EU79: 0 | EV79: 0 | EW79: 0 | EX79: 0 | EY79: 0 | EZ79: 0 | FA79: 0 | FB79: 0 | FC79: 0
A80: Thu | B80: 300 | C80: 0 | D80: 0 | E80: 0 | F80: 0 | G80: 0 | H80: 0 | I80: 0 | J80: 0 | K80: 0 | L80: 0 | M80: 0 | N80: 0 | O80: 0 | P80: 0 | Q80: 0 | R80: 0 | S80: 0 | T80: 0 | U80: 0 | V80: 0 | W80: 0 | X80: 0 | Y80: 0 | Z80: 0 | AA80: 0 | AB80: 0 | AC80: 0 | AD80: 0 | AE80: 0 | AF80: 0 | AG80: 0 | AH80: 0 | AI80: 0 | AJ80: 0 | AK80: 0 | AL80: 0 | AM80: - | AN80: - | AO80: Thu | AP80: 300 | AQ80: 0 | AR80: 0 | AS80: 0 | AT80: 0 | AU80: 0 | AV80: 0 | AW80: 0 | AX80: 0 | AY80: 0 | AZ80: 0 | BA80: 0 | BB80: 0 | BC80: 0 | BD80: 0 | BE80: 0 | BF80: 0 | BG80: 0 | BH80: 0 | BI80: 0 | BJ80: 0 | BK80: 0 | BL80: 0 | BM80: 0 | BN80: 0 | BO80: 0 | BP80: 0 | BQ80: 0 | BR80: 0 | BS80: 0 | BT80: 0 | BU80: 0 | BV80: 0 | BW80: 0 | BX80: 0 | BY80: 0 | BZ80: 0 | CA80: - | CB80: - | CC80: Thu | CD80: 300 | CE80: 0 | CF80: 0 | CG80: 0 | CH80: 0 | CI80: 0 | CJ80: 0 | CK80: 0 | CL80: 0 | CM80: 0 | CN80: 0 | CO80: 0 | CP80: 0 | CQ80: 0 | CR80: 0 | CS80: 0 | CT80: 0 | CU80: 0 | CV80: 0 | CW80: 0 | CX80: 0 | CY80: 0 | CZ80: 0 | DA80: 0 | DB80: 0 | DC80: 0 | DD80: 0 | DE80: 0 | DF80: 0 | DG80: 0 | DH80: 0 | DI80: 0 | DJ80: 0 | DK80: 0 | DL80: 0 | DM80: 0 | DN80: 0 | DO80: - | DP80: - | DQ80: 0 | DR80: 0 | DS80: 0 | DT80: 0 | DU80: 0 | DV80: 0 | DW80: 0 | DX80: 0 | DY80: 0 | DZ80: 0 | EA80: 0 | EB80: 0 | EC80: 0 | ED80: 0 | EE80: 0 | EF80: 0 | EG80: 0 | EH80: 0 | EI80: 0 | EJ80: 0 | EK80: 0 | EL80: 0 | EM80: 0 | EN80: 0 | EO80: 0 | EP80: 0 | EQ80: 0 | ER80: 0 | ES80: 0 | ET80: 0 | EU80: 0 | EV80: 0 | EW80: 0 | EX80: 0 | EY80: 0 | EZ80: 0 | FA80: 0 | FB80: 0 | FC80: 0
A81: Thu | B81: 400 | C81: 0 | D81: 0 | E81: 0 | F81: 0 | G81: 0 | H81: 0 | I81: 0 | J81: 0 | K81: 0 | L81: 0 | M81: 0 | N81: 0 | O81: 0 | P81: 0 | Q81: 0 | R81: 0 | S81: 0 | T81: 0 | U81: 0 | V81: 0 | W81: 0 | X81: 0 | Y81: 0 | Z81: 0 | AA81: 0 | AB81: 0 | AC81: 0 | AD81: 0 | AE81: 0 | AF81: 0 | AG81: 0 | AH81: 0 | AI81: 0 | AJ81: 0 | AK81: 0 | AL81: 0 | AM81: - | AN81: - | AO81: Thu | AP81: 400 | AQ81: 0 | AR81: 0 | AS81: 1 | AT81: 1 | AU81: 0 | AV81: 0 | AW81: 0 | AX81: 0 | AY81: 0 | AZ81: 0 | BA81: 0 | BB81: 0 | BC81: 0 | BD81: 0 | BE81: 0 | BF81: 0 | BG81: 0 | BH81: 1 | BI81: 0 | BJ81: 1 | BK81: 0 | BL81: 0 | BM81: 0 | BN81: 0 | BO81: 0 | BP81: 0 | BQ81: 0 | BR81: 0 | BS81: 0 | BT81: 0 | BU81: 0 | BV81: 0 | BW81: 0 | BX81: 0 | BY81: 0 | BZ81: 0 | CA81: 32.31 | CB81: - | CC81: Thu | CD81: 400 | CE81: 0 | CF81: 0 | CG81: 1 | CH81: 1 | CI81: 0 | CJ81: 0 | CK81: 0 | CL81: 0 | CM81: 0 | CN81: 0 | CO81: 0 | CP81: 0 | CQ81: 0 | CR81: 0 | CS81: 0 | CT81: 0 | CU81: 0 | CV81: 1 | CW81: 0 | CX81: 1 | CY81: 0 | CZ81: 0 | DA81: 0 | DB81: 0 | DC81: 0 | DD81: 0 | DE81: 0 | DF81: 0 | DG81: 0 | DH81: 0 | DI81: 0 | DJ81: 0 | DK81: 0 | DL81: 0 | DM81: 0 | DN81: 0 | DO81: 32.31 | DP81: - | DQ81: 0 | DR81: 0 | DS81: 0 | DT81: 0 | DU81: 0 | DV81: 0 | DW81: 0 | DX81: 0 | DY81: 0 | DZ81: 0 | EA81: 0 | EB81: 0 | EC81: 0 | ED81: 0 | EE81: 0 | EF81: 1 | EG81: 1 | EH81: 0 | EI81: 0 | EJ81: 0 | EK81: 0 | EL81: 0 | EM81: 0 | EN81: 0 | EO81: 0 | EP81: 2 | EQ81: 0 | ER81: 0 | ES81: 1 | ET81: 1 | EU81: 0 | EV81: 0 | EW81: 0 | EX81: 0 | EY81: 0 | EZ81: 0 | FA81: 0 | FB81: 0 | FC81: 2
A82: Thu | B82: 500 | C82: 0 | D82: 0 | E82: 0 | F82: 1 | G82: 0 | H82: 0 | I82: 0 | J82: 0 | K82: 0 | L82: 0 | M82: 0 | N82: 0 | O82: 0 | P82: 0 | Q82: 0 | R82: 0 | S82: 0 | T82: 1 | U82: 0 | V82: 0 | W82: 0 | X82: 0 | Y82: 0 | Z82: 0 | AA82: 0 | AB82: 0 | AC82: 0 | AD82: 0 | AE82: 0 | AF82: 0 | AG82: 0 | AH82: 0 | AI82: 0 | AJ82: 0 | AK82: 0 | AL82: 0 | AM82: 28.54 | AN82: - | AO82: Thu | AP82: 500 | AQ82: 0 | AR82: 0 | AS82: 3 | AT82: 1 | AU82: 0 | AV82: 0 | AW82: 0 | AX82: 0 | AY82: 0 | AZ82: 0 | BA82: 0 | BB82: 0 | BC82: 0 | BD82: 0 | BE82: 1 | BF82: 0 | BG82: 1 | BH82: 1 | BI82: 1 | BJ82: 0 | BK82: 0 | BL82: 0 | BM82: 0 | BN82: 0 | BO82: 0 | BP82: 0 | BQ82: 0 | BR82: 0 | BS82: 0 | BT82: 0 | BU82: 0 | BV82: 0 | BW82: 0 | BX82: 0 | BY82: 0 | BZ82: 0 | CA82: 23.58 | CB82: - | CC82: Thu | CD82: 500 | CE82: 0 | CF82: 0 | CG82: 3 | CH82: 2 | CI82: 0 | CJ82: 0 | CK82: 0 | CL82: 0 | CM82: 0 | CN82: 0 | CO82: 0 | CP82: 0 | CQ82: 0 | CR82: 0 | CS82: 0 | CT82: 0 | CU82: 1 | CV82: 2 | CW82: 1 | CX82: 0 | CY82: 0 | CZ82: 0 | DA82: 0 | DB82: 0 | DC82: 0 | DD82: 0 | DE82: 0 | DF82: 0 | DG82: 0 | DH82: 0 | DI82: 0 | DJ82: 0 | DK82: 0 | DL82: 0 | DM82: 0 | DN82: 0 | DO82: 24.57 | DP82: - | DQ82: 0 | DR82: 0 | DS82: 0 | DT82: 1 | DU82: 0 | DV82: 0 | DW82: 0 | DX82: 0 | DY82: 0 | DZ82: 0 | EA82: 0 | EB82: 0 | EC82: 1 | ED82: 0 | EE82: 0 | EF82: 3 | EG82: 1 | EH82: 0 | EI82: 0 | EJ82: 0 | EK82: 0 | EL82: 0 | EM82: 0 | EN82: 0 | EO82: 0 | EP82: 4 | EQ82: 0 | ER82: 0 | ES82: 3 | ET82: 2 | EU82: 0 | EV82: 0 | EW82: 0 | EX82: 0 | EY82: 0 | EZ82: 0 | FA82: 0 | FB82: 0 | FC82: 5
A83: Thu | B83: 600 | C83: 0 | D83: 0 | E83: 3 | F83: 2 | G83: 0 | H83: 0 | I83: 0 | J83: 0 | K83: 0 | L83: 0 | M83: 0 | N83: 0 | O83: 0 | P83: 0 | Q83: 1 | R83: 0 | S83: 3 | T83: 1 | U83: 0 | V83: 0 | W83: 0 | X83: 0 | Y83: 0 | Z83: 0 | AA83: 0 | AB83: 0 | AC83: 0 | AD83: 0 | AE83: 0 | AF83: 0 | AG83: 0 | AH83: 0 | AI83: 0 | AJ83: 0 | AK83: 0 | AL83: 0 | AM83: 20.31 | AN83: - | AO83: Thu | AP83: 600 | AQ83: 0 | AR83: 1 | AS83: 10 | AT83: 16 | AU83: 0 | AV83: 0 | AW83: 0 | AX83: 0 | AY83: 0 | AZ83: 0 | BA83: 0 | BB83: 0 | BC83: 0 | BD83: 2 | BE83: 0 | BF83: 1 | BG83: 8 | BH83: 11 | BI83: 4 | BJ83: 0 | BK83: 1 | BL83: 0 | BM83: 0 | BN83: 0 | BO83: 0 | BP83: 0 | BQ83: 0 | BR83: 0 | BS83: 0 | BT83: 0 | BU83: 0 | BV83: 0 | BW83: 0 | BX83: 0 | BY83: 0 | BZ83: 0 | CA83: 25.25 | CB83: 30.15 | CC83: Thu | CD83: 600 | CE83: 0 | CF83: 1 | CG83: 13 | CH83: 18 | CI83: 0 | CJ83: 0 | CK83: 0 | CL83: 0 | CM83: 0 | CN83: 0 | CO83: 0 | CP83: 0 | CQ83: 0 | CR83: 0 | CS83: 1 | CT83: 1 | CU83: 11 | CV83: 12 | CW83: 4 | CX83: 0 | CY83: 1 | CZ83: 0 | DA83: 0 | DB83: 0 | DC83: 0 | DD83: 0 | DE83: 0 | DF83: 0 | DG83: 0 | DH83: 0 | DI83: 0 | DJ83: 0 | DK83: 0 | DL83: 0 | DM83: 0 | DN83: 0 | DO83: 24.48 | DP83: 29.76 | DQ83: 0 | DR83: 0 | DS83: 3 | DT83: 2 | DU83: 0 | DV83: 0 | DW83: 0 | DX83: 0 | DY83: 0 | DZ83: 0 | EA83: 0 | EB83: 0 | EC83: 5 | ED83: 0 | EE83: 1 | EF83: 10 | EG83: 16 | EH83: 0 | EI83: 0 | EJ83: 0 | EK83: 0 | EL83: 0 | EM83: 0 | EN83: 0 | EO83: 0 | EP83: 27 | EQ83: 0 | ER83: 1 | ES83: 13 | ET83: 18 | EU83: 0 | EV83: 0 | EW83: 0 | EX83: 0 | EY83: 0 | EZ83: 0 | FA83: 0 | FB83: 0 | FC83: 32
A84: Thu | B84: 700 | C84: 0 | D84: 0 | E84: 6 | F84: 7 | G84: 1 | H84: 0 | I84: 0 | J84: 0 | K84: 0 | L84: 0 | M84: 0 | N84: 0 | O84: 0 | P84: 0 | Q84: 0 | R84: 2 | S84: 7 | T84: 5 | U84: 0 | V84: 0 | W84: 0 | X84: 0 | Y84: 0 | Z84: 0 | AA84: 0 | AB84: 0 | AC84: 0 | AD84: 0 | AE84: 0 | AF84: 0 | AG84: 0 | AH84: 0 | AI84: 0 | AJ84: 0 | AK84: 0 | AL84: 0 | AM84: 24.17 | AN84: 27.36 | AO84: Thu | AP84: 700 | AQ84: 0 | AR84: 2 | AS84: 17 | AT84: 16 | AU84: 0 | AV84: 0 | AW84: 0 | AX84: 0 | AY84: 0 | AZ84: 0 | BA84: 0 | BB84: 0 | BC84: 0 | BD84: 1 | BE84: 1 | BF84: 3 | BG84: 8 | BH84: 15 | BI84: 5 | BJ84: 2 | BK84: 0 | BL84: 0 | BM84: 0 | BN84: 0 | BO84: 0 | BP84: 0 | BQ84: 0 | BR84: 0 | BS84: 0 | BT84: 0 | BU84: 0 | BV84: 0 | BW84: 0 | BX84: 0 | BY84: 0 | BZ84: 0 | CA84: 25.96 | CB84: 30.71 | CC84: Thu | CD84: 700 | CE84: 0 | CF84: 2 | CG84: 23 | CH84: 23 | CI84: 1 | CJ84: 0 | CK84: 0 | CL84: 0 | CM84: 0 | CN84: 0 | CO84: 0 | CP84: 0 | CQ84: 0 | CR84: 0 | CS84: 0 | CT84: 5 | CU84: 15 | CV84: 20 | CW84: 5 | CX84: 2 | CY84: 0 | CZ84: 0 | DA84: 0 | DB84: 0 | DC84: 0 | DD84: 0 | DE84: 0 | DF84: 0 | DG84: 0 | DH84: 0 | DI84: 0 | DJ84: 0 | DK84: 0 | DL84: 0 | DM84: 0 | DN84: 0 | DO84: 25.45 | DP84: 29.91 | DQ84: 0 | DR84: 0 | DS84: 6 | DT84: 7 | DU84: 1 | DV84: 0 | DW84: 0 | DX84: 0 | DY84: 0 | DZ84: 0 | EA84: 0 | EB84: 0 | EC84: 14 | ED84: 0 | EE84: 2 | EF84: 17 | EG84: 16 | EH84: 0 | EI84: 0 | EJ84: 0 | EK84: 0 | EL84: 0 | EM84: 0 | EN84: 0 | EO84: 0 | EP84: 35 | EQ84: 0 | ER84: 2 | ES84: 23 | ET84: 23 | EU84: 1 | EV84: 0 | EW84: 0 | EX84: 0 | EY84: 0 | EZ84: 0 | FA84: 0 | FB84: 0 | FC84: 49
A85: Thu | B85: 800 | C85: 0 | D85: 0 | E85: 8 | F85: 7 | G85: 0 | H85: 0 | I85: 0 | J85: 0 | K85: 0 | L85: 0 | M85: 0 | N85: 0 | O85: 0 | P85: 1 | Q85: 1 | R85: 3 | S85: 3 | T85: 6 | U85: 1 | V85: 0 | W85: 0 | X85: 0 | Y85: 0 | Z85: 0 | AA85: 0 | AB85: 0 | AC85: 0 | AD85: 0 | AE85: 0 | AF85: 0 | AG85: 0 | AH85: 0 | AI85: 0 | AJ85: 0 | AK85: 0 | AL85: 0 | AM85: 22.31 | AN85: 26.98 | AO85: Thu | AP85: 800 | AQ85: 0 | AR85: 0 | AS85: 18 | AT85: 13 | AU85: 0 | AV85: 0 | AW85: 0 | AX85: 0 | AY85: 0 | AZ85: 0 | BA85: 0 | BB85: 0 | BC85: 0 | BD85: 1 | BE85: 3 | BF85: 5 | BG85: 7 | BH85: 7 | BI85: 8 | BJ85: 0 | BK85: 0 | BL85: 0 | BM85: 0 | BN85: 0 | BO85: 0 | BP85: 0 | BQ85: 0 | BR85: 0 | BS85: 0 | BT85: 0 | BU85: 0 | BV85: 0 | BW85: 0 | BX85: 0 | BY85: 0 | BZ85: 0 | CA85: 23.38 | CB85: 30.63 | CC85: Thu | CD85: 800 | CE85: 0 | CF85: 0 | CG85: 26 | CH85: 20 | CI85: 0 | CJ85: 0 | CK85: 0 | CL85: 0 | CM85: 0 | CN85: 0 | CO85: 0 | CP85: 0 | CQ85: 0 | CR85: 1 | CS85: 1 | CT85: 8 | CU85: 10 | CV85: 13 | CW85: 9 | CX85: 0 | CY85: 0 | CZ85: 0 | DA85: 0 | DB85: 0 | DC85: 0 | DD85: 0 | DE85: 0 | DF85: 0 | DG85: 0 | DH85: 0 | DI85: 0 | DJ85: 0 | DK85: 0 | DL85: 0 | DM85: 0 | DN85: 0 | DO85: 23.03 | DP85: 30.41 | DQ85: 0 | DR85: 0 | DS85: 8 | DT85: 7 | DU85: 0 | DV85: 0 | DW85: 0 | DX85: 0 | DY85: 0 | DZ85: 0 | EA85: 0 | EB85: 0 | EC85: 15 | ED85: 0 | EE85: 0 | EF85: 18 | EG85: 13 | EH85: 0 | EI85: 0 | EJ85: 0 | EK85: 0 | EL85: 0 | EM85: 0 | EN85: 0 | EO85: 0 | EP85: 31 | EQ85: 0 | ER85: 0 | ES85: 26 | ET85: 20 | EU85: 0 | EV85: 0 | EW85: 0 | EX85: 0 | EY85: 0 | EZ85: 0 | FA85: 0 | FB85: 0 | FC85: 46
A86: Thu | B86: 900 | C86: 0 | D86: 0 | E86: 9 | F86: 9 | G86: 1 | H86: 0 | I86: 0 | J86: 0 | K86: 0 | L86: 0 | M86: 0 | N86: 0 | O86: 0 | P86: 1 | Q86: 0 | R86: 5 | S86: 7 | T86: 4 | U86: 2 | V86: 0 | W86: 0 | X86: 0 | Y86: 0 | Z86: 0 | AA86: 0 | AB86: 0 | AC86: 0 | AD86: 0 | AE86: 0 | AF86: 0 | AG86: 0 | AH86: 0 | AI86: 0 | AJ86: 0 | AK86: 0 | AL86: 0 | AM86: 22.36 | AN86: 28.81 | AO86: Thu | AP86: 900 | AQ86: 0 | AR86: 0 | AS86: 14 | AT86: 11 | AU86: 0 | AV86: 0 | AW86: 0 | AX86: 0 | AY86: 0 | AZ86: 0 | BA86: 0 | BB86: 0 | BC86: 0 | BD86: 3 | BE86: 1 | BF86: 4 | BG86: 9 | BH86: 8 | BI86: 0 | BJ86: 0 | BK86: 0 | BL86: 0 | BM86: 0 | BN86: 0 | BO86: 0 | BP86: 0 | BQ86: 0 | BR86: 0 | BS86: 0 | BT86: 0 | BU86: 0 | BV86: 0 | BW86: 0 | BX86: 0 | BY86: 0 | BZ86: 0 | CA86: 21.31 | CB86: 27.01 | CC86: Thu | CD86: 900 | CE86: 0 | CF86: 0 | CG86: 23 | CH86: 20 | CI86: 1 | CJ86: 0 | CK86: 0 | CL86: 0 | CM86: 0 | CN86: 0 | CO86: 0 | CP86: 0 | CQ86: 0 | CR86: 1 | CS86: 0 | CT86: 9 | CU86: 16 | CV86: 12 | CW86: 2 | CX86: 0 | CY86: 0 | CZ86: 0 | DA86: 0 | DB86: 0 | DC86: 0 | DD86: 0 | DE86: 0 | DF86: 0 | DG86: 0 | DH86: 0 | DI86: 0 | DJ86: 0 | DK86: 0 | DL86: 0 | DM86: 0 | DN86: 0 | DO86: 21.76 | DP86: 28.25 | DQ86: 0 | DR86: 0 | DS86: 9 | DT86: 9 | DU86: 1 | DV86: 0 | DW86: 0 | DX86: 0 | DY86: 0 | DZ86: 0 | EA86: 0 | EB86: 0 | EC86: 19 | ED86: 0 | EE86: 0 | EF86: 14 | EG86: 11 | EH86: 0 | EI86: 0 | EJ86: 0 | EK86: 0 | EL86: 0 | EM86: 0 | EN86: 0 | EO86: 0 | EP86: 25 | EQ86: 0 | ER86: 0 | ES86: 23 | ET86: 20 | EU86: 1 | EV86: 0 | EW86: 0 | EX86: 0 | EY86: 0 | EZ86: 0 | FA86: 0 | FB86: 0 | FC86: 44
A87: Thu | B87: 1000 | C87: 0 | D87: 0 | E87: 9 | F87: 4 | G87: 1 | H87: 0 | I87: 0 | J87: 0 | K87: 0 | L87: 0 | M87: 0 | N87: 0 | O87: 0 | P87: 1 | Q87: 1 | R87: 3 | S87: 4 | T87: 4 | U87: 1 | V87: 0 | W87: 0 | X87: 0 | Y87: 0 | Z87: 0 | AA87: 0 | AB87: 0 | AC87: 0 | AD87: 0 | AE87: 0 | AF87: 0 | AG87: 0 | AH87: 0 | AI87: 0 | AJ87: 0 | AK87: 0 | AL87: 0 | AM87: 21.81 | AN87: 27.56 | AO87: Thu | AP87: 1000 | AQ87: 0 | AR87: 0 | AS87: 17 | AT87: 11 | AU87: 1 | AV87: 0 | AW87: 0 | AX87: 0 | AY87: 0 | AZ87: 0 | BA87: 0 | BB87: 0 | BC87: 0 | BD87: 1 | BE87: 2 | BF87: 5 | BG87: 10 | BH87: 10 | BI87: 1 | BJ87: 0 | BK87: 0 | BL87: 0 | BM87: 0 | BN87: 0 | BO87: 0 | BP87: 0 | BQ87: 0 | BR87: 0 | BS87: 0 | BT87: 0 | BU87: 0 | BV87: 0 | BW87: 0 | BX87: 0 | BY87: 0 | BZ87: 0 | CA87: 22.98 | CB87: 28.59 | CC87: Thu | CD87: 1000 | CE87: 0 | CF87: 0 | CG87: 26 | CH87: 15 | CI87: 2 | CJ87: 0 | CK87: 0 | CL87: 0 | CM87: 0 | CN87: 0 | CO87: 0 | CP87: 0 | CQ87: 0 | CR87: 1 | CS87: 1 | CT87: 8 | CU87: 14 | CV87: 14 | CW87: 2 | CX87: 0 | CY87: 0 | CZ87: 0 | DA87: 0 | DB87: 0 | DC87: 0 | DD87: 0 | DE87: 0 | DF87: 0 | DG87: 0 | DH87: 0 | DI87: 0 | DJ87: 0 | DK87: 0 | DL87: 0 | DM87: 0 | DN87: 0 | DO87: 22.6 | DP87: 28.49 | DQ87: 0 | DR87: 0 | DS87: 9 | DT87: 4 | DU87: 1 | DV87: 0 | DW87: 0 | DX87: 0 | DY87: 0 | DZ87: 0 | EA87: 0 | EB87: 0 | EC87: 14 | ED87: 0 | EE87: 0 | EF87: 17 | EG87: 11 | EH87: 1 | EI87: 0 | EJ87: 0 | EK87: 0 | EL87: 0 | EM87: 0 | EN87: 0 | EO87: 0 | EP87: 29 | EQ87: 0 | ER87: 0 | ES87: 26 | ET87: 15 | EU87: 2 | EV87: 0 | EW87: 0 | EX87: 0 | EY87: 0 | EZ87: 0 | FA87: 0 | FB87: 0 | FC87: 43
A88: Thu | B88: 1100 | C88: 0 | D88: 0 | E88: 18 | F88: 5 | G88: 0 | H88: 0 | I88: 0 | J88: 0 | K88: 0 | L88: 0 | M88: 0 | N88: 0 | O88: 0 | P88: 2 | Q88: 2 | R88: 7 | S88: 7 | T88: 3 | U88: 2 | V88: 0 | W88: 0 | X88: 0 | Y88: 0 | Z88: 0 | AA88: 0 | AB88: 0 | AC88: 0 | AD88: 0 | AE88: 0 | AF88: 0 | AG88: 0 | AH88: 0 | AI88: 0 | AJ88: 0 | AK88: 0 | AL88: 0 | AM88: 20.35 | AN88: 27.58 | AO88: Thu | AP88: 1100 | AQ88: 0 | AR88: 0 | AS88: 12 | AT88: 12 | AU88: 0 | AV88: 1 | AW88: 0 | AX88: 0 | AY88: 0 | AZ88: 0 | BA88: 0 | BB88: 0 | BC88: 0 | BD88: 3 | BE88: 5 | BF88: 6 | BG88: 9 | BH88: 2 | BI88: 0 | BJ88: 0 | BK88: 0 | BL88: 0 | BM88: 0 | BN88: 0 | BO88: 0 | BP88: 0 | BQ88: 0 | BR88: 0 | BS88: 0 | BT88: 0 | BU88: 0 | BV88: 0 | BW88: 0 | BX88: 0 | BY88: 0 | BZ88: 0 | CA88: 18.04 | CB88: 24.28 | CC88: Thu | CD88: 1100 | CE88: 0 | CF88: 0 | CG88: 30 | CH88: 17 | CI88: 0 | CJ88: 1 | CK88: 0 | CL88: 0 | CM88: 0 | CN88: 0 | CO88: 0 | CP88: 0 | CQ88: 0 | CR88: 2 | CS88: 2 | CT88: 13 | CU88: 16 | CV88: 5 | CW88: 2 | CX88: 0 | CY88: 0 | CZ88: 0 | DA88: 0 | DB88: 0 | DC88: 0 | DD88: 0 | DE88: 0 | DF88: 0 | DG88: 0 | DH88: 0 | DI88: 0 | DJ88: 0 | DK88: 0 | DL88: 0 | DM88: 0 | DN88: 0 | DO88: 19.14 | DP88: 24.95 | DQ88: 0 | DR88: 0 | DS88: 18 | DT88: 5 | DU88: 0 | DV88: 0 | DW88: 0 | DX88: 0 | DY88: 0 | DZ88: 0 | EA88: 0 | EB88: 0 | EC88: 23 | ED88: 0 | EE88: 0 | EF88: 12 | EG88: 12 | EH88: 0 | EI88: 1 | EJ88: 0 | EK88: 0 | EL88: 0 | EM88: 0 | EN88: 0 | EO88: 0 | EP88: 25 | EQ88: 0 | ER88: 0 | ES88: 30 | ET88: 17 | EU88: 0 | EV88: 1 | EW88: 0 | EX88: 0 | EY88: 0 | EZ88: 0 | FA88: 0 | FB88: 0 | FC88: 48
A89: Thu | B89: 1200 | C89: 0 | D89: 0 | E89: 13 | F89: 10 | G89: 1 | H89: 0 | I89: 0 | J89: 0 | K89: 0 | L89: 0 | M89: 0 | N89: 0 | O89: 0 | P89: 2 | Q89: 4 | R89: 4 | S89: 7 | T89: 6 | U89: 1 | V89: 0 | W89: 0 | X89: 0 | Y89: 0 | Z89: 0 | AA89: 0 | AB89: 0 | AC89: 0 | AD89: 0 | AE89: 0 | AF89: 0 | AG89: 0 | AH89: 0 | AI89: 0 | AJ89: 0 | AK89: 0 | AL89: 0 | AM89: 20.67 | AN89: 27.33 | AO89: Thu | AP89: 1200 | AQ89: 0 | AR89: 0 | AS89: 8 | AT89: 5 | AU89: 2 | AV89: 0 | AW89: 0 | AX89: 0 | AY89: 0 | AZ89: 0 | BA89: 0 | BB89: 0 | BC89: 0 | BD89: 0 | BE89: 4 | BF89: 3 | BG89: 5 | BH89: 3 | BI89: 0 | BJ89: 0 | BK89: 0 | BL89: 0 | BM89: 0 | BN89: 0 | BO89: 0 | BP89: 0 | BQ89: 0 | BR89: 0 | BS89: 0 | BT89: 0 | BU89: 0 | BV89: 0 | BW89: 0 | BX89: 0 | BY89: 0 | BZ89: 0 | CA89: 20.59 | CB89: 26.72 | CC89: Thu | CD89: 1200 | CE89: 0 | CF89: 0 | CG89: 21 | CH89: 15 | CI89: 3 | CJ89: 0 | CK89: 0 | CL89: 0 | CM89: 0 | CN89: 0 | CO89: 0 | CP89: 0 | CQ89: 0 | CR89: 2 | CS89: 4 | CT89: 7 | CU89: 12 | CV89: 9 | CW89: 1 | CX89: 0 | CY89: 0 | CZ89: 0 | DA89: 0 | DB89: 0 | DC89: 0 | DD89: 0 | DE89: 0 | DF89: 0 | DG89: 0 | DH89: 0 | DI89: 0 | DJ89: 0 | DK89: 0 | DL89: 0 | DM89: 0 | DN89: 0 | DO89: 20.64 | DP89: 27.19 | DQ89: 0 | DR89: 0 | DS89: 13 | DT89: 10 | DU89: 1 | DV89: 0 | DW89: 0 | DX89: 0 | DY89: 0 | DZ89: 0 | EA89: 0 | EB89: 0 | EC89: 24 | ED89: 0 | EE89: 0 | EF89: 8 | EG89: 5 | EH89: 2 | EI89: 0 | EJ89: 0 | EK89: 0 | EL89: 0 | EM89: 0 | EN89: 0 | EO89: 0 | EP89: 15 | EQ89: 0 | ER89: 0 | ES89: 21 | ET89: 15 | EU89: 3 | EV89: 0 | EW89: 0 | EX89: 0 | EY89: 0 | EZ89: 0 | FA89: 0 | FB89: 0 | FC89: 39
A90: Thu | B90: 1300 | C90: 0 | D90: 0 | E90: 10 | F90: 7 | G90: 1 | H90: 0 | I90: 0 | J90: 0 | K90: 0 | L90: 0 | M90: 0 | N90: 0 | O90: 0 | P90: 0 | Q90: 3 | R90: 4 | S90: 5 | T90: 6 | U90: 0 | V90: 0 | W90: 0 | X90: 0 | Y90: 0 | Z90: 0 | AA90: 0 | AB90: 0 | AC90: 0 | AD90: 0 | AE90: 0 | AF90: 0 | AG90: 0 | AH90: 0 | AI90: 0 | AJ90: 0 | AK90: 0 | AL90: 0 | AM90: 21.21 | AN90: 28.32 | AO90: Thu | AP90: 1300 | AQ90: 0 | AR90: 1 | AS90: 15 | AT90: 8 | AU90: 0 | AV90: 0 | AW90: 0 | AX90: 0 | AY90: 0 | AZ90: 0 | BA90: 0 | BB90: 0 | BC90: 0 | BD90: 1 | BE90: 4 | BF90: 6 | BG90: 7 | BH90: 6 | BI90: 0 | BJ90: 0 | BK90: 0 | BL90: 0 | BM90: 0 | BN90: 0 | BO90: 0 | BP90: 0 | BQ90: 0 | BR90: 0 | BS90: 0 | BT90: 0 | BU90: 0 | BV90: 0 | BW90: 0 | BX90: 0 | BY90: 0 | BZ90: 0 | CA90: 20.18 | CB90: 25.57 | CC90: Thu | CD90: 1300 | CE90: 0 | CF90: 1 | CG90: 25 | CH90: 15 | CI90: 1 | CJ90: 0 | CK90: 0 | CL90: 0 | CM90: 0 | CN90: 0 | CO90: 0 | CP90: 0 | CQ90: 0 | CR90: 0 | CS90: 3 | CT90: 10 | CU90: 12 | CV90: 12 | CW90: 0 | CX90: 0 | CY90: 0 | CZ90: 0 | DA90: 0 | DB90: 0 | DC90: 0 | DD90: 0 | DE90: 0 | DF90: 0 | DG90: 0 | DH90: 0 | DI90: 0 | DJ90: 0 | DK90: 0 | DL90: 0 | DM90: 0 | DN90: 0 | DO90: 20.62 | DP90: 26.63 | DQ90: 0 | DR90: 0 | DS90: 10 | DT90: 7 | DU90: 1 | DV90: 0 | DW90: 0 | DX90: 0 | DY90: 0 | DZ90: 0 | EA90: 0 | EB90: 0 | EC90: 18 | ED90: 0 | EE90: 1 | EF90: 15 | EG90: 8 | EH90: 0 | EI90: 0 | EJ90: 0 | EK90: 0 | EL90: 0 | EM90: 0 | EN90: 0 | EO90: 0 | EP90: 24 | EQ90: 0 | ER90: 1 | ES90: 25 | ET90: 15 | EU90: 1 | EV90: 0 | EW90: 0 | EX90: 0 | EY90: 0 | EZ90: 0 | FA90: 0 | FB90: 0 | FC90: 42
A91: Thu | B91: 1400 | C91: 0 | D91: 0 | E91: 7 | F91: 8 | G91: 0 | H91: 0 | I91: 0 | J91: 0 | K91: 0 | L91: 0 | M91: 0 | N91: 0 | O91: 0 | P91: 0 | Q91: 2 | R91: 3 | S91: 5 | T91: 2 | U91: 3 | V91: 0 | W91: 0 | X91: 0 | Y91: 0 | Z91: 0 | AA91: 0 | AB91: 0 | AC91: 0 | AD91: 0 | AE91: 0 | AF91: 0 | AG91: 0 | AH91: 0 | AI91: 0 | AJ91: 0 | AK91: 0 | AL91: 0 | AM91: 22.14 | AN91: 30.27 | AO91: Thu | AP91: 1400 | AQ91: 0 | AR91: 0 | AS91: 17 | AT91: 10 | AU91: 0 | AV91: 0 | AW91: 0 | AX91: 0 | AY91: 0 | AZ91: 0 | BA91: 0 | BB91: 0 | BC91: 0 | BD91: 0 | BE91: 5 | BF91: 3 | BG91: 10 | BH91: 7 | BI91: 2 | BJ91: 0 | BK91: 0 | BL91: 0 | BM91: 0 | BN91: 0 | BO91: 0 | BP91: 0 | BQ91: 0 | BR91: 0 | BS91: 0 | BT91: 0 | BU91: 0 | BV91: 0 | BW91: 0 | BX91: 0 | BY91: 0 | BZ91: 0 | CA91: 22.31 | CB91: 28.14 | CC91: Thu | CD91: 1400 | CE91: 0 | CF91: 0 | CG91: 24 | CH91: 18 | CI91: 0 | CJ91: 0 | CK91: 0 | CL91: 0 | CM91: 0 | CN91: 0 | CO91: 0 | CP91: 0 | CQ91: 0 | CR91: 0 | CS91: 2 | CT91: 6 | CU91: 15 | CV91: 9 | CW91: 5 | CX91: 0 | CY91: 0 | CZ91: 0 | DA91: 0 | DB91: 0 | DC91: 0 | DD91: 0 | DE91: 0 | DF91: 0 | DG91: 0 | DH91: 0 | DI91: 0 | DJ91: 0 | DK91: 0 | DL91: 0 | DM91: 0 | DN91: 0 | DO91: 22.25 | DP91: 28.84 | DQ91: 0 | DR91: 0 | DS91: 7 | DT91: 8 | DU91: 0 | DV91: 0 | DW91: 0 | DX91: 0 | DY91: 0 | DZ91: 0 | EA91: 0 | EB91: 0 | EC91: 15 | ED91: 0 | EE91: 0 | EF91: 17 | EG91: 10 | EH91: 0 | EI91: 0 | EJ91: 0 | EK91: 0 | EL91: 0 | EM91: 0 | EN91: 0 | EO91: 0 | EP91: 27 | EQ91: 0 | ER91: 0 | ES91: 24 | ET91: 18 | EU91: 0 | EV91: 0 | EW91: 0 | EX91: 0 | EY91: 0 | EZ91: 0 | FA91: 0 | FB91: 0 | FC91: 42
A92: Thu | B92: 1500 | C92: 0 | D92: 0 | E92: 10 | F92: 7 | G92: 0 | H92: 0 | I92: 0 | J92: 0 | K92: 0 | L92: 0 | M92: 0 | N92: 0 | O92: 0 | P92: 0 | Q92: 3 | R92: 2 | S92: 3 | T92: 7 | U92: 2 | V92: 0 | W92: 0 | X92: 0 | Y92: 0 | Z92: 0 | AA92: 0 | AB92: 0 | AC92: 0 | AD92: 0 | AE92: 0 | AF92: 0 | AG92: 0 | AH92: 0 | AI92: 0 | AJ92: 0 | AK92: 0 | AL92: 0 | AM92: 23.16 | AN92: 29.26 | AO92: Thu | AP92: 1500 | AQ92: 0 | AR92: 1 | AS92: 16 | AT92: 7 | AU92: 0 | AV92: 0 | AW92: 0 | AX92: 0 | AY92: 0 | AZ92: 0 | BA92: 0 | BB92: 0 | BC92: 0 | BD92: 1 | BE92: 0 | BF92: 5 | BG92: 8 | BH92: 6 | BI92: 3 | BJ92: 1 | BK92: 0 | BL92: 0 | BM92: 0 | BN92: 0 | BO92: 0 | BP92: 0 | BQ92: 0 | BR92: 0 | BS92: 0 | BT92: 0 | BU92: 0 | BV92: 0 | BW92: 0 | BX92: 0 | BY92: 0 | BZ92: 0 | CA92: 23.72 | CB92: 29.84 | CC92: Thu | CD92: 1500 | CE92: 0 | CF92: 1 | CG92: 26 | CH92: 14 | CI92: 0 | CJ92: 0 | CK92: 0 | CL92: 0 | CM92: 0 | CN92: 0 | CO92: 0 | CP92: 0 | CQ92: 0 | CR92: 0 | CS92: 3 | CT92: 7 | CU92: 11 | CV92: 13 | CW92: 5 | CX92: 1 | CY92: 0 | CZ92: 0 | DA92: 0 | DB92: 0 | DC92: 0 | DD92: 0 | DE92: 0 | DF92: 0 | DG92: 0 | DH92: 0 | DI92: 0 | DJ92: 0 | DK92: 0 | DL92: 0 | DM92: 0 | DN92: 0 | DO92: 23.49 | DP92: 29.65 | DQ92: 0 | DR92: 0 | DS92: 10 | DT92: 7 | DU92: 0 | DV92: 0 | DW92: 0 | DX92: 0 | DY92: 0 | DZ92: 0 | EA92: 0 | EB92: 0 | EC92: 17 | ED92: 0 | EE92: 1 | EF92: 16 | EG92: 7 | EH92: 0 | EI92: 0 | EJ92: 0 | EK92: 0 | EL92: 0 | EM92: 0 | EN92: 0 | EO92: 0 | EP92: 24 | EQ92: 0 | ER92: 1 | ES92: 26 | ET92: 14 | EU92: 0 | EV92: 0 | EW92: 0 | EX92: 0 | EY92: 0 | EZ92: 0 | FA92: 0 | FB92: 0 | FC92: 41
A93: Thu | B93: 1600 | C93: 0 | D93: 1 | E93: 22 | F93: 18 | G93: 0 | H93: 0 | I93: 0 | J93: 0 | K93: 0 | L93: 0 | M93: 0 | N93: 0 | O93: 0 | P93: 2 | Q93: 3 | R93: 6 | S93: 11 | T93: 15 | U93: 3 | V93: 1 | W93: 0 | X93: 0 | Y93: 0 | Z93: 0 | AA93: 0 | AB93: 0 | AC93: 0 | AD93: 0 | AE93: 0 | AF93: 0 | AG93: 0 | AH93: 0 | AI93: 0 | AJ93: 0 | AK93: 0 | AL93: 0 | AM93: 23.55 | AN93: 29.1 | AO93: Thu | AP93: 1600 | AQ93: 0 | AR93: 0 | AS93: 15 | AT93: 15 | AU93: 0 | AV93: 0 | AW93: 0 | AX93: 0 | AY93: 0 | AZ93: 0 | BA93: 0 | BB93: 0 | BC93: 0 | BD93: 2 | BE93: 2 | BF93: 2 | BG93: 8 | BH93: 9 | BI93: 7 | BJ93: 0 | BK93: 0 | BL93: 0 | BM93: 0 | BN93: 0 | BO93: 0 | BP93: 0 | BQ93: 0 | BR93: 0 | BS93: 0 | BT93: 0 | BU93: 0 | BV93: 0 | BW93: 0 | BX93: 0 | BY93: 0 | BZ93: 0 | CA93: 24.29 | CB93: 30.49 | CC93: Thu | CD93: 1600 | CE93: 0 | CF93: 1 | CG93: 37 | CH93: 33 | CI93: 0 | CJ93: 0 | CK93: 0 | CL93: 0 | CM93: 0 | CN93: 0 | CO93: 0 | CP93: 0 | CQ93: 0 | CR93: 2 | CS93: 3 | CT93: 8 | CU93: 19 | CV93: 24 | CW93: 10 | CX93: 1 | CY93: 0 | CZ93: 0 | DA93: 0 | DB93: 0 | DC93: 0 | DD93: 0 | DE93: 0 | DF93: 0 | DG93: 0 | DH93: 0 | DI93: 0 | DJ93: 0 | DK93: 0 | DL93: 0 | DM93: 0 | DN93: 0 | DO93: 23.87 | DP93: 29.93 | DQ93: 0 | DR93: 1 | DS93: 22 | DT93: 18 | DU93: 0 | DV93: 0 | DW93: 0 | DX93: 0 | DY93: 0 | DZ93: 0 | EA93: 0 | EB93: 0 | EC93: 41 | ED93: 0 | EE93: 0 | EF93: 15 | EG93: 15 | EH93: 0 | EI93: 0 | EJ93: 0 | EK93: 0 | EL93: 0 | EM93: 0 | EN93: 0 | EO93: 0 | EP93: 30 | EQ93: 0 | ER93: 1 | ES93: 37 | ET93: 33 | EU93: 0 | EV93: 0 | EW93: 0 | EX93: 0 | EY93: 0 | EZ93: 0 | FA93: 0 | FB93: 0 | FC93: 71
A94: Thu | B94: 1700 | C94: 0 | D94: 0 | E94: 23 | F94: 14 | G94: 1 | H94: 0 | I94: 0 | J94: 0 | K94: 0 | L94: 0 | M94: 0 | N94: 0 | O94: 0 | P94: 0 | Q94: 2 | R94: 8 | S94: 12 | T94: 12 | U94: 4 | V94: 0 | W94: 0 | X94: 0 | Y94: 0 | Z94: 0 | AA94: 0 | AB94: 0 | AC94: 0 | AD94: 0 | AE94: 0 | AF94: 0 | AG94: 0 | AH94: 0 | AI94: 0 | AJ94: 0 | AK94: 0 | AL94: 0 | AM94: 23.56 | AN94: 28.85 | AO94: Thu | AP94: 1700 | AQ94: 0 | AR94: 2 | AS94: 15 | AT94: 10 | AU94: 0 | AV94: 0 | AW94: 0 | AX94: 0 | AY94: 0 | AZ94: 0 | BA94: 0 | BB94: 0 | BC94: 0 | BD94: 1 | BE94: 2 | BF94: 3 | BG94: 5 | BH94: 13 | BI94: 3 | BJ94: 0 | BK94: 0 | BL94: 0 | BM94: 0 | BN94: 0 | BO94: 0 | BP94: 0 | BQ94: 0 | BR94: 0 | BS94: 0 | BT94: 0 | BU94: 0 | BV94: 0 | BW94: 0 | BX94: 0 | BY94: 0 | BZ94: 0 | CA94: 24.31 | CB94: 29.21 | CC94: Thu | CD94: 1700 | CE94: 0 | CF94: 2 | CG94: 38 | CH94: 24 | CI94: 1 | CJ94: 0 | CK94: 0 | CL94: 0 | CM94: 0 | CN94: 0 | CO94: 0 | CP94: 0 | CQ94: 0 | CR94: 0 | CS94: 2 | CT94: 11 | CU94: 17 | CV94: 25 | CW94: 7 | CX94: 0 | CY94: 0 | CZ94: 0 | DA94: 0 | DB94: 0 | DC94: 0 | DD94: 0 | DE94: 0 | DF94: 0 | DG94: 0 | DH94: 0 | DI94: 0 | DJ94: 0 | DK94: 0 | DL94: 0 | DM94: 0 | DN94: 0 | DO94: 23.87 | DP94: 29.07 | DQ94: 0 | DR94: 0 | DS94: 23 | DT94: 14 | DU94: 1 | DV94: 0 | DW94: 0 | DX94: 0 | DY94: 0 | DZ94: 0 | EA94: 0 | EB94: 0 | EC94: 38 | ED94: 0 | EE94: 2 | EF94: 15 | EG94: 10 | EH94: 0 | EI94: 0 | EJ94: 0 | EK94: 0 | EL94: 0 | EM94: 0 | EN94: 0 | EO94: 0 | EP94: 27 | EQ94: 0 | ER94: 2 | ES94: 38 | ET94: 24 | EU94: 1 | EV94: 0 | EW94: 0 | EX94: 0 | EY94: 0 | EZ94: 0 | FA94: 0 | FB94: 0 | FC94: 65
A95: Thu | B95: 1800 | C95: 0 | D95: 1 | E95: 18 | F95: 13 | G95: 0 | H95: 0 | I95: 0 | J95: 0 | K95: 0 | L95: 0 | M95: 0 | N95: 0 | O95: 0 | P95: 0 | Q95: 3 | R95: 2 | S95: 10 | T95: 10 | U95: 6 | V95: 1 | W95: 0 | X95: 0 | Y95: 0 | Z95: 0 | AA95: 0 | AB95: 0 | AC95: 0 | AD95: 0 | AE95: 0 | AF95: 0 | AG95: 0 | AH95: 0 | AI95: 0 | AJ95: 0 | AK95: 0 | AL95: 0 | AM95: 24.95 | AN95: 30.4 | AO95: Thu | AP95: 1800 | AQ95: 1 | AR95: 0 | AS95: 15 | AT95: 8 | AU95: 0 | AV95: 0 | AW95: 0 | AX95: 0 | AY95: 0 | AZ95: 0 | BA95: 0 | BB95: 0 | BC95: 0 | BD95: 1 | BE95: 0 | BF95: 2 | BG95: 6 | BH95: 8 | BI95: 7 | BJ95: 0 | BK95: 0 | BL95: 0 | BM95: 0 | BN95: 0 | BO95: 0 | BP95: 0 | BQ95: 0 | BR95: 0 | BS95: 0 | BT95: 0 | BU95: 0 | BV95: 0 | BW95: 0 | BX95: 0 | BY95: 0 | BZ95: 0 | CA95: 26 | CB95: 30.7 | CC95: Thu | CD95: 1800 | CE95: 1 | CF95: 1 | CG95: 33 | CH95: 21 | CI95: 0 | CJ95: 0 | CK95: 0 | CL95: 0 | CM95: 0 | CN95: 0 | CO95: 0 | CP95: 0 | CQ95: 0 | CR95: 0 | CS95: 3 | CT95: 4 | CU95: 16 | CV95: 18 | CW95: 13 | CX95: 1 | CY95: 0 | CZ95: 0 | DA95: 0 | DB95: 0 | DC95: 0 | DD95: 0 | DE95: 0 | DF95: 0 | DG95: 0 | DH95: 0 | DI95: 0 | DJ95: 0 | DK95: 0 | DL95: 0 | DM95: 0 | DN95: 0 | DO95: 25.4 | DP95: 30.61 | DQ95: 0 | DR95: 1 | DS95: 18 | DT95: 13 | DU95: 0 | DV95: 0 | DW95: 0 | DX95: 0 | DY95: 0 | DZ95: 0 | EA95: 0 | EB95: 0 | EC95: 32 | ED95: 1 | EE95: 0 | EF95: 15 | EG95: 8 | EH95: 0 | EI95: 0 | EJ95: 0 | EK95: 0 | EL95: 0 | EM95: 0 | EN95: 0 | EO95: 0 | EP95: 24 | EQ95: 1 | ER95: 1 | ES95: 33 | ET95: 21 | EU95: 0 | EV95: 0 | EW95: 0 | EX95: 0 | EY95: 0 | EZ95: 0 | FA95: 0 | FB95: 0 | FC95: 56
A96: Thu | B96: 1900 | C96: 0 | D96: 0 | E96: 9 | F96: 8 | G96: 0 | H96: 0 | I96: 0 | J96: 0 | K96: 0 | L96: 0 | M96: 0 | N96: 0 | O96: 0 | P96: 0 | Q96: 1 | R96: 1 | S96: 8 | T96: 6 | U96: 1 | V96: 0 | W96: 0 | X96: 0 | Y96: 0 | Z96: 0 | AA96: 0 | AB96: 0 | AC96: 0 | AD96: 0 | AE96: 0 | AF96: 0 | AG96: 0 | AH96: 0 | AI96: 0 | AJ96: 0 | AK96: 0 | AL96: 0 | AM96: 23.58 | AN96: 28.31 | AO96: Thu | AP96: 1900 | AQ96: 0 | AR96: 0 | AS96: 6 | AT96: 2 | AU96: 0 | AV96: 0 | AW96: 0 | AX96: 0 | AY96: 0 | AZ96: 0 | BA96: 0 | BB96: 0 | BC96: 0 | BD96: 1 | BE96: 2 | BF96: 1 | BG96: 3 | BH96: 1 | BI96: 0 | BJ96: 0 | BK96: 0 | BL96: 0 | BM96: 0 | BN96: 0 | BO96: 0 | BP96: 0 | BQ96: 0 | BR96: 0 | BS96: 0 | BT96: 0 | BU96: 0 | BV96: 0 | BW96: 0 | BX96: 0 | BY96: 0 | BZ96: 0 | CA96: 17.84 | CB96: - | CC96: Thu | CD96: 1900 | CE96: 0 | CF96: 0 | CG96: 15 | CH96: 10 | CI96: 0 | CJ96: 0 | CK96: 0 | CL96: 0 | CM96: 0 | CN96: 0 | CO96: 0 | CP96: 0 | CQ96: 0 | CR96: 0 | CS96: 1 | CT96: 2 | CU96: 11 | CV96: 7 | CW96: 1 | CX96: 0 | CY96: 0 | CZ96: 0 | DA96: 0 | DB96: 0 | DC96: 0 | DD96: 0 | DE96: 0 | DF96: 0 | DG96: 0 | DH96: 0 | DI96: 0 | DJ96: 0 | DK96: 0 | DL96: 0 | DM96: 0 | DN96: 0 | DO96: 21.74 | DP96: 26.85 | DQ96: 0 | DR96: 0 | DS96: 9 | DT96: 8 | DU96: 0 | DV96: 0 | DW96: 0 | DX96: 0 | DY96: 0 | DZ96: 0 | EA96: 0 | EB96: 0 | EC96: 17 | ED96: 0 | EE96: 0 | EF96: 6 | EG96: 2 | EH96: 0 | EI96: 0 | EJ96: 0 | EK96: 0 | EL96: 0 | EM96: 0 | EN96: 0 | EO96: 0 | EP96: 8 | EQ96: 0 | ER96: 0 | ES96: 15 | ET96: 10 | EU96: 0 | EV96: 0 | EW96: 0 | EX96: 0 | EY96: 0 | EZ96: 0 | FA96: 0 | FB96: 0 | FC96: 25
A97: Thu | B97: 2000 | C97: 0 | D97: 0 | E97: 7 | F97: 7 | G97: 0 | H97: 0 | I97: 0 | J97: 0 | K97: 0 | L97: 0 | M97: 0 | N97: 0 | O97: 0 | P97: 0 | Q97: 0 | R97: 1 | S97: 7 | T97: 3 | U97: 2 | V97: 1 | W97: 0 | X97: 0 | Y97: 0 | Z97: 0 | AA97: 0 | AB97: 0 | AC97: 0 | AD97: 0 | AE97: 0 | AF97: 0 | AG97: 0 | AH97: 0 | AI97: 0 | AJ97: 0 | AK97: 0 | AL97: 0 | AM97: 25.66 | AN97: 31.95 | AO97: Thu | AP97: 2000 | AQ97: 0 | AR97: 0 | AS97: 5 | AT97: 2 | AU97: 0 | AV97: 0 | AW97: 0 | AX97: 0 | AY97: 0 | AZ97: 0 | BA97: 0 | BB97: 0 | BC97: 0 | BD97: 0 | BE97: 1 | BF97: 0 | BG97: 2 | BH97: 1 | BI97: 2 | BJ97: 1 | BK97: 0 | BL97: 0 | BM97: 0 | BN97: 0 | BO97: 0 | BP97: 0 | BQ97: 0 | BR97: 0 | BS97: 0 | BT97: 0 | BU97: 0 | BV97: 0 | BW97: 0 | BX97: 0 | BY97: 0 | BZ97: 0 | CA97: 26.19 | CB97: - | CC97: Thu | CD97: 2000 | CE97: 0 | CF97: 0 | CG97: 12 | CH97: 9 | CI97: 0 | CJ97: 0 | CK97: 0 | CL97: 0 | CM97: 0 | CN97: 0 | CO97: 0 | CP97: 0 | CQ97: 0 | CR97: 0 | CS97: 0 | CT97: 1 | CU97: 9 | CV97: 4 | CW97: 4 | CX97: 2 | CY97: 0 | CZ97: 0 | DA97: 0 | DB97: 0 | DC97: 0 | DD97: 0 | DE97: 0 | DF97: 0 | DG97: 0 | DH97: 0 | DI97: 0 | DJ97: 0 | DK97: 0 | DL97: 0 | DM97: 0 | DN97: 0 | DO97: 25.84 | DP97: 31.9 | DQ97: 0 | DR97: 0 | DS97: 7 | DT97: 7 | DU97: 0 | DV97: 0 | DW97: 0 | DX97: 0 | DY97: 0 | DZ97: 0 | EA97: 0 | EB97: 0 | EC97: 14 | ED97: 0 | EE97: 0 | EF97: 5 | EG97: 2 | EH97: 0 | EI97: 0 | EJ97: 0 | EK97: 0 | EL97: 0 | EM97: 0 | EN97: 0 | EO97: 0 | EP97: 7 | EQ97: 0 | ER97: 0 | ES97: 12 | ET97: 9 | EU97: 0 | EV97: 0 | EW97: 0 | EX97: 0 | EY97: 0 | EZ97: 0 | FA97: 0 | FB97: 0 | FC97: 21
A98: Thu | B98: 2100 | C98: 0 | D98: 0 | E98: 6 | F98: 3 | G98: 0 | H98: 0 | I98: 0 | J98: 0 | K98: 0 | L98: 0 | M98: 0 | N98: 0 | O98: 0 | P98: 0 | Q98: 2 | R98: 1 | S98: 3 | T98: 2 | U98: 1 | V98: 0 | W98: 0 | X98: 0 | Y98: 0 | Z98: 0 | AA98: 0 | AB98: 0 | AC98: 0 | AD98: 0 | AE98: 0 | AF98: 0 | AG98: 0 | AH98: 0 | AI98: 0 | AJ98: 0 | AK98: 0 | AL98: 0 | AM98: 22.03 | AN98: - | AO98: Thu | AP98: 2100 | AQ98: 0 | AR98: 0 | AS98: 4 | AT98: 0 | AU98: 0 | AV98: 0 | AW98: 0 | AX98: 0 | AY98: 0 | AZ98: 0 | BA98: 0 | BB98: 0 | BC98: 0 | BD98: 1 | BE98: 0 | BF98: 1 | BG98: 0 | BH98: 1 | BI98: 0 | BJ98: 1 | BK98: 0 | BL98: 0 | BM98: 0 | BN98: 0 | BO98: 0 | BP98: 0 | BQ98: 0 | BR98: 0 | BS98: 0 | BT98: 0 | BU98: 0 | BV98: 0 | BW98: 0 | BX98: 0 | BY98: 0 | BZ98: 0 | CA98: 22.37 | CB98: - | CC98: Thu | CD98: 2100 | CE98: 0 | CF98: 0 | CG98: 10 | CH98: 3 | CI98: 0 | CJ98: 0 | CK98: 0 | CL98: 0 | CM98: 0 | CN98: 0 | CO98: 0 | CP98: 0 | CQ98: 0 | CR98: 0 | CS98: 2 | CT98: 2 | CU98: 3 | CV98: 3 | CW98: 1 | CX98: 1 | CY98: 0 | CZ98: 0 | DA98: 0 | DB98: 0 | DC98: 0 | DD98: 0 | DE98: 0 | DF98: 0 | DG98: 0 | DH98: 0 | DI98: 0 | DJ98: 0 | DK98: 0 | DL98: 0 | DM98: 0 | DN98: 0 | DO98: 22.14 | DP98: 30.08 | DQ98: 0 | DR98: 0 | DS98: 6 | DT98: 3 | DU98: 0 | DV98: 0 | DW98: 0 | DX98: 0 | DY98: 0 | DZ98: 0 | EA98: 0 | EB98: 0 | EC98: 9 | ED98: 0 | EE98: 0 | EF98: 4 | EG98: 0 | EH98: 0 | EI98: 0 | EJ98: 0 | EK98: 0 | EL98: 0 | EM98: 0 | EN98: 0 | EO98: 0 | EP98: 4 | EQ98: 0 | ER98: 0 | ES98: 10 | ET98: 3 | EU98: 0 | EV98: 0 | EW98: 0 | EX98: 0 | EY98: 0 | EZ98: 0 | FA98: 0 | FB98: 0 | FC98: 13
A99: Thu | B99: 2200 | C99: 0 | D99: 0 | E99: 1 | F99: 4 | G99: 0 | H99: 0 | I99: 0 | J99: 0 | K99: 0 | L99: 0 | M99: 0 | N99: 0 | O99: 0 | P99: 0 | Q99: 0 | R99: 1 | S99: 0 | T99: 4 | U99: 0 | V99: 0 | W99: 0 | X99: 0 | Y99: 0 | Z99: 0 | AA99: 0 | AB99: 0 | AC99: 0 | AD99: 0 | AE99: 0 | AF99: 0 | AG99: 0 | AH99: 0 | AI99: 0 | AJ99: 0 | AK99: 0 | AL99: 0 | AM99: 24.17 | AN99: - | AO99: Thu | AP99: 2200 | AQ99: 0 | AR99: 0 | AS99: 5 | AT99: 1 | AU99: 0 | AV99: 0 | AW99: 0 | AX99: 0 | AY99: 0 | AZ99: 0 | BA99: 0 | BB99: 0 | BC99: 0 | BD99: 0 | BE99: 0 | BF99: 1 | BG99: 2 | BH99: 2 | BI99: 1 | BJ99: 0 | BK99: 0 | BL99: 0 | BM99: 0 | BN99: 0 | BO99: 0 | BP99: 0 | BQ99: 0 | BR99: 0 | BS99: 0 | BT99: 0 | BU99: 0 | BV99: 0 | BW99: 0 | BX99: 0 | BY99: 0 | BZ99: 0 | CA99: 26.41 | CB99: - | CC99: Thu | CD99: 2200 | CE99: 0 | CF99: 0 | CG99: 6 | CH99: 5 | CI99: 0 | CJ99: 0 | CK99: 0 | CL99: 0 | CM99: 0 | CN99: 0 | CO99: 0 | CP99: 0 | CQ99: 0 | CR99: 0 | CS99: 0 | CT99: 2 | CU99: 2 | CV99: 6 | CW99: 1 | CX99: 0 | CY99: 0 | CZ99: 0 | DA99: 0 | DB99: 0 | DC99: 0 | DD99: 0 | DE99: 0 | DF99: 0 | DG99: 0 | DH99: 0 | DI99: 0 | DJ99: 0 | DK99: 0 | DL99: 0 | DM99: 0 | DN99: 0 | DO99: 25.39 | DP99: 29.24 | DQ99: 0 | DR99: 0 | DS99: 1 | DT99: 4 | DU99: 0 | DV99: 0 | DW99: 0 | DX99: 0 | DY99: 0 | DZ99: 0 | EA99: 0 | EB99: 0 | EC99: 5 | ED99: 0 | EE99: 0 | EF99: 5 | EG99: 1 | EH99: 0 | EI99: 0 | EJ99: 0 | EK99: 0 | EL99: 0 | EM99: 0 | EN99: 0 | EO99: 0 | EP99: 6 | EQ99: 0 | ER99: 0 | ES99: 6 | ET99: 5 | EU99: 0 | EV99: 0 | EW99: 0 | EX99: 0 | EY99: 0 | EZ99: 0 | FA99: 0 | FB99: 0 | FC99: 11
A100: Thu | B100: 2300 | C100: 0 | D100: 0 | E100: 1 | F100: 0 | G100: 0 | H100: 0 | I100: 0 | J100: 0 | K100: 0 | L100: 0 | M100: 0 | N100: 0 | O100: 0 | P100: 0 | Q100: 0 | R100: 0 | S100: 1 | T100: 0 | U100: 0 | V100: 0 | W100: 0 | X100: 0 | Y100: 0 | Z100: 0 | AA100: 0 | AB100: 0 | AC100: 0 | AD100: 0 | AE100: 0 | AF100: 0 | AG100: 0 | AH100: 0 | AI100: 0 | AJ100: 0 | AK100: 0 | AL100: 0 | AM100: 21.41 | AN100: - | AO100: Thu | AP100: 2300 | AQ100: 0 | AR100: 0 | AS100: 0 | AT100: 0 | AU100: 0 | AV100: 0 | AW100: 0 | AX100: 0 | AY100: 0 | AZ100: 0 | BA100: 0 | BB100: 0 | BC100: 0 | BD100: 0 | BE100: 0 | BF100: 0 | BG100: 0 | BH100: 0 | BI100: 0 | BJ100: 0 | BK100: 0 | BL100: 0 | BM100: 0 | BN100: 0 | BO100: 0 | BP100: 0 | BQ100: 0 | BR100: 0 | BS100: 0 | BT100: 0 | BU100: 0 | BV100: 0 | BW100: 0 | BX100: 0 | BY100: 0 | BZ100: 0 | CA100: - | CB100: - | CC100: Thu | CD100: 2300 | CE100: 0 | CF100: 0 | CG100: 1 | CH100: 0 | CI100: 0 | CJ100: 0 | CK100: 0 | CL100: 0 | CM100: 0 | CN100: 0 | CO100: 0 | CP100: 0 | CQ100: 0 | CR100: 0 | CS100: 0 | CT100: 0 | CU100: 1 | CV100: 0 | CW100: 0 | CX100: 0 | CY100: 0 | CZ100: 0 | DA100: 0 | DB100: 0 | DC100: 0 | DD100: 0 | DE100: 0 | DF100: 0 | DG100: 0 | DH100: 0 | DI100: 0 | DJ100: 0 | DK100: 0 | DL100: 0 | DM100: 0 | DN100: 0 | DO100: 21.41 | DP100: - | DQ100: 0 | DR100: 0 | DS100: 1 | DT100: 0 | DU100: 0 | DV100: 0 | DW100: 0 | DX100: 0 | DY100: 0 | DZ100: 0 | EA100: 0 | EB100: 0 | EC100: 1 | ED100: 0 | EE100: 0 | EF100: 0 | EG100: 0 | EH100: 0 | EI100: 0 | EJ100: 0 | EK100: 0 | EL100: 0 | EM100: 0 | EN100: 0 | EO100: 0 | EP100: 0 | EQ100: 0 | ER100: 0 | ES100: 1 | ET100: 0 | EU100: 0 | EV100: 0 | EW100: 0 | EX100: 0 | EY100: 0 | EZ100: 0 | FA100: 0 | FB100: 0 | FC100: 1
A101: Fri | B101: 0 | C101: 0 | D101: 0 | E101: 1 | F101: 0 | G101: 0 | H101: 0 | I101: 0 | J101: 0 | K101: 0 | L101: 0 | M101: 0 | N101: 0 | O101: 0 | P101: 0 | Q101: 1 | R101: 0 | S101: 0 | T101: 0 | U101: 0 | V101: 0 | W101: 0 | X101: 0 | Y101: 0 | Z101: 0 | AA101: 0 | AB101: 0 | AC101: 0 | AD101: 0 | AE101: 0 | AF101: 0 | AG101: 0 | AH101: 0 | AI101: 0 | AJ101: 0 | AK101: 0 | AL101: 0 | AM101: 12.83 | AN101: - | AO101: Fri | AP101: 0 | AQ101: 0 | AR101: 0 | AS101: 1 | AT101: 0 | AU101: 0 | AV101: 0 | AW101: 0 | AX101: 0 | AY101: 0 | AZ101: 0 | BA101: 0 | BB101: 0 | BC101: 0 | BD101: 1 | BE101: 0 | BF101: 0 | BG101: 0 | BH101: 0 | BI101: 0 | BJ101: 0 | BK101: 0 | BL101: 0 | BM101: 0 | BN101: 0 | BO101: 0 | BP101: 0 | BQ101: 0 | BR101: 0 | BS101: 0 | BT101: 0 | BU101: 0 | BV101: 0 | BW101: 0 | BX101: 0 | BY101: 0 | BZ101: 0 | CA101: 8.93 | CB101: - | CC101: Fri | CD101: 0 | CE101: 0 | CF101: 0 | CG101: 2 | CH101: 0 | CI101: 0 | CJ101: 0 | CK101: 0 | CL101: 0 | CM101: 0 | CN101: 0 | CO101: 0 | CP101: 0 | CQ101: 0 | CR101: 0 | CS101: 1 | CT101: 0 | CU101: 0 | CV101: 0 | CW101: 0 | CX101: 0 | CY101: 0 | CZ101: 0 | DA101: 0 | DB101: 0 | DC101: 0 | DD101: 0 | DE101: 0 | DF101: 0 | DG101: 0 | DH101: 0 | DI101: 0 | DJ101: 0 | DK101: 0 | DL101: 0 | DM101: 0 | DN101: 0 | DO101: 10.88 | DP101: - | DQ101: 0 | DR101: 0 | DS101: 1 | DT101: 0 | DU101: 0 | DV101: 0 | DW101: 0 | DX101: 0 | DY101: 0 | DZ101: 0 | EA101: 0 | EB101: 0 | EC101: 1 | ED101: 0 | EE101: 0 | EF101: 1 | EG101: 0 | EH101: 0 | EI101: 0 | EJ101: 0 | EK101: 0 | EL101: 0 | EM101: 0 | EN101: 0 | EO101: 0 | EP101: 1 | EQ101: 0 | ER101: 0 | ES101: 2 | ET101: 0 | EU101: 0 | EV101: 0 | EW101: 0 | EX101: 0 | EY101: 0 | EZ101: 0 | FA101: 0 | FB101: 0 | FC101: 2
A102: Fri | B102: 100 | C102: 0 | D102: 0 | E102: 0 | F102: 0 | G102: 0 | H102: 0 | I102: 0 | J102: 0 | K102: 0 | L102: 0 | M102: 0 | N102: 0 | O102: 0 | P102: 0 | Q102: 0 | R102: 0 | S102: 0 | T102: 0 | U102: 0 | V102: 0 | W102: 0 | X102: 0 | Y102: 0 | Z102: 0 | AA102: 0 | AB102: 0 | AC102: 0 | AD102: 0 | AE102: 0 | AF102: 0 | AG102: 0 | AH102: 0 | AI102: 0 | AJ102: 0 | AK102: 0 | AL102: 0 | AM102: - | AN102: - | AO102: Fri | AP102: 100 | AQ102: 0 | AR102: 0 | AS102: 0 | AT102: 1 | AU102: 0 | AV102: 0 | AW102: 0 | AX102: 0 | AY102: 0 | AZ102: 0 | BA102: 0 | BB102: 0 | BC102: 0 | BD102: 0 | BE102: 0 | BF102: 0 | BG102: 0 | BH102: 1 | BI102: 0 | BJ102: 0 | BK102: 0 | BL102: 0 | BM102: 0 | BN102: 0 | BO102: 0 | BP102: 0 | BQ102: 0 | BR102: 0 | BS102: 0 | BT102: 0 | BU102: 0 | BV102: 0 | BW102: 0 | BX102: 0 | BY102: 0 | BZ102: 0 | CA102: 25.64 | CB102: - | CC102: Fri | CD102: 100 | CE102: 0 | CF102: 0 | CG102: 0 | CH102: 1 | CI102: 0 | CJ102: 0 | CK102: 0 | CL102: 0 | CM102: 0 | CN102: 0 | CO102: 0 | CP102: 0 | CQ102: 0 | CR102: 0 | CS102: 0 | CT102: 0 | CU102: 0 | CV102: 1 | CW102: 0 | CX102: 0 | CY102: 0 | CZ102: 0 | DA102: 0 | DB102: 0 | DC102: 0 | DD102: 0 | DE102: 0 | DF102: 0 | DG102: 0 | DH102: 0 | DI102: 0 | DJ102: 0 | DK102: 0 | DL102: 0 | DM102: 0 | DN102: 0 | DO102: 25.64 | DP102: - | DQ102: 0 | DR102: 0 | DS102: 0 | DT102: 0 | DU102: 0 | DV102: 0 | DW102: 0 | DX102: 0 | DY102: 0 | DZ102: 0 | EA102: 0 | EB102: 0 | EC102: 0 | ED102: 0 | EE102: 0 | EF102: 0 | EG102: 1 | EH102: 0 | EI102: 0 | EJ102: 0 | EK102: 0 | EL102: 0 | EM102: 0 | EN102: 0 | EO102: 0 | EP102: 1 | EQ102: 0 | ER102: 0 | ES102: 0 | ET102: 1 | EU102: 0 | EV102: 0 | EW102: 0 | EX102: 0 | EY102: 0 | EZ102: 0 | FA102: 0 | FB102: 0 | FC102: 1
A103: Fri | B103: 200 | C103: 0 | D103: 0 | E103: 0 | F103: 0 | G103: 0 | H103: 0 | I103: 0 | J103: 0 | K103: 0 | L103: 0 | M103: 0 | N103: 0 | O103: 0 | P103: 0 | Q103: 0 | R103: 0 | S103: 0 | T103: 0 | U103: 0 | V103: 0 | W103: 0 | X103: 0 | Y103: 0 | Z103: 0 | AA103: 0 | AB103: 0 | AC103: 0 | AD103: 0 | AE103: 0 | AF103: 0 | AG103: 0 | AH103: 0 | AI103: 0 | AJ103: 0 | AK103: 0 | AL103: 0 | AM103: - | AN103: - | AO103: Fri | AP103: 200 | AQ103: 0 | AR103: 0 | AS103: 0 | AT103: 0 | AU103: 0 | AV103: 0 | AW103: 0 | AX103: 0 | AY103: 0 | AZ103: 0 | BA103: 0 | BB103: 0 | BC103: 0 | BD103: 0 | BE103: 0 | BF103: 0 | BG103: 0 | BH103: 0 | BI103: 0 | BJ103: 0 | BK103: 0 | BL103: 0 | BM103: 0 | BN103: 0 | BO103: 0 | BP103: 0 | BQ103: 0 | BR103: 0 | BS103: 0 | BT103: 0 | BU103: 0 | BV103: 0 | BW103: 0 | BX103: 0 | BY103: 0 | BZ103: 0 | CA103: - | CB103: - | CC103: Fri | CD103: 200 | CE103: 0 | CF103: 0 | CG103: 0 | CH103: 0 | CI103: 0 | CJ103: 0 | CK103: 0 | CL103: 0 | CM103: 0 | CN103: 0 | CO103: 0 | CP103: 0 | CQ103: 0 | CR103: 0 | CS103: 0 | CT103: 0 | CU103: 0 | CV103: 0 | CW103: 0 | CX103: 0 | CY103: 0 | CZ103: 0 | DA103: 0 | DB103: 0 | DC103: 0 | DD103: 0 | DE103: 0 | DF103: 0 | DG103: 0 | DH103: 0 | DI103: 0 | DJ103: 0 | DK103: 0 | DL103: 0 | DM103: 0 | DN103: 0 | DO103: - | DP103: - | DQ103: 0 | DR103: 0 | DS103: 0 | DT103: 0 | DU103: 0 | DV103: 0 | DW103: 0 | DX103: 0 | DY103: 0 | DZ103: 0 | EA103: 0 | EB103: 0 | EC103: 0 | ED103: 0 | EE103: 0 | EF103: 0 | EG103: 0 | EH103: 0 | EI103: 0 | EJ103: 0 | EK103: 0 | EL103: 0 | EM103: 0 | EN103: 0 | EO103: 0 | EP103: 0 | EQ103: 0 | ER103: 0 | ES103: 0 | ET103: 0 | EU103: 0 | EV103: 0 | EW103: 0 | EX103: 0 | EY103: 0 | EZ103: 0 | FA103: 0 | FB103: 0 | FC103: 0
A104: Fri | B104: 300 | C104: 0 | D104: 0 | E104: 0 | F104: 0 | G104: 0 | H104: 0 | I104: 0 | J104: 0 | K104: 0 | L104: 0 | M104: 0 | N104: 0 | O104: 0 | P104: 0 | Q104: 0 | R104: 0 | S104: 0 | T104: 0 | U104: 0 | V104: 0 | W104: 0 | X104: 0 | Y104: 0 | Z104: 0 | AA104: 0 | AB104: 0 | AC104: 0 | AD104: 0 | AE104: 0 | AF104: 0 | AG104: 0 | AH104: 0 | AI104: 0 | AJ104: 0 | AK104: 0 | AL104: 0 | AM104: - | AN104: - | AO104: Fri | AP104: 300 | AQ104: 0 | AR104: 0 | AS104: 0 | AT104: 0 | AU104: 0 | AV104: 0 | AW104: 0 | AX104: 0 | AY104: 0 | AZ104: 0 | BA104: 0 | BB104: 0 | BC104: 0 | BD104: 0 | BE104: 0 | BF104: 0 | BG104: 0 | BH104: 0 | BI104: 0 | BJ104: 0 | BK104: 0 | BL104: 0 | BM104: 0 | BN104: 0 | BO104: 0 | BP104: 0 | BQ104: 0 | BR104: 0 | BS104: 0 | BT104: 0 | BU104: 0 | BV104: 0 | BW104: 0 | BX104: 0 | BY104: 0 | BZ104: 0 | CA104: - | CB104: - | CC104: Fri | CD104: 300 | CE104: 0 | CF104: 0 | CG104: 0 | CH104: 0 | CI104: 0 | CJ104: 0 | CK104: 0 | CL104: 0 | CM104: 0 | CN104: 0 | CO104: 0 | CP104: 0 | CQ104: 0 | CR104: 0 | CS104: 0 | CT104: 0 | CU104: 0 | CV104: 0 | CW104: 0 | CX104: 0 | CY104: 0 | CZ104: 0 | DA104: 0 | DB104: 0 | DC104: 0 | DD104: 0 | DE104: 0 | DF104: 0 | DG104: 0 | DH104: 0 | DI104: 0 | DJ104: 0 | DK104: 0 | DL104: 0 | DM104: 0 | DN104: 0 | DO104: - | DP104: - | DQ104: 0 | DR104: 0 | DS104: 0 | DT104: 0 | DU104: 0 | DV104: 0 | DW104: 0 | DX104: 0 | DY104: 0 | DZ104: 0 | EA104: 0 | EB104: 0 | EC104: 0 | ED104: 0 | EE104: 0 | EF104: 0 | EG104: 0 | EH104: 0 | EI104: 0 | EJ104: 0 | EK104: 0 | EL104: 0 | EM104: 0 | EN104: 0 | EO104: 0 | EP104: 0 | EQ104: 0 | ER104: 0 | ES104: 0 | ET104: 0 | EU104: 0 | EV104: 0 | EW104: 0 | EX104: 0 | EY104: 0 | EZ104: 0 | FA104: 0 | FB104: 0 | FC104: 0
A105: Fri | B105: 400 | C105: 0 | D105: 0 | E105: 0 | F105: 0 | G105: 0 | H105: 0 | I105: 0 | J105: 0 | K105: 0 | L105: 0 | M105: 0 | N105: 0 | O105: 0 | P105: 0 | Q105: 0 | R105: 0 | S105: 0 | T105: 0 | U105: 0 | V105: 0 | W105: 0 | X105: 0 | Y105: 0 | Z105: 0 | AA105: 0 | AB105: 0 | AC105: 0 | AD105: 0 | AE105: 0 | AF105: 0 | AG105: 0 | AH105: 0 | AI105: 0 | AJ105: 0 | AK105: 0 | AL105: 0 | AM105: - | AN105: - | AO105: Fri | AP105: 400 | AQ105: 0 | AR105: 0 | AS105: 1 | AT105: 1 | AU105: 0 | AV105: 0 | AW105: 0 | AX105: 0 | AY105: 0 | AZ105: 0 | BA105: 0 | BB105: 0 | BC105: 0 | BD105: 0 | BE105: 0 | BF105: 0 | BG105: 1 | BH105: 0 | BI105: 0 | BJ105: 1 | BK105: 0 | BL105: 0 | BM105: 0 | BN105: 0 | BO105: 0 | BP105: 0 | BQ105: 0 | BR105: 0 | BS105: 0 | BT105: 0 | BU105: 0 | BV105: 0 | BW105: 0 | BX105: 0 | BY105: 0 | BZ105: 0 | CA105: 29.32 | CB105: - | CC105: Fri | CD105: 400 | CE105: 0 | CF105: 0 | CG105: 1 | CH105: 1 | CI105: 0 | CJ105: 0 | CK105: 0 | CL105: 0 | CM105: 0 | CN105: 0 | CO105: 0 | CP105: 0 | CQ105: 0 | CR105: 0 | CS105: 0 | CT105: 0 | CU105: 1 | CV105: 0 | CW105: 0 | CX105: 1 | CY105: 0 | CZ105: 0 | DA105: 0 | DB105: 0 | DC105: 0 | DD105: 0 | DE105: 0 | DF105: 0 | DG105: 0 | DH105: 0 | DI105: 0 | DJ105: 0 | DK105: 0 | DL105: 0 | DM105: 0 | DN105: 0 | DO105: 29.32 | DP105: - | DQ105: 0 | DR105: 0 | DS105: 0 | DT105: 0 | DU105: 0 | DV105: 0 | DW105: 0 | DX105: 0 | DY105: 0 | DZ105: 0 | EA105: 0 | EB105: 0 | EC105: 0 | ED105: 0 | EE105: 0 | EF105: 1 | EG105: 1 | EH105: 0 | EI105: 0 | EJ105: 0 | EK105: 0 | EL105: 0 | EM105: 0 | EN105: 0 | EO105: 0 | EP105: 2 | EQ105: 0 | ER105: 0 | ES105: 1 | ET105: 1 | EU105: 0 | EV105: 0 | EW105: 0 | EX105: 0 | EY105: 0 | EZ105: 0 | FA105: 0 | FB105: 0 | FC105: 2
A106: Fri | B106: 500 | C106: 0 | D106: 0 | E106: 1 | F106: 0 | G106: 0 | H106: 0 | I106: 0 | J106: 0 | K106: 0 | L106: 0 | M106: 0 | N106: 0 | O106: 0 | P106: 0 | Q106: 0 | R106: 0 | S106: 0 | T106: 0 | U106: 0 | V106: 0 | W106: 1 | X106: 0 | Y106: 0 | Z106: 0 | AA106: 0 | AB106: 0 | AC106: 0 | AD106: 0 | AE106: 0 | AF106: 0 | AG106: 0 | AH106: 0 | AI106: 0 | AJ106: 0 | AK106: 0 | AL106: 0 | AM106: 42.37 | AN106: - | AO106: Fri | AP106: 500 | AQ106: 0 | AR106: 0 | AS106: 3 | AT106: 3 | AU106: 0 | AV106: 0 | AW106: 0 | AX106: 0 | AY106: 0 | AZ106: 0 | BA106: 0 | BB106: 0 | BC106: 0 | BD106: 0 | BE106: 1 | BF106: 0 | BG106: 1 | BH106: 4 | BI106: 0 | BJ106: 0 | BK106: 0 | BL106: 0 | BM106: 0 | BN106: 0 | BO106: 0 | BP106: 0 | BQ106: 0 | BR106: 0 | BS106: 0 | BT106: 0 | BU106: 0 | BV106: 0 | BW106: 0 | BX106: 0 | BY106: 0 | BZ106: 0 | CA106: 24.37 | CB106: - | CC106: Fri | CD106: 500 | CE106: 0 | CF106: 0 | CG106: 4 | CH106: 3 | CI106: 0 | CJ106: 0 | CK106: 0 | CL106: 0 | CM106: 0 | CN106: 0 | CO106: 0 | CP106: 0 | CQ106: 0 | CR106: 0 | CS106: 0 | CT106: 0 | CU106: 1 | CV106: 4 | CW106: 0 | CX106: 0 | CY106: 1 | CZ106: 0 | DA106: 0 | DB106: 0 | DC106: 0 | DD106: 0 | DE106: 0 | DF106: 0 | DG106: 0 | DH106: 0 | DI106: 0 | DJ106: 0 | DK106: 0 | DL106: 0 | DM106: 0 | DN106: 0 | DO106: 26.94 | DP106: - | DQ106: 0 | DR106: 0 | DS106: 1 | DT106: 0 | DU106: 0 | DV106: 0 | DW106: 0 | DX106: 0 | DY106: 0 | DZ106: 0 | EA106: 0 | EB106: 0 | EC106: 1 | ED106: 0 | EE106: 0 | EF106: 3 | EG106: 3 | EH106: 0 | EI106: 0 | EJ106: 0 | EK106: 0 | EL106: 0 | EM106: 0 | EN106: 0 | EO106: 0 | EP106: 6 | EQ106: 0 | ER106: 0 | ES106: 4 | ET106: 3 | EU106: 0 | EV106: 0 | EW106: 0 | EX106: 0 | EY106: 0 | EZ106: 0 | FA106: 0 | FB106: 0 | FC106: 7
A107: Fri | B107: 600 | C107: 0 | D107: 0 | E107: 2 | F107: 3 | G107: 0 | H107: 0 | I107: 0 | J107: 0 | K107: 0 | L107: 0 | M107: 0 | N107: 0 | O107: 0 | P107: 0 | Q107: 1 | R107: 2 | S107: 1 | T107: 1 | U107: 0 | V107: 0 | W107: 0 | X107: 0 | Y107: 0 | Z107: 0 | AA107: 0 | AB107: 0 | AC107: 0 | AD107: 0 | AE107: 0 | AF107: 0 | AG107: 0 | AH107: 0 | AI107: 0 | AJ107: 0 | AK107: 0 | AL107: 0 | AM107: 19.68 | AN107: - | AO107: Fri | AP107: 600 | AQ107: 0 | AR107: 0 | AS107: 8 | AT107: 11 | AU107: 0 | AV107: 0 | AW107: 0 | AX107: 0 | AY107: 0 | AZ107: 0 | BA107: 0 | BB107: 0 | BC107: 0 | BD107: 0 | BE107: 1 | BF107: 2 | BG107: 4 | BH107: 5 | BI107: 4 | BJ107: 3 | BK107: 0 | BL107: 0 | BM107: 0 | BN107: 0 | BO107: 0 | BP107: 0 | BQ107: 0 | BR107: 0 | BS107: 0 | BT107: 0 | BU107: 0 | BV107: 0 | BW107: 0 | BX107: 0 | BY107: 0 | BZ107: 0 | CA107: 26.93 | CB107: 33.24 | CC107: Fri | CD107: 600 | CE107: 0 | CF107: 0 | CG107: 10 | CH107: 14 | CI107: 0 | CJ107: 0 | CK107: 0 | CL107: 0 | CM107: 0 | CN107: 0 | CO107: 0 | CP107: 0 | CQ107: 0 | CR107: 0 | CS107: 1 | CT107: 4 | CU107: 5 | CV107: 6 | CW107: 4 | CX107: 3 | CY107: 0 | CZ107: 0 | DA107: 0 | DB107: 0 | DC107: 0 | DD107: 0 | DE107: 0 | DF107: 0 | DG107: 0 | DH107: 0 | DI107: 0 | DJ107: 0 | DK107: 0 | DL107: 0 | DM107: 0 | DN107: 0 | DO107: 25.42 | DP107: 32.33 | DQ107: 0 | DR107: 0 | DS107: 2 | DT107: 3 | DU107: 0 | DV107: 0 | DW107: 0 | DX107: 0 | DY107: 0 | DZ107: 0 | EA107: 0 | EB107: 0 | EC107: 5 | ED107: 0 | EE107: 0 | EF107: 8 | EG107: 11 | EH107: 0 | EI107: 0 | EJ107: 0 | EK107: 0 | EL107: 0 | EM107: 0 | EN107: 0 | EO107: 0 | EP107: 19 | EQ107: 0 | ER107: 0 | ES107: 10 | ET107: 14 | EU107: 0 | EV107: 0 | EW107: 0 | EX107: 0 | EY107: 0 | EZ107: 0 | FA107: 0 | FB107: 0 | FC107: 24
A108: Fri | B108: 700 | C108: 0 | D108: 0 | E108: 4 | F108: 7 | G108: 0 | H108: 0 | I108: 0 | J108: 0 | K108: 0 | L108: 0 | M108: 0 | N108: 1 | O108: 0 | P108: 1 | Q108: 0 | R108: 0 | S108: 3 | T108: 5 | U108: 2 | V108: 1 | W108: 0 | X108: 0 | Y108: 0 | Z108: 0 | AA108: 0 | AB108: 0 | AC108: 0 | AD108: 0 | AE108: 0 | AF108: 0 | AG108: 0 | AH108: 0 | AI108: 0 | AJ108: 0 | AK108: 0 | AL108: 0 | AM108: 25.67 | AN108: 31.99 | AO108: Fri | AP108: 700 | AQ108: 0 | AR108: 1 | AS108: 15 | AT108: 11 | AU108: 0 | AV108: 0 | AW108: 0 | AX108: 0 | AY108: 0 | AZ108: 0 | BA108: 0 | BB108: 0 | BC108: 0 | BD108: 1 | BE108: 0 | BF108: 5 | BG108: 6 | BH108: 9 | BI108: 5 | BJ108: 1 | BK108: 0 | BL108: 0 | BM108: 0 | BN108: 0 | BO108: 0 | BP108: 0 | BQ108: 0 | BR108: 0 | BS108: 0 | BT108: 0 | BU108: 0 | BV108: 0 | BW108: 0 | BX108: 0 | BY108: 0 | BZ108: 0 | CA108: 24.97 | CB108: 30.34 | CC108: Fri | CD108: 700 | CE108: 0 | CF108: 1 | CG108: 19 | CH108: 18 | CI108: 0 | CJ108: 0 | CK108: 0 | CL108: 0 | CM108: 0 | CN108: 0 | CO108: 0 | CP108: 1 | CQ108: 0 | CR108: 1 | CS108: 0 | CT108: 5 | CU108: 9 | CV108: 14 | CW108: 7 | CX108: 2 | CY108: 0 | CZ108: 0 | DA108: 0 | DB108: 0 | DC108: 0 | DD108: 0 | DE108: 0 | DF108: 0 | DG108: 0 | DH108: 0 | DI108: 0 | DJ108: 0 | DK108: 0 | DL108: 0 | DM108: 0 | DN108: 0 | DO108: 25.19 | DP108: 31.08 | DQ108: 0 | DR108: 0 | DS108: 4 | DT108: 7 | DU108: 0 | DV108: 0 | DW108: 0 | DX108: 0 | DY108: 0 | DZ108: 0 | EA108: 0 | EB108: 1 | EC108: 12 | ED108: 0 | EE108: 1 | EF108: 15 | EG108: 11 | EH108: 0 | EI108: 0 | EJ108: 0 | EK108: 0 | EL108: 0 | EM108: 0 | EN108: 0 | EO108: 0 | EP108: 27 | EQ108: 0 | ER108: 1 | ES108: 19 | ET108: 18 | EU108: 0 | EV108: 0 | EW108: 0 | EX108: 0 | EY108: 0 | EZ108: 0 | FA108: 0 | FB108: 1 | FC108: 39
A109: Fri | B109: 800 | C109: 0 | D109: 0 | E109: 11 | F109: 5 | G109: 1 | H109: 0 | I109: 0 | J109: 0 | K109: 0 | L109: 0 | M109: 0 | N109: 0 | O109: 0 | P109: 0 | Q109: 2 | R109: 2 | S109: 6 | T109: 5 | U109: 2 | V109: 0 | W109: 0 | X109: 0 | Y109: 0 | Z109: 0 | AA109: 0 | AB109: 0 | AC109: 0 | AD109: 0 | AE109: 0 | AF109: 0 | AG109: 0 | AH109: 0 | AI109: 0 | AJ109: 0 | AK109: 0 | AL109: 0 | AM109: 23.39 | AN109: 27.71 | AO109: Fri | AP109: 800 | AQ109: 1 | AR109: 0 | AS109: 21 | AT109: 13 | AU109: 0 | AV109: 0 | AW109: 0 | AX109: 0 | AY109: 0 | AZ109: 0 | BA109: 0 | BB109: 0 | BC109: 0 | BD109: 1 | BE109: 3 | BF109: 0 | BG109: 10 | BH109: 14 | BI109: 6 | BJ109: 1 | BK109: 0 | BL109: 0 | BM109: 0 | BN109: 0 | BO109: 0 | BP109: 0 | BQ109: 0 | BR109: 0 | BS109: 0 | BT109: 0 | BU109: 0 | BV109: 0 | BW109: 0 | BX109: 0 | BY109: 0 | BZ109: 0 | CA109: 25.82 | CB109: 32.45 | CC109: Fri | CD109: 800 | CE109: 1 | CF109: 0 | CG109: 32 | CH109: 18 | CI109: 1 | CJ109: 0 | CK109: 0 | CL109: 0 | CM109: 0 | CN109: 0 | CO109: 0 | CP109: 0 | CQ109: 0 | CR109: 0 | CS109: 2 | CT109: 2 | CU109: 16 | CV109: 19 | CW109: 8 | CX109: 1 | CY109: 0 | CZ109: 0 | DA109: 0 | DB109: 0 | DC109: 0 | DD109: 0 | DE109: 0 | DF109: 0 | DG109: 0 | DH109: 0 | DI109: 0 | DJ109: 0 | DK109: 0 | DL109: 0 | DM109: 0 | DN109: 0 | DO109: 25.03 | DP109: 31.98 | DQ109: 0 | DR109: 0 | DS109: 11 | DT109: 5 | DU109: 1 | DV109: 0 | DW109: 0 | DX109: 0 | DY109: 0 | DZ109: 0 | EA109: 0 | EB109: 0 | EC109: 17 | ED109: 1 | EE109: 0 | EF109: 21 | EG109: 13 | EH109: 0 | EI109: 0 | EJ109: 0 | EK109: 0 | EL109: 0 | EM109: 0 | EN109: 0 | EO109: 0 | EP109: 35 | EQ109: 1 | ER109: 0 | ES109: 32 | ET109: 18 | EU109: 1 | EV109: 0 | EW109: 0 | EX109: 0 | EY109: 0 | EZ109: 0 | FA109: 0 | FB109: 0 | FC109: 52
A110: Fri | B110: 900 | C110: 0 | D110: 0 | E110: 18 | F110: 2 | G110: 0 | H110: 0 | I110: 0 | J110: 0 | K110: 0 | L110: 0 | M110: 0 | N110: 0 | O110: 0 | P110: 0 | Q110: 1 | R110: 2 | S110: 7 | T110: 8 | U110: 2 | V110: 0 | W110: 0 | X110: 0 | Y110: 0 | Z110: 0 | AA110: 0 | AB110: 0 | AC110: 0 | AD110: 0 | AE110: 0 | AF110: 0 | AG110: 0 | AH110: 0 | AI110: 0 | AJ110: 0 | AK110: 0 | AL110: 0 | AM110: 24.31 | AN110: 29.76 | AO110: Fri | AP110: 900 | AQ110: 0 | AR110: 0 | AS110: 16 | AT110: 16 | AU110: 1 | AV110: 0 | AW110: 0 | AX110: 0 | AY110: 0 | AZ110: 0 | BA110: 0 | BB110: 0 | BC110: 0 | BD110: 2 | BE110: 0 | BF110: 3 | BG110: 9 | BH110: 12 | BI110: 7 | BJ110: 0 | BK110: 0 | BL110: 0 | BM110: 0 | BN110: 0 | BO110: 0 | BP110: 0 | BQ110: 0 | BR110: 0 | BS110: 0 | BT110: 0 | BU110: 0 | BV110: 0 | BW110: 0 | BX110: 0 | BY110: 0 | BZ110: 0 | CA110: 24.77 | CB110: 30.12 | CC110: Fri | CD110: 900 | CE110: 0 | CF110: 0 | CG110: 34 | CH110: 18 | CI110: 1 | CJ110: 0 | CK110: 0 | CL110: 0 | CM110: 0 | CN110: 0 | CO110: 0 | CP110: 0 | CQ110: 0 | CR110: 0 | CS110: 1 | CT110: 5 | CU110: 16 | CV110: 20 | CW110: 9 | CX110: 0 | CY110: 0 | CZ110: 0 | DA110: 0 | DB110: 0 | DC110: 0 | DD110: 0 | DE110: 0 | DF110: 0 | DG110: 0 | DH110: 0 | DI110: 0 | DJ110: 0 | DK110: 0 | DL110: 0 | DM110: 0 | DN110: 0 | DO110: 24.6 | DP110: 30.05 | DQ110: 0 | DR110: 0 | DS110: 18 | DT110: 2 | DU110: 0 | DV110: 0 | DW110: 0 | DX110: 0 | DY110: 0 | DZ110: 0 | EA110: 0 | EB110: 0 | EC110: 20 | ED110: 0 | EE110: 0 | EF110: 16 | EG110: 16 | EH110: 1 | EI110: 0 | EJ110: 0 | EK110: 0 | EL110: 0 | EM110: 0 | EN110: 0 | EO110: 0 | EP110: 33 | EQ110: 0 | ER110: 0 | ES110: 34 | ET110: 18 | EU110: 1 | EV110: 0 | EW110: 0 | EX110: 0 | EY110: 0 | EZ110: 0 | FA110: 0 | FB110: 0 | FC110: 53
A111: Fri | B111: 1000 | C111: 0 | D111: 1 | E111: 6 | F111: 15 | G111: 1 | H111: 0 | I111: 0 | J111: 0 | K111: 0 | L111: 0 | M111: 1 | N111: 0 | O111: 0 | P111: 0 | Q111: 3 | R111: 4 | S111: 5 | T111: 8 | U111: 4 | V111: 0 | W111: 0 | X111: 0 | Y111: 0 | Z111: 0 | AA111: 0 | AB111: 0 | AC111: 0 | AD111: 0 | AE111: 0 | AF111: 0 | AG111: 0 | AH111: 0 | AI111: 0 | AJ111: 0 | AK111: 0 | AL111: 0 | AM111: 23.36 | AN111: 29.51 | AO111: Fri | AP111: 1000 | AQ111: 0 | AR111: 1 | AS111: 12 | AT111: 8 | AU111: 0 | AV111: 0 | AW111: 0 | AX111: 0 | AY111: 0 | AZ111: 0 | BA111: 0 | BB111: 0 | BC111: 0 | BD111: 2 | BE111: 1 | BF111: 3 | BG111: 5 | BH111: 5 | BI111: 4 | BJ111: 1 | BK111: 0 | BL111: 0 | BM111: 0 | BN111: 0 | BO111: 0 | BP111: 0 | BQ111: 0 | BR111: 0 | BS111: 0 | BT111: 0 | BU111: 0 | BV111: 0 | BW111: 0 | BX111: 0 | BY111: 0 | BZ111: 0 | CA111: 23.53 | CB111: 30.65 | CC111: Fri | CD111: 1000 | CE111: 0 | CF111: 2 | CG111: 18 | CH111: 23 | CI111: 1 | CJ111: 0 | CK111: 0 | CL111: 0 | CM111: 0 | CN111: 0 | CO111: 1 | CP111: 0 | CQ111: 0 | CR111: 0 | CS111: 3 | CT111: 7 | CU111: 10 | CV111: 13 | CW111: 8 | CX111: 1 | CY111: 0 | CZ111: 0 | DA111: 0 | DB111: 0 | DC111: 0 | DD111: 0 | DE111: 0 | DF111: 0 | DG111: 0 | DH111: 0 | DI111: 0 | DJ111: 0 | DK111: 0 | DL111: 0 | DM111: 0 | DN111: 0 | DO111: 23.44 | DP111: 30.31 | DQ111: 0 | DR111: 1 | DS111: 6 | DT111: 15 | DU111: 1 | DV111: 0 | DW111: 0 | DX111: 0 | DY111: 0 | DZ111: 0 | EA111: 1 | EB111: 0 | EC111: 24 | ED111: 0 | EE111: 1 | EF111: 12 | EG111: 8 | EH111: 0 | EI111: 0 | EJ111: 0 | EK111: 0 | EL111: 0 | EM111: 0 | EN111: 0 | EO111: 0 | EP111: 21 | EQ111: 0 | ER111: 2 | ES111: 18 | ET111: 23 | EU111: 1 | EV111: 0 | EW111: 0 | EX111: 0 | EY111: 0 | EZ111: 0 | FA111: 1 | FB111: 0 | FC111: 45
A112: Fri | B112: 1100 | C112: 0 | D112: 0 | E112: 9 | F112: 11 | G112: 0 | H112: 0 | I112: 0 | J112: 0 | K112: 0 | L112: 0 | M112: 0 | N112: 1 | O112: 0 | P112: 0 | Q112: 0 | R112: 4 | S112: 9 | T112: 6 | U112: 2 | V112: 0 | W112: 0 | X112: 0 | Y112: 0 | Z112: 0 | AA112: 0 | AB112: 0 | AC112: 0 | AD112: 0 | AE112: 0 | AF112: 0 | AG112: 0 | AH112: 0 | AI112: 0 | AJ112: 0 | AK112: 0 | AL112: 0 | AM112: 24.01 | AN112: 27.24 | AO112: Fri | AP112: 1100 | AQ112: 0 | AR112: 0 | AS112: 13 | AT112: 13 | AU112: 0 | AV112: 0 | AW112: 0 | AX112: 0 | AY112: 0 | AZ112: 0 | BA112: 0 | BB112: 0 | BC112: 0 | BD112: 0 | BE112: 0 | BF112: 2 | BG112: 9 | BH112: 9 | BI112: 6 | BJ112: 0 | BK112: 0 | BL112: 0 | BM112: 0 | BN112: 0 | BO112: 0 | BP112: 0 | BQ112: 0 | BR112: 0 | BS112: 0 | BT112: 0 | BU112: 0 | BV112: 0 | BW112: 0 | BX112: 0 | BY112: 0 | BZ112: 0 | CA112: 25.69 | CB112: 31.16 | CC112: Fri | CD112: 1100 | CE112: 0 | CF112: 0 | CG112: 22 | CH112: 24 | CI112: 0 | CJ112: 0 | CK112: 0 | CL112: 0 | CM112: 0 | CN112: 0 | CO112: 0 | CP112: 1 | CQ112: 0 | CR112: 0 | CS112: 0 | CT112: 6 | CU112: 18 | CV112: 15 | CW112: 8 | CX112: 0 | CY112: 0 | CZ112: 0 | DA112: 0 | DB112: 0 | DC112: 0 | DD112: 0 | DE112: 0 | DF112: 0 | DG112: 0 | DH112: 0 | DI112: 0 | DJ112: 0 | DK112: 0 | DL112: 0 | DM112: 0 | DN112: 0 | DO112: 24.94 | DP112: 30.45 | DQ112: 0 | DR112: 0 | DS112: 9 | DT112: 11 | DU112: 0 | DV112: 0 | DW112: 0 | DX112: 0 | DY112: 0 | DZ112: 0 | EA112: 0 | EB112: 1 | EC112: 21 | ED112: 0 | EE112: 0 | EF112: 13 | EG112: 13 | EH112: 0 | EI112: 0 | EJ112: 0 | EK112: 0 | EL112: 0 | EM112: 0 | EN112: 0 | EO112: 0 | EP112: 26 | EQ112: 0 | ER112: 0 | ES112: 22 | ET112: 24 | EU112: 0 | EV112: 0 | EW112: 0 | EX112: 0 | EY112: 0 | EZ112: 0 | FA112: 0 | FB112: 1 | FC112: 47
A113: Fri | B113: 1200 | C113: 0 | D113: 1 | E113: 9 | F113: 11 | G113: 1 | H113: 0 | I113: 0 | J113: 0 | K113: 0 | L113: 0 | M113: 0 | N113: 0 | O113: 0 | P113: 0 | Q113: 1 | R113: 6 | S113: 8 | T113: 6 | U113: 1 | V113: 0 | W113: 0 | X113: 0 | Y113: 0 | Z113: 0 | AA113: 0 | AB113: 0 | AC113: 0 | AD113: 0 | AE113: 0 | AF113: 0 | AG113: 0 | AH113: 0 | AI113: 0 | AJ113: 0 | AK113: 0 | AL113: 0 | AM113: 22.21 | AN113: 26.59 | AO113: Fri | AP113: 1200 | AQ113: 0 | AR113: 0 | AS113: 9 | AT113: 13 | AU113: 2 | AV113: 0 | AW113: 0 | AX113: 0 | AY113: 0 | AZ113: 0 | BA113: 0 | BB113: 0 | BC113: 0 | BD113: 1 | BE113: 5 | BF113: 3 | BG113: 3 | BH113: 10 | BI113: 2 | BJ113: 0 | BK113: 0 | BL113: 0 | BM113: 0 | BN113: 0 | BO113: 0 | BP113: 0 | BQ113: 0 | BR113: 0 | BS113: 0 | BT113: 0 | BU113: 0 | BV113: 0 | BW113: 0 | BX113: 0 | BY113: 0 | BZ113: 0 | CA113: 22.36 | CB113: 28.34 | CC113: Fri | CD113: 1200 | CE113: 0 | CF113: 1 | CG113: 18 | CH113: 24 | CI113: 3 | CJ113: 0 | CK113: 0 | CL113: 0 | CM113: 0 | CN113: 0 | CO113: 0 | CP113: 0 | CQ113: 0 | CR113: 0 | CS113: 1 | CT113: 9 | CU113: 11 | CV113: 16 | CW113: 3 | CX113: 0 | CY113: 0 | CZ113: 0 | DA113: 0 | DB113: 0 | DC113: 0 | DD113: 0 | DE113: 0 | DF113: 0 | DG113: 0 | DH113: 0 | DI113: 0 | DJ113: 0 | DK113: 0 | DL113: 0 | DM113: 0 | DN113: 0 | DO113: 22.29 | DP113: 28.33 | DQ113: 0 | DR113: 1 | DS113: 9 | DT113: 11 | DU113: 1 | DV113: 0 | DW113: 0 | DX113: 0 | DY113: 0 | DZ113: 0 | EA113: 0 | EB113: 0 | EC113: 22 | ED113: 0 | EE113: 0 | EF113: 9 | EG113: 13 | EH113: 2 | EI113: 0 | EJ113: 0 | EK113: 0 | EL113: 0 | EM113: 0 | EN113: 0 | EO113: 0 | EP113: 24 | EQ113: 0 | ER113: 1 | ES113: 18 | ET113: 24 | EU113: 3 | EV113: 0 | EW113: 0 | EX113: 0 | EY113: 0 | EZ113: 0 | FA113: 0 | FB113: 0 | FC113: 46
A114: Fri | B114: 1300 | C114: 0 | D114: 0 | E114: 14 | F114: 9 | G114: 1 | H114: 0 | I114: 0 | J114: 0 | K114: 0 | L114: 0 | M114: 0 | N114: 0 | O114: 0 | P114: 0 | Q114: 1 | R114: 2 | S114: 11 | T114: 8 | U114: 2 | V114: 0 | W114: 0 | X114: 0 | Y114: 0 | Z114: 0 | AA114: 0 | AB114: 0 | AC114: 0 | AD114: 0 | AE114: 0 | AF114: 0 | AG114: 0 | AH114: 0 | AI114: 0 | AJ114: 0 | AK114: 0 | AL114: 0 | AM114: 24.12 | AN114: 29.77 | AO114: Fri | AP114: 1300 | AQ114: 0 | AR114: 0 | AS114: 17 | AT114: 12 | AU114: 0 | AV114: 0 | AW114: 0 | AX114: 0 | AY114: 0 | AZ114: 0 | BA114: 0 | BB114: 0 | BC114: 0 | BD114: 0 | BE114: 1 | BF114: 0 | BG114: 12 | BH114: 8 | BI114: 6 | BJ114: 2 | BK114: 0 | BL114: 0 | BM114: 0 | BN114: 0 | BO114: 0 | BP114: 0 | BQ114: 0 | BR114: 0 | BS114: 0 | BT114: 0 | BU114: 0 | BV114: 0 | BW114: 0 | BX114: 0 | BY114: 0 | BZ114: 0 | CA114: 27.03 | CB114: 34.04 | CC114: Fri | CD114: 1300 | CE114: 0 | CF114: 0 | CG114: 31 | CH114: 21 | CI114: 1 | CJ114: 0 | CK114: 0 | CL114: 0 | CM114: 0 | CN114: 0 | CO114: 0 | CP114: 0 | CQ114: 0 | CR114: 0 | CS114: 1 | CT114: 2 | CU114: 23 | CV114: 16 | CW114: 8 | CX114: 2 | CY114: 0 | CZ114: 0 | DA114: 0 | DB114: 0 | DC114: 0 | DD114: 0 | DE114: 0 | DF114: 0 | DG114: 0 | DH114: 0 | DI114: 0 | DJ114: 0 | DK114: 0 | DL114: 0 | DM114: 0 | DN114: 0 | DO114: 25.72 | DP114: 31.31 | DQ114: 0 | DR114: 0 | DS114: 14 | DT114: 9 | DU114: 1 | DV114: 0 | DW114: 0 | DX114: 0 | DY114: 0 | DZ114: 0 | EA114: 0 | EB114: 0 | EC114: 24 | ED114: 0 | EE114: 0 | EF114: 17 | EG114: 12 | EH114: 0 | EI114: 0 | EJ114: 0 | EK114: 0 | EL114: 0 | EM114: 0 | EN114: 0 | EO114: 0 | EP114: 29 | EQ114: 0 | ER114: 0 | ES114: 31 | ET114: 21 | EU114: 1 | EV114: 0 | EW114: 0 | EX114: 0 | EY114: 0 | EZ114: 0 | FA114: 0 | FB114: 0 | FC114: 53
A115: Fri | B115: 1400 | C115: 0 | D115: 0 | E115: 8 | F115: 10 | G115: 0 | H115: 0 | I115: 0 | J115: 0 | K115: 0 | L115: 0 | M115: 0 | N115: 0 | O115: 0 | P115: 1 | Q115: 2 | R115: 2 | S115: 4 | T115: 7 | U115: 2 | V115: 0 | W115: 0 | X115: 0 | Y115: 0 | Z115: 0 | AA115: 0 | AB115: 0 | AC115: 0 | AD115: 0 | AE115: 0 | AF115: 0 | AG115: 0 | AH115: 0 | AI115: 0 | AJ115: 0 | AK115: 0 | AL115: 0 | AM115: 22.38 | AN115: 28.84 | AO115: Fri | AP115: 1400 | AQ115: 0 | AR115: 2 | AS115: 11 | AT115: 16 | AU115: 0 | AV115: 0 | AW115: 0 | AX115: 0 | AY115: 0 | AZ115: 0 | BA115: 0 | BB115: 0 | BC115: 0 | BD115: 1 | BE115: 1 | BF115: 1 | BG115: 10 | BH115: 11 | BI115: 4 | BJ115: 1 | BK115: 0 | BL115: 0 | BM115: 0 | BN115: 0 | BO115: 0 | BP115: 0 | BQ115: 0 | BR115: 0 | BS115: 0 | BT115: 0 | BU115: 0 | BV115: 0 | BW115: 0 | BX115: 0 | BY115: 0 | BZ115: 0 | CA115: 25.56 | CB115: 32.08 | CC115: Fri | CD115: 1400 | CE115: 0 | CF115: 2 | CG115: 19 | CH115: 26 | CI115: 0 | CJ115: 0 | CK115: 0 | CL115: 0 | CM115: 0 | CN115: 0 | CO115: 0 | CP115: 0 | CQ115: 0 | CR115: 1 | CS115: 2 | CT115: 3 | CU115: 14 | CV115: 18 | CW115: 6 | CX115: 1 | CY115: 0 | CZ115: 0 | DA115: 0 | DB115: 0 | DC115: 0 | DD115: 0 | DE115: 0 | DF115: 0 | DG115: 0 | DH115: 0 | DI115: 0 | DJ115: 0 | DK115: 0 | DL115: 0 | DM115: 0 | DN115: 0 | DO115: 24.34 | DP115: 29.58 | DQ115: 0 | DR115: 0 | DS115: 8 | DT115: 10 | DU115: 0 | DV115: 0 | DW115: 0 | DX115: 0 | DY115: 0 | DZ115: 0 | EA115: 0 | EB115: 0 | EC115: 18 | ED115: 0 | EE115: 2 | EF115: 11 | EG115: 16 | EH115: 0 | EI115: 0 | EJ115: 0 | EK115: 0 | EL115: 0 | EM115: 0 | EN115: 0 | EO115: 0 | EP115: 29 | EQ115: 0 | ER115: 2 | ES115: 19 | ET115: 26 | EU115: 0 | EV115: 0 | EW115: 0 | EX115: 0 | EY115: 0 | EZ115: 0 | FA115: 0 | FB115: 0 | FC115: 47
A116: Fri | B116: 1500 | C116: 0 | D116: 0 | E116: 14 | F116: 10 | G116: 0 | H116: 0 | I116: 0 | J116: 0 | K116: 0 | L116: 0 | M116: 0 | N116: 0 | O116: 0 | P116: 0 | Q116: 2 | R116: 7 | S116: 7 | T116: 7 | U116: 1 | V116: 0 | W116: 0 | X116: 0 | Y116: 0 | Z116: 0 | AA116: 0 | AB116: 0 | AC116: 0 | AD116: 0 | AE116: 0 | AF116: 0 | AG116: 0 | AH116: 0 | AI116: 0 | AJ116: 0 | AK116: 0 | AL116: 0 | AM116: 21.56 | AN116: 25.77 | AO116: Fri | AP116: 1500 | AQ116: 0 | AR116: 2 | AS116: 11 | AT116: 12 | AU116: 0 | AV116: 0 | AW116: 0 | AX116: 0 | AY116: 0 | AZ116: 0 | BA116: 0 | BB116: 0 | BC116: 0 | BD116: 0 | BE116: 2 | BF116: 3 | BG116: 6 | BH116: 9 | BI116: 2 | BJ116: 3 | BK116: 0 | BL116: 0 | BM116: 0 | BN116: 0 | BO116: 0 | BP116: 0 | BQ116: 0 | BR116: 0 | BS116: 0 | BT116: 0 | BU116: 0 | BV116: 0 | BW116: 0 | BX116: 0 | BY116: 0 | BZ116: 0 | CA116: 25.38 | CB116: 30.81 | CC116: Fri | CD116: 1500 | CE116: 0 | CF116: 2 | CG116: 25 | CH116: 22 | CI116: 0 | CJ116: 0 | CK116: 0 | CL116: 0 | CM116: 0 | CN116: 0 | CO116: 0 | CP116: 0 | CQ116: 0 | CR116: 0 | CS116: 2 | CT116: 10 | CU116: 13 | CV116: 16 | CW116: 3 | CX116: 3 | CY116: 0 | CZ116: 0 | DA116: 0 | DB116: 0 | DC116: 0 | DD116: 0 | DE116: 0 | DF116: 0 | DG116: 0 | DH116: 0 | DI116: 0 | DJ116: 0 | DK116: 0 | DL116: 0 | DM116: 0 | DN116: 0 | DO116: 23.51 | DP116: 29 | DQ116: 0 | DR116: 0 | DS116: 14 | DT116: 10 | DU116: 0 | DV116: 0 | DW116: 0 | DX116: 0 | DY116: 0 | DZ116: 0 | EA116: 0 | EB116: 0 | EC116: 24 | ED116: 0 | EE116: 2 | EF116: 11 | EG116: 12 | EH116: 0 | EI116: 0 | EJ116: 0 | EK116: 0 | EL116: 0 | EM116: 0 | EN116: 0 | EO116: 0 | EP116: 25 | EQ116: 0 | ER116: 2 | ES116: 25 | ET116: 22 | EU116: 0 | EV116: 0 | EW116: 0 | EX116: 0 | EY116: 0 | EZ116: 0 | FA116: 0 | FB116: 0 | FC116: 49
A117: Fri | B117: 1600 | C117: 0 | D117: 0 | E117: 15 | F117: 10 | G117: 1 | H117: 0 | I117: 0 | J117: 0 | K117: 0 | L117: 0 | M117: 0 | N117: 0 | O117: 0 | P117: 1 | Q117: 1 | R117: 0 | S117: 10 | T117: 10 | U117: 4 | V117: 0 | W117: 0 | X117: 0 | Y117: 0 | Z117: 0 | AA117: 0 | AB117: 0 | AC117: 0 | AD117: 0 | AE117: 0 | AF117: 0 | AG117: 0 | AH117: 0 | AI117: 0 | AJ117: 0 | AK117: 0 | AL117: 0 | AM117: 24.88 | AN117: 30.07 | AO117: Fri | AP117: 1600 | AQ117: 0 | AR117: 0 | AS117: 13 | AT117: 11 | AU117: 0 | AV117: 0 | AW117: 0 | AX117: 0 | AY117: 0 | AZ117: 0 | BA117: 0 | BB117: 0 | BC117: 0 | BD117: 2 | BE117: 1 | BF117: 0 | BG117: 5 | BH117: 10 | BI117: 5 | BJ117: 0 | BK117: 1 | BL117: 0 | BM117: 0 | BN117: 0 | BO117: 0 | BP117: 0 | BQ117: 0 | BR117: 0 | BS117: 0 | BT117: 0 | BU117: 0 | BV117: 0 | BW117: 0 | BX117: 0 | BY117: 0 | BZ117: 0 | CA117: 26.05 | CB117: 31.52 | CC117: Fri | CD117: 1600 | CE117: 0 | CF117: 0 | CG117: 28 | CH117: 21 | CI117: 1 | CJ117: 0 | CK117: 0 | CL117: 0 | CM117: 0 | CN117: 0 | CO117: 0 | CP117: 0 | CQ117: 0 | CR117: 1 | CS117: 1 | CT117: 0 | CU117: 15 | CV117: 20 | CW117: 9 | CX117: 0 | CY117: 1 | CZ117: 0 | DA117: 0 | DB117: 0 | DC117: 0 | DD117: 0 | DE117: 0 | DF117: 0 | DG117: 0 | DH117: 0 | DI117: 0 | DJ117: 0 | DK117: 0 | DL117: 0 | DM117: 0 | DN117: 0 | DO117: 25.44 | DP117: 31.31 | DQ117: 0 | DR117: 0 | DS117: 15 | DT117: 10 | DU117: 1 | DV117: 0 | DW117: 0 | DX117: 0 | DY117: 0 | DZ117: 0 | EA117: 0 | EB117: 0 | EC117: 26 | ED117: 0 | EE117: 0 | EF117: 13 | EG117: 11 | EH117: 0 | EI117: 0 | EJ117: 0 | EK117: 0 | EL117: 0 | EM117: 0 | EN117: 0 | EO117: 0 | EP117: 24 | EQ117: 0 | ER117: 0 | ES117: 28 | ET117: 21 | EU117: 1 | EV117: 0 | EW117: 0 | EX117: 0 | EY117: 0 | EZ117: 0 | FA117: 0 | FB117: 0 | FC117: 50
A118: Fri | B118: 1700 | C118: 0 | D118: 0 | E118: 19 | F118: 16 | G118: 0 | H118: 0 | I118: 0 | J118: 0 | K118: 0 | L118: 0 | M118: 0 | N118: 0 | O118: 0 | P118: 0 | Q118: 3 | R118: 7 | S118: 15 | T118: 7 | U118: 3 | V118: 0 | W118: 0 | X118: 0 | Y118: 0 | Z118: 0 | AA118: 0 | AB118: 0 | AC118: 0 | AD118: 0 | AE118: 0 | AF118: 0 | AG118: 0 | AH118: 0 | AI118: 0 | AJ118: 0 | AK118: 0 | AL118: 0 | AM118: 22.64 | AN118: 27.28 | AO118: Fri | AP118: 1700 | AQ118: 0 | AR118: 2 | AS118: 16 | AT118: 6 | AU118: 0 | AV118: 0 | AW118: 0 | AX118: 0 | AY118: 0 | AZ118: 0 | BA118: 0 | BB118: 0 | BC118: 0 | BD118: 0 | BE118: 1 | BF118: 5 | BG118: 8 | BH118: 6 | BI118: 4 | BJ118: 0 | BK118: 0 | BL118: 0 | BM118: 0 | BN118: 0 | BO118: 0 | BP118: 0 | BQ118: 0 | BR118: 0 | BS118: 0 | BT118: 0 | BU118: 0 | BV118: 0 | BW118: 0 | BX118: 0 | BY118: 0 | BZ118: 0 | CA118: 24.22 | CB118: 30.39 | CC118: Fri | CD118: 1700 | CE118: 0 | CF118: 2 | CG118: 35 | CH118: 22 | CI118: 0 | CJ118: 0 | CK118: 0 | CL118: 0 | CM118: 0 | CN118: 0 | CO118: 0 | CP118: 0 | CQ118: 0 | CR118: 0 | CS118: 3 | CT118: 12 | CU118: 23 | CV118: 13 | CW118: 7 | CX118: 0 | CY118: 0 | CZ118: 0 | DA118: 0 | DB118: 0 | DC118: 0 | DD118: 0 | DE118: 0 | DF118: 0 | DG118: 0 | DH118: 0 | DI118: 0 | DJ118: 0 | DK118: 0 | DL118: 0 | DM118: 0 | DN118: 0 | DO118: 23.29 | DP118: 29.3 | DQ118: 0 | DR118: 0 | DS118: 19 | DT118: 16 | DU118: 0 | DV118: 0 | DW118: 0 | DX118: 0 | DY118: 0 | DZ118: 0 | EA118: 0 | EB118: 0 | EC118: 35 | ED118: 0 | EE118: 2 | EF118: 16 | EG118: 6 | EH118: 0 | EI118: 0 | EJ118: 0 | EK118: 0 | EL118: 0 | EM118: 0 | EN118: 0 | EO118: 0 | EP118: 24 | EQ118: 0 | ER118: 2 | ES118: 35 | ET118: 22 | EU118: 0 | EV118: 0 | EW118: 0 | EX118: 0 | EY118: 0 | EZ118: 0 | FA118: 0 | FB118: 0 | FC118: 59
A119: Fri | B119: 1800 | C119: 0 | D119: 2 | E119: 21 | F119: 9 | G119: 0 | H119: 0 | I119: 0 | J119: 0 | K119: 0 | L119: 0 | M119: 0 | N119: 0 | O119: 0 | P119: 0 | Q119: 2 | R119: 4 | S119: 6 | T119: 13 | U119: 5 | V119: 2 | W119: 0 | X119: 0 | Y119: 0 | Z119: 0 | AA119: 0 | AB119: 0 | AC119: 0 | AD119: 0 | AE119: 0 | AF119: 0 | AG119: 0 | AH119: 0 | AI119: 0 | AJ119: 0 | AK119: 0 | AL119: 0 | AM119: 26.23 | AN119: 31.53 | AO119: Fri | AP119: 1800 | AQ119: 0 | AR119: 1 | AS119: 13 | AT119: 7 | AU119: 1 | AV119: 0 | AW119: 0 | AX119: 0 | AY119: 0 | AZ119: 0 | BA119: 0 | BB119: 0 | BC119: 0 | BD119: 1 | BE119: 2 | BF119: 2 | BG119: 3 | BH119: 10 | BI119: 4 | BJ119: 0 | BK119: 0 | BL119: 0 | BM119: 0 | BN119: 0 | BO119: 0 | BP119: 0 | BQ119: 0 | BR119: 0 | BS119: 0 | BT119: 0 | BU119: 0 | BV119: 0 | BW119: 0 | BX119: 0 | BY119: 0 | BZ119: 0 | CA119: 24.44 | CB119: 30.25 | CC119: Fri | CD119: 1800 | CE119: 0 | CF119: 3 | CG119: 34 | CH119: 16 | CI119: 1 | CJ119: 0 | CK119: 0 | CL119: 0 | CM119: 0 | CN119: 0 | CO119: 0 | CP119: 0 | CQ119: 0 | CR119: 0 | CS119: 2 | CT119: 6 | CU119: 9 | CV119: 23 | CW119: 9 | CX119: 2 | CY119: 0 | CZ119: 0 | DA119: 0 | DB119: 0 | DC119: 0 | DD119: 0 | DE119: 0 | DF119: 0 | DG119: 0 | DH119: 0 | DI119: 0 | DJ119: 0 | DK119: 0 | DL119: 0 | DM119: 0 | DN119: 0 | DO119: 25.5 | DP119: 31.23 | DQ119: 0 | DR119: 2 | DS119: 21 | DT119: 9 | DU119: 0 | DV119: 0 | DW119: 0 | DX119: 0 | DY119: 0 | DZ119: 0 | EA119: 0 | EB119: 0 | EC119: 32 | ED119: 0 | EE119: 1 | EF119: 13 | EG119: 7 | EH119: 1 | EI119: 0 | EJ119: 0 | EK119: 0 | EL119: 0 | EM119: 0 | EN119: 0 | EO119: 0 | EP119: 22 | EQ119: 0 | ER119: 3 | ES119: 34 | ET119: 16 | EU119: 1 | EV119: 0 | EW119: 0 | EX119: 0 | EY119: 0 | EZ119: 0 | FA119: 0 | FB119: 0 | FC119: 54
A120: Fri | B120: 1900 | C120: 0 | D120: 0 | E120: 7 | F120: 10 | G120: 0 | H120: 0 | I120: 0 | J120: 0 | K120: 0 | L120: 0 | M120: 0 | N120: 0 | O120: 0 | P120: 0 | Q120: 0 | R120: 3 | S120: 5 | T120: 5 | U120: 4 | V120: 0 | W120: 0 | X120: 0 | Y120: 0 | Z120: 0 | AA120: 0 | AB120: 0 | AC120: 0 | AD120: 0 | AE120: 0 | AF120: 0 | AG120: 0 | AH120: 0 | AI120: 0 | AJ120: 0 | AK120: 0 | AL120: 0 | AM120: 25.48 | AN120: 31.81 | AO120: Fri | AP120: 1900 | AQ120: 0 | AR120: 0 | AS120: 9 | AT120: 6 | AU120: 0 | AV120: 0 | AW120: 0 | AX120: 0 | AY120: 0 | AZ120: 0 | BA120: 0 | BB120: 0 | BC120: 0 | BD120: 1 | BE120: 0 | BF120: 2 | BG120: 6 | BH120: 1 | BI120: 4 | BJ120: 1 | BK120: 0 | BL120: 0 | BM120: 0 | BN120: 0 | BO120: 0 | BP120: 0 | BQ120: 0 | BR120: 0 | BS120: 0 | BT120: 0 | BU120: 0 | BV120: 0 | BW120: 0 | BX120: 0 | BY120: 0 | BZ120: 0 | CA120: 24.89 | CB120: 31.9 | CC120: Fri | CD120: 1900 | CE120: 0 | CF120: 0 | CG120: 16 | CH120: 16 | CI120: 0 | CJ120: 0 | CK120: 0 | CL120: 0 | CM120: 0 | CN120: 0 | CO120: 0 | CP120: 0 | CQ120: 0 | CR120: 0 | CS120: 0 | CT120: 5 | CU120: 11 | CV120: 6 | CW120: 8 | CX120: 1 | CY120: 0 | CZ120: 0 | DA120: 0 | DB120: 0 | DC120: 0 | DD120: 0 | DE120: 0 | DF120: 0 | DG120: 0 | DH120: 0 | DI120: 0 | DJ120: 0 | DK120: 0 | DL120: 0 | DM120: 0 | DN120: 0 | DO120: 25.2 | DP120: 31.98 | DQ120: 0 | DR120: 0 | DS120: 7 | DT120: 10 | DU120: 0 | DV120: 0 | DW120: 0 | DX120: 0 | DY120: 0 | DZ120: 0 | EA120: 0 | EB120: 0 | EC120: 17 | ED120: 0 | EE120: 0 | EF120: 9 | EG120: 6 | EH120: 0 | EI120: 0 | EJ120: 0 | EK120: 0 | EL120: 0 | EM120: 0 | EN120: 0 | EO120: 0 | EP120: 15 | EQ120: 0 | ER120: 0 | ES120: 16 | ET120: 16 | EU120: 0 | EV120: 0 | EW120: 0 | EX120: 0 | EY120: 0 | EZ120: 0 | FA120: 0 | FB120: 0 | FC120: 32
A121: Fri | B121: 2000 | C121: 0 | D121: 0 | E121: 10 | F121: 8 | G121: 0 | H121: 0 | I121: 0 | J121: 0 | K121: 0 | L121: 0 | M121: 0 | N121: 0 | O121: 0 | P121: 1 | Q121: 0 | R121: 2 | S121: 3 | T121: 8 | U121: 2 | V121: 2 | W121: 0 | X121: 0 | Y121: 0 | Z121: 0 | AA121: 0 | AB121: 0 | AC121: 0 | AD121: 0 | AE121: 0 | AF121: 0 | AG121: 0 | AH121: 0 | AI121: 0 | AJ121: 0 | AK121: 0 | AL121: 0 | AM121: 25.76 | AN121: 30.37 | AO121: Fri | AP121: 2000 | AQ121: 0 | AR121: 0 | AS121: 2 | AT121: 3 | AU121: 0 | AV121: 0 | AW121: 0 | AX121: 0 | AY121: 0 | AZ121: 0 | BA121: 0 | BB121: 0 | BC121: 0 | BD121: 0 | BE121: 1 | BF121: 0 | BG121: 1 | BH121: 0 | BI121: 3 | BJ121: 0 | BK121: 0 | BL121: 0 | BM121: 0 | BN121: 0 | BO121: 0 | BP121: 0 | BQ121: 0 | BR121: 0 | BS121: 0 | BT121: 0 | BU121: 0 | BV121: 0 | BW121: 0 | BX121: 0 | BY121: 0 | BZ121: 0 | CA121: 27.31 | CB121: - | CC121: Fri | CD121: 2000 | CE121: 0 | CF121: 0 | CG121: 12 | CH121: 11 | CI121: 0 | CJ121: 0 | CK121: 0 | CL121: 0 | CM121: 0 | CN121: 0 | CO121: 0 | CP121: 0 | CQ121: 0 | CR121: 1 | CS121: 0 | CT121: 2 | CU121: 4 | CV121: 8 | CW121: 5 | CX121: 2 | CY121: 0 | CZ121: 0 | DA121: 0 | DB121: 0 | DC121: 0 | DD121: 0 | DE121: 0 | DF121: 0 | DG121: 0 | DH121: 0 | DI121: 0 | DJ121: 0 | DK121: 0 | DL121: 0 | DM121: 0 | DN121: 0 | DO121: 26.1 | DP121: 31.94 | DQ121: 0 | DR121: 0 | DS121: 10 | DT121: 8 | DU121: 0 | DV121: 0 | DW121: 0 | DX121: 0 | DY121: 0 | DZ121: 0 | EA121: 0 | EB121: 0 | EC121: 18 | ED121: 0 | EE121: 0 | EF121: 2 | EG121: 3 | EH121: 0 | EI121: 0 | EJ121: 0 | EK121: 0 | EL121: 0 | EM121: 0 | EN121: 0 | EO121: 0 | EP121: 5 | EQ121: 0 | ER121: 0 | ES121: 12 | ET121: 11 | EU121: 0 | EV121: 0 | EW121: 0 | EX121: 0 | EY121: 0 | EZ121: 0 | FA121: 0 | FB121: 0 | FC121: 23
A122: Fri | B122: 2100 | C122: 0 | D122: 0 | E122: 4 | F122: 3 | G122: 0 | H122: 0 | I122: 0 | J122: 0 | K122: 0 | L122: 0 | M122: 0 | N122: 0 | O122: 0 | P122: 0 | Q122: 0 | R122: 1 | S122: 3 | T122: 2 | U122: 1 | V122: 0 | W122: 0 | X122: 0 | Y122: 0 | Z122: 0 | AA122: 0 | AB122: 0 | AC122: 0 | AD122: 0 | AE122: 0 | AF122: 0 | AG122: 0 | AH122: 0 | AI122: 0 | AJ122: 0 | AK122: 0 | AL122: 0 | AM122: 24.2 | AN122: - | AO122: Fri | AP122: 2100 | AQ122: 0 | AR122: 0 | AS122: 4 | AT122: 2 | AU122: 2 | AV122: 0 | AW122: 0 | AX122: 0 | AY122: 0 | AZ122: 0 | BA122: 0 | BB122: 0 | BC122: 0 | BD122: 0 | BE122: 1 | BF122: 2 | BG122: 0 | BH122: 2 | BI122: 2 | BJ122: 0 | BK122: 0 | BL122: 1 | BM122: 0 | BN122: 0 | BO122: 0 | BP122: 0 | BQ122: 0 | BR122: 0 | BS122: 0 | BT122: 0 | BU122: 0 | BV122: 0 | BW122: 0 | BX122: 0 | BY122: 0 | BZ122: 0 | CA122: 26.71 | CB122: - | CC122: Fri | CD122: 2100 | CE122: 0 | CF122: 0 | CG122: 8 | CH122: 5 | CI122: 2 | CJ122: 0 | CK122: 0 | CL122: 0 | CM122: 0 | CN122: 0 | CO122: 0 | CP122: 0 | CQ122: 0 | CR122: 0 | CS122: 0 | CT122: 3 | CU122: 3 | CV122: 4 | CW122: 3 | CX122: 0 | CY122: 0 | CZ122: 1 | DA122: 0 | DB122: 0 | DC122: 0 | DD122: 0 | DE122: 0 | DF122: 0 | DG122: 0 | DH122: 0 | DI122: 0 | DJ122: 0 | DK122: 0 | DL122: 0 | DM122: 0 | DN122: 0 | DO122: 25.54 | DP122: 32.71 | DQ122: 0 | DR122: 0 | DS122: 4 | DT122: 3 | DU122: 0 | DV122: 0 | DW122: 0 | DX122: 0 | DY122: 0 | DZ122: 0 | EA122: 0 | EB122: 0 | EC122: 7 | ED122: 0 | EE122: 0 | EF122: 4 | EG122: 2 | EH122: 2 | EI122: 0 | EJ122: 0 | EK122: 0 | EL122: 0 | EM122: 0 | EN122: 0 | EO122: 0 | EP122: 8 | EQ122: 0 | ER122: 0 | ES122: 8 | ET122: 5 | EU122: 2 | EV122: 0 | EW122: 0 | EX122: 0 | EY122: 0 | EZ122: 0 | FA122: 0 | FB122: 0 | FC122: 15
A123: Fri | B123: 2200 | C123: 0 | D123: 0 | E123: 4 | F123: 3 | G123: 0 | H123: 0 | I123: 0 | J123: 0 | K123: 0 | L123: 0 | M123: 0 | N123: 0 | O123: 0 | P123: 1 | Q123: 0 | R123: 2 | S123: 2 | T123: 2 | U123: 0 | V123: 0 | W123: 0 | X123: 0 | Y123: 0 | Z123: 0 | AA123: 0 | AB123: 0 | AC123: 0 | AD123: 0 | AE123: 0 | AF123: 0 | AG123: 0 | AH123: 0 | AI123: 0 | AJ123: 0 | AK123: 0 | AL123: 0 | AM123: 20.92 | AN123: - | AO123: Fri | AP123: 2200 | AQ123: 0 | AR123: 0 | AS123: 3 | AT123: 2 | AU123: 0 | AV123: 0 | AW123: 0 | AX123: 0 | AY123: 0 | AZ123: 0 | BA123: 0 | BB123: 0 | BC123: 0 | BD123: 1 | BE123: 0 | BF123: 0 | BG123: 2 | BH123: 1 | BI123: 1 | BJ123: 0 | BK123: 0 | BL123: 0 | BM123: 0 | BN123: 0 | BO123: 0 | BP123: 0 | BQ123: 0 | BR123: 0 | BS123: 0 | BT123: 0 | BU123: 0 | BV123: 0 | BW123: 0 | BX123: 0 | BY123: 0 | BZ123: 0 | CA123: 22.15 | CB123: - | CC123: Fri | CD123: 2200 | CE123: 0 | CF123: 0 | CG123: 7 | CH123: 5 | CI123: 0 | CJ123: 0 | CK123: 0 | CL123: 0 | CM123: 0 | CN123: 0 | CO123: 0 | CP123: 0 | CQ123: 0 | CR123: 1 | CS123: 0 | CT123: 2 | CU123: 4 | CV123: 3 | CW123: 1 | CX123: 0 | CY123: 0 | CZ123: 0 | DA123: 0 | DB123: 0 | DC123: 0 | DD123: 0 | DE123: 0 | DF123: 0 | DG123: 0 | DH123: 0 | DI123: 0 | DJ123: 0 | DK123: 0 | DL123: 0 | DM123: 0 | DN123: 0 | DO123: 21.43 | DP123: 26 | DQ123: 0 | DR123: 0 | DS123: 4 | DT123: 3 | DU123: 0 | DV123: 0 | DW123: 0 | DX123: 0 | DY123: 0 | DZ123: 0 | EA123: 0 | EB123: 0 | EC123: 7 | ED123: 0 | EE123: 0 | EF123: 3 | EG123: 2 | EH123: 0 | EI123: 0 | EJ123: 0 | EK123: 0 | EL123: 0 | EM123: 0 | EN123: 0 | EO123: 0 | EP123: 5 | EQ123: 0 | ER123: 0 | ES123: 7 | ET123: 5 | EU123: 0 | EV123: 0 | EW123: 0 | EX123: 0 | EY123: 0 | EZ123: 0 | FA123: 0 | FB123: 0 | FC123: 12
A124: Fri | B124: 2300 | C124: 0 | D124: 1 | E124: 3 | F124: 0 | G124: 0 | H124: 0 | I124: 0 | J124: 0 | K124: 0 | L124: 0 | M124: 0 | N124: 0 | O124: 0 | P124: 0 | Q124: 0 | R124: 0 | S124: 2 | T124: 1 | U124: 1 | V124: 0 | W124: 0 | X124: 0 | Y124: 0 | Z124: 0 | AA124: 0 | AB124: 0 | AC124: 0 | AD124: 0 | AE124: 0 | AF124: 0 | AG124: 0 | AH124: 0 | AI124: 0 | AJ124: 0 | AK124: 0 | AL124: 0 | AM124: 26.28 | AN124: - | AO124: Fri | AP124: 2300 | AQ124: 0 | AR124: 0 | AS124: 3 | AT124: 1 | AU124: 0 | AV124: 0 | AW124: 0 | AX124: 0 | AY124: 0 | AZ124: 0 | BA124: 0 | BB124: 0 | BC124: 0 | BD124: 0 | BE124: 0 | BF124: 0 | BG124: 1 | BH124: 1 | BI124: 0 | BJ124: 1 | BK124: 1 | BL124: 0 | BM124: 0 | BN124: 0 | BO124: 0 | BP124: 0 | BQ124: 0 | BR124: 0 | BS124: 0 | BT124: 0 | BU124: 0 | BV124: 0 | BW124: 0 | BX124: 0 | BY124: 0 | BZ124: 0 | CA124: 32.94 | CB124: - | CC124: Fri | CD124: 2300 | CE124: 0 | CF124: 1 | CG124: 6 | CH124: 1 | CI124: 0 | CJ124: 0 | CK124: 0 | CL124: 0 | CM124: 0 | CN124: 0 | CO124: 0 | CP124: 0 | CQ124: 0 | CR124: 0 | CS124: 0 | CT124: 0 | CU124: 3 | CV124: 2 | CW124: 1 | CX124: 1 | CY124: 1 | CZ124: 0 | DA124: 0 | DB124: 0 | DC124: 0 | DD124: 0 | DE124: 0 | DF124: 0 | DG124: 0 | DH124: 0 | DI124: 0 | DJ124: 0 | DK124: 0 | DL124: 0 | DM124: 0 | DN124: 0 | DO124: 29.61 | DP124: - | DQ124: 0 | DR124: 1 | DS124: 3 | DT124: 0 | DU124: 0 | DV124: 0 | DW124: 0 | DX124: 0 | DY124: 0 | DZ124: 0 | EA124: 0 | EB124: 0 | EC124: 4 | ED124: 0 | EE124: 0 | EF124: 3 | EG124: 1 | EH124: 0 | EI124: 0 | EJ124: 0 | EK124: 0 | EL124: 0 | EM124: 0 | EN124: 0 | EO124: 0 | EP124: 4 | EQ124: 0 | ER124: 1 | ES124: 6 | ET124: 1 | EU124: 0 | EV124: 0 | EW124: 0 | EX124: 0 | EY124: 0 | EZ124: 0 | FA124: 0 | FB124: 0 | FC124: 8
A125: Sat | B125: 0 | C125: 0 | D125: 1 | E125: 3 | F125: 1 | G125: 0 | H125: 0 | I125: 0 | J125: 0 | K125: 0 | L125: 0 | M125: 0 | N125: 0 | O125: 0 | P125: 0 | Q125: 0 | R125: 0 | S125: 1 | T125: 3 | U125: 1 | V125: 0 | W125: 0 | X125: 0 | Y125: 0 | Z125: 0 | AA125: 0 | AB125: 0 | AC125: 0 | AD125: 0 | AE125: 0 | AF125: 0 | AG125: 0 | AH125: 0 | AI125: 0 | AJ125: 0 | AK125: 0 | AL125: 0 | AM125: 28.36 | AN125: - | AO125: Sat | AP125: 0 | AQ125: 0 | AR125: 0 | AS125: 1 | AT125: 0 | AU125: 0 | AV125: 0 | AW125: 0 | AX125: 0 | AY125: 0 | AZ125: 0 | BA125: 0 | BB125: 0 | BC125: 0 | BD125: 0 | BE125: 0 | BF125: 0 | BG125: 0 | BH125: 0 | BI125: 1 | BJ125: 0 | BK125: 0 | BL125: 0 | BM125: 0 | BN125: 0 | BO125: 0 | BP125: 0 | BQ125: 0 | BR125: 0 | BS125: 0 | BT125: 0 | BU125: 0 | BV125: 0 | BW125: 0 | BX125: 0 | BY125: 0 | BZ125: 0 | CA125: 34.64 | CB125: - | CC125: Sat | CD125: 0 | CE125: 0 | CF125: 1 | CG125: 4 | CH125: 1 | CI125: 0 | CJ125: 0 | CK125: 0 | CL125: 0 | CM125: 0 | CN125: 0 | CO125: 0 | CP125: 0 | CQ125: 0 | CR125: 0 | CS125: 0 | CT125: 0 | CU125: 1 | CV125: 3 | CW125: 2 | CX125: 0 | CY125: 0 | CZ125: 0 | DA125: 0 | DB125: 0 | DC125: 0 | DD125: 0 | DE125: 0 | DF125: 0 | DG125: 0 | DH125: 0 | DI125: 0 | DJ125: 0 | DK125: 0 | DL125: 0 | DM125: 0 | DN125: 0 | DO125: 29.4 | DP125: - | DQ125: 0 | DR125: 1 | DS125: 3 | DT125: 1 | DU125: 0 | DV125: 0 | DW125: 0 | DX125: 0 | DY125: 0 | DZ125: 0 | EA125: 0 | EB125: 0 | EC125: 5 | ED125: 0 | EE125: 0 | EF125: 1 | EG125: 0 | EH125: 0 | EI125: 0 | EJ125: 0 | EK125: 0 | EL125: 0 | EM125: 0 | EN125: 0 | EO125: 0 | EP125: 1 | EQ125: 0 | ER125: 1 | ES125: 4 | ET125: 1 | EU125: 0 | EV125: 0 | EW125: 0 | EX125: 0 | EY125: 0 | EZ125: 0 | FA125: 0 | FB125: 0 | FC125: 6
A126: Sat | B126: 100 | C126: 0 | D126: 0 | E126: 0 | F126: 0 | G126: 0 | H126: 0 | I126: 0 | J126: 0 | K126: 0 | L126: 0 | M126: 0 | N126: 0 | O126: 0 | P126: 0 | Q126: 0 | R126: 0 | S126: 0 | T126: 0 | U126: 0 | V126: 0 | W126: 0 | X126: 0 | Y126: 0 | Z126: 0 | AA126: 0 | AB126: 0 | AC126: 0 | AD126: 0 | AE126: 0 | AF126: 0 | AG126: 0 | AH126: 0 | AI126: 0 | AJ126: 0 | AK126: 0 | AL126: 0 | AM126: - | AN126: - | AO126: Sat | AP126: 100 | AQ126: 0 | AR126: 0 | AS126: 0 | AT126: 0 | AU126: 0 | AV126: 0 | AW126: 0 | AX126: 0 | AY126: 0 | AZ126: 0 | BA126: 0 | BB126: 0 | BC126: 0 | BD126: 0 | BE126: 0 | BF126: 0 | BG126: 0 | BH126: 0 | BI126: 0 | BJ126: 0 | BK126: 0 | BL126: 0 | BM126: 0 | BN126: 0 | BO126: 0 | BP126: 0 | BQ126: 0 | BR126: 0 | BS126: 0 | BT126: 0 | BU126: 0 | BV126: 0 | BW126: 0 | BX126: 0 | BY126: 0 | BZ126: 0 | CA126: - | CB126: - | CC126: Sat | CD126: 100 | CE126: 0 | CF126: 0 | CG126: 0 | CH126: 0 | CI126: 0 | CJ126: 0 | CK126: 0 | CL126: 0 | CM126: 0 | CN126: 0 | CO126: 0 | CP126: 0 | CQ126: 0 | CR126: 0 | CS126: 0 | CT126: 0 | CU126: 0 | CV126: 0 | CW126: 0 | CX126: 0 | CY126: 0 | CZ126: 0 | DA126: 0 | DB126: 0 | DC126: 0 | DD126: 0 | DE126: 0 | DF126: 0 | DG126: 0 | DH126: 0 | DI126: 0 | DJ126: 0 | DK126: 0 | DL126: 0 | DM126: 0 | DN126: 0 | DO126: - | DP126: - | DQ126: 0 | DR126: 0 | DS126: 0 | DT126: 0 | DU126: 0 | DV126: 0 | DW126: 0 | DX126: 0 | DY126: 0 | DZ126: 0 | EA126: 0 | EB126: 0 | EC126: 0 | ED126: 0 | EE126: 0 | EF126: 0 | EG126: 0 | EH126: 0 | EI126: 0 | EJ126: 0 | EK126: 0 | EL126: 0 | EM126: 0 | EN126: 0 | EO126: 0 | EP126: 0 | EQ126: 0 | ER126: 0 | ES126: 0 | ET126: 0 | EU126: 0 | EV126: 0 | EW126: 0 | EX126: 0 | EY126: 0 | EZ126: 0 | FA126: 0 | FB126: 0 | FC126: 0
A127: Sat | B127: 200 | C127: 0 | D127: 0 | E127: 0 | F127: 0 | G127: 0 | H127: 0 | I127: 0 | J127: 0 | K127: 0 | L127: 0 | M127: 0 | N127: 0 | O127: 0 | P127: 0 | Q127: 0 | R127: 0 | S127: 0 | T127: 0 | U127: 0 | V127: 0 | W127: 0 | X127: 0 | Y127: 0 | Z127: 0 | AA127: 0 | AB127: 0 | AC127: 0 | AD127: 0 | AE127: 0 | AF127: 0 | AG127: 0 | AH127: 0 | AI127: 0 | AJ127: 0 | AK127: 0 | AL127: 0 | AM127: - | AN127: - | AO127: Sat | AP127: 200 | AQ127: 0 | AR127: 0 | AS127: 0 | AT127: 1 | AU127: 0 | AV127: 0 | AW127: 0 | AX127: 0 | AY127: 0 | AZ127: 0 | BA127: 0 | BB127: 0 | BC127: 0 | BD127: 0 | BE127: 0 | BF127: 0 | BG127: 0 | BH127: 0 | BI127: 0 | BJ127: 1 | BK127: 0 | BL127: 0 | BM127: 0 | BN127: 0 | BO127: 0 | BP127: 0 | BQ127: 0 | BR127: 0 | BS127: 0 | BT127: 0 | BU127: 0 | BV127: 0 | BW127: 0 | BX127: 0 | BY127: 0 | BZ127: 0 | CA127: 38.92 | CB127: - | CC127: Sat | CD127: 200 | CE127: 0 | CF127: 0 | CG127: 0 | CH127: 1 | CI127: 0 | CJ127: 0 | CK127: 0 | CL127: 0 | CM127: 0 | CN127: 0 | CO127: 0 | CP127: 0 | CQ127: 0 | CR127: 0 | CS127: 0 | CT127: 0 | CU127: 0 | CV127: 0 | CW127: 0 | CX127: 1 | CY127: 0 | CZ127: 0 | DA127: 0 | DB127: 0 | DC127: 0 | DD127: 0 | DE127: 0 | DF127: 0 | DG127: 0 | DH127: 0 | DI127: 0 | DJ127: 0 | DK127: 0 | DL127: 0 | DM127: 0 | DN127: 0 | DO127: 38.92 | DP127: - | DQ127: 0 | DR127: 0 | DS127: 0 | DT127: 0 | DU127: 0 | DV127: 0 | DW127: 0 | DX127: 0 | DY127: 0 | DZ127: 0 | EA127: 0 | EB127: 0 | EC127: 0 | ED127: 0 | EE127: 0 | EF127: 0 | EG127: 1 | EH127: 0 | EI127: 0 | EJ127: 0 | EK127: 0 | EL127: 0 | EM127: 0 | EN127: 0 | EO127: 0 | EP127: 1 | EQ127: 0 | ER127: 0 | ES127: 0 | ET127: 1 | EU127: 0 | EV127: 0 | EW127: 0 | EX127: 0 | EY127: 0 | EZ127: 0 | FA127: 0 | FB127: 0 | FC127: 1
A128: Sat | B128: 300 | C128: 0 | D128: 0 | E128: 0 | F128: 0 | G128: 0 | H128: 0 | I128: 0 | J128: 0 | K128: 0 | L128: 0 | M128: 0 | N128: 0 | O128: 0 | P128: 0 | Q128: 0 | R128: 0 | S128: 0 | T128: 0 | U128: 0 | V128: 0 | W128: 0 | X128: 0 | Y128: 0 | Z128: 0 | AA128: 0 | AB128: 0 | AC128: 0 | AD128: 0 | AE128: 0 | AF128: 0 | AG128: 0 | AH128: 0 | AI128: 0 | AJ128: 0 | AK128: 0 | AL128: 0 | AM128: - | AN128: - | AO128: Sat | AP128: 300 | AQ128: 0 | AR128: 0 | AS128: 0 | AT128: 0 | AU128: 0 | AV128: 0 | AW128: 0 | AX128: 0 | AY128: 0 | AZ128: 0 | BA128: 0 | BB128: 0 | BC128: 0 | BD128: 0 | BE128: 0 | BF128: 0 | BG128: 0 | BH128: 0 | BI128: 0 | BJ128: 0 | BK128: 0 | BL128: 0 | BM128: 0 | BN128: 0 | BO128: 0 | BP128: 0 | BQ128: 0 | BR128: 0 | BS128: 0 | BT128: 0 | BU128: 0 | BV128: 0 | BW128: 0 | BX128: 0 | BY128: 0 | BZ128: 0 | CA128: - | CB128: - | CC128: Sat | CD128: 300 | CE128: 0 | CF128: 0 | CG128: 0 | CH128: 0 | CI128: 0 | CJ128: 0 | CK128: 0 | CL128: 0 | CM128: 0 | CN128: 0 | CO128: 0 | CP128: 0 | CQ128: 0 | CR128: 0 | CS128: 0 | CT128: 0 | CU128: 0 | CV128: 0 | CW128: 0 | CX128: 0 | CY128: 0 | CZ128: 0 | DA128: 0 | DB128: 0 | DC128: 0 | DD128: 0 | DE128: 0 | DF128: 0 | DG128: 0 | DH128: 0 | DI128: 0 | DJ128: 0 | DK128: 0 | DL128: 0 | DM128: 0 | DN128: 0 | DO128: - | DP128: - | DQ128: 0 | DR128: 0 | DS128: 0 | DT128: 0 | DU128: 0 | DV128: 0 | DW128: 0 | DX128: 0 | DY128: 0 | DZ128: 0 | EA128: 0 | EB128: 0 | EC128: 0 | ED128: 0 | EE128: 0 | EF128: 0 | EG128: 0 | EH128: 0 | EI128: 0 | EJ128: 0 | EK128: 0 | EL128: 0 | EM128: 0 | EN128: 0 | EO128: 0 | EP128: 0 | EQ128: 0 | ER128: 0 | ES128: 0 | ET128: 0 | EU128: 0 | EV128: 0 | EW128: 0 | EX128: 0 | EY128: 0 | EZ128: 0 | FA128: 0 | FB128: 0 | FC128: 0
A129: Sat | B129: 400 | C129: 0 | D129: 0 | E129: 1 | F129: 0 | G129: 0 | H129: 0 | I129: 0 | J129: 0 | K129: 0 | L129: 0 | M129: 0 | N129: 0 | O129: 0 | P129: 0 | Q129: 0 | R129: 0 | S129: 1 | T129: 0 | U129: 0 | V129: 0 | W129: 0 | X129: 0 | Y129: 0 | Z129: 0 | AA129: 0 | AB129: 0 | AC129: 0 | AD129: 0 | AE129: 0 | AF129: 0 | AG129: 0 | AH129: 0 | AI129: 0 | AJ129: 0 | AK129: 0 | AL129: 0 | AM129: 22.44 | AN129: - | AO129: Sat | AP129: 400 | AQ129: 0 | AR129: 0 | AS129: 0 | AT129: 0 | AU129: 0 | AV129: 0 | AW129: 0 | AX129: 0 | AY129: 0 | AZ129: 0 | BA129: 0 | BB129: 0 | BC129: 0 | BD129: 0 | BE129: 0 | BF129: 0 | BG129: 0 | BH129: 0 | BI129: 0 | BJ129: 0 | BK129: 0 | BL129: 0 | BM129: 0 | BN129: 0 | BO129: 0 | BP129: 0 | BQ129: 0 | BR129: 0 | BS129: 0 | BT129: 0 | BU129: 0 | BV129: 0 | BW129: 0 | BX129: 0 | BY129: 0 | BZ129: 0 | CA129: - | CB129: - | CC129: Sat | CD129: 400 | CE129: 0 | CF129: 0 | CG129: 1 | CH129: 0 | CI129: 0 | CJ129: 0 | CK129: 0 | CL129: 0 | CM129: 0 | CN129: 0 | CO129: 0 | CP129: 0 | CQ129: 0 | CR129: 0 | CS129: 0 | CT129: 0 | CU129: 1 | CV129: 0 | CW129: 0 | CX129: 0 | CY129: 0 | CZ129: 0 | DA129: 0 | DB129: 0 | DC129: 0 | DD129: 0 | DE129: 0 | DF129: 0 | DG129: 0 | DH129: 0 | DI129: 0 | DJ129: 0 | DK129: 0 | DL129: 0 | DM129: 0 | DN129: 0 | DO129: 22.44 | DP129: - | DQ129: 0 | DR129: 0 | DS129: 1 | DT129: 0 | DU129: 0 | DV129: 0 | DW129: 0 | DX129: 0 | DY129: 0 | DZ129: 0 | EA129: 0 | EB129: 0 | EC129: 1 | ED129: 0 | EE129: 0 | EF129: 0 | EG129: 0 | EH129: 0 | EI129: 0 | EJ129: 0 | EK129: 0 | EL129: 0 | EM129: 0 | EN129: 0 | EO129: 0 | EP129: 0 | EQ129: 0 | ER129: 0 | ES129: 1 | ET129: 0 | EU129: 0 | EV129: 0 | EW129: 0 | EX129: 0 | EY129: 0 | EZ129: 0 | FA129: 0 | FB129: 0 | FC129: 1
A130: Sat | B130: 500 | C130: 0 | D130: 0 | E130: 1 | F130: 1 | G130: 0 | H130: 0 | I130: 0 | J130: 0 | K130: 0 | L130: 0 | M130: 0 | N130: 0 | O130: 0 | P130: 0 | Q130: 0 | R130: 0 | S130: 1 | T130: 0 | U130: 1 | V130: 0 | W130: 0 | X130: 0 | Y130: 0 | Z130: 0 | AA130: 0 | AB130: 0 | AC130: 0 | AD130: 0 | AE130: 0 | AF130: 0 | AG130: 0 | AH130: 0 | AI130: 0 | AJ130: 0 | AK130: 0 | AL130: 0 | AM130: 29.33 | AN130: - | AO130: Sat | AP130: 500 | AQ130: 0 | AR130: 0 | AS130: 1 | AT130: 3 | AU130: 0 | AV130: 0 | AW130: 0 | AX130: 0 | AY130: 0 | AZ130: 0 | BA130: 0 | BB130: 0 | BC130: 0 | BD130: 0 | BE130: 0 | BF130: 0 | BG130: 2 | BH130: 2 | BI130: 0 | BJ130: 0 | BK130: 0 | BL130: 0 | BM130: 0 | BN130: 0 | BO130: 0 | BP130: 0 | BQ130: 0 | BR130: 0 | BS130: 0 | BT130: 0 | BU130: 0 | BV130: 0 | BW130: 0 | BX130: 0 | BY130: 0 | BZ130: 0 | CA130: 25.49 | CB130: - | CC130: Sat | CD130: 500 | CE130: 0 | CF130: 0 | CG130: 2 | CH130: 4 | CI130: 0 | CJ130: 0 | CK130: 0 | CL130: 0 | CM130: 0 | CN130: 0 | CO130: 0 | CP130: 0 | CQ130: 0 | CR130: 0 | CS130: 0 | CT130: 0 | CU130: 3 | CV130: 2 | CW130: 1 | CX130: 0 | CY130: 0 | CZ130: 0 | DA130: 0 | DB130: 0 | DC130: 0 | DD130: 0 | DE130: 0 | DF130: 0 | DG130: 0 | DH130: 0 | DI130: 0 | DJ130: 0 | DK130: 0 | DL130: 0 | DM130: 0 | DN130: 0 | DO130: 26.77 | DP130: - | DQ130: 0 | DR130: 0 | DS130: 1 | DT130: 1 | DU130: 0 | DV130: 0 | DW130: 0 | DX130: 0 | DY130: 0 | DZ130: 0 | EA130: 0 | EB130: 0 | EC130: 2 | ED130: 0 | EE130: 0 | EF130: 1 | EG130: 3 | EH130: 0 | EI130: 0 | EJ130: 0 | EK130: 0 | EL130: 0 | EM130: 0 | EN130: 0 | EO130: 0 | EP130: 4 | EQ130: 0 | ER130: 0 | ES130: 2 | ET130: 4 | EU130: 0 | EV130: 0 | EW130: 0 | EX130: 0 | EY130: 0 | EZ130: 0 | FA130: 0 | FB130: 0 | FC130: 6
A131: Sat | B131: 600 | C131: 0 | D131: 0 | E131: 1 | F131: 1 | G131: 0 | H131: 0 | I131: 0 | J131: 0 | K131: 0 | L131: 0 | M131: 0 | N131: 0 | O131: 0 | P131: 0 | Q131: 1 | R131: 0 | S131: 1 | T131: 0 | U131: 0 | V131: 0 | W131: 0 | X131: 0 | Y131: 0 | Z131: 0 | AA131: 0 | AB131: 0 | AC131: 0 | AD131: 0 | AE131: 0 | AF131: 0 | AG131: 0 | AH131: 0 | AI131: 0 | AJ131: 0 | AK131: 0 | AL131: 0 | AM131: 15.8 | AN131: - | AO131: Sat | AP131: 600 | AQ131: 0 | AR131: 0 | AS131: 3 | AT131: 2 | AU131: 0 | AV131: 0 | AW131: 0 | AX131: 0 | AY131: 0 | AZ131: 0 | BA131: 0 | BB131: 0 | BC131: 0 | BD131: 0 | BE131: 0 | BF131: 0 | BG131: 2 | BH131: 2 | BI131: 1 | BJ131: 0 | BK131: 0 | BL131: 0 | BM131: 0 | BN131: 0 | BO131: 0 | BP131: 0 | BQ131: 0 | BR131: 0 | BS131: 0 | BT131: 0 | BU131: 0 | BV131: 0 | BW131: 0 | BX131: 0 | BY131: 0 | BZ131: 0 | CA131: 27.36 | CB131: - | CC131: Sat | CD131: 600 | CE131: 0 | CF131: 0 | CG131: 4 | CH131: 3 | CI131: 0 | CJ131: 0 | CK131: 0 | CL131: 0 | CM131: 0 | CN131: 0 | CO131: 0 | CP131: 0 | CQ131: 0 | CR131: 0 | CS131: 1 | CT131: 0 | CU131: 3 | CV131: 2 | CW131: 1 | CX131: 0 | CY131: 0 | CZ131: 0 | DA131: 0 | DB131: 0 | DC131: 0 | DD131: 0 | DE131: 0 | DF131: 0 | DG131: 0 | DH131: 0 | DI131: 0 | DJ131: 0 | DK131: 0 | DL131: 0 | DM131: 0 | DN131: 0 | DO131: 24.06 | DP131: - | DQ131: 0 | DR131: 0 | DS131: 1 | DT131: 1 | DU131: 0 | DV131: 0 | DW131: 0 | DX131: 0 | DY131: 0 | DZ131: 0 | EA131: 0 | EB131: 0 | EC131: 2 | ED131: 0 | EE131: 0 | EF131: 3 | EG131: 2 | EH131: 0 | EI131: 0 | EJ131: 0 | EK131: 0 | EL131: 0 | EM131: 0 | EN131: 0 | EO131: 0 | EP131: 5 | EQ131: 0 | ER131: 0 | ES131: 4 | ET131: 3 | EU131: 0 | EV131: 0 | EW131: 0 | EX131: 0 | EY131: 0 | EZ131: 0 | FA131: 0 | FB131: 0 | FC131: 7
A132: Sat | B132: 700 | C132: 0 | D132: 0 | E132: 2 | F132: 2 | G132: 0 | H132: 0 | I132: 0 | J132: 0 | K132: 0 | L132: 0 | M132: 0 | N132: 0 | O132: 0 | P132: 0 | Q132: 1 | R132: 1 | S132: 1 | T132: 1 | U132: 0 | V132: 0 | W132: 0 | X132: 0 | Y132: 0 | Z132: 0 | AA132: 0 | AB132: 0 | AC132: 0 | AD132: 0 | AE132: 0 | AF132: 0 | AG132: 0 | AH132: 0 | AI132: 0 | AJ132: 0 | AK132: 0 | AL132: 0 | AM132: 20.72 | AN132: - | AO132: Sat | AP132: 700 | AQ132: 0 | AR132: 1 | AS132: 4 | AT132: 7 | AU132: 0 | AV132: 0 | AW132: 0 | AX132: 0 | AY132: 0 | AZ132: 0 | BA132: 0 | BB132: 0 | BC132: 0 | BD132: 0 | BE132: 0 | BF132: 0 | BG132: 5 | BH132: 4 | BI132: 3 | BJ132: 0 | BK132: 0 | BL132: 0 | BM132: 0 | BN132: 0 | BO132: 0 | BP132: 0 | BQ132: 0 | BR132: 0 | BS132: 0 | BT132: 0 | BU132: 0 | BV132: 0 | BW132: 0 | BX132: 0 | BY132: 0 | BZ132: 0 | CA132: 26.44 | CB132: 30.33 | CC132: Sat | CD132: 700 | CE132: 0 | CF132: 1 | CG132: 6 | CH132: 9 | CI132: 0 | CJ132: 0 | CK132: 0 | CL132: 0 | CM132: 0 | CN132: 0 | CO132: 0 | CP132: 0 | CQ132: 0 | CR132: 0 | CS132: 1 | CT132: 1 | CU132: 6 | CV132: 5 | CW132: 3 | CX132: 0 | CY132: 0 | CZ132: 0 | DA132: 0 | DB132: 0 | DC132: 0 | DD132: 0 | DE132: 0 | DF132: 0 | DG132: 0 | DH132: 0 | DI132: 0 | DJ132: 0 | DK132: 0 | DL132: 0 | DM132: 0 | DN132: 0 | DO132: 25.01 | DP132: 30.09 | DQ132: 0 | DR132: 0 | DS132: 2 | DT132: 2 | DU132: 0 | DV132: 0 | DW132: 0 | DX132: 0 | DY132: 0 | DZ132: 0 | EA132: 0 | EB132: 0 | EC132: 4 | ED132: 0 | EE132: 1 | EF132: 4 | EG132: 7 | EH132: 0 | EI132: 0 | EJ132: 0 | EK132: 0 | EL132: 0 | EM132: 0 | EN132: 0 | EO132: 0 | EP132: 12 | EQ132: 0 | ER132: 1 | ES132: 6 | ET132: 9 | EU132: 0 | EV132: 0 | EW132: 0 | EX132: 0 | EY132: 0 | EZ132: 0 | FA132: 0 | FB132: 0 | FC132: 16
A133: Sat | B133: 800 | C133: 0 | D133: 0 | E133: 4 | F133: 5 | G133: 0 | H133: 0 | I133: 0 | J133: 0 | K133: 0 | L133: 0 | M133: 0 | N133: 0 | O133: 0 | P133: 0 | Q133: 1 | R133: 4 | S133: 2 | T133: 2 | U133: 0 | V133: 0 | W133: 0 | X133: 0 | Y133: 0 | Z133: 0 | AA133: 0 | AB133: 0 | AC133: 0 | AD133: 0 | AE133: 0 | AF133: 0 | AG133: 0 | AH133: 0 | AI133: 0 | AJ133: 0 | AK133: 0 | AL133: 0 | AM133: 19.7 | AN133: - | AO133: Sat | AP133: 800 | AQ133: 0 | AR133: 0 | AS133: 8 | AT133: 13 | AU133: 0 | AV133: 0 | AW133: 0 | AX133: 0 | AY133: 0 | AZ133: 0 | BA133: 0 | BB133: 0 | BC133: 0 | BD133: 1 | BE133: 0 | BF133: 3 | BG133: 2 | BH133: 7 | BI133: 7 | BJ133: 1 | BK133: 0 | BL133: 0 | BM133: 0 | BN133: 0 | BO133: 0 | BP133: 0 | BQ133: 0 | BR133: 0 | BS133: 0 | BT133: 0 | BU133: 0 | BV133: 0 | BW133: 0 | BX133: 0 | BY133: 0 | BZ133: 0 | CA133: 26.44 | CB133: 32.26 | CC133: Sat | CD133: 800 | CE133: 0 | CF133: 0 | CG133: 12 | CH133: 18 | CI133: 0 | CJ133: 0 | CK133: 0 | CL133: 0 | CM133: 0 | CN133: 0 | CO133: 0 | CP133: 0 | CQ133: 0 | CR133: 0 | CS133: 1 | CT133: 7 | CU133: 4 | CV133: 9 | CW133: 7 | CX133: 1 | CY133: 0 | CZ133: 0 | DA133: 0 | DB133: 0 | DC133: 0 | DD133: 0 | DE133: 0 | DF133: 0 | DG133: 0 | DH133: 0 | DI133: 0 | DJ133: 0 | DK133: 0 | DL133: 0 | DM133: 0 | DN133: 0 | DO133: 24.42 | DP133: 31.24 | DQ133: =SUM(C133) -> 0 | DR133: =SUM(D133) -> 0 | DS133: =SUM(E133) -> 4 | DT133: =SUM(F133) -> 5 | DU133: =SUM(G133) -> 0 | DV133: =SUM(H133) -> 0 | DW133: =SUM(I133) -> 0 | DX133: =SUM(J133) -> 0 | DY133: =SUM(K133) -> 0 | DZ133: =SUM(L133) -> 0 | EA133: =SUM(M133) -> 0 | EB133: =SUM(N133) -> 0 | EC133: =SUM(C133:N133) -> 9 | ED133: =SUM(AQ133) -> 0 | EE133: =SUM(AR133) -> 0 | EF133: =SUM(AS133) -> 8 | EG133: =SUM(AT133) -> 13 | EH133: =SUM(AU133) -> 0 | EI133: =SUM(AV133) -> 0 | EJ133: =SUM(AW133) -> 0 | EK133: =SUM(AX133) -> 0 | EL133: =SUM(AY133) -> 0 | EM133: =SUM(AZ133) -> 0 | EN133: =SUM(BA133) -> 0 | EO133: =SUM(BB133) -> 0 | EP133: =SUM(AQ133:BB133) -> 21 | EQ133: =SUM(DQ133+ED133) -> 0 | ER133: =SUM(DR133+EE133) -> 0 | ES133: =SUM(DS133+EF133) -> 12 | ET133: =SUM(DT133+EG133) -> 18 | EU133: =SUM(DU133+EH133) -> 0 | EV133: =SUM(DV133+EI133) -> 0 | EW133: =SUM(DW133+EJ133) -> 0 | EX133: =SUM(DX133+EK133) -> 0 | EY133: =SUM(DY133+EL133) -> 0 | EZ133: =SUM(DZ133+EM133) -> 0 | FA133: =SUM(EA133+EN133) -> 0 | FB133: =SUM(EB133+EO133) -> 0 | FC133: =SUM(EC133+EP133) -> 30
A134: Sat | B134: 900 | C134: 0 | D134: 0 | E134: 6 | F134: 8 | G134: 0 | H134: 0 | I134: 0 | J134: 1 | K134: 0 | L134: 0 | M134: 0 | N134: 0 | O134: 0 | P134: 0 | Q134: 1 | R134: 3 | S134: 6 | T134: 2 | U134: 2 | V134: 1 | W134: 0 | X134: 0 | Y134: 0 | Z134: 0 | AA134: 0 | AB134: 0 | AC134: 0 | AD134: 0 | AE134: 0 | AF134: 0 | AG134: 0 | AH134: 0 | AI134: 0 | AJ134: 0 | AK134: 0 | AL134: 0 | AM134: 24.05 | AN134: 32.17 | AO134: Sat | AP134: 900 | AQ134: 1 | AR134: 2 | AS134: 14 | AT134: 14 | AU134: 0 | AV134: 0 | AW134: 0 | AX134: 0 | AY134: 0 | AZ134: 0 | BA134: 0 | BB134: 0 | BC134: 0 | BD134: 1 | BE134: 2 | BF134: 8 | BG134: 8 | BH134: 9 | BI134: 3 | BJ134: 0 | BK134: 0 | BL134: 0 | BM134: 0 | BN134: 0 | BO134: 0 | BP134: 0 | BQ134: 0 | BR134: 0 | BS134: 0 | BT134: 0 | BU134: 0 | BV134: 0 | BW134: 0 | BX134: 0 | BY134: 0 | BZ134: 0 | CA134: 22.7 | CB134: 28.23 | CC134: Sat | CD134: 900 | CE134: 1 | CF134: 2 | CG134: 20 | CH134: 22 | CI134: 0 | CJ134: 0 | CK134: 0 | CL134: 1 | CM134: 0 | CN134: 0 | CO134: 0 | CP134: 0 | CQ134: 0 | CR134: 0 | CS134: 1 | CT134: 11 | CU134: 14 | CV134: 11 | CW134: 5 | CX134: 1 | CY134: 0 | CZ134: 0 | DA134: 0 | DB134: 0 | DC134: 0 | DD134: 0 | DE134: 0 | DF134: 0 | DG134: 0 | DH134: 0 | DI134: 0 | DJ134: 0 | DK134: 0 | DL134: 0 | DM134: 0 | DN134: 0 | DO134: 23.14 | DP134: 28.59 | DQ134: 0 | DR134: 0 | DS134: 6 | DT134: 8 | DU134: 0 | DV134: 0 | DW134: 0 | DX134: 1 | DY134: 0 | DZ134: 0 | EA134: 0 | EB134: 0 | EC134: 15 | ED134: 1 | EE134: 2 | EF134: 14 | EG134: 14 | EH134: 0 | EI134: 0 | EJ134: 0 | EK134: 0 | EL134: 0 | EM134: 0 | EN134: 0 | EO134: 0 | EP134: 31 | EQ134: 1 | ER134: 2 | ES134: 20 | ET134: 22 | EU134: 0 | EV134: 0 | EW134: 0 | EX134: 1 | EY134: 0 | EZ134: 0 | FA134: 0 | FB134: 0 | FC134: 46
A135: Sat | B135: 1000 | C135: 0 | D135: 0 | E135: 11 | F135: 13 | G135: 0 | H135: 0 | I135: 0 | J135: 0 | K135: 0 | L135: 0 | M135: 0 | N135: 0 | O135: 0 | P135: 0 | Q135: 2 | R135: 4 | S135: 7 | T135: 8 | U135: 3 | V135: 0 | W135: 0 | X135: 0 | Y135: 0 | Z135: 0 | AA135: 0 | AB135: 0 | AC135: 0 | AD135: 0 | AE135: 0 | AF135: 0 | AG135: 0 | AH135: 0 | AI135: 0 | AJ135: 0 | AK135: 0 | AL135: 0 | AM135: 24.23 | AN135: 29.11 | AO135: Sat | AP135: 1000 | AQ135: 0 | AR135: 0 | AS135: 7 | AT135: 16 | AU135: 0 | AV135: 0 | AW135: 0 | AX135: 0 | AY135: 0 | AZ135: 0 | BA135: 0 | BB135: 0 | BC135: 0 | BD135: 0 | BE135: 2 | BF135: 6 | BG135: 4 | BH135: 8 | BI135: 2 | BJ135: 1 | BK135: 0 | BL135: 0 | BM135: 0 | BN135: 0 | BO135: 0 | BP135: 0 | BQ135: 0 | BR135: 0 | BS135: 0 | BT135: 0 | BU135: 0 | BV135: 0 | BW135: 0 | BX135: 0 | BY135: 0 | BZ135: 0 | CA135: 23.67 | CB135: 29.75 | CC135: Sat | CD135: 1000 | CE135: 0 | CF135: 0 | CG135: 18 | CH135: 29 | CI135: 0 | CJ135: 0 | CK135: 0 | CL135: 0 | CM135: 0 | CN135: 0 | CO135: 0 | CP135: 0 | CQ135: 0 | CR135: 0 | CS135: 2 | CT135: 10 | CU135: 11 | CV135: 16 | CW135: 5 | CX135: 1 | CY135: 0 | CZ135: 0 | DA135: 0 | DB135: 0 | DC135: 0 | DD135: 0 | DE135: 0 | DF135: 0 | DG135: 0 | DH135: 0 | DI135: 0 | DJ135: 0 | DK135: 0 | DL135: 0 | DM135: 0 | DN135: 0 | DO135: 23.96 | DP135: 29.73 | DQ135: 0 | DR135: 0 | DS135: 11 | DT135: 13 | DU135: 0 | DV135: 0 | DW135: 0 | DX135: 0 | DY135: 0 | DZ135: 0 | EA135: 0 | EB135: 0 | EC135: 24 | ED135: 0 | EE135: 0 | EF135: 7 | EG135: 16 | EH135: 0 | EI135: 0 | EJ135: 0 | EK135: 0 | EL135: 0 | EM135: 0 | EN135: 0 | EO135: 0 | EP135: 23 | EQ135: 0 | ER135: 0 | ES135: 18 | ET135: 29 | EU135: 0 | EV135: 0 | EW135: 0 | EX135: 0 | EY135: 0 | EZ135: 0 | FA135: 0 | FB135: 0 | FC135: 47
A136: Sat | B136: 1100 | C136: 0 | D136: 1 | E136: 7 | F136: 12 | G136: 0 | H136: 0 | I136: 0 | J136: 0 | K136: 0 | L136: 0 | M136: 0 | N136: 0 | O136: 0 | P136: 3 | Q136: 0 | R136: 7 | S136: 5 | T136: 5 | U136: 0 | V136: 0 | W136: 0 | X136: 0 | Y136: 0 | Z136: 0 | AA136: 0 | AB136: 0 | AC136: 0 | AD136: 0 | AE136: 0 | AF136: 0 | AG136: 0 | AH136: 0 | AI136: 0 | AJ136: 0 | AK136: 0 | AL136: 0 | AM136: 19.74 | AN136: 26.36 | AO136: Sat | AP136: 1100 | AQ136: 0 | AR136: 3 | AS136: 15 | AT136: 16 | AU136: 0 | AV136: 0 | AW136: 0 | AX136: 1 | AY136: 0 | AZ136: 0 | BA136: 0 | BB136: 0 | BC136: 0 | BD136: 1 | BE136: 3 | BF136: 4 | BG136: 15 | BH136: 10 | BI136: 2 | BJ136: 0 | BK136: 0 | BL136: 0 | BM136: 0 | BN136: 0 | BO136: 0 | BP136: 0 | BQ136: 0 | BR136: 0 | BS136: 0 | BT136: 0 | BU136: 0 | BV136: 0 | BW136: 0 | BX136: 0 | BY136: 0 | BZ136: 0 | CA136: 22.86 | CB136: 27.53 | CC136: Sat | CD136: 1100 | CE136: 0 | CF136: 4 | CG136: 22 | CH136: 28 | CI136: 0 | CJ136: 0 | CK136: 0 | CL136: 1 | CM136: 0 | CN136: 0 | CO136: 0 | CP136: 0 | CQ136: 0 | CR136: 3 | CS136: 0 | CT136: 11 | CU136: 20 | CV136: 15 | CW136: 2 | CX136: 0 | CY136: 0 | CZ136: 0 | DA136: 0 | DB136: 0 | DC136: 0 | DD136: 0 | DE136: 0 | DF136: 0 | DG136: 0 | DH136: 0 | DI136: 0 | DJ136: 0 | DK136: 0 | DL136: 0 | DM136: 0 | DN136: 0 | DO136: 21.73 | DP136: 26.57 | DQ136: 0 | DR136: 1 | DS136: 7 | DT136: 12 | DU136: 0 | DV136: 0 | DW136: 0 | DX136: 0 | DY136: 0 | DZ136: 0 | EA136: 0 | EB136: 0 | EC136: 20 | ED136: 0 | EE136: 3 | EF136: 15 | EG136: 16 | EH136: 0 | EI136: 0 | EJ136: 0 | EK136: 1 | EL136: 0 | EM136: 0 | EN136: 0 | EO136: 0 | EP136: 35 | EQ136: 0 | ER136: 4 | ES136: 22 | ET136: 28 | EU136: 0 | EV136: 0 | EW136: 0 | EX136: 1 | EY136: 0 | EZ136: 0 | FA136: 0 | FB136: 0 | FC136: 55
A137: Sat | B137: 1200 | C137: 0 | D137: 1 | E137: 17 | F137: 7 | G137: 0 | H137: 0 | I137: 0 | J137: 0 | K137: 0 | L137: 0 | M137: 0 | N137: 0 | O137: 0 | P137: 0 | Q137: 0 | R137: 3 | S137: 10 | T137: 9 | U137: 3 | V137: 0 | W137: 0 | X137: 0 | Y137: 0 | Z137: 0 | AA137: 0 | AB137: 0 | AC137: 0 | AD137: 0 | AE137: 0 | AF137: 0 | AG137: 0 | AH137: 0 | AI137: 0 | AJ137: 0 | AK137: 0 | AL137: 0 | AM137: 24.76 | AN137: 29.39 | AO137: Sat | AP137: 1200 | AQ137: 0 | AR137: 1 | AS137: 9 | AT137: 12 | AU137: 0 | AV137: 0 | AW137: 0 | AX137: 0 | AY137: 0 | AZ137: 0 | BA137: 0 | BB137: 0 | BC137: 0 | BD137: 1 | BE137: 2 | BF137: 1 | BG137: 5 | BH137: 7 | BI137: 4 | BJ137: 2 | BK137: 0 | BL137: 0 | BM137: 0 | BN137: 0 | BO137: 0 | BP137: 0 | BQ137: 0 | BR137: 0 | BS137: 0 | BT137: 0 | BU137: 0 | BV137: 0 | BW137: 0 | BX137: 0 | BY137: 0 | BZ137: 0 | CA137: 25.07 | CB137: 32.21 | CC137: Sat | CD137: 1200 | CE137: 0 | CF137: 2 | CG137: 26 | CH137: 19 | CI137: 0 | CJ137: 0 | CK137: 0 | CL137: 0 | CM137: 0 | CN137: 0 | CO137: 0 | CP137: 0 | CQ137: 0 | CR137: 0 | CS137: 0 | CT137: 4 | CU137: 15 | CV137: 16 | CW137: 7 | CX137: 2 | CY137: 0 | CZ137: 0 | DA137: 0 | DB137: 0 | DC137: 0 | DD137: 0 | DE137: 0 | DF137: 0 | DG137: 0 | DH137: 0 | DI137: 0 | DJ137: 0 | DK137: 0 | DL137: 0 | DM137: 0 | DN137: 0 | DO137: 24.9 | DP137: 30.7 | DQ137: 0 | DR137: 1 | DS137: 17 | DT137: 7 | DU137: 0 | DV137: 0 | DW137: 0 | DX137: 0 | DY137: 0 | DZ137: 0 | EA137: 0 | EB137: 0 | EC137: 25 | ED137: 0 | EE137: 1 | EF137: 9 | EG137: 12 | EH137: 0 | EI137: 0 | EJ137: 0 | EK137: 0 | EL137: 0 | EM137: 0 | EN137: 0 | EO137: 0 | EP137: 22 | EQ137: 0 | ER137: 2 | ES137: 26 | ET137: 19 | EU137: 0 | EV137: 0 | EW137: 0 | EX137: 0 | EY137: 0 | EZ137: 0 | FA137: 0 | FB137: 0 | FC137: 47
A138: Sat | B138: 1300 | C138: 0 | D138: 0 | E138: 13 | F138: 11 | G138: 0 | H138: 0 | I138: 0 | J138: 0 | K138: 0 | L138: 0 | M138: 0 | N138: 0 | O138: 0 | P138: 0 | Q138: 0 | R138: 3 | S138: 7 | T138: 9 | U138: 5 | V138: 0 | W138: 0 | X138: 0 | Y138: 0 | Z138: 0 | AA138: 0 | AB138: 0 | AC138: 0 | AD138: 0 | AE138: 0 | AF138: 0 | AG138: 0 | AH138: 0 | AI138: 0 | AJ138: 0 | AK138: 0 | AL138: 0 | AM138: 25.85 | AN138: 30.63 | AO138: Sat | AP138: 1300 | AQ138: 0 | AR138: 3 | AS138: 8 | AT138: 11 | AU138: 0 | AV138: 0 | AW138: 0 | AX138: 0 | AY138: 0 | AZ138: 0 | BA138: 0 | BB138: 0 | BC138: 0 | BD138: 1 | BE138: 1 | BF138: 5 | BG138: 6 | BH138: 4 | BI138: 4 | BJ138: 1 | BK138: 0 | BL138: 0 | BM138: 0 | BN138: 0 | BO138: 0 | BP138: 0 | BQ138: 0 | BR138: 0 | BS138: 0 | BT138: 0 | BU138: 0 | BV138: 0 | BW138: 0 | BX138: 0 | BY138: 0 | BZ138: 0 | CA138: 23.5 | CB138: 31.33 | CC138: Sat | CD138: 1300 | CE138: 0 | CF138: 3 | CG138: 21 | CH138: 22 | CI138: 0 | CJ138: 0 | CK138: 0 | CL138: 0 | CM138: 0 | CN138: 0 | CO138: 0 | CP138: 0 | CQ138: 0 | CR138: 0 | CS138: 0 | CT138: 8 | CU138: 13 | CV138: 13 | CW138: 9 | CX138: 1 | CY138: 0 | CZ138: 0 | DA138: 0 | DB138: 0 | DC138: 0 | DD138: 0 | DE138: 0 | DF138: 0 | DG138: 0 | DH138: 0 | DI138: 0 | DJ138: 0 | DK138: 0 | DL138: 0 | DM138: 0 | DN138: 0 | DO138: 24.72 | DP138: 31.02 | DQ138: 0 | DR138: 0 | DS138: 13 | DT138: 11 | DU138: 0 | DV138: 0 | DW138: 0 | DX138: 0 | DY138: 0 | DZ138: 0 | EA138: 0 | EB138: 0 | EC138: 24 | ED138: 0 | EE138: 3 | EF138: 8 | EG138: 11 | EH138: 0 | EI138: 0 | EJ138: 0 | EK138: 0 | EL138: 0 | EM138: 0 | EN138: 0 | EO138: 0 | EP138: 22 | EQ138: 0 | ER138: 3 | ES138: 21 | ET138: 22 | EU138: 0 | EV138: 0 | EW138: 0 | EX138: 0 | EY138: 0 | EZ138: 0 | FA138: 0 | FB138: 0 | FC138: 46
A139: Sat | B139: 1400 | C139: 0 | D139: 0 | E139: 7 | F139: 8 | G139: 0 | H139: 0 | I139: 0 | J139: 0 | K139: 0 | L139: 0 | M139: 0 | N139: 0 | O139: 0 | P139: 0 | Q139: 0 | R139: 4 | S139: 3 | T139: 5 | U139: 3 | V139: 0 | W139: 0 | X139: 0 | Y139: 0 | Z139: 0 | AA139: 0 | AB139: 0 | AC139: 0 | AD139: 0 | AE139: 0 | AF139: 0 | AG139: 0 | AH139: 0 | AI139: 0 | AJ139: 0 | AK139: 0 | AL139: 0 | AM139: 24.67 | AN139: 29.97 | AO139: Sat | AP139: 1400 | AQ139: 0 | AR139: 1 | AS139: 13 | AT139: 9 | AU139: 1 | AV139: 0 | AW139: 0 | AX139: 0 | AY139: 0 | AZ139: 0 | BA139: 0 | BB139: 0 | BC139: 0 | BD139: 1 | BE139: 1 | BF139: 1 | BG139: 9 | BH139: 8 | BI139: 4 | BJ139: 0 | BK139: 0 | BL139: 0 | BM139: 0 | BN139: 0 | BO139: 0 | BP139: 0 | BQ139: 0 | BR139: 0 | BS139: 0 | BT139: 0 | BU139: 0 | BV139: 0 | BW139: 0 | BX139: 0 | BY139: 0 | BZ139: 0 | CA139: 24.44 | CB139: 30.01 | CC139: Sat | CD139: 1400 | CE139: 0 | CF139: 1 | CG139: 20 | CH139: 17 | CI139: 1 | CJ139: 0 | CK139: 0 | CL139: 0 | CM139: 0 | CN139: 0 | CO139: 0 | CP139: 0 | CQ139: 0 | CR139: 0 | CS139: 0 | CT139: 5 | CU139: 12 | CV139: 13 | CW139: 7 | CX139: 0 | CY139: 0 | CZ139: 0 | DA139: 0 | DB139: 0 | DC139: 0 | DD139: 0 | DE139: 0 | DF139: 0 | DG139: 0 | DH139: 0 | DI139: 0 | DJ139: 0 | DK139: 0 | DL139: 0 | DM139: 0 | DN139: 0 | DO139: 24.53 | DP139: 30.07 | DQ139: 0 | DR139: 0 | DS139: 7 | DT139: 8 | DU139: 0 | DV139: 0 | DW139: 0 | DX139: 0 | DY139: 0 | DZ139: 0 | EA139: 0 | EB139: 0 | EC139: 15 | ED139: 0 | EE139: 1 | EF139: 13 | EG139: 9 | EH139: 1 | EI139: 0 | EJ139: 0 | EK139: 0 | EL139: 0 | EM139: 0 | EN139: 0 | EO139: 0 | EP139: 24 | EQ139: 0 | ER139: 1 | ES139: 20 | ET139: 17 | EU139: 1 | EV139: 0 | EW139: 0 | EX139: 0 | EY139: 0 | EZ139: 0 | FA139: 0 | FB139: 0 | FC139: 39
A140: Sat | B140: 1500 | C140: 0 | D140: 0 | E140: 15 | F140: 11 | G140: 0 | H140: 0 | I140: 0 | J140: 0 | K140: 0 | L140: 0 | M140: 0 | N140: 0 | O140: 0 | P140: 0 | Q140: 2 | R140: 5 | S140: 6 | T140: 11 | U140: 1 | V140: 1 | W140: 0 | X140: 0 | Y140: 0 | Z140: 0 | AA140: 0 | AB140: 0 | AC140: 0 | AD140: 0 | AE140: 0 | AF140: 0 | AG140: 0 | AH140: 0 | AI140: 0 | AJ140: 0 | AK140: 0 | AL140: 0 | AM140: 24.08 | AN140: 29.47 | AO140: Sat | AP140: 1500 | AQ140: 0 | AR140: 4 | AS140: 10 | AT140: 4 | AU140: 0 | AV140: 0 | AW140: 0 | AX140: 1 | AY140: 0 | AZ140: 0 | BA140: 0 | BB140: 0 | BC140: 0 | BD140: 0 | BE140: 1 | BF140: 3 | BG140: 7 | BH140: 6 | BI140: 2 | BJ140: 0 | BK140: 0 | BL140: 0 | BM140: 0 | BN140: 0 | BO140: 0 | BP140: 0 | BQ140: 0 | BR140: 0 | BS140: 0 | BT140: 0 | BU140: 0 | BV140: 0 | BW140: 0 | BX140: 0 | BY140: 0 | BZ140: 0 | CA140: 23.79 | CB140: 29.59 | CC140: Sat | CD140: 1500 | CE140: 0 | CF140: 4 | CG140: 25 | CH140: 15 | CI140: 0 | CJ140: 0 | CK140: 0 | CL140: 1 | CM140: 0 | CN140: 0 | CO140: 0 | CP140: 0 | CQ140: 0 | CR140: 0 | CS140: 2 | CT140: 8 | CU140: 13 | CV140: 17 | CW140: 3 | CX140: 1 | CY140: 0 | CZ140: 0 | DA140: 0 | DB140: 0 | DC140: 0 | DD140: 0 | DE140: 0 | DF140: 0 | DG140: 0 | DH140: 0 | DI140: 0 | DJ140: 0 | DK140: 0 | DL140: 0 | DM140: 0 | DN140: 0 | DO140: 23.95 | DP140: 29.6 | DQ140: 0 | DR140: 0 | DS140: 15 | DT140: 11 | DU140: 0 | DV140: 0 | DW140: 0 | DX140: 0 | DY140: 0 | DZ140: 0 | EA140: 0 | EB140: 0 | EC140: 26 | ED140: 0 | EE140: 4 | EF140: 10 | EG140: 4 | EH140: 0 | EI140: 0 | EJ140: 0 | EK140: 1 | EL140: 0 | EM140: 0 | EN140: 0 | EO140: 0 | EP140: 19 | EQ140: 0 | ER140: 4 | ES140: 25 | ET140: 15 | EU140: 0 | EV140: 0 | EW140: 0 | EX140: 1 | EY140: 0 | EZ140: 0 | FA140: 0 | FB140: 0 | FC140: 45
A141: Sat | B141: 1600 | C141: 0 | D141: 1 | E141: 10 | F141: 11 | G141: 0 | H141: 0 | I141: 0 | J141: 0 | K141: 0 | L141: 0 | M141: 0 | N141: 0 | O141: 0 | P141: 0 | Q141: 3 | R141: 1 | S141: 11 | T141: 5 | U141: 1 | V141: 1 | W141: 0 | X141: 0 | Y141: 0 | Z141: 0 | AA141: 0 | AB141: 0 | AC141: 0 | AD141: 0 | AE141: 0 | AF141: 0 | AG141: 0 | AH141: 0 | AI141: 0 | AJ141: 0 | AK141: 0 | AL141: 0 | AM141: 23.02 | AN141: 27.59 | AO141: Sat | AP141: 1600 | AQ141: 0 | AR141: 1 | AS141: 12 | AT141: 6 | AU141: 0 | AV141: 0 | AW141: 0 | AX141: 0 | AY141: 0 | AZ141: 0 | BA141: 0 | BB141: 0 | BC141: 0 | BD141: 0 | BE141: 3 | BF141: 1 | BG141: 3 | BH141: 6 | BI141: 4 | BJ141: 1 | BK141: 1 | BL141: 0 | BM141: 0 | BN141: 0 | BO141: 0 | BP141: 0 | BQ141: 0 | BR141: 0 | BS141: 0 | BT141: 0 | BU141: 0 | BV141: 0 | BW141: 0 | BX141: 0 | BY141: 0 | BZ141: 0 | CA141: 25.96 | CB141: 33.09 | CC141: Sat | CD141: 1600 | CE141: 0 | CF141: 2 | CG141: 22 | CH141: 17 | CI141: 0 | CJ141: 0 | CK141: 0 | CL141: 0 | CM141: 0 | CN141: 0 | CO141: 0 | CP141: 0 | CQ141: 0 | CR141: 0 | CS141: 3 | CT141: 2 | CU141: 14 | CV141: 11 | CW141: 5 | CX141: 2 | CY141: 1 | CZ141: 0 | DA141: 0 | DB141: 0 | DC141: 0 | DD141: 0 | DE141: 0 | DF141: 0 | DG141: 0 | DH141: 0 | DI141: 0 | DJ141: 0 | DK141: 0 | DL141: 0 | DM141: 0 | DN141: 0 | DO141: 24.38 | DP141: 31.45 | DQ141: 0 | DR141: 1 | DS141: 10 | DT141: 11 | DU141: 0 | DV141: 0 | DW141: 0 | DX141: 0 | DY141: 0 | DZ141: 0 | EA141: 0 | EB141: 0 | EC141: 22 | ED141: 0 | EE141: 1 | EF141: 12 | EG141: 6 | EH141: 0 | EI141: 0 | EJ141: 0 | EK141: 0 | EL141: 0 | EM141: 0 | EN141: 0 | EO141: 0 | EP141: 19 | EQ141: 0 | ER141: 2 | ES141: 22 | ET141: 17 | EU141: 0 | EV141: 0 | EW141: 0 | EX141: 0 | EY141: 0 | EZ141: 0 | FA141: 0 | FB141: 0 | FC141: 41
A142: Sat | B142: 1700 | C142: 0 | D142: 1 | E142: 10 | F142: 13 | G142: 1 | H142: 0 | I142: 0 | J142: 0 | K142: 0 | L142: 0 | M142: 0 | N142: 0 | O142: 0 | P142: 1 | Q142: 4 | R142: 3 | S142: 12 | T142: 4 | U142: 1 | V142: 0 | W142: 0 | X142: 0 | Y142: 0 | Z142: 0 | AA142: 0 | AB142: 0 | AC142: 0 | AD142: 0 | AE142: 0 | AF142: 0 | AG142: 0 | AH142: 0 | AI142: 0 | AJ142: 0 | AK142: 0 | AL142: 0 | AM142: 21.59 | AN142: 26.28 | AO142: Sat | AP142: 1700 | AQ142: 0 | AR142: 1 | AS142: 5 | AT142: 11 | AU142: 0 | AV142: 0 | AW142: 0 | AX142: 0 | AY142: 0 | AZ142: 0 | BA142: 0 | BB142: 0 | BC142: 0 | BD142: 1 | BE142: 2 | BF142: 0 | BG142: 6 | BH142: 4 | BI142: 3 | BJ142: 1 | BK142: 0 | BL142: 0 | BM142: 0 | BN142: 0 | BO142: 0 | BP142: 0 | BQ142: 0 | BR142: 0 | BS142: 0 | BT142: 0 | BU142: 0 | BV142: 0 | BW142: 0 | BX142: 0 | BY142: 0 | BZ142: 0 | CA142: 24.28 | CB142: 32.02 | CC142: Sat | CD142: 1700 | CE142: 0 | CF142: 2 | CG142: 15 | CH142: 24 | CI142: 1 | CJ142: 0 | CK142: 0 | CL142: 0 | CM142: 0 | CN142: 0 | CO142: 0 | CP142: 0 | CQ142: 0 | CR142: 1 | CS142: 4 | CT142: 3 | CU142: 18 | CV142: 8 | CW142: 4 | CX142: 1 | CY142: 0 | CZ142: 0 | DA142: 0 | DB142: 0 | DC142: 0 | DD142: 0 | DE142: 0 | DF142: 0 | DG142: 0 | DH142: 0 | DI142: 0 | DJ142: 0 | DK142: 0 | DL142: 0 | DM142: 0 | DN142: 0 | DO142: 22.68 | DP142: 28.77 | DQ142: 0 | DR142: 1 | DS142: 10 | DT142: 13 | DU142: 1 | DV142: 0 | DW142: 0 | DX142: 0 | DY142: 0 | DZ142: 0 | EA142: 0 | EB142: 0 | EC142: 25 | ED142: 0 | EE142: 1 | EF142: 5 | EG142: 11 | EH142: 0 | EI142: 0 | EJ142: 0 | EK142: 0 | EL142: 0 | EM142: 0 | EN142: 0 | EO142: 0 | EP142: 17 | EQ142: 0 | ER142: 2 | ES142: 15 | ET142: 24 | EU142: 1 | EV142: 0 | EW142: 0 | EX142: 0 | EY142: 0 | EZ142: 0 | FA142: 0 | FB142: 0 | FC142: 42
A143: Sat | B143: 1800 | C143: 0 | D143: 0 | E143: 6 | F143: 12 | G143: 0 | H143: 0 | I143: 0 | J143: 0 | K143: 0 | L143: 0 | M143: 0 | N143: 0 | O143: 0 | P143: 1 | Q143: 0 | R143: 2 | S143: 6 | T143: 6 | U143: 3 | V143: 0 | W143: 0 | X143: 0 | Y143: 0 | Z143: 0 | AA143: 0 | AB143: 0 | AC143: 0 | AD143: 0 | AE143: 0 | AF143: 0 | AG143: 0 | AH143: 0 | AI143: 0 | AJ143: 0 | AK143: 0 | AL143: 0 | AM143: 24.46 | AN143: 30.07 | AO143: Sat | AP143: 1800 | AQ143: 0 | AR143: 0 | AS143: 9 | AT143: 10 | AU143: 0 | AV143: 0 | AW143: 0 | AX143: 0 | AY143: 0 | AZ143: 0 | BA143: 0 | BB143: 0 | BC143: 0 | BD143: 1 | BE143: 1 | BF143: 2 | BG143: 4 | BH143: 6 | BI143: 5 | BJ143: 0 | BK143: 0 | BL143: 0 | BM143: 0 | BN143: 0 | BO143: 0 | BP143: 0 | BQ143: 0 | BR143: 0 | BS143: 0 | BT143: 0 | BU143: 0 | BV143: 0 | BW143: 0 | BX143: 0 | BY143: 0 | BZ143: 0 | CA143: 24.72 | CB143: 30.67 | CC143: Sat | CD143: 1800 | CE143: 0 | CF143: 0 | CG143: 15 | CH143: 22 | CI143: 0 | CJ143: 0 | CK143: 0 | CL143: 0 | CM143: 0 | CN143: 0 | CO143: 0 | CP143: 0 | CQ143: 0 | CR143: 1 | CS143: 0 | CT143: 4 | CU143: 10 | CV143: 12 | CW143: 8 | CX143: 0 | CY143: 0 | CZ143: 0 | DA143: 0 | DB143: 0 | DC143: 0 | DD143: 0 | DE143: 0 | DF143: 0 | DG143: 0 | DH143: 0 | DI143: 0 | DJ143: 0 | DK143: 0 | DL143: 0 | DM143: 0 | DN143: 0 | DO143: 24.59 | DP143: 30.8 | DQ143: 0 | DR143: 0 | DS143: 6 | DT143: 12 | DU143: 0 | DV143: 0 | DW143: 0 | DX143: 0 | DY143: 0 | DZ143: 0 | EA143: 0 | EB143: 0 | EC143: 18 | ED143: 0 | EE143: 0 | EF143: 9 | EG143: 10 | EH143: 0 | EI143: 0 | EJ143: 0 | EK143: 0 | EL143: 0 | EM143: 0 | EN143: 0 | EO143: 0 | EP143: 19 | EQ143: 0 | ER143: 0 | ES143: 15 | ET143: 22 | EU143: 0 | EV143: 0 | EW143: 0 | EX143: 0 | EY143: 0 | EZ143: 0 | FA143: 0 | FB143: 0 | FC143: 37
A144: Sat | B144: 1900 | C144: 0 | D144: 0 | E144: 8 | F144: 13 | G144: 0 | H144: 0 | I144: 0 | J144: 0 | K144: 0 | L144: 0 | M144: 0 | N144: 0 | O144: 0 | P144: 0 | Q144: 0 | R144: 2 | S144: 4 | T144: 11 | U144: 3 | V144: 1 | W144: 0 | X144: 0 | Y144: 0 | Z144: 0 | AA144: 0 | AB144: 0 | AC144: 0 | AD144: 0 | AE144: 0 | AF144: 0 | AG144: 0 | AH144: 0 | AI144: 0 | AJ144: 0 | AK144: 0 | AL144: 0 | AM144: 26.39 | AN144: 30.24 | AO144: Sat | AP144: 1900 | AQ144: 0 | AR144: 0 | AS144: 3 | AT144: 8 | AU144: 0 | AV144: 0 | AW144: 0 | AX144: 0 | AY144: 0 | AZ144: 0 | BA144: 0 | BB144: 0 | BC144: 0 | BD144: 1 | BE144: 0 | BF144: 1 | BG144: 2 | BH144: 6 | BI144: 1 | BJ144: 0 | BK144: 0 | BL144: 0 | BM144: 0 | BN144: 0 | BO144: 0 | BP144: 0 | BQ144: 0 | BR144: 0 | BS144: 0 | BT144: 0 | BU144: 0 | BV144: 0 | BW144: 0 | BX144: 0 | BY144: 0 | BZ144: 0 | CA144: 24.45 | CB144: 29.22 | CC144: Sat | CD144: 1900 | CE144: 0 | CF144: 0 | CG144: 11 | CH144: 21 | CI144: 0 | CJ144: 0 | CK144: 0 | CL144: 0 | CM144: 0 | CN144: 0 | CO144: 0 | CP144: 0 | CQ144: 0 | CR144: 0 | CS144: 0 | CT144: 3 | CU144: 6 | CV144: 17 | CW144: 4 | CX144: 1 | CY144: 0 | CZ144: 0 | DA144: 0 | DB144: 0 | DC144: 0 | DD144: 0 | DE144: 0 | DF144: 0 | DG144: 0 | DH144: 0 | DI144: 0 | DJ144: 0 | DK144: 0 | DL144: 0 | DM144: 0 | DN144: 0 | DO144: 25.72 | DP144: 30 | DQ144: 0 | DR144: 0 | DS144: 8 | DT144: 13 | DU144: 0 | DV144: 0 | DW144: 0 | DX144: 0 | DY144: 0 | DZ144: 0 | EA144: 0 | EB144: 0 | EC144: 21 | ED144: 0 | EE144: 0 | EF144: 3 | EG144: 8 | EH144: 0 | EI144: 0 | EJ144: 0 | EK144: 0 | EL144: 0 | EM144: 0 | EN144: 0 | EO144: 0 | EP144: 11 | EQ144: 0 | ER144: 0 | ES144: 11 | ET144: 21 | EU144: 0 | EV144: 0 | EW144: 0 | EX144: 0 | EY144: 0 | EZ144: 0 | FA144: 0 | FB144: 0 | FC144: 32
A145: Sat | B145: 2000 | C145: 0 | D145: 0 | E145: 1 | F145: 1 | G145: 0 | H145: 0 | I145: 0 | J145: 0 | K145: 0 | L145: 0 | M145: 0 | N145: 0 | O145: 0 | P145: 0 | Q145: 0 | R145: 0 | S145: 0 | T145: 0 | U145: 2 | V145: 0 | W145: 0 | X145: 0 | Y145: 0 | Z145: 0 | AA145: 0 | AB145: 0 | AC145: 0 | AD145: 0 | AE145: 0 | AF145: 0 | AG145: 0 | AH145: 0 | AI145: 0 | AJ145: 0 | AK145: 0 | AL145: 0 | AM145: 31.27 | AN145: - | AO145: Sat | AP145: 2000 | AQ145: 0 | AR145: 0 | AS145: 3 | AT145: 2 | AU145: 0 | AV145: 0 | AW145: 0 | AX145: 0 | AY145: 0 | AZ145: 0 | BA145: 0 | BB145: 0 | BC145: 0 | BD145: 0 | BE145: 0 | BF145: 0 | BG145: 1 | BH145: 3 | BI145: 0 | BJ145: 0 | BK145: 0 | BL145: 1 | BM145: 0 | BN145: 0 | BO145: 0 | BP145: 0 | BQ145: 0 | BR145: 0 | BS145: 0 | BT145: 0 | BU145: 0 | BV145: 0 | BW145: 0 | BX145: 0 | BY145: 0 | BZ145: 0 | CA145: 30.73 | CB145: - | CC145: Sat | CD145: 2000 | CE145: 0 | CF145: 0 | CG145: 4 | CH145: 3 | CI145: 0 | CJ145: 0 | CK145: 0 | CL145: 0 | CM145: 0 | CN145: 0 | CO145: 0 | CP145: 0 | CQ145: 0 | CR145: 0 | CS145: 0 | CT145: 0 | CU145: 1 | CV145: 3 | CW145: 2 | CX145: 0 | CY145: 0 | CZ145: 1 | DA145: 0 | DB145: 0 | DC145: 0 | DD145: 0 | DE145: 0 | DF145: 0 | DG145: 0 | DH145: 0 | DI145: 0 | DJ145: 0 | DK145: 0 | DL145: 0 | DM145: 0 | DN145: 0 | DO145: 30.88 | DP145: - | DQ145: 0 | DR145: 0 | DS145: 1 | DT145: 1 | DU145: 0 | DV145: 0 | DW145: 0 | DX145: 0 | DY145: 0 | DZ145: 0 | EA145: 0 | EB145: 0 | EC145: 2 | ED145: 0 | EE145: 0 | EF145: 3 | EG145: 2 | EH145: 0 | EI145: 0 | EJ145: 0 | EK145: 0 | EL145: 0 | EM145: 0 | EN145: 0 | EO145: 0 | EP145: 5 | EQ145: 0 | ER145: 0 | ES145: 4 | ET145: 3 | EU145: 0 | EV145: 0 | EW145: 0 | EX145: 0 | EY145: 0 | EZ145: 0 | FA145: 0 | FB145: 0 | FC145: 7
A146: Sat | B146: 2100 | C146: 0 | D146: 0 | E146: 2 | F146: 3 | G146: 0 | H146: 0 | I146: 0 | J146: 0 | K146: 0 | L146: 0 | M146: 0 | N146: 0 | O146: 0 | P146: 0 | Q146: 1 | R146: 0 | S146: 1 | T146: 2 | U146: 1 | V146: 0 | W146: 0 | X146: 0 | Y146: 0 | Z146: 0 | AA146: 0 | AB146: 0 | AC146: 0 | AD146: 0 | AE146: 0 | AF146: 0 | AG146: 0 | AH146: 0 | AI146: 0 | AJ146: 0 | AK146: 0 | AL146: 0 | AM146: 24.34 | AN146: - | AO146: Sat | AP146: 2100 | AQ146: 0 | AR146: 0 | AS146: 4 | AT146: 3 | AU146: 0 | AV146: 0 | AW146: 0 | AX146: 0 | AY146: 0 | AZ146: 0 | BA146: 0 | BB146: 0 | BC146: 0 | BD146: 0 | BE146: 2 | BF146: 2 | BG146: 3 | BH146: 0 | BI146: 0 | BJ146: 0 | BK146: 0 | BL146: 0 | BM146: 0 | BN146: 0 | BO146: 0 | BP146: 0 | BQ146: 0 | BR146: 0 | BS146: 0 | BT146: 0 | BU146: 0 | BV146: 0 | BW146: 0 | BX146: 0 | BY146: 0 | BZ146: 0 | CA146: 17.76 | CB146: - | CC146: Sat | CD146: 2100 | CE146: 0 | CF146: 0 | CG146: 6 | CH146: 6 | CI146: 0 | CJ146: 0 | CK146: 0 | CL146: 0 | CM146: 0 | CN146: 0 | CO146: 0 | CP146: 0 | CQ146: 0 | CR146: 0 | CS146: 1 | CT146: 2 | CU146: 4 | CV146: 2 | CW146: 1 | CX146: 0 | CY146: 0 | CZ146: 0 | DA146: 0 | DB146: 0 | DC146: 0 | DD146: 0 | DE146: 0 | DF146: 0 | DG146: 0 | DH146: 0 | DI146: 0 | DJ146: 0 | DK146: 0 | DL146: 0 | DM146: 0 | DN146: 0 | DO146: 20.5 | DP146: 25.91 | DQ146: 0 | DR146: 0 | DS146: 2 | DT146: 3 | DU146: 0 | DV146: 0 | DW146: 0 | DX146: 0 | DY146: 0 | DZ146: 0 | EA146: 0 | EB146: 0 | EC146: 5 | ED146: 0 | EE146: 0 | EF146: 4 | EG146: 3 | EH146: 0 | EI146: 0 | EJ146: 0 | EK146: 0 | EL146: 0 | EM146: 0 | EN146: 0 | EO146: 0 | EP146: 7 | EQ146: 0 | ER146: 0 | ES146: 6 | ET146: 6 | EU146: 0 | EV146: 0 | EW146: 0 | EX146: 0 | EY146: 0 | EZ146: 0 | FA146: 0 | FB146: 0 | FC146: 12
A147: Sat | B147: 2200 | C147: 0 | D147: 0 | E147: 3 | F147: 4 | G147: 0 | H147: 0 | I147: 0 | J147: 0 | K147: 0 | L147: 0 | M147: 0 | N147: 0 | O147: 0 | P147: 0 | Q147: 0 | R147: 0 | S147: 3 | T147: 4 | U147: 0 | V147: 0 | W147: 0 | X147: 0 | Y147: 0 | Z147: 0 | AA147: 0 | AB147: 0 | AC147: 0 | AD147: 0 | AE147: 0 | AF147: 0 | AG147: 0 | AH147: 0 | AI147: 0 | AJ147: 0 | AK147: 0 | AL147: 0 | AM147: 25.56 | AN147: - | AO147: Sat | AP147: 2200 | AQ147: 0 | AR147: 0 | AS147: 1 | AT147: 2 | AU147: 0 | AV147: 0 | AW147: 0 | AX147: 0 | AY147: 0 | AZ147: 0 | BA147: 0 | BB147: 0 | BC147: 0 | BD147: 0 | BE147: 0 | BF147: 0 | BG147: 2 | BH147: 1 | BI147: 0 | BJ147: 0 | BK147: 0 | BL147: 0 | BM147: 0 | BN147: 0 | BO147: 0 | BP147: 0 | BQ147: 0 | BR147: 0 | BS147: 0 | BT147: 0 | BU147: 0 | BV147: 0 | BW147: 0 | BX147: 0 | BY147: 0 | BZ147: 0 | CA147: 24.3 | CB147: - | CC147: Sat | CD147: 2200 | CE147: 0 | CF147: 0 | CG147: 4 | CH147: 6 | CI147: 0 | CJ147: 0 | CK147: 0 | CL147: 0 | CM147: 0 | CN147: 0 | CO147: 0 | CP147: 0 | CQ147: 0 | CR147: 0 | CS147: 0 | CT147: 0 | CU147: 5 | CV147: 5 | CW147: 0 | CX147: 0 | CY147: 0 | CZ147: 0 | DA147: 0 | DB147: 0 | DC147: 0 | DD147: 0 | DE147: 0 | DF147: 0 | DG147: 0 | DH147: 0 | DI147: 0 | DJ147: 0 | DK147: 0 | DL147: 0 | DM147: 0 | DN147: 0 | DO147: 25.18 | DP147: 27.12 | DQ147: 0 | DR147: 0 | DS147: 3 | DT147: 4 | DU147: 0 | DV147: 0 | DW147: 0 | DX147: 0 | DY147: 0 | DZ147: 0 | EA147: 0 | EB147: 0 | EC147: 7 | ED147: 0 | EE147: 0 | EF147: 1 | EG147: 2 | EH147: 0 | EI147: 0 | EJ147: 0 | EK147: 0 | EL147: 0 | EM147: 0 | EN147: 0 | EO147: 0 | EP147: 3 | EQ147: 0 | ER147: 0 | ES147: 4 | ET147: 6 | EU147: 0 | EV147: 0 | EW147: 0 | EX147: 0 | EY147: 0 | EZ147: 0 | FA147: 0 | FB147: 0 | FC147: 10
A148: Sat | B148: 2300 | C148: 0 | D148: 1 | E148: 0 | F148: 2 | G148: 0 | H148: 0 | I148: 0 | J148: 0 | K148: 0 | L148: 0 | M148: 0 | N148: 0 | O148: 0 | P148: 0 | Q148: 0 | R148: 1 | S148: 1 | T148: 1 | U148: 0 | V148: 0 | W148: 0 | X148: 0 | Y148: 0 | Z148: 0 | AA148: 0 | AB148: 0 | AC148: 0 | AD148: 0 | AE148: 0 | AF148: 0 | AG148: 0 | AH148: 0 | AI148: 0 | AJ148: 0 | AK148: 0 | AL148: 0 | AM148: 23.06 | AN148: - | AO148: Sat | AP148: 2300 | AQ148: 0 | AR148: 0 | AS148: 1 | AT148: 1 | AU148: 0 | AV148: 0 | AW148: 0 | AX148: 0 | AY148: 0 | AZ148: 0 | BA148: 0 | BB148: 0 | BC148: 0 | BD148: 0 | BE148: 0 | BF148: 0 | BG148: 0 | BH148: 1 | BI148: 1 | BJ148: 0 | BK148: 0 | BL148: 0 | BM148: 0 | BN148: 0 | BO148: 0 | BP148: 0 | BQ148: 0 | BR148: 0 | BS148: 0 | BT148: 0 | BU148: 0 | BV148: 0 | BW148: 0 | BX148: 0 | BY148: 0 | BZ148: 0 | CA148: 29.43 | CB148: - | CC148: Sat | CD148: 2300 | CE148: 0 | CF148: 1 | CG148: 1 | CH148: 3 | CI148: 0 | CJ148: 0 | CK148: 0 | CL148: 0 | CM148: 0 | CN148: 0 | CO148: 0 | CP148: 0 | CQ148: 0 | CR148: 0 | CS148: 0 | CT148: 1 | CU148: 1 | CV148: 2 | CW148: 1 | CX148: 0 | CY148: 0 | CZ148: 0 | DA148: 0 | DB148: 0 | DC148: 0 | DD148: 0 | DE148: 0 | DF148: 0 | DG148: 0 | DH148: 0 | DI148: 0 | DJ148: 0 | DK148: 0 | DL148: 0 | DM148: 0 | DN148: 0 | DO148: 25.61 | DP148: - | DQ148: 0 | DR148: 1 | DS148: 0 | DT148: 2 | DU148: 0 | DV148: 0 | DW148: 0 | DX148: 0 | DY148: 0 | DZ148: 0 | EA148: 0 | EB148: 0 | EC148: 3 | ED148: 0 | EE148: 0 | EF148: 1 | EG148: 1 | EH148: 0 | EI148: 0 | EJ148: 0 | EK148: 0 | EL148: 0 | EM148: 0 | EN148: 0 | EO148: 0 | EP148: 2 | EQ148: 0 | ER148: 1 | ES148: 1 | ET148: 3 | EU148: 0 | EV148: 0 | EW148: 0 | EX148: 0 | EY148: 0 | EZ148: 0 | FA148: 0 | FB148: 0 | FC148: 5
A149: Sun | B149: 0 | C149: 0 | D149: 0 | E149: 2 | F149: 0 | G149: 0 | H149: 0 | I149: 0 | J149: 0 | K149: 0 | L149: 0 | M149: 0 | N149: 0 | O149: 0 | P149: 0 | Q149: 0 | R149: 0 | S149: 1 | T149: 1 | U149: 0 | V149: 0 | W149: 0 | X149: 0 | Y149: 0 | Z149: 0 | AA149: 0 | AB149: 0 | AC149: 0 | AD149: 0 | AE149: 0 | AF149: 0 | AG149: 0 | AH149: 0 | AI149: 0 | AJ149: 0 | AK149: 0 | AL149: 0 | AM149: 25.1 | AN149: - | AO149: Sun | AP149: 0 | AQ149: 0 | AR149: 0 | AS149: 2 | AT149: 0 | AU149: 0 | AV149: 0 | AW149: 0 | AX149: 0 | AY149: 0 | AZ149: 0 | BA149: 0 | BB149: 0 | BC149: 0 | BD149: 0 | BE149: 0 | BF149: 0 | BG149: 1 | BH149: 1 | BI149: 0 | BJ149: 0 | BK149: 0 | BL149: 0 | BM149: 0 | BN149: 0 | BO149: 0 | BP149: 0 | BQ149: 0 | BR149: 0 | BS149: 0 | BT149: 0 | BU149: 0 | BV149: 0 | BW149: 0 | BX149: 0 | BY149: 0 | BZ149: 0 | CA149: 26.36 | CB149: - | CC149: Sun | CD149: 0 | CE149: 0 | CF149: 0 | CG149: 4 | CH149: 0 | CI149: 0 | CJ149: 0 | CK149: 0 | CL149: 0 | CM149: 0 | CN149: 0 | CO149: 0 | CP149: 0 | CQ149: 0 | CR149: 0 | CS149: 0 | CT149: 0 | CU149: 2 | CV149: 2 | CW149: 0 | CX149: 0 | CY149: 0 | CZ149: 0 | DA149: 0 | DB149: 0 | DC149: 0 | DD149: 0 | DE149: 0 | DF149: 0 | DG149: 0 | DH149: 0 | DI149: 0 | DJ149: 0 | DK149: 0 | DL149: 0 | DM149: 0 | DN149: 0 | DO149: 25.73 | DP149: - | DQ149: 0 | DR149: 0 | DS149: 2 | DT149: 0 | DU149: 0 | DV149: 0 | DW149: 0 | DX149: 0 | DY149: 0 | DZ149: 0 | EA149: 0 | EB149: 0 | EC149: 2 | ED149: 0 | EE149: 0 | EF149: 2 | EG149: 0 | EH149: 0 | EI149: 0 | EJ149: 0 | EK149: 0 | EL149: 0 | EM149: 0 | EN149: 0 | EO149: 0 | EP149: 2 | EQ149: 0 | ER149: 0 | ES149: 4 | ET149: 0 | EU149: 0 | EV149: 0 | EW149: 0 | EX149: 0 | EY149: 0 | EZ149: 0 | FA149: 0 | FB149: 0 | FC149: 4
A150: Sun | B150: 100 | C150: 0 | D150: 0 | E150: 2 | F150: 0 | G150: 0 | H150: 0 | I150: 0 | J150: 0 | K150: 0 | L150: 0 | M150: 0 | N150: 0 | O150: 0 | P150: 0 | Q150: 1 | R150: 0 | S150: 0 | T150: 0 | U150: 1 | V150: 0 | W150: 0 | X150: 0 | Y150: 0 | Z150: 0 | AA150: 0 | AB150: 0 | AC150: 0 | AD150: 0 | AE150: 0 | AF150: 0 | AG150: 0 | AH150: 0 | AI150: 0 | AJ150: 0 | AK150: 0 | AL150: 0 | AM150: 21.56 | AN150: - | AO150: Sun | AP150: 100 | AQ150: 0 | AR150: 0 | AS150: 1 | AT150: 2 | AU150: 0 | AV150: 0 | AW150: 0 | AX150: 0 | AY150: 0 | AZ150: 0 | BA150: 0 | BB150: 0 | BC150: 0 | BD150: 1 | BE150: 0 | BF150: 0 | BG150: 0 | BH150: 1 | BI150: 1 | BJ150: 0 | BK150: 0 | BL150: 0 | BM150: 0 | BN150: 0 | BO150: 0 | BP150: 0 | BQ150: 0 | BR150: 0 | BS150: 0 | BT150: 0 | BU150: 0 | BV150: 0 | BW150: 0 | BX150: 0 | BY150: 0 | BZ150: 0 | CA150: 23.75 | CB150: - | CC150: Sun | CD150: 100 | CE150: 0 | CF150: 0 | CG150: 3 | CH150: 2 | CI150: 0 | CJ150: 0 | CK150: 0 | CL150: 0 | CM150: 0 | CN150: 0 | CO150: 0 | CP150: 0 | CQ150: 0 | CR150: 0 | CS150: 1 | CT150: 0 | CU150: 0 | CV150: 1 | CW150: 2 | CX150: 0 | CY150: 0 | CZ150: 0 | DA150: 0 | DB150: 0 | DC150: 0 | DD150: 0 | DE150: 0 | DF150: 0 | DG150: 0 | DH150: 0 | DI150: 0 | DJ150: 0 | DK150: 0 | DL150: 0 | DM150: 0 | DN150: 0 | DO150: 22.88 | DP150: - | DQ150: 0 | DR150: 0 | DS150: 2 | DT150: 0 | DU150: 0 | DV150: 0 | DW150: 0 | DX150: 0 | DY150: 0 | DZ150: 0 | EA150: 0 | EB150: 0 | EC150: 2 | ED150: 0 | EE150: 0 | EF150: 1 | EG150: 2 | EH150: 0 | EI150: 0 | EJ150: 0 | EK150: 0 | EL150: 0 | EM150: 0 | EN150: 0 | EO150: 0 | EP150: 3 | EQ150: 0 | ER150: 0 | ES150: 3 | ET150: 2 | EU150: 0 | EV150: 0 | EW150: 0 | EX150: 0 | EY150: 0 | EZ150: 0 | FA150: 0 | FB150: 0 | FC150: 5
A151: Sun | B151: 200 | C151: 0 | D151: 0 | E151: 0 | F151: 1 | G151: 0 | H151: 0 | I151: 0 | J151: 0 | K151: 0 | L151: 0 | M151: 0 | N151: 0 | O151: 0 | P151: 0 | Q151: 0 | R151: 0 | S151: 1 | T151: 0 | U151: 0 | V151: 0 | W151: 0 | X151: 0 | Y151: 0 | Z151: 0 | AA151: 0 | AB151: 0 | AC151: 0 | AD151: 0 | AE151: 0 | AF151: 0 | AG151: 0 | AH151: 0 | AI151: 0 | AJ151: 0 | AK151: 0 | AL151: 0 | AM151: 22.18 | AN151: - | AO151: Sun | AP151: 200 | AQ151: 0 | AR151: 0 | AS151: 0 | AT151: 0 | AU151: 0 | AV151: 0 | AW151: 0 | AX151: 0 | AY151: 0 | AZ151: 0 | BA151: 0 | BB151: 0 | BC151: 0 | BD151: 0 | BE151: 0 | BF151: 0 | BG151: 0 | BH151: 0 | BI151: 0 | BJ151: 0 | BK151: 0 | BL151: 0 | BM151: 0 | BN151: 0 | BO151: 0 | BP151: 0 | BQ151: 0 | BR151: 0 | BS151: 0 | BT151: 0 | BU151: 0 | BV151: 0 | BW151: 0 | BX151: 0 | BY151: 0 | BZ151: 0 | CA151: - | CB151: - | CC151: Sun | CD151: 200 | CE151: 0 | CF151: 0 | CG151: 0 | CH151: 1 | CI151: 0 | CJ151: 0 | CK151: 0 | CL151: 0 | CM151: 0 | CN151: 0 | CO151: 0 | CP151: 0 | CQ151: 0 | CR151: 0 | CS151: 0 | CT151: 0 | CU151: 1 | CV151: 0 | CW151: 0 | CX151: 0 | CY151: 0 | CZ151: 0 | DA151: 0 | DB151: 0 | DC151: 0 | DD151: 0 | DE151: 0 | DF151: 0 | DG151: 0 | DH151: 0 | DI151: 0 | DJ151: 0 | DK151: 0 | DL151: 0 | DM151: 0 | DN151: 0 | DO151: 22.18 | DP151: - | DQ151: 0 | DR151: 0 | DS151: 0 | DT151: 1 | DU151: 0 | DV151: 0 | DW151: 0 | DX151: 0 | DY151: 0 | DZ151: 0 | EA151: 0 | EB151: 0 | EC151: 1 | ED151: 0 | EE151: 0 | EF151: 0 | EG151: 0 | EH151: 0 | EI151: 0 | EJ151: 0 | EK151: 0 | EL151: 0 | EM151: 0 | EN151: 0 | EO151: 0 | EP151: 0 | EQ151: 0 | ER151: 0 | ES151: 0 | ET151: 1 | EU151: 0 | EV151: 0 | EW151: 0 | EX151: 0 | EY151: 0 | EZ151: 0 | FA151: 0 | FB151: 0 | FC151: 1
A152: Sun | B152: 300 | C152: 0 | D152: 0 | E152: 0 | F152: 0 | G152: 0 | H152: 0 | I152: 0 | J152: 0 | K152: 0 | L152: 0 | M152: 0 | N152: 0 | O152: 0 | P152: 0 | Q152: 0 | R152: 0 | S152: 0 | T152: 0 | U152: 0 | V152: 0 | W152: 0 | X152: 0 | Y152: 0 | Z152: 0 | AA152: 0 | AB152: 0 | AC152: 0 | AD152: 0 | AE152: 0 | AF152: 0 | AG152: 0 | AH152: 0 | AI152: 0 | AJ152: 0 | AK152: 0 | AL152: 0 | AM152: - | AN152: - | AO152: Sun | AP152: 300 | AQ152: 0 | AR152: 0 | AS152: 1 | AT152: 1 | AU152: 0 | AV152: 0 | AW152: 0 | AX152: 0 | AY152: 0 | AZ152: 0 | BA152: 0 | BB152: 0 | BC152: 0 | BD152: 0 | BE152: 0 | BF152: 1 | BG152: 1 | BH152: 0 | BI152: 0 | BJ152: 0 | BK152: 0 | BL152: 0 | BM152: 0 | BN152: 0 | BO152: 0 | BP152: 0 | BQ152: 0 | BR152: 0 | BS152: 0 | BT152: 0 | BU152: 0 | BV152: 0 | BW152: 0 | BX152: 0 | BY152: 0 | BZ152: 0 | CA152: 20.65 | CB152: - | CC152: Sun | CD152: 300 | CE152: 0 | CF152: 0 | CG152: 1 | CH152: 1 | CI152: 0 | CJ152: 0 | CK152: 0 | CL152: 0 | CM152: 0 | CN152: 0 | CO152: 0 | CP152: 0 | CQ152: 0 | CR152: 0 | CS152: 0 | CT152: 1 | CU152: 1 | CV152: 0 | CW152: 0 | CX152: 0 | CY152: 0 | CZ152: 0 | DA152: 0 | DB152: 0 | DC152: 0 | DD152: 0 | DE152: 0 | DF152: 0 | DG152: 0 | DH152: 0 | DI152: 0 | DJ152: 0 | DK152: 0 | DL152: 0 | DM152: 0 | DN152: 0 | DO152: 20.65 | DP152: - | DQ152: 0 | DR152: 0 | DS152: 0 | DT152: 0 | DU152: 0 | DV152: 0 | DW152: 0 | DX152: 0 | DY152: 0 | DZ152: 0 | EA152: 0 | EB152: 0 | EC152: 0 | ED152: 0 | EE152: 0 | EF152: 1 | EG152: 1 | EH152: 0 | EI152: 0 | EJ152: 0 | EK152: 0 | EL152: 0 | EM152: 0 | EN152: 0 | EO152: 0 | EP152: 2 | EQ152: 0 | ER152: 0 | ES152: 1 | ET152: 1 | EU152: 0 | EV152: 0 | EW152: 0 | EX152: 0 | EY152: 0 | EZ152: 0 | FA152: 0 | FB152: 0 | FC152: 2
A153: Sun | B153: 400 | C153: 0 | D153: 0 | E153: 0 | F153: 0 | G153: 0 | H153: 0 | I153: 0 | J153: 0 | K153: 0 | L153: 0 | M153: 0 | N153: 0 | O153: 0 | P153: 0 | Q153: 0 | R153: 0 | S153: 0 | T153: 0 | U153: 0 | V153: 0 | W153: 0 | X153: 0 | Y153: 0 | Z153: 0 | AA153: 0 | AB153: 0 | AC153: 0 | AD153: 0 | AE153: 0 | AF153: 0 | AG153: 0 | AH153: 0 | AI153: 0 | AJ153: 0 | AK153: 0 | AL153: 0 | AM153: - | AN153: - | AO153: Sun | AP153: 400 | AQ153: 0 | AR153: 0 | AS153: 0 | AT153: 2 | AU153: 0 | AV153: 0 | AW153: 0 | AX153: 0 | AY153: 0 | AZ153: 0 | BA153: 0 | BB153: 0 | BC153: 0 | BD153: 0 | BE153: 0 | BF153: 0 | BG153: 0 | BH153: 1 | BI153: 0 | BJ153: 1 | BK153: 0 | BL153: 0 | BM153: 0 | BN153: 0 | BO153: 0 | BP153: 0 | BQ153: 0 | BR153: 0 | BS153: 0 | BT153: 0 | BU153: 0 | BV153: 0 | BW153: 0 | BX153: 0 | BY153: 0 | BZ153: 0 | CA153: 32.36 | CB153: - | CC153: Sun | CD153: 400 | CE153: 0 | CF153: 0 | CG153: 0 | CH153: 2 | CI153: 0 | CJ153: 0 | CK153: 0 | CL153: 0 | CM153: 0 | CN153: 0 | CO153: 0 | CP153: 0 | CQ153: 0 | CR153: 0 | CS153: 0 | CT153: 0 | CU153: 0 | CV153: 1 | CW153: 0 | CX153: 1 | CY153: 0 | CZ153: 0 | DA153: 0 | DB153: 0 | DC153: 0 | DD153: 0 | DE153: 0 | DF153: 0 | DG153: 0 | DH153: 0 | DI153: 0 | DJ153: 0 | DK153: 0 | DL153: 0 | DM153: 0 | DN153: 0 | DO153: 32.36 | DP153: - | DQ153: 0 | DR153: 0 | DS153: 0 | DT153: 0 | DU153: 0 | DV153: 0 | DW153: 0 | DX153: 0 | DY153: 0 | DZ153: 0 | EA153: 0 | EB153: 0 | EC153: 0 | ED153: 0 | EE153: 0 | EF153: 0 | EG153: 2 | EH153: 0 | EI153: 0 | EJ153: 0 | EK153: 0 | EL153: 0 | EM153: 0 | EN153: 0 | EO153: 0 | EP153: 2 | EQ153: 0 | ER153: 0 | ES153: 0 | ET153: 2 | EU153: 0 | EV153: 0 | EW153: 0 | EX153: 0 | EY153: 0 | EZ153: 0 | FA153: 0 | FB153: 0 | FC153: 2
A154: Sun | B154: 500 | C154: 0 | D154: 0 | E154: 0 | F154: 0 | G154: 0 | H154: 0 | I154: 0 | J154: 0 | K154: 0 | L154: 0 | M154: 0 | N154: 0 | O154: 0 | P154: 0 | Q154: 0 | R154: 0 | S154: 0 | T154: 0 | U154: 0 | V154: 0 | W154: 0 | X154: 0 | Y154: 0 | Z154: 0 | AA154: 0 | AB154: 0 | AC154: 0 | AD154: 0 | AE154: 0 | AF154: 0 | AG154: 0 | AH154: 0 | AI154: 0 | AJ154: 0 | AK154: 0 | AL154: 0 | AM154: - | AN154: - | AO154: Sun | AP154: 500 | AQ154: 0 | AR154: 0 | AS154: 1 | AT154: 0 | AU154: 0 | AV154: 0 | AW154: 0 | AX154: 0 | AY154: 0 | AZ154: 0 | BA154: 0 | BB154: 0 | BC154: 0 | BD154: 0 | BE154: 0 | BF154: 0 | BG154: 1 | BH154: 0 | BI154: 0 | BJ154: 0 | BK154: 0 | BL154: 0 | BM154: 0 | BN154: 0 | BO154: 0 | BP154: 0 | BQ154: 0 | BR154: 0 | BS154: 0 | BT154: 0 | BU154: 0 | BV154: 0 | BW154: 0 | BX154: 0 | BY154: 0 | BZ154: 0 | CA154: 24.73 | CB154: - | CC154: Sun | CD154: 500 | CE154: 0 | CF154: 0 | CG154: 1 | CH154: 0 | CI154: 0 | CJ154: 0 | CK154: 0 | CL154: 0 | CM154: 0 | CN154: 0 | CO154: 0 | CP154: 0 | CQ154: 0 | CR154: 0 | CS154: 0 | CT154: 0 | CU154: 1 | CV154: 0 | CW154: 0 | CX154: 0 | CY154: 0 | CZ154: 0 | DA154: 0 | DB154: 0 | DC154: 0 | DD154: 0 | DE154: 0 | DF154: 0 | DG154: 0 | DH154: 0 | DI154: 0 | DJ154: 0 | DK154: 0 | DL154: 0 | DM154: 0 | DN154: 0 | DO154: 24.73 | DP154: - | DQ154: 0 | DR154: 0 | DS154: 0 | DT154: 0 | DU154: 0 | DV154: 0 | DW154: 0 | DX154: 0 | DY154: 0 | DZ154: 0 | EA154: 0 | EB154: 0 | EC154: 0 | ED154: 0 | EE154: 0 | EF154: 1 | EG154: 0 | EH154: 0 | EI154: 0 | EJ154: 0 | EK154: 0 | EL154: 0 | EM154: 0 | EN154: 0 | EO154: 0 | EP154: 1 | EQ154: 0 | ER154: 0 | ES154: 1 | ET154: 0 | EU154: 0 | EV154: 0 | EW154: 0 | EX154: 0 | EY154: 0 | EZ154: 0 | FA154: 0 | FB154: 0 | FC154: 1
A155: Sun | B155: 600 | C155: 0 | D155: 0 | E155: 5 | F155: 0 | G155: 0 | H155: 0 | I155: 0 | J155: 0 | K155: 0 | L155: 0 | M155: 0 | N155: 0 | O155: 0 | P155: 0 | Q155: 1 | R155: 0 | S155: 3 | T155: 1 | U155: 0 | V155: 0 | W155: 0 | X155: 0 | Y155: 0 | Z155: 0 | AA155: 0 | AB155: 0 | AC155: 0 | AD155: 0 | AE155: 0 | AF155: 0 | AG155: 0 | AH155: 0 | AI155: 0 | AJ155: 0 | AK155: 0 | AL155: 0 | AM155: 20.91 | AN155: - | AO155: Sun | AP155: 600 | AQ155: 0 | AR155: 0 | AS155: 0 | AT155: 1 | AU155: 0 | AV155: 0 | AW155: 0 | AX155: 0 | AY155: 0 | AZ155: 0 | BA155: 0 | BB155: 0 | BC155: 0 | BD155: 0 | BE155: 0 | BF155: 0 | BG155: 0 | BH155: 1 | BI155: 0 | BJ155: 0 | BK155: 0 | BL155: 0 | BM155: 0 | BN155: 0 | BO155: 0 | BP155: 0 | BQ155: 0 | BR155: 0 | BS155: 0 | BT155: 0 | BU155: 0 | BV155: 0 | BW155: 0 | BX155: 0 | BY155: 0 | BZ155: 0 | CA155: 26.41 | CB155: - | CC155: Sun | CD155: 600 | CE155: 0 | CF155: 0 | CG155: 5 | CH155: 1 | CI155: 0 | CJ155: 0 | CK155: 0 | CL155: 0 | CM155: 0 | CN155: 0 | CO155: 0 | CP155: 0 | CQ155: 0 | CR155: 0 | CS155: 1 | CT155: 0 | CU155: 3 | CV155: 2 | CW155: 0 | CX155: 0 | CY155: 0 | CZ155: 0 | DA155: 0 | DB155: 0 | DC155: 0 | DD155: 0 | DE155: 0 | DF155: 0 | DG155: 0 | DH155: 0 | DI155: 0 | DJ155: 0 | DK155: 0 | DL155: 0 | DM155: 0 | DN155: 0 | DO155: 21.82 | DP155: - | DQ155: 0 | DR155: 0 | DS155: 5 | DT155: 0 | DU155: 0 | DV155: 0 | DW155: 0 | DX155: 0 | DY155: 0 | DZ155: 0 | EA155: 0 | EB155: 0 | EC155: 5 | ED155: 0 | EE155: 0 | EF155: 0 | EG155: 1 | EH155: 0 | EI155: 0 | EJ155: 0 | EK155: 0 | EL155: 0 | EM155: 0 | EN155: 0 | EO155: 0 | EP155: 1 | EQ155: 0 | ER155: 0 | ES155: 5 | ET155: 1 | EU155: 0 | EV155: 0 | EW155: 0 | EX155: 0 | EY155: 0 | EZ155: 0 | FA155: 0 | FB155: 0 | FC155: 6
A156: Sun | B156: 700 | C156: 0 | D156: 0 | E156: 1 | F156: 1 | G156: 0 | H156: 0 | I156: 0 | J156: 0 | K156: 0 | L156: 0 | M156: 0 | N156: 0 | O156: 0 | P156: 0 | Q156: 0 | R156: 0 | S156: 1 | T156: 1 | U156: 0 | V156: 0 | W156: 0 | X156: 0 | Y156: 0 | Z156: 0 | AA156: 0 | AB156: 0 | AC156: 0 | AD156: 0 | AE156: 0 | AF156: 0 | AG156: 0 | AH156: 0 | AI156: 0 | AJ156: 0 | AK156: 0 | AL156: 0 | AM156: 25 | AN156: - | AO156: Sun | AP156: 700 | AQ156: 0 | AR156: 0 | AS156: 2 | AT156: 3 | AU156: 0 | AV156: 0 | AW156: 0 | AX156: 0 | AY156: 0 | AZ156: 0 | BA156: 0 | BB156: 0 | BC156: 0 | BD156: 0 | BE156: 0 | BF156: 2 | BG156: 0 | BH156: 1 | BI156: 1 | BJ156: 1 | BK156: 0 | BL156: 0 | BM156: 0 | BN156: 0 | BO156: 0 | BP156: 0 | BQ156: 0 | BR156: 0 | BS156: 0 | BT156: 0 | BU156: 0 | BV156: 0 | BW156: 0 | BX156: 0 | BY156: 0 | BZ156: 0 | CA156: 26.54 | CB156: - | CC156: Sun | CD156: 700 | CE156: 0 | CF156: 0 | CG156: 3 | CH156: 4 | CI156: 0 | CJ156: 0 | CK156: 0 | CL156: 0 | CM156: 0 | CN156: 0 | CO156: 0 | CP156: 0 | CQ156: 0 | CR156: 0 | CS156: 0 | CT156: 2 | CU156: 1 | CV156: 2 | CW156: 1 | CX156: 1 | CY156: 0 | CZ156: 0 | DA156: 0 | DB156: 0 | DC156: 0 | DD156: 0 | DE156: 0 | DF156: 0 | DG156: 0 | DH156: 0 | DI156: 0 | DJ156: 0 | DK156: 0 | DL156: 0 | DM156: 0 | DN156: 0 | DO156: 26.1 | DP156: - | DQ156: 0 | DR156: 0 | DS156: 1 | DT156: 1 | DU156: 0 | DV156: 0 | DW156: 0 | DX156: 0 | DY156: 0 | DZ156: 0 | EA156: 0 | EB156: 0 | EC156: 2 | ED156: 0 | EE156: 0 | EF156: 2 | EG156: 3 | EH156: 0 | EI156: 0 | EJ156: 0 | EK156: 0 | EL156: 0 | EM156: 0 | EN156: 0 | EO156: 0 | EP156: 5 | EQ156: 0 | ER156: 0 | ES156: 3 | ET156: 4 | EU156: 0 | EV156: 0 | EW156: 0 | EX156: 0 | EY156: 0 | EZ156: 0 | FA156: 0 | FB156: 0 | FC156: 7
A157: Sun | B157: 800 | C157: 0 | D157: 0 | E157: 1 | F157: 2 | G157: 0 | H157: 0 | I157: 0 | J157: 0 | K157: 0 | L157: 0 | M157: 0 | N157: 0 | O157: 0 | P157: 0 | Q157: 0 | R157: 0 | S157: 1 | T157: 2 | U157: 0 | V157: 0 | W157: 0 | X157: 0 | Y157: 0 | Z157: 0 | AA157: 0 | AB157: 0 | AC157: 0 | AD157: 0 | AE157: 0 | AF157: 0 | AG157: 0 | AH157: 0 | AI157: 0 | AJ157: 0 | AK157: 0 | AL157: 0 | AM157: 26.16 | AN157: - | AO157: Sun | AP157: 800 | AQ157: 0 | AR157: 0 | AS157: 6 | AT157: 6 | AU157: 0 | AV157: 0 | AW157: 0 | AX157: 0 | AY157: 0 | AZ157: 0 | BA157: 0 | BB157: 0 | BC157: 0 | BD157: 1 | BE157: 0 | BF157: 1 | BG157: 5 | BH157: 2 | BI157: 3 | BJ157: 0 | BK157: 0 | BL157: 0 | BM157: 0 | BN157: 0 | BO157: 0 | BP157: 0 | BQ157: 0 | BR157: 0 | BS157: 0 | BT157: 0 | BU157: 0 | BV157: 0 | BW157: 0 | BX157: 0 | BY157: 0 | BZ157: 0 | CA157: 24.18 | CB157: 30.39 | CC157: Sun | CD157: 800 | CE157: 0 | CF157: 0 | CG157: 7 | CH157: 8 | CI157: 0 | CJ157: 0 | CK157: 0 | CL157: 0 | CM157: 0 | CN157: 0 | CO157: 0 | CP157: 0 | CQ157: 0 | CR157: 0 | CS157: 0 | CT157: 1 | CU157: 6 | CV157: 4 | CW157: 3 | CX157: 0 | CY157: 0 | CZ157: 0 | DA157: 0 | DB157: 0 | DC157: 0 | DD157: 0 | DE157: 0 | DF157: 0 | DG157: 0 | DH157: 0 | DI157: 0 | DJ157: 0 | DK157: 0 | DL157: 0 | DM157: 0 | DN157: 0 | DO157: 24.58 | DP157: 30.1 | DQ157: 0 | DR157: 0 | DS157: 1 | DT157: 2 | DU157: 0 | DV157: 0 | DW157: 0 | DX157: 0 | DY157: 0 | DZ157: 0 | EA157: 0 | EB157: 0 | EC157: 3 | ED157: 0 | EE157: 0 | EF157: 6 | EG157: 6 | EH157: 0 | EI157: 0 | EJ157: 0 | EK157: 0 | EL157: 0 | EM157: 0 | EN157: 0 | EO157: 0 | EP157: 12 | EQ157: 0 | ER157: 0 | ES157: 7 | ET157: 8 | EU157: 0 | EV157: 0 | EW157: 0 | EX157: 0 | EY157: 0 | EZ157: 0 | FA157: 0 | FB157: 0 | FC157: 15
A158: Sun | B158: 900 | C158: 0 | D158: 0 | E158: 4 | F158: 5 | G158: 0 | H158: 0 | I158: 0 | J158: 0 | K158: 0 | L158: 0 | M158: 0 | N158: 0 | O158: 0 | P158: 1 | Q158: 1 | R158: 3 | S158: 2 | T158: 2 | U158: 0 | V158: 0 | W158: 0 | X158: 0 | Y158: 0 | Z158: 0 | AA158: 0 | AB158: 0 | AC158: 0 | AD158: 0 | AE158: 0 | AF158: 0 | AG158: 0 | AH158: 0 | AI158: 0 | AJ158: 0 | AK158: 0 | AL158: 0 | AM158: 18.8 | AN158: - | AO158: Sun | AP158: 900 | AQ158: 0 | AR158: 1 | AS158: 9 | AT158: 10 | AU158: 0 | AV158: 0 | AW158: 0 | AX158: 0 | AY158: 0 | AZ158: 0 | BA158: 0 | BB158: 0 | BC158: 0 | BD158: 1 | BE158: 2 | BF158: 4 | BG158: 7 | BH158: 3 | BI158: 3 | BJ158: 0 | BK158: 0 | BL158: 0 | BM158: 0 | BN158: 0 | BO158: 0 | BP158: 0 | BQ158: 0 | BR158: 0 | BS158: 0 | BT158: 0 | BU158: 0 | BV158: 0 | BW158: 0 | BX158: 0 | BY158: 0 | BZ158: 0 | CA158: 22.12 | CB158: 28.56 | CC158: Sun | CD158: 900 | CE158: 0 | CF158: 1 | CG158: 13 | CH158: 15 | CI158: 0 | CJ158: 0 | CK158: 0 | CL158: 0 | CM158: 0 | CN158: 0 | CO158: 0 | CP158: 0 | CQ158: 0 | CR158: 1 | CS158: 1 | CT158: 7 | CU158: 9 | CV158: 5 | CW158: 3 | CX158: 0 | CY158: 0 | CZ158: 0 | DA158: 0 | DB158: 0 | DC158: 0 | DD158: 0 | DE158: 0 | DF158: 0 | DG158: 0 | DH158: 0 | DI158: 0 | DJ158: 0 | DK158: 0 | DL158: 0 | DM158: 0 | DN158: 0 | DO158: 21.09 | DP158: 27.1 | DQ158: 0 | DR158: 0 | DS158: 4 | DT158: 5 | DU158: 0 | DV158: 0 | DW158: 0 | DX158: 0 | DY158: 0 | DZ158: 0 | EA158: 0 | EB158: 0 | EC158: 9 | ED158: 0 | EE158: 1 | EF158: 9 | EG158: 10 | EH158: 0 | EI158: 0 | EJ158: 0 | EK158: 0 | EL158: 0 | EM158: 0 | EN158: 0 | EO158: 0 | EP158: 20 | EQ158: 0 | ER158: 1 | ES158: 13 | ET158: 15 | EU158: 0 | EV158: 0 | EW158: 0 | EX158: 0 | EY158: 0 | EZ158: 0 | FA158: 0 | FB158: 0 | FC158: 29
A159: Sun | B159: 1000 | C159: 0 | D159: 0 | E159: 8 | F159: 7 | G159: 0 | H159: 0 | I159: 0 | J159: 0 | K159: 0 | L159: 0 | M159: 0 | N159: 0 | O159: 0 | P159: 0 | Q159: 3 | R159: 3 | S159: 5 | T159: 3 | U159: 1 | V159: 0 | W159: 0 | X159: 0 | Y159: 0 | Z159: 0 | AA159: 0 | AB159: 0 | AC159: 0 | AD159: 0 | AE159: 0 | AF159: 0 | AG159: 0 | AH159: 0 | AI159: 0 | AJ159: 0 | AK159: 0 | AL159: 0 | AM159: 21.54 | AN159: 25.54 | AO159: Sun | AP159: 1000 | AQ159: 0 | AR159: 1 | AS159: 8 | AT159: 8 | AU159: 0 | AV159: 0 | AW159: 0 | AX159: 0 | AY159: 0 | AZ159: 0 | BA159: 0 | BB159: 0 | BC159: 0 | BD159: 0 | BE159: 1 | BF159: 1 | BG159: 6 | BH159: 5 | BI159: 4 | BJ159: 0 | BK159: 0 | BL159: 0 | BM159: 0 | BN159: 0 | BO159: 0 | BP159: 0 | BQ159: 0 | BR159: 0 | BS159: 0 | BT159: 0 | BU159: 0 | BV159: 0 | BW159: 0 | BX159: 0 | BY159: 0 | BZ159: 0 | CA159: 25.12 | CB159: 30.16 | CC159: Sun | CD159: 1000 | CE159: 0 | CF159: 1 | CG159: 16 | CH159: 15 | CI159: 0 | CJ159: 0 | CK159: 0 | CL159: 0 | CM159: 0 | CN159: 0 | CO159: 0 | CP159: 0 | CQ159: 0 | CR159: 0 | CS159: 3 | CT159: 4 | CU159: 11 | CV159: 8 | CW159: 5 | CX159: 0 | CY159: 0 | CZ159: 0 | DA159: 0 | DB159: 0 | DC159: 0 | DD159: 0 | DE159: 0 | DF159: 0 | DG159: 0 | DH159: 0 | DI159: 0 | DJ159: 0 | DK159: 0 | DL159: 0 | DM159: 0 | DN159: 0 | DO159: 23.44 | DP159: 29.41 | DQ159: 0 | DR159: 0 | DS159: 8 | DT159: 7 | DU159: 0 | DV159: 0 | DW159: 0 | DX159: 0 | DY159: 0 | DZ159: 0 | EA159: 0 | EB159: 0 | EC159: 15 | ED159: 0 | EE159: 1 | EF159: 8 | EG159: 8 | EH159: 0 | EI159: 0 | EJ159: 0 | EK159: 0 | EL159: 0 | EM159: 0 | EN159: 0 | EO159: 0 | EP159: 17 | EQ159: 0 | ER159: 1 | ES159: 16 | ET159: 15 | EU159: 0 | EV159: 0 | EW159: 0 | EX159: 0 | EY159: 0 | EZ159: 0 | FA159: 0 | FB159: 0 | FC159: 32
A160: Sun | B160: 1100 | C160: 0 | D160: 0 | E160: 8 | F160: 2 | G160: 0 | H160: 0 | I160: 0 | J160: 0 | K160: 0 | L160: 0 | M160: 0 | N160: 0 | O160: 0 | P160: 0 | Q160: 1 | R160: 1 | S160: 3 | T160: 5 | U160: 0 | V160: 0 | W160: 0 | X160: 0 | Y160: 0 | Z160: 0 | AA160: 0 | AB160: 0 | AC160: 0 | AD160: 0 | AE160: 0 | AF160: 0 | AG160: 0 | AH160: 0 | AI160: 0 | AJ160: 0 | AK160: 0 | AL160: 0 | AM160: 23.36 | AN160: 27.02 | AO160: Sun | AP160: 1100 | AQ160: 0 | AR160: 1 | AS160: 11 | AT160: 8 | AU160: 0 | AV160: 0 | AW160: 0 | AX160: 0 | AY160: 0 | AZ160: 0 | BA160: 0 | BB160: 0 | BC160: 0 | BD160: 0 | BE160: 1 | BF160: 2 | BG160: 7 | BH160: 7 | BI160: 3 | BJ160: 0 | BK160: 0 | BL160: 0 | BM160: 0 | BN160: 0 | BO160: 0 | BP160: 0 | BQ160: 0 | BR160: 0 | BS160: 0 | BT160: 0 | BU160: 0 | BV160: 0 | BW160: 0 | BX160: 0 | BY160: 0 | BZ160: 0 | CA160: 24.78 | CB160: 30.29 | CC160: Sun | CD160: 1100 | CE160: 0 | CF160: 1 | CG160: 19 | CH160: 10 | CI160: 0 | CJ160: 0 | CK160: 0 | CL160: 0 | CM160: 0 | CN160: 0 | CO160: 0 | CP160: 0 | CQ160: 0 | CR160: 0 | CS160: 1 | CT160: 3 | CU160: 10 | CV160: 12 | CW160: 3 | CX160: 0 | CY160: 0 | CZ160: 0 | DA160: 0 | DB160: 0 | DC160: 0 | DD160: 0 | DE160: 0 | DF160: 0 | DG160: 0 | DH160: 0 | DI160: 0 | DJ160: 0 | DK160: 0 | DL160: 0 | DM160: 0 | DN160: 0 | DO160: 24.3 | DP160: 28.7 | DQ160: 0 | DR160: 0 | DS160: 8 | DT160: 2 | DU160: 0 | DV160: 0 | DW160: 0 | DX160: 0 | DY160: 0 | DZ160: 0 | EA160: 0 | EB160: 0 | EC160: 10 | ED160: 0 | EE160: 1 | EF160: 11 | EG160: 8 | EH160: 0 | EI160: 0 | EJ160: 0 | EK160: 0 | EL160: 0 | EM160: 0 | EN160: 0 | EO160: 0 | EP160: 20 | EQ160: 0 | ER160: 1 | ES160: 19 | ET160: 10 | EU160: 0 | EV160: 0 | EW160: 0 | EX160: 0 | EY160: 0 | EZ160: 0 | FA160: 0 | FB160: 0 | FC160: 30
A161: Sun | B161: 1200 | C161: 0 | D161: 0 | E161: 12 | F161: 14 | G161: 0 | H161: 0 | I161: 0 | J161: 0 | K161: 0 | L161: 0 | M161: 0 | N161: 0 | O161: 0 | P161: 2 | Q161: 3 | R161: 5 | S161: 7 | T161: 9 | U161: 0 | V161: 0 | W161: 0 | X161: 0 | Y161: 0 | Z161: 0 | AA161: 0 | AB161: 0 | AC161: 0 | AD161: 0 | AE161: 0 | AF161: 0 | AG161: 0 | AH161: 0 | AI161: 0 | AJ161: 0 | AK161: 0 | AL161: 0 | AM161: 20.8 | AN161: 26.4 | AO161: Sun | AP161: 1200 | AQ161: 0 | AR161: 0 | AS161: 12 | AT161: 9 | AU161: 0 | AV161: 0 | AW161: 0 | AX161: 0 | AY161: 0 | AZ161: 0 | BA161: 0 | BB161: 0 | BC161: 0 | BD161: 0 | BE161: 2 | BF161: 3 | BG161: 6 | BH161: 7 | BI161: 2 | BJ161: 1 | BK161: 0 | BL161: 0 | BM161: 0 | BN161: 0 | BO161: 0 | BP161: 0 | BQ161: 0 | BR161: 0 | BS161: 0 | BT161: 0 | BU161: 0 | BV161: 0 | BW161: 0 | BX161: 0 | BY161: 0 | BZ161: 0 | CA161: 24.02 | CB161: 29.57 | CC161: Sun | CD161: 1200 | CE161: 0 | CF161: 0 | CG161: 24 | CH161: 23 | CI161: 0 | CJ161: 0 | CK161: 0 | CL161: 0 | CM161: 0 | CN161: 0 | CO161: 0 | CP161: 0 | CQ161: 0 | CR161: 2 | CS161: 3 | CT161: 8 | CU161: 13 | CV161: 16 | CW161: 2 | CX161: 1 | CY161: 0 | CZ161: 0 | DA161: 0 | DB161: 0 | DC161: 0 | DD161: 0 | DE161: 0 | DF161: 0 | DG161: 0 | DH161: 0 | DI161: 0 | DJ161: 0 | DK161: 0 | DL161: 0 | DM161: 0 | DN161: 0 | DO161: 22.24 | DP161: 27.18 | DQ161: 0 | DR161: 0 | DS161: 12 | DT161: 14 | DU161: 0 | DV161: 0 | DW161: 0 | DX161: 0 | DY161: 0 | DZ161: 0 | EA161: 0 | EB161: 0 | EC161: 26 | ED161: 0 | EE161: 0 | EF161: 12 | EG161: 9 | EH161: 0 | EI161: 0 | EJ161: 0 | EK161: 0 | EL161: 0 | EM161: 0 | EN161: 0 | EO161: 0 | EP161: 21 | EQ161: 0 | ER161: 0 | ES161: 24 | ET161: 23 | EU161: 0 | EV161: 0 | EW161: 0 | EX161: 0 | EY161: 0 | EZ161: 0 | FA161: 0 | FB161: 0 | FC161: 47
A162: Sun | B162: 1300 | C162: 0 | D162: 0 | E162: 8 | F162: 5 | G162: 1 | H162: 0 | I162: 0 | J162: 1 | K162: 0 | L162: 0 | M162: 0 | N162: 0 | O162: 0 | P162: 0 | Q162: 2 | R162: 0 | S162: 5 | T162: 7 | U162: 1 | V162: 0 | W162: 0 | X162: 0 | Y162: 0 | Z162: 0 | AA162: 0 | AB162: 0 | AC162: 0 | AD162: 0 | AE162: 0 | AF162: 0 | AG162: 0 | AH162: 0 | AI162: 0 | AJ162: 0 | AK162: 0 | AL162: 0 | AM162: 23.91 | AN162: 27.17 | AO162: Sun | AP162: 1300 | AQ162: 0 | AR162: 1 | AS162: 11 | AT162: 8 | AU162: 2 | AV162: 0 | AW162: 0 | AX162: 1 | AY162: 0 | AZ162: 0 | BA162: 0 | BB162: 0 | BC162: 0 | BD162: 0 | BE162: 1 | BF162: 1 | BG162: 10 | BH162: 5 | BI162: 6 | BJ162: 0 | BK162: 0 | BL162: 0 | BM162: 0 | BN162: 0 | BO162: 0 | BP162: 0 | BQ162: 0 | BR162: 0 | BS162: 0 | BT162: 0 | BU162: 0 | BV162: 0 | BW162: 0 | BX162: 0 | BY162: 0 | BZ162: 0 | CA162: 25.07 | CB162: 30.48 | CC162: Sun | CD162: 1300 | CE162: 0 | CF162: 1 | CG162: 19 | CH162: 13 | CI162: 3 | CJ162: 0 | CK162: 0 | CL162: 2 | CM162: 0 | CN162: 0 | CO162: 0 | CP162: 0 | CQ162: 0 | CR162: 0 | CS162: 2 | CT162: 1 | CU162: 15 | CV162: 12 | CW162: 7 | CX162: 0 | CY162: 0 | CZ162: 0 | DA162: 0 | DB162: 0 | DC162: 0 | DD162: 0 | DE162: 0 | DF162: 0 | DG162: 0 | DH162: 0 | DI162: 0 | DJ162: 0 | DK162: 0 | DL162: 0 | DM162: 0 | DN162: 0 | DO162: 24.61 | DP162: 30.32 | DQ162: 0 | DR162: 0 | DS162: 8 | DT162: 5 | DU162: 1 | DV162: 0 | DW162: 0 | DX162: 1 | DY162: 0 | DZ162: 0 | EA162: 0 | EB162: 0 | EC162: 15 | ED162: 0 | EE162: 1 | EF162: 11 | EG162: 8 | EH162: 2 | EI162: 0 | EJ162: 0 | EK162: 1 | EL162: 0 | EM162: 0 | EN162: 0 | EO162: 0 | EP162: 23 | EQ162: 0 | ER162: 1 | ES162: 19 | ET162: 13 | EU162: 3 | EV162: 0 | EW162: 0 | EX162: 2 | EY162: 0 | EZ162: 0 | FA162: 0 | FB162: 0 | FC162: 38
A163: Sun | B163: 1400 | C163: 0 | D163: 0 | E163: 7 | F163: 9 | G163: 0 | H163: 0 | I163: 0 | J163: 0 | K163: 0 | L163: 0 | M163: 0 | N163: 0 | O163: 0 | P163: 0 | Q163: 1 | R163: 1 | S163: 10 | T163: 3 | U163: 1 | V163: 0 | W163: 0 | X163: 0 | Y163: 0 | Z163: 0 | AA163: 0 | AB163: 0 | AC163: 0 | AD163: 0 | AE163: 0 | AF163: 0 | AG163: 0 | AH163: 0 | AI163: 0 | AJ163: 0 | AK163: 0 | AL163: 0 | AM163: 22.8 | AN163: 25.74 | AO163: Sun | AP163: 1400 | AQ163: 0 | AR163: 1 | AS163: 6 | AT163: 10 | AU163: 0 | AV163: 0 | AW163: 0 | AX163: 1 | AY163: 0 | AZ163: 0 | BA163: 0 | BB163: 0 | BC163: 0 | BD163: 2 | BE163: 1 | BF163: 2 | BG163: 7 | BH163: 3 | BI163: 3 | BJ163: 0 | BK163: 0 | BL163: 0 | BM163: 0 | BN163: 0 | BO163: 0 | BP163: 0 | BQ163: 0 | BR163: 0 | BS163: 0 | BT163: 0 | BU163: 0 | BV163: 0 | BW163: 0 | BX163: 0 | BY163: 0 | BZ163: 0 | CA163: 22.86 | CB163: 30.02 | CC163: Sun | CD163: 1400 | CE163: 0 | CF163: 1 | CG163: 13 | CH163: 19 | CI163: 0 | CJ163: 0 | CK163: 0 | CL163: 1 | CM163: 0 | CN163: 0 | CO163: 0 | CP163: 0 | CQ163: 0 | CR163: 0 | CS163: 1 | CT163: 3 | CU163: 17 | CV163: 6 | CW163: 4 | CX163: 0 | CY163: 0 | CZ163: 0 | DA163: 0 | DB163: 0 | DC163: 0 | DD163: 0 | DE163: 0 | DF163: 0 | DG163: 0 | DH163: 0 | DI163: 0 | DJ163: 0 | DK163: 0 | DL163: 0 | DM163: 0 | DN163: 0 | DO163: 22.83 | DP163: 26.73 | DQ163: 0 | DR163: 0 | DS163: 7 | DT163: 9 | DU163: 0 | DV163: 0 | DW163: 0 | DX163: 0 | DY163: 0 | DZ163: 0 | EA163: 0 | EB163: 0 | EC163: 16 | ED163: 0 | EE163: 1 | EF163: 6 | EG163: 10 | EH163: 0 | EI163: 0 | EJ163: 0 | EK163: 1 | EL163: 0 | EM163: 0 | EN163: 0 | EO163: 0 | EP163: 18 | EQ163: 0 | ER163: 1 | ES163: 13 | ET163: 19 | EU163: 0 | EV163: 0 | EW163: 0 | EX163: 1 | EY163: 0 | EZ163: 0 | FA163: 0 | FB163: 0 | FC163: 34
A164: Sun | B164: 1500 | C164: 0 | D164: 0 | E164: 9 | F164: 3 | G164: 0 | H164: 0 | I164: 0 | J164: 0 | K164: 0 | L164: 0 | M164: 0 | N164: 0 | O164: 0 | P164: 0 | Q164: 0 | R164: 6 | S164: 4 | T164: 1 | U164: 1 | V164: 0 | W164: 0 | X164: 0 | Y164: 0 | Z164: 0 | AA164: 0 | AB164: 0 | AC164: 0 | AD164: 0 | AE164: 0 | AF164: 0 | AG164: 0 | AH164: 0 | AI164: 0 | AJ164: 0 | AK164: 0 | AL164: 0 | AM164: 21.34 | AN164: 24.78 | AO164: Sun | AP164: 1500 | AQ164: 0 | AR164: 1 | AS164: 6 | AT164: 10 | AU164: 0 | AV164: 0 | AW164: 0 | AX164: 0 | AY164: 0 | AZ164: 0 | BA164: 0 | BB164: 0 | BC164: 0 | BD164: 0 | BE164: 1 | BF164: 0 | BG164: 7 | BH164: 7 | BI164: 2 | BJ164: 0 | BK164: 0 | BL164: 0 | BM164: 0 | BN164: 0 | BO164: 0 | BP164: 0 | BQ164: 0 | BR164: 0 | BS164: 0 | BT164: 0 | BU164: 0 | BV164: 0 | BW164: 0 | BX164: 0 | BY164: 0 | BZ164: 0 | CA164: 25.1 | CB164: 29.71 | CC164: Sun | CD164: 1500 | CE164: 0 | CF164: 1 | CG164: 15 | CH164: 13 | CI164: 0 | CJ164: 0 | CK164: 0 | CL164: 0 | CM164: 0 | CN164: 0 | CO164: 0 | CP164: 0 | CQ164: 0 | CR164: 0 | CS164: 0 | CT164: 6 | CU164: 11 | CV164: 8 | CW164: 3 | CX164: 0 | CY164: 0 | CZ164: 0 | DA164: 0 | DB164: 0 | DC164: 0 | DD164: 0 | DE164: 0 | DF164: 0 | DG164: 0 | DH164: 0 | DI164: 0 | DJ164: 0 | DK164: 0 | DL164: 0 | DM164: 0 | DN164: 0 | DO164: 23.55 | DP164: 29.58 | DQ164: 0 | DR164: 0 | DS164: 9 | DT164: 3 | DU164: 0 | DV164: 0 | DW164: 0 | DX164: 0 | DY164: 0 | DZ164: 0 | EA164: 0 | EB164: 0 | EC164: 12 | ED164: 0 | EE164: 1 | EF164: 6 | EG164: 10 | EH164: 0 | EI164: 0 | EJ164: 0 | EK164: 0 | EL164: 0 | EM164: 0 | EN164: 0 | EO164: 0 | EP164: 17 | EQ164: 0 | ER164: 1 | ES164: 15 | ET164: 13 | EU164: 0 | EV164: 0 | EW164: 0 | EX164: 0 | EY164: 0 | EZ164: 0 | FA164: 0 | FB164: 0 | FC164: 29
A165: Sun | B165: 1600 | C165: 0 | D165: 2 | E165: 12 | F165: 6 | G165: 0 | H165: 0 | I165: 0 | J165: 0 | K165: 0 | L165: 0 | M165: 0 | N165: 0 | O165: 0 | P165: 0 | Q165: 4 | R165: 5 | S165: 5 | T165: 6 | U165: 0 | V165: 0 | W165: 0 | X165: 0 | Y165: 0 | Z165: 0 | AA165: 0 | AB165: 0 | AC165: 0 | AD165: 0 | AE165: 0 | AF165: 0 | AG165: 0 | AH165: 0 | AI165: 0 | AJ165: 0 | AK165: 0 | AL165: 0 | AM165: 20.51 | AN165: 25.39 | AO165: Sun | AP165: 1600 | AQ165: 0 | AR165: 0 | AS165: 6 | AT165: 7 | AU165: 2 | AV165: 0 | AW165: 0 | AX165: 0 | AY165: 0 | AZ165: 0 | BA165: 0 | BB165: 0 | BC165: 0 | BD165: 0 | BE165: 3 | BF165: 3 | BG165: 4 | BH165: 4 | BI165: 1 | BJ165: 0 | BK165: 0 | BL165: 0 | BM165: 0 | BN165: 0 | BO165: 0 | BP165: 0 | BQ165: 0 | BR165: 0 | BS165: 0 | BT165: 0 | BU165: 0 | BV165: 0 | BW165: 0 | BX165: 0 | BY165: 0 | BZ165: 0 | CA165: 21.77 | CB165: 29.13 | CC165: Sun | CD165: 1600 | CE165: 0 | CF165: 2 | CG165: 18 | CH165: 13 | CI165: 2 | CJ165: 0 | CK165: 0 | CL165: 0 | CM165: 0 | CN165: 0 | CO165: 0 | CP165: 0 | CQ165: 0 | CR165: 0 | CS165: 4 | CT165: 8 | CU165: 9 | CV165: 10 | CW165: 1 | CX165: 0 | CY165: 0 | CZ165: 0 | DA165: 0 | DB165: 0 | DC165: 0 | DD165: 0 | DE165: 0 | DF165: 0 | DG165: 0 | DH165: 0 | DI165: 0 | DJ165: 0 | DK165: 0 | DL165: 0 | DM165: 0 | DN165: 0 | DO165: 21.05 | DP165: 25.58 | DQ165: 0 | DR165: 2 | DS165: 12 | DT165: 6 | DU165: 0 | DV165: 0 | DW165: 0 | DX165: 0 | DY165: 0 | DZ165: 0 | EA165: 0 | EB165: 0 | EC165: 20 | ED165: 0 | EE165: 0 | EF165: 6 | EG165: 7 | EH165: 2 | EI165: 0 | EJ165: 0 | EK165: 0 | EL165: 0 | EM165: 0 | EN165: 0 | EO165: 0 | EP165: 15 | EQ165: 0 | ER165: 2 | ES165: 18 | ET165: 13 | EU165: 2 | EV165: 0 | EW165: 0 | EX165: 0 | EY165: 0 | EZ165: 0 | FA165: 0 | FB165: 0 | FC165: 35
A166: Sun | B166: 1700 | C166: 0 | D166: 0 | E166: 11 | F166: 6 | G166: 0 | H166: 0 | I166: 0 | J166: 0 | K166: 0 | L166: 0 | M166: 0 | N166: 0 | O166: 0 | P166: 0 | Q166: 1 | R166: 0 | S166: 8 | T166: 8 | U166: 0 | V166: 0 | W166: 0 | X166: 0 | Y166: 0 | Z166: 0 | AA166: 0 | AB166: 0 | AC166: 0 | AD166: 0 | AE166: 0 | AF166: 0 | AG166: 0 | AH166: 0 | AI166: 0 | AJ166: 0 | AK166: 0 | AL166: 0 | AM166: 24.08 | AN166: 27.83 | AO166: Sun | AP166: 1700 | AQ166: 0 | AR166: 1 | AS166: 9 | AT166: 7 | AU166: 0 | AV166: 0 | AW166: 0 | AX166: 0 | AY166: 0 | AZ166: 0 | BA166: 0 | BB166: 0 | BC166: 0 | BD166: 0 | BE166: 2 | BF166: 4 | BG166: 4 | BH166: 3 | BI166: 1 | BJ166: 2 | BK166: 1 | BL166: 0 | BM166: 0 | BN166: 0 | BO166: 0 | BP166: 0 | BQ166: 0 | BR166: 0 | BS166: 0 | BT166: 0 | BU166: 0 | BV166: 0 | BW166: 0 | BX166: 0 | BY166: 0 | BZ166: 0 | CA166: 24.54 | CB166: 34.38 | CC166: Sun | CD166: 1700 | CE166: 0 | CF166: 1 | CG166: 20 | CH166: 13 | CI166: 0 | CJ166: 0 | CK166: 0 | CL166: 0 | CM166: 0 | CN166: 0 | CO166: 0 | CP166: 0 | CQ166: 0 | CR166: 0 | CS166: 1 | CT166: 4 | CU166: 12 | CV166: 11 | CW166: 1 | CX166: 2 | CY166: 1 | CZ166: 0 | DA166: 0 | DB166: 0 | DC166: 0 | DD166: 0 | DE166: 0 | DF166: 0 | DG166: 0 | DH166: 0 | DI166: 0 | DJ166: 0 | DK166: 0 | DL166: 0 | DM166: 0 | DN166: 0 | DO166: 24.31 | DP166: 28.86 | DQ166: 0 | DR166: 0 | DS166: 11 | DT166: 6 | DU166: 0 | DV166: 0 | DW166: 0 | DX166: 0 | DY166: 0 | DZ166: 0 | EA166: 0 | EB166: 0 | EC166: 17 | ED166: 0 | EE166: 1 | EF166: 9 | EG166: 7 | EH166: 0 | EI166: 0 | EJ166: 0 | EK166: 0 | EL166: 0 | EM166: 0 | EN166: 0 | EO166: 0 | EP166: 17 | EQ166: 0 | ER166: 1 | ES166: 20 | ET166: 13 | EU166: 0 | EV166: 0 | EW166: 0 | EX166: 0 | EY166: 0 | EZ166: 0 | FA166: 0 | FB166: 0 | FC166: 34
A167: Sun | B167: 1800 | C167: 0 | D167: 0 | E167: 7 | F167: 9 | G167: 0 | H167: 0 | I167: 0 | J167: 0 | K167: 0 | L167: 0 | M167: 0 | N167: 0 | O167: 0 | P167: 0 | Q167: 1 | R167: 3 | S167: 3 | T167: 7 | U167: 2 | V167: 0 | W167: 0 | X167: 0 | Y167: 0 | Z167: 0 | AA167: 0 | AB167: 0 | AC167: 0 | AD167: 0 | AE167: 0 | AF167: 0 | AG167: 0 | AH167: 0 | AI167: 0 | AJ167: 0 | AK167: 0 | AL167: 0 | AM167: 24.36 | AN167: 28.99 | AO167: Sun | AP167: 1800 | AQ167: 0 | AR167: 0 | AS167: 6 | AT167: 6 | AU167: 1 | AV167: 0 | AW167: 0 | AX167: 0 | AY167: 0 | AZ167: 0 | BA167: 0 | BB167: 0 | BC167: 0 | BD167: 0 | BE167: 0 | BF167: 1 | BG167: 4 | BH167: 4 | BI167: 4 | BJ167: 0 | BK167: 0 | BL167: 0 | BM167: 0 | BN167: 0 | BO167: 0 | BP167: 0 | BQ167: 0 | BR167: 0 | BS167: 0 | BT167: 0 | BU167: 0 | BV167: 0 | BW167: 0 | BX167: 0 | BY167: 0 | BZ167: 0 | CA167: 26.07 | CB167: 30.67 | CC167: Sun | CD167: 1800 | CE167: 0 | CF167: 0 | CG167: 13 | CH167: 15 | CI167: 1 | CJ167: 0 | CK167: 0 | CL167: 0 | CM167: 0 | CN167: 0 | CO167: 0 | CP167: 0 | CQ167: 0 | CR167: 0 | CS167: 1 | CT167: 4 | CU167: 7 | CV167: 11 | CW167: 6 | CX167: 0 | CY167: 0 | CZ167: 0 | DA167: 0 | DB167: 0 | DC167: 0 | DD167: 0 | DE167: 0 | DF167: 0 | DG167: 0 | DH167: 0 | DI167: 0 | DJ167: 0 | DK167: 0 | DL167: 0 | DM167: 0 | DN167: 0 | DO167: 25.13 | DP167: 30.49 | DQ167: 0 | DR167: 0 | DS167: 7 | DT167: 9 | DU167: 0 | DV167: 0 | DW167: 0 | DX167: 0 | DY167: 0 | DZ167: 0 | EA167: 0 | EB167: 0 | EC167: 16 | ED167: 0 | EE167: 0 | EF167: 6 | EG167: 6 | EH167: 1 | EI167: 0 | EJ167: 0 | EK167: 0 | EL167: 0 | EM167: 0 | EN167: 0 | EO167: 0 | EP167: 13 | EQ167: 0 | ER167: 0 | ES167: 13 | ET167: 15 | EU167: 1 | EV167: 0 | EW167: 0 | EX167: 0 | EY167: 0 | EZ167: 0 | FA167: 0 | FB167: 0 | FC167: 29
A168: Sun | B168: 1900 | C168: 0 | D168: 0 | E168: 4 | F168: 6 | G168: 1 | H168: 0 | I168: 0 | J168: 1 | K168: 0 | L168: 0 | M168: 0 | N168: 0 | O168: 0 | P168: 0 | Q168: 1 | R168: 2 | S168: 3 | T168: 4 | U168: 2 | V168: 0 | W168: 0 | X168: 0 | Y168: 0 | Z168: 0 | AA168: 0 | AB168: 0 | AC168: 0 | AD168: 0 | AE168: 0 | AF168: 0 | AG168: 0 | AH168: 0 | AI168: 0 | AJ168: 0 | AK168: 0 | AL168: 0 | AM168: 23.82 | AN168: 30.41 | AO168: Sun | AP168: 1900 | AQ168: 0 | AR168: 0 | AS168: 4 | AT168: 1 | AU168: 0 | AV168: 0 | AW168: 0 | AX168: 0 | AY168: 0 | AZ168: 0 | BA168: 0 | BB168: 0 | BC168: 0 | BD168: 1 | BE168: 0 | BF168: 0 | BG168: 0 | BH168: 4 | BI168: 0 | BJ168: 0 | BK168: 0 | BL168: 0 | BM168: 0 | BN168: 0 | BO168: 0 | BP168: 0 | BQ168: 0 | BR168: 0 | BS168: 0 | BT168: 0 | BU168: 0 | BV168: 0 | BW168: 0 | BX168: 0 | BY168: 0 | BZ168: 0 | CA168: 24.86 | CB168: - | CC168: Sun | CD168: 1900 | CE168: 0 | CF168: 0 | CG168: 8 | CH168: 7 | CI168: 1 | CJ168: 0 | CK168: 0 | CL168: 1 | CM168: 0 | CN168: 0 | CO168: 0 | CP168: 0 | CQ168: 0 | CR168: 0 | CS168: 1 | CT168: 2 | CU168: 3 | CV168: 8 | CW168: 2 | CX168: 0 | CY168: 0 | CZ168: 0 | DA168: 0 | DB168: 0 | DC168: 0 | DD168: 0 | DE168: 0 | DF168: 0 | DG168: 0 | DH168: 0 | DI168: 0 | DJ168: 0 | DK168: 0 | DL168: 0 | DM168: 0 | DN168: 0 | DO168: 24.12 | DP168: 29.65 | DQ168: 0 | DR168: 0 | DS168: 4 | DT168: 6 | DU168: 1 | DV168: 0 | DW168: 0 | DX168: 1 | DY168: 0 | DZ168: 0 | EA168: 0 | EB168: 0 | EC168: 12 | ED168: 0 | EE168: 0 | EF168: 4 | EG168: 1 | EH168: 0 | EI168: 0 | EJ168: 0 | EK168: 0 | EL168: 0 | EM168: 0 | EN168: 0 | EO168: 0 | EP168: 5 | EQ168: 0 | ER168: 0 | ES168: 8 | ET168: 7 | EU168: 1 | EV168: 0 | EW168: 0 | EX168: 1 | EY168: 0 | EZ168: 0 | FA168: 0 | FB168: 0 | FC168: 17
A169: Sun | B169: 2000 | C169: 0 | D169: 0 | E169: 3 | F169: 2 | G169: 0 | H169: 0 | I169: 0 | J169: 0 | K169: 0 | L169: 0 | M169: 0 | N169: 0 | O169: 0 | P169: 0 | Q169: 2 | R169: 0 | S169: 2 | T169: 1 | U169: 0 | V169: 0 | W169: 0 | X169: 0 | Y169: 0 | Z169: 0 | AA169: 0 | AB169: 0 | AC169: 0 | AD169: 0 | AE169: 0 | AF169: 0 | AG169: 0 | AH169: 0 | AI169: 0 | AJ169: 0 | AK169: 0 | AL169: 0 | AM169: 19.7 | AN169: - | AO169: Sun | AP169: 2000 | AQ169: 0 | AR169: 0 | AS169: 4 | AT169: 1 | AU169: 1 | AV169: 0 | AW169: 0 | AX169: 0 | AY169: 0 | AZ169: 0 | BA169: 0 | BB169: 0 | BC169: 0 | BD169: 0 | BE169: 0 | BF169: 0 | BG169: 1 | BH169: 3 | BI169: 2 | BJ169: 0 | BK169: 0 | BL169: 0 | BM169: 0 | BN169: 0 | BO169: 0 | BP169: 0 | BQ169: 0 | BR169: 0 | BS169: 0 | BT169: 0 | BU169: 0 | BV169: 0 | BW169: 0 | BX169: 0 | BY169: 0 | BZ169: 0 | CA169: 29.32 | CB169: - | CC169: Sun | CD169: 2000 | CE169: 0 | CF169: 0 | CG169: 7 | CH169: 3 | CI169: 1 | CJ169: 0 | CK169: 0 | CL169: 0 | CM169: 0 | CN169: 0 | CO169: 0 | CP169: 0 | CQ169: 0 | CR169: 0 | CS169: 2 | CT169: 0 | CU169: 3 | CV169: 4 | CW169: 2 | CX169: 0 | CY169: 0 | CZ169: 0 | DA169: 0 | DB169: 0 | DC169: 0 | DD169: 0 | DE169: 0 | DF169: 0 | DG169: 0 | DH169: 0 | DI169: 0 | DJ169: 0 | DK169: 0 | DL169: 0 | DM169: 0 | DN169: 0 | DO169: 24.95 | DP169: 30.75 | DQ169: 0 | DR169: 0 | DS169: 3 | DT169: 2 | DU169: 0 | DV169: 0 | DW169: 0 | DX169: 0 | DY169: 0 | DZ169: 0 | EA169: 0 | EB169: 0 | EC169: 5 | ED169: 0 | EE169: 0 | EF169: 4 | EG169: 1 | EH169: 1 | EI169: 0 | EJ169: 0 | EK169: 0 | EL169: 0 | EM169: 0 | EN169: 0 | EO169: 0 | EP169: 6 | EQ169: 0 | ER169: 0 | ES169: 7 | ET169: 3 | EU169: 1 | EV169: 0 | EW169: 0 | EX169: 0 | EY169: 0 | EZ169: 0 | FA169: 0 | FB169: 0 | FC169: 11
A170: Sun | B170: 2100 | C170: 0 | D170: 0 | E170: 3 | F170: 1 | G170: 0 | H170: 0 | I170: 0 | J170: 0 | K170: 0 | L170: 0 | M170: 0 | N170: 0 | O170: 0 | P170: 0 | Q170: 0 | R170: 1 | S170: 1 | T170: 1 | U170: 1 | V170: 0 | W170: 0 | X170: 0 | Y170: 0 | Z170: 0 | AA170: 0 | AB170: 0 | AC170: 0 | AD170: 0 | AE170: 0 | AF170: 0 | AG170: 0 | AH170: 0 | AI170: 0 | AJ170: 0 | AK170: 0 | AL170: 0 | AM170: 24.55 | AN170: - | AO170: Sun | AP170: 2100 | AQ170: 0 | AR170: 0 | AS170: 2 | AT170: 2 | AU170: 0 | AV170: 0 | AW170: 0 | AX170: 0 | AY170: 0 | AZ170: 0 | BA170: 0 | BB170: 0 | BC170: 0 | BD170: 0 | BE170: 2 | BF170: 0 | BG170: 1 | BH170: 1 | BI170: 0 | BJ170: 0 | BK170: 0 | BL170: 0 | BM170: 0 | BN170: 0 | BO170: 0 | BP170: 0 | BQ170: 0 | BR170: 0 | BS170: 0 | BT170: 0 | BU170: 0 | BV170: 0 | BW170: 0 | BX170: 0 | BY170: 0 | BZ170: 0 | CA170: 18.54 | CB170: - | CC170: Sun | CD170: 2100 | CE170: 0 | CF170: 0 | CG170: 5 | CH170: 3 | CI170: 0 | CJ170: 0 | CK170: 0 | CL170: 0 | CM170: 0 | CN170: 0 | CO170: 0 | CP170: 0 | CQ170: 0 | CR170: 0 | CS170: 0 | CT170: 1 | CU170: 2 | CV170: 2 | CW170: 1 | CX170: 0 | CY170: 0 | CZ170: 0 | DA170: 0 | DB170: 0 | DC170: 0 | DD170: 0 | DE170: 0 | DF170: 0 | DG170: 0 | DH170: 0 | DI170: 0 | DJ170: 0 | DK170: 0 | DL170: 0 | DM170: 0 | DN170: 0 | DO170: 21.55 | DP170: - | DQ170: 0 | DR170: 0 | DS170: 3 | DT170: 1 | DU170: 0 | DV170: 0 | DW170: 0 | DX170: 0 | DY170: 0 | DZ170: 0 | EA170: 0 | EB170: 0 | EC170: 4 | ED170: 0 | EE170: 0 | EF170: 2 | EG170: 2 | EH170: 0 | EI170: 0 | EJ170: 0 | EK170: 0 | EL170: 0 | EM170: 0 | EN170: 0 | EO170: 0 | EP170: 4 | EQ170: 0 | ER170: 0 | ES170: 5 | ET170: 3 | EU170: 0 | EV170: 0 | EW170: 0 | EX170: 0 | EY170: 0 | EZ170: 0 | FA170: 0 | FB170: 0 | FC170: 8
A171: Sun | B171: 2200 | C171: 0 | D171: 1 | E171: 1 | F171: 5 | G171: 0 | H171: 0 | I171: 0 | J171: 0 | K171: 0 | L171: 0 | M171: 0 | N171: 0 | O171: 0 | P171: 0 | Q171: 0 | R171: 1 | S171: 2 | T171: 2 | U171: 2 | V171: 0 | W171: 0 | X171: 0 | Y171: 0 | Z171: 0 | AA171: 0 | AB171: 0 | AC171: 0 | AD171: 0 | AE171: 0 | AF171: 0 | AG171: 0 | AH171: 0 | AI171: 0 | AJ171: 0 | AK171: 0 | AL171: 0 | AM171: 25.66 | AN171: - | AO171: Sun | AP171: 2200 | AQ171: 0 | AR171: 0 | AS171: 0 | AT171: 2 | AU171: 0 | AV171: 0 | AW171: 0 | AX171: 0 | AY171: 0 | AZ171: 0 | BA171: 0 | BB171: 0 | BC171: 0 | BD171: 0 | BE171: 0 | BF171: 0 | BG171: 0 | BH171: 0 | BI171: 1 | BJ171: 0 | BK171: 1 | BL171: 0 | BM171: 0 | BN171: 0 | BO171: 0 | BP171: 0 | BQ171: 0 | BR171: 0 | BS171: 0 | BT171: 0 | BU171: 0 | BV171: 0 | BW171: 0 | BX171: 0 | BY171: 0 | BZ171: 0 | CA171: 37.99 | CB171: - | CC171: Sun | CD171: 2200 | CE171: 0 | CF171: 1 | CG171: 1 | CH171: 7 | CI171: 0 | CJ171: 0 | CK171: 0 | CL171: 0 | CM171: 0 | CN171: 0 | CO171: 0 | CP171: 0 | CQ171: 0 | CR171: 0 | CS171: 0 | CT171: 1 | CU171: 2 | CV171: 2 | CW171: 3 | CX171: 0 | CY171: 1 | CZ171: 0 | DA171: 0 | DB171: 0 | DC171: 0 | DD171: 0 | DE171: 0 | DF171: 0 | DG171: 0 | DH171: 0 | DI171: 0 | DJ171: 0 | DK171: 0 | DL171: 0 | DM171: 0 | DN171: 0 | DO171: 28.4 | DP171: - | DQ171: 0 | DR171: 1 | DS171: 1 | DT171: 5 | DU171: 0 | DV171: 0 | DW171: 0 | DX171: 0 | DY171: 0 | DZ171: 0 | EA171: 0 | EB171: 0 | EC171: 7 | ED171: 0 | EE171: 0 | EF171: 0 | EG171: 2 | EH171: 0 | EI171: 0 | EJ171: 0 | EK171: 0 | EL171: 0 | EM171: 0 | EN171: 0 | EO171: 0 | EP171: 2 | EQ171: 0 | ER171: 1 | ES171: 1 | ET171: 7 | EU171: 0 | EV171: 0 | EW171: 0 | EX171: 0 | EY171: 0 | EZ171: 0 | FA171: 0 | FB171: 0 | FC171: 9
A172: Sun | B172: 2300 | C172: 0 | D172: 1 | E172: 1 | F172: 0 | G172: 0 | H172: 0 | I172: 0 | J172: 0 | K172: 0 | L172: 0 | M172: 0 | N172: 0 | O172: 0 | P172: 0 | Q172: 0 | R172: 0 | S172: 1 | T172: 0 | U172: 0 | V172: 1 | W172: 0 | X172: 0 | Y172: 0 | Z172: 0 | AA172: 0 | AB172: 0 | AC172: 0 | AD172: 0 | AE172: 0 | AF172: 0 | AG172: 0 | AH172: 0 | AI172: 0 | AJ172: 0 | AK172: 0 | AL172: 0 | AM172: 30.95 | AN172: - | AO172: Sun | AP172: 2300 | AQ172: 0 | AR172: 0 | AS172: 0 | AT172: 0 | AU172: 0 | AV172: 0 | AW172: 0 | AX172: 0 | AY172: 0 | AZ172: 0 | BA172: 0 | BB172: 0 | BC172: 0 | BD172: 0 | BE172: 0 | BF172: 0 | BG172: 0 | BH172: 0 | BI172: 0 | BJ172: 0 | BK172: 0 | BL172: 0 | BM172: 0 | BN172: 0 | BO172: 0 | BP172: 0 | BQ172: 0 | BR172: 0 | BS172: 0 | BT172: 0 | BU172: 0 | BV172: 0 | BW172: 0 | BX172: 0 | BY172: 0 | BZ172: 0 | CA172: - | CB172: - | CC172: Sun | CD172: 2300 | CE172: 0 | CF172: 1 | CG172: 1 | CH172: 0 | CI172: 0 | CJ172: 0 | CK172: 0 | CL172: 0 | CM172: 0 | CN172: 0 | CO172: 0 | CP172: 0 | CQ172: 0 | CR172: 0 | CS172: 0 | CT172: 0 | CU172: 1 | CV172: 0 | CW172: 0 | CX172: 1 | CY172: 0 | CZ172: 0 | DA172: 0 | DB172: 0 | DC172: 0 | DD172: 0 | DE172: 0 | DF172: 0 | DG172: 0 | DH172: 0 | DI172: 0 | DJ172: 0 | DK172: 0 | DL172: 0 | DM172: 0 | DN172: 0 | DO172: 30.95 | DP172: - | DQ172: 0 | DR172: 1 | DS172: 1 | DT172: 0 | DU172: 0 | DV172: 0 | DW172: 0 | DX172: 0 | DY172: 0 | DZ172: 0 | EA172: 0 | EB172: 0 | EC172: 2 | ED172: 0 | EE172: 0 | EF172: 0 | EG172: 0 | EH172: 0 | EI172: 0 | EJ172: 0 | EK172: 0 | EL172: 0 | EM172: 0 | EN172: 0 | EO172: 0 | EP172: 0 | EQ172: 0 | ER172: 1 | ES172: 1 | ET172: 0 | EU172: 0 | EV172: 0 | EW172: 0 | EX172: 0 | EY172: 0 | EZ172: 0 | FA172: 0 | FB172: 0 | FC172: 2
A173: WD Ave | B173: 0 | C173: =SUM(C5+C29+C53+C77+C101)/5 -> 0 | D173: 0 | E173: 0.6 | F173: 0.4 | G173: 0 | H173: 0 | I173: 0 | J173: 0 | K173: 0 | L173: 0 | M173: 0 | N173: =SUM(N5+N29+N53+N77+N101)/5 -> 0 | O173: =SUM(O5+O29+O53+O77+O101)/5 -> 0 | P173: 0 | Q173: 0.2 | R173: =SUM(R5+R29+R53+R77+R101)/5 -> 0.2 | S173: 0.2 | T173: 0 | U173: 0.2 | V173: =SUM(V5+V29+V53+V77+V101)/5 -> 0.2 | W173: =SUM(W5+W29+W53+W77+W101)/5 -> 0 | X173: 0 | Y173: 0 | Z173: 0 | AA173: 0 | AB173: =SUM(AB5+AB29+AB53+AB77+AB101)/5 -> 0 | AC173: =SUM(AC5+AC29+AC53+AC77+AC101)/5 -> 0 | AD173: 0 | AE173: 0 | AF173: 0 | AG173: 0 | AH173: 0 | AI173: 0 | AJ173: 0 | AK173: 0 | AL173: 0 | AM173: 23.77 | AN173: - | AO173: WD Ave | AP173: 0 | AQ173: =SUM(AQ5+AQ29+AQ53+AQ77+AQ101)/5 -> 0 | AR173: 0 | AS173: 0.6 | AT173: 0 | AU173: 0 | AV173: 0 | AW173: 0 | AX173: 0 | AY173: 0 | AZ173: 0 | BA173: 0 | BB173: 0 | BC173: 0 | BD173: 0.2 | BE173: 0.2 | BF173: =SUM(BF5+BF29+BF53+BF77+BF101)/5 -> 0 | BG173: 0.2 | BH173: 0 | BI173: =SUM(BI5+BI29+BI53+BI77+BI101)/5 -> 0 | BJ173: 0 | BK173: 0 | BL173: =SUM(BL5+BL29+BL53+BL77+BL101)/5 -> 0 | BM173: 0 | BN173: 0 | BO173: 0 | BP173: =SUM(BP5+BP29+BP53+BP77+BP101)/5 -> 0 | BQ173: =SUM(BQ5+BQ29+BQ53+BQ77+BQ101)/5 -> 0 | BR173: 0 | BS173: 0 | BT173: 0 | BU173: 0 | BV173: 0 | BW173: 0 | BX173: 0 | BY173: 0 | BZ173: 0 | CA173: 13.75 | CB173: - | CC173: WD Ave | CD173: 0 | CE173: =SUM(CE5+CE29+CE53+CE77+CE101)/5 -> 0 | CF173: 0 | CG173: 1.2 | CH173: 0.4 | CI173: 0 | CJ173: 0 | CK173: 0 | CL173: 0 | CM173: 0 | CN173: 0 | CO173: 0 | CP173: 0 | CQ173: 0 | CR173: 0 | CS173: 0.2 | CT173: =SUM(CT5+CT29+CT53+CT77+CT101)/5 -> 0.2 | CU173: 0.4 | CV173: =SUM(CV5+CV29+CV53+CV77+CV101)/5 -> 0 | CW173: 0.2 | CX173: 0.2 | CY173: 0 | CZ173: 0 | DA173: 0 | DB173: =SUM(DB5+DB29+DB53+DB77+DB101)/5 -> 0 | DC173: 0 | DD173: =SUM(DD5+DD29+DD53+DD77+DD101)/5 -> 0 | DE173: =SUM(DE5+DE29+DE53+DE77+DE101)/5 -> 0 | DF173: 0 | DG173: 0 | DH173: 0 | DI173: 0 | DJ173: 0 | DK173: 0 | DL173: 0 | DM173: 0 | DN173: 0 | DO173: 20.01 | DP173: - | DQ173: 0 | DR173: 0 | DS173: 0.6 | DT173: 0.4 | DU173: 0 | DV173: 0 | DW173: 0 | DX173: 0 | DY173: 0 | DZ173: 0 | EA173: 0 | EB173: 0 | EC173: 1 | ED173: 0 | EE173: 0 | EF173: 0.6 | EG173: 0 | EH173: 0 | EI173: 0 | EJ173: 0 | EK173: 0 | EL173: 0 | EM173: 0 | EN173: 0 | EO173: 0 | EP173: 0.6 | EQ173: 0 | ER173: 0 | ES173: 1.2 | ET173: 0.4 | EU173: 0 | EV173: 0 | EW173: 0 | EX173: 0 | EY173: 0 | EZ173: 0 | FA173: 0 | FB173: 0 | FC173: 1.6
A174: WD Ave | B174: 100 | C174: =SUM(C6+C30+C54+C78+C102)/5 -> 0 | D174: 0 | E174: 0 | F174: 0.2 | G174: 0 | H174: 0 | I174: 0 | J174: 0 | K174: 0 | L174: 0 | M174: 0 | N174: =SUM(N6+N30+N54+N78+N102)/5 -> 0 | O174: =SUM(O6+O30+O54+O78+O102)/5 -> 0 | P174: 0 | Q174: 0 | R174: =SUM(R6+R30+R54+R78+R102)/5 -> 0 | S174: 0 | T174: 0 | U174: 0.2 | V174: 0 | W174: 0 | X174: 0 | Y174: 0 | Z174: 0 | AA174: 0 | AB174: =SUM(AB6+AB30+AB54+AB78+AB102)/5 -> 0 | AC174: =SUM(AC6+AC30+AC54+AC78+AC102)/5 -> 0 | AD174: 0 | AE174: 0 | AF174: 0 | AG174: 0 | AH174: 0 | AI174: 0 | AJ174: 0 | AK174: 0 | AL174: 0 | AM174: 30.22 | AN174: - | AO174: WD Ave | AP174: 100 | AQ174: =SUM(AQ6+AQ30+AQ54+AQ78+AQ102)/5 -> 0 | AR174: 0 | AS174: 0 | AT174: 0.4 | AU174: 0 | AV174: 0 | AW174: 0 | AX174: 0 | AY174: 0 | AZ174: 0 | BA174: 0 | BB174: 0 | BC174: 0 | BD174: 0 | BE174: 0 | BF174: =SUM(BF6+BF30+BF54+BF78+BF102)/5 -> 0 | BG174: 0 | BH174: 0.2 | BI174: 0.2 | BJ174: 0 | BK174: 0 | BL174: =SUM(BL6+BL30+BL54+BL78+BL102)/5 -> 0 | BM174: 0 | BN174: 0 | BO174: 0 | BP174: =SUM(BP6+BP30+BP54+BP78+BP102)/5 -> 0 | BQ174: =SUM(BQ6+BQ30+BQ54+BQ78+BQ102)/5 -> 0 | BR174: 0 | BS174: 0 | BT174: 0 | BU174: 0 | BV174: 0 | BW174: 0 | BX174: 0 | BY174: 0 | BZ174: 0 | CA174: 29.98 | CB174: - | CC174: WD Ave | CD174: 100 | CE174: =SUM(CE6+CE30+CE54+CE78+CE102)/5 -> 0 | CF174: 0 | CG174: 0 | CH174: 0.6 | CI174: 0 | CJ174: 0 | CK174: 0 | CL174: 0 | CM174: 0 | CN174: 0 | CO174: 0 | CP174: 0 | CQ174: 0 | CR174: 0 | CS174: 0 | CT174: =SUM(CT6+CT30+CT54+CT78+CT102)/5 -> 0 | CU174: 0 | CV174: 0.2 | CW174: 0.4 | CX174: 0 | CY174: 0 | CZ174: 0 | DA174: 0 | DB174: =SUM(DB6+DB30+DB54+DB78+DB102)/5 -> 0 | DC174: 0 | DD174: =SUM(DD6+DD30+DD54+DD78+DD102)/5 -> 0 | DE174: =SUM(DE6+DE30+DE54+DE78+DE102)/5 -> 0 | DF174: 0 | DG174: 0 | DH174: 0 | DI174: 0 | DJ174: 0 | DK174: 0 | DL174: 0 | DM174: 0 | DN174: 0 | DO174: 30.06 | DP174: - | DQ174: 0 | DR174: 0 | DS174: 0 | DT174: 0.2 | DU174: 0 | DV174: 0 | DW174: 0 | DX174: 0 | DY174: 0 | DZ174: 0 | EA174: 0 | EB174: 0 | EC174: 0.2 | ED174: 0 | EE174: 0 | EF174: 0 | EG174: 0.4 | EH174: 0 | EI174: 0 | EJ174: 0 | EK174: 0 | EL174: 0 | EM174: 0 | EN174: 0 | EO174: 0 | EP174: 0.4 | EQ174: 0 | ER174: 0 | ES174: 0 | ET174: 0.6 | EU174: 0 | EV174: 0 | EW174: 0 | EX174: 0 | EY174: 0 | EZ174: 0 | FA174: 0 | FB174: 0 | FC174: 0.6
